Workbook

Sheet CF (hidden)
B2: CONDITIONAL FORMATTING MAP
F3: =INDEX(dms_CF_3.6.1, MATCH(dms_TradingName,dms_CF_TradingName))="Y" -> FALSE | G3: =INDEX(dms_CF_3.6.5, MATCH(dms_TradingName,dms_CF_TradingName))="Y" | H3: =INDEX(dms_CF_3.6.6, MATCH(dms_TradingName,dms_CF_TradingName))="Y" -> FALSE | I3: =INDEX(dms_CF_3.6.7.1, MATCH(dms_TradingName,dms_CF_TradingName))="Y" | J3: =INDEX(dms_CF_3.6.7.2, MATCH(dms_TradingName,dms_CF_TradingName))="Y" | K3: =INDEX(dms_CF_3.6.7.3, MATCH(dms_TradingName,dms_CF_TradingName))="Y" | L3: =INDEX(dms_CF_3.6.7.4, MATCH(dms_TradingName,dms_CF_TradingName))="Y" | M3: =INDEX(dms_CF_4.1, MATCH(dms_TradingName,dms_CF_TradingName))="Y" | N3: =INDEX(dms_CF_6.6.1, MATCH(dms_TradingName,dms_CF_TradingName))="Y" | O3: =INDEX(dms_CF_6.8, MATCH(dms_TradingName,dms_CF_TradingName))="Y" | P3: =INDEX(dms_CF_7.12, MATCH(dms_TradingName,dms_CF_TradingName))="Y" | Q3: =INDEX(dms_CF_8.1_A, MATCH(dms_TradingName,dms_CF_TradingName))="Y" | R3: =INDEX(dms_CF_8.1_B, MATCH(dms_TradingName,dms_CF_TradingName))="Y" | S3: =INDEX(dms_CF_8.1_Neg, MATCH(dms_TradingName,dms_CF_TradingName))="Y"
B4: dms_CF_TradingName | C4: JurisdictionList | D4: Sector | E4: Segment | F4: dms_CF_3.6.1 | G4: dms_CF_3.6.5 | H4: dms_CF_3.6.6 | I4: dms_CF_3.6.7.1 | J4: dms_CF_3.6.7.2 | K4: dms_CF_3.6.7.3 | L4: dms_CF_3.6.7.4 | M4: dms_CF_4.1 | N4: dms_CF_6.6.1 | O4: dms_CF_6.8 | P4: dms_CF_7.12 | Q4: dms_CF_8.1_A | R4: dms_CF_8.1_B | S4: dms_CF_8.1_Neg | T4: dms_CF_4.4.1 | U4: Spare2
B5: ActewAGL Distribution | C5: ACT | D5: Electricity | E5: Distribution | G5: Y | I5: Y | J5: Y | K5: N | L5: Y | M5: Y | N5: N | O5: Y | P5: Y | Q5: N | R5: Y | S5: Y | T5: N | U5: N
B6: Ausgrid | C6: NSW | D6: Electricity | E6: Distribution | G6: Y | I6: N | J6: N | K6: N | L6: Y | M6: Y | N6: N | O6: Y | P6: Y | Q6: N | R6: Y | S6: Y | T6: N | U6: N
B7: AusNet (D) | C7: Vic | D7: Electricity | E7: Distribution | G7: N | I7: N | J7: N | K7: N | L7: N | M7: Y | N7: N | O7: Y | P7: N | Q7: N | R7: N | S7: Y | T7: N | U7: N
B8: AusNet (T) | C8: Vic | D8: Electricity | E8: Transmission | G8: N | I8: N | J8: N | K8: N | L8: N | M8: Y | N8: N | O8: Y | P8: N | Q8: N | R8: N | S8: Y | T8: N | U8: N
B9: CitiPower | C9: Vic | D9: Electricity | E9: Distribution | G9: N | I9: N | J9: N | K9: N | L9: N | M9: Y | N9: N | O9: Y | P9: N | Q9: N | R9: N | S9: Y | T9: N | U9: N
B10: Directlink | C10: Qld | D10: Electricity | E10: Transmission | G10: N | I10: N | J10: N | K10: N | L10: N | M10: Y | N10: N | O10: Y | P10: N | Q10: N | R10: Y | S10: Y | T10: N | U10: N
B11: ElectraNet | C11: SA | D11: Electricity | E11: Transmission | G11: N | I11: N | J11: N | K11: N | L11: N | M11: Y | N11: N | O11: Y | P11: N | Q11: N | R11: Y | S11: Y | T11: N | U11: N
B12: Endeavour Energy | C12: NSW | D12: Electricity | E12: Distribution | G12: Y | I12: N | J12: N | K12: N | L12: Y | M12: Y | N12: N | O12: Y | P12: Y | Q12: N | R12: Y | S12: Y | T12: N | U12: N
B13: Energex | C13: Qld | D13: Electricity | E13: Distribution | G13: Y | I13: N | J13: N | K13: N | L13: N | M13: Y | N13: N | O13: Y | P13: Y | Q13: N | R13: Y | S13: Y | T13: Y | U13: N
B14: Ergon Energy | C14: Qld | D14: Electricity | E14: Distribution | G14: Y | I14: N | J14: N | K14: N | L14: N | M14: Y | N14: N | O14: Y | P14: Y | Q14: N | R14: Y | S14: Y | T14: Y | U14: N
B15: Essential Energy | C15: NSW | D15: Electricity | E15: Distribution | G15: Y | I15: N | J15: N | K15: N | L15: Y | M15: Y | N15: N | O15: Y | P15: Y | Q15: N | R15: Y | S15: Y | T15: N | U15: N
B16: Jemena Electricity | C16: Vic | D16: Electricity | E16: Distribution | G16: N | I16: N | J16: N | K16: N | L16: N | M16: Y | N16: N | O16: Y | P16: N | Q16: N | R16: N | S16: Y | T16: N | U16: N
B17: Murraylink | C17: SA | D17: Electricity | E17: Transmission | G17: N | I17: N | J17: N | K17: N | L17: N | M17: Y | N17: N | O17: Y | P17: N | Q17: N | R17: Y | S17: Y | T17: N | U17: N
B18: Power and Water | C18: NT | D18: Electricity | E18: Distribution | G18: N | I18: N | J18: Y | K18: N | L18: N | M18: Y | N18: Y | O18: Y | P18: Y | Q18: N | R18: Y | S18: Y | T18: N | U18: N
B19: Powercor Australia | C19: Vic | D19: Electricity | E19: Distribution | G19: N | I19: N | J19: N | K19: N | L19: N | M19: Y | N19: N | O19: Y | P19: N | Q19: N | R19: N | S19: Y | T19: N | U19: N
B20: Powerlink | C20: Qld | D20: Electricity | E20: Transmission | G20: N | I20: N | J20: N | K20: N | L20: N | M20: Y | N20: N | O20: Y | P20: N | Q20: N | R20: Y | S20: Y | T20: N | U20: N
B21: SA Power Networks | C21: SA | D21: Electricity | E21: Distribution | G21: Y | I21: N | J21: N | K21: N | L21: N | M21: Y | N21: N | O21: Y | P21: Y | Q21: Y | R21: Y | S21: N | T21: N | U21: N
B22: TasNetworks (D) | C22: Tas | D22: Electricity | E22: Distribution | G22: Y | I22: N | J22: N | K22: N | L22: N | M22: Y | N22: N | O22: Y | P22: Y | Q22: N | R22: Y | S22: Y | T22: N | U22: N
B23: TasNetworks (T) | C23: Tas | D23: Electricity | E23: Transmission | G23: N | I23: N | J23: N | K23: N | L23: N | M23: Y | N23: N | O23: Y | P23: N | Q23: N | R23: Y | S23: Y | T23: N | U23: N
B24: TransGrid | C24: NSW | D24: Electricity | E24: Transmission | G24: N | I24: N | J24: N | K24: N | L24: N | M24: Y | N24: N | O24: Y | P24: N | Q24: N | R24: Y | S24: Y | T24: N | U24: N
B25: United Energy | C25: Vic | D25: Electricity | E25: Distribution | G25: N | I25: N | J25: N | K25: N | L25: N | M25: Y | N25: N | O25: Y | P25: N | Q25: N | R25: N | S25: Y | T25: N | U25: N
C124: 0
C125: =IFERROR(IF(dms_Model="ARR",(MAX(0,dms_0608_LastRow-dms_0608_OffsetRows)),"not an ARR"),"0") -> not an ARR

Sheet AER only (hidden)
B1: Data in these columns used for data validation and database purposes.
B2: Date last modified: | C2: 2017-01-16 | D2: added (Albury and Victora) for AGN
C3: 2016-10-17 | D3: updated TransGrid's correct legal name, corrected TasNetworks (T) to June financial year
C4: 2017-02-01 | D4: inserted Power and Water, added NRs (dms_FeederCat_1 and dms_FeederCat_2)
C5: 2017-03-03 | D5: inserted AEMO as a business | AB5: FOR ELECTRICITY BUSINESSES ONLY
C6: 2018-03-28 | D6: major changes to accommodate STPIS
C7: Template Version | D7: 5 | AB7: Feeder Types | AF7: TasNetworks (D) | AG7: MAIFI flag | AH7: Feeder Names
AB9: CBD | AC9: Urban | AD9: Short rural | AE9: long rural | AF9: EXTRA
B10: dms_TradingName_List | C10: dms_TradingNameFull_List | D10: dms_ABN_List | E10: dms_JurisdictionList | F10: dms_Sector_List | G10: dms_Segment_List | H10: dms_FormControl_List | I10: dms_RPT_List | J10: dms_RPTMonth_List | K10: dms_CRCPlength_List | L10: dms_FRCPlength_List | M10: dms_663_List | N10: dms_DeterminationRef_List | O10: dms_Addr1_List | P10: dms_Addr2_List | Q10: dms_Suburb_List | R10: dms_State_List | S10: dms_PostCode_List | T10: dms_PAddr1_List | U10: dms_PAddr2_List | V10: dms_PSuburb_List | W10: dms_PState_List | X10: dms_PPostCode_List | Y10: dms_ContactName1_List | Z10: dms_ContactPh1_List | AA10: dms_ContactEmail_List | AB10: dms_CBD_flag | AC10: dms_Urban_flag | AD10: dms_ShortRural_flag | AE10: dms_LongRural_flag | AF10: dms_FeederType_5_flag | AG10: dms_MAIFI_flag_List | AH10: dms_FeederName_1 | AI10: dms_FeederName_2 | AJ10: dms_FeederName_3 | AK10: dms_FeederName_4 | AL10: dms_FeederName_5 | AM10: dms_Public_Lighting_List | AN10: Column1
B11: ActewAGL Distribution | C11: ActewAGL Distribution | D11: 76670568688 | E11: ACT | F11: Electricity | G11: Distribution | H11: Revenue cap | I11: Financial | J11: June | K11: 5 | L11: 5 | M11: 5 | N11: 2014-19 Distribution Determination | O11: 40 Bunda Street | Q11: CANBERRA | R11: ACT | S11: 2600 | T11: GPO BOX 366 | V11: CANBERRA | W11: ACT | X11: 2601 | Y11: Robert Walker | Z11: 02 6248 3847 | AA11: robert.walker@actewagle.com.au | AB11: NO | AC11: YES | AD11: YES | AE11: NO | AF11: NO | AH11: CBD | AI11: Urban | AJ11: Short rural | AK11: Long rural | AM11: NO | AN11: ActewAGL Distribution
B12: ActewAGL Distribution (Tx Assets) | C12: ActewAGL Distribution (Tx Assets) | D12: 76670568688 | E12: ACT | F12: Electricity | G12: Distribution | H12: Revenue cap | I12: Financial | J12: June | K12: 5 | L12: 5 | M12: 5 | N12: distribution determination | O12: 40 Bunda Street | Q12: CANBERRA | R12: ACT | S12: 2600 | T12: GPO BOX 366 | V12: CANBERRA | W12: ACT | X12: 2601 | Y12: Robert Walker | Z12: 02 6248 3847 | AA12: robert.walker@actewagle.com.au | AB12: NO | AC12: YES | AD12: YES | AE12: NO | AF12: NO | AH12: CBD | AI12: Urban | AJ12: Short rural | AK12: Long rural | AM12: NO | AN12: ActewAGL Distribution (Tx Assets)
B13: ActewAGL Gas | C13: ActewAGL Gas | D13: 76670568688 | E13: ACT | F13: Gas | G13: Distribution | H13: Weighted average price cap | I13: Financial | J13: June | K13: 5 | L13: 5 | M13: x | O13: 40 Bunda Street | Q13: CANBERRA | R13: ACT | S13: 2600 | T13: GPO BOX 366 | V13: CANBERRA | W13: ACT | X13: 2601 | Y13: Philip Deamer | Z13: 02 6248 3438 | AA13: GasAAReview@actewagl.com.au | AB13: NO | AC13: NO | AD13: NO | AE13: NO | AF13: NO | AH13: CBD | AI13: Urban | AJ13: Short rural | AK13: Long rural | AM13: NO | AN13: ActewAGL Gas
B14: AEMO | C14: Australian Energy Market Operator Ltd | D14: 94072010327 | E14: Vic | F14: Electricity | G14: Transmission | H14: - | I14: Financial | J14: March | K14: 5 | L14: 5 | M14: x | N14: - | O14: Level 22 | P14: 530 Collins Street | Q14: MELBOURNE | R14: VIC | S14: 3000 | T14: GPO Box 2008 | V14: MELBOURNE | W14: VIC | X14: 3001 | AB14: NO | AC14: NO | AD14: NO | AE14: NO | AF14: NO | AH14: CBD | AI14: Urban | AJ14: Short rural | AK14: Long rural | AM14: NO | AN14: AEMO
B15: AGN (Albury and Victoria) | C15: Australian Gas Networks Limited (reporting data for Albury and Victoria) | D15: 19078551685 | E15: Vic | F15: Gas | G15: Distribution | H15: Weighted average price cap | I15: Calendar | J15: December | K15: 5 | L15: 5 | M15: x | O15: Level 6 | P15: 400 King William Street | Q15: ADELAIDE | R15: SA | S15: 5000 | T15: PO Box 6468 | U15: Halifax Street | V15: ADELAIDE | W15: SA | X15: 5000 | Y15: Craig de Laine | Z15: 08 8418 1129 | AA15: craig.delaine@agn.com.au | AB15: NO | AC15: NO | AD15: NO | AE15: NO | AF15: NO | AH15: CBD | AI15: Urban | AJ15: Short rural | AK15: Long rural | AM15: NO | AN15: AGN (Albury)
B16: AGN (Albury) | C16: Australian Gas Networks Limited (reporting data for Albury) | D16: 19078551685 | E16: Vic | F16: Gas | G16: Distribution | H16: Weighted average price cap | I16: Calendar | J16: December | K16: 5 | L16: 5 | M16: x | O16: Level 6 | P16: 400 King William Street | Q16: ADELAIDE | R16: SA | S16: 5000 | T16: PO Box 6468 | U16: Halifax Street | V16: ADELAIDE | W16: SA | X16: 5000 | Y16: Craig de Laine | Z16: 08 8418 1129 | AA16: craig.delaine@agn.com.au | AB16: NO | AC16: NO | AD16: NO | AE16: NO | AF16: NO | AH16: CBD | AI16: Urban | AJ16: Short rural | AK16: Long rural | AM16: NO
B17: AGN (SA) | C17: Australian Gas Networks Limited (reporting data for SA) | D17: 19078551685 | E17: SA | F17: Gas | G17: Distribution | H17: Weighted average price cap | I17: Financial | J17: June | K17: 5 | L17: 5 | M17: 5 | N17: distribution determination | O17: Level 6 | P17: 400 King William Street | Q17: ADELAIDE | R17: SA | S17: 5000 | T17: PO Box 6468 | U17: Halifax Street | V17: ADELAIDE | W17: SA | X17: 5000 | Y17: Craig de Laine | Z17: 08 8418 1129 | AA17: craig.delaine@agn.com.au | AB17: NO | AC17: NO | AD17: NO | AE17: NO | AF17: NO | AH17: CBD | AI17: Urban | AJ17: Short rural | AK17: Long rural | AM17: NO | AN17: AGN (SA)
B18: AGN (Victoria) | C18: Australian Gas Networks Limited (reporting data for Victoria) | D18: 19078551685 | E18: Vic | F18: Gas | G18: Distribution | H18: Weighted average price cap | I18: Calendar | J18: December | K18: 5 | L18: 5 | M18: x | O18: Level 6 | P18: 400 King William Street | Q18: ADELAIDE | R18: SA | S18: 5000 | T18: PO Box 6468 | U18: Halifax Street | V18: ADELAIDE | W18: SA | X18: 5000 | Y18: Craig de Laine | Z18: 08 8418 1129 | AA18: craig.delaine@agn.com.au | AB18: NO | AC18: NO | AD18: NO | AE18: NO | AF18: NO | AH18: CBD | AI18: Urban | AJ18: Short rural | AK18: Long rural | AM18: NO | AN18: AGN (Victoria)
B19: Amadeus | C19: APT Pipelines (NT) Pty Ltd | D19: 39009737393 | E19: NT | F19: Gas | G19: Transmission | H19: Weighted average price cap | I19: Financial | J19: June | K19: 5 | L19: 5 | M19: x | N19: n/a | O19: Level 19, HSBC Building | P19: 580 George Street | Q19: SYDNEY | R19: NSW | S19: 2000 | T19: Level 19, HSBC Building | U19: 580 George Street | V19: SYDNEY | W19: NSW | X19: 2000 | Y19: Alexandra Curran | Z19: 02 9275 0020 | AA19: alexandra.curran@apa.com.au | AB19: NO | AC19: NO | AD19: NO | AE19: NO | AF19: NO | AH19: CBD | AI19: Urban | AJ19: Short rural | AK19: Long rural | AM19: NO | AN19: Amadeus
B20: APA GasNet | C20: APA GasNet Australia (Operations) Pty Ltd | D20: 065083009 | E20: Vic | F20: Gas | G20: Transmission | H20: Weighted average price cap | I20: Calendar | J20: December | K20: 5 | L20: 5 | M20: x | O20: Level 19, HSBC Building | P20: 580 George Street | Q20: SYDNEY | R20: NSW | S20: 2000 | T20: PO Box R41 | V20: ROYAL EXCHANGE | W20: NSW | X20: 1225 | Y20: Alexandra Curran | Z20: 02 9275 0020 | AA20: alexandra.curran@apa.com.au | AB20: NO | AC20: NO | AD20: NO | AE20: NO | AF20: NO | AH20: CBD | AI20: Urban | AJ20: Short rural | AK20: Long rural | AM20: NO | AN20: APA GasNet
B21: Ausgrid | C21: Ausgrid | D21: 78508211731 | E21: NSW | F21: Electricity | G21: Distribution | H21: Revenue cap | I21: Financial | J21: June | K21: 5 | L21: 5 | M21: 5 | N21: 2014-19 Distribution Determination | O21: 570 George St | Q21: SYDNEY | R21: NSW | S21: 2000 | T21: GPO Box 4009 | V21: SYDNEY | W21: NSW | X21: 2001 | Y21: John Thomson | Z21: 02 9269 2312 | AA21: john.thomson@ausgrid.com.au | AB21: YES | AC21: YES | AD21: YES | AE21: YES | AF21: NO | AH21: CBD | AI21: Urban | AJ21: Short rural | AK21: Long rural | AM21: YES | AN21: Ausgrid
B22: Ausgrid (Tx Assets) | C22: Ausgrid (Tx Assets) | D22: 67505337385 | E22: NSW | F22: Electricity | G22: Distribution | H22: Revenue cap | I22: Financial | J22: June | K22: 5 | L22: 5 | M22: 5 | N22: distribution determination | O22: 570 George St | Q22: SYDNEY | R22: NSW | S22: 2000 | T22: GPO Box 4009 | V22: SYDNEY | W22: NSW | X22: 2001 | Y22: John Thomson | Z22: 02 9269 2312 | AA22: john.thomson@ausgrid.com.au | AB22: YES | AC22: YES | AD22: YES | AE22: YES | AF22: NO | AH22: CBD | AI22: Urban | AJ22: Short rural | AK22: Long rural | AM22: NO | AN22: Ausgrid (Tx Assets)
B23: AusNet (D) | C23: AusNet Electricity Services Pty Ltd | D23: 91064651118 | E23: Vic | F23: Electricity | G23: Distribution | H23: Revenue cap | I23: Calendar | J23: December | K23: 5 | L23: 5 | M23: 2 | N23: 2016-20 Distribution Determination | O23: Level 32 | P23: 2 Southbank Boulevard | Q23: SOUTHBANK | R23: Vic | S23: 3006 | T23: Locked Bag 14051 | V23: MELBOURNE CITY MAIL CENTRE | W23: VIC | X23: 8001 | Y23: please provide contact details | AB23: NO | AC23: YES | AD23: YES | AE23: YES | AF23: NO | AH23: CBD | AI23: Urban | AJ23: Short rural | AK23: Long rural | AM23: YES | AN23: AusNet (D)
B24: AusNet (Gas) | C24: AusNet Gas Services | D24: 086015036 | E24: Vic | F24: Gas | G24: Distribution | H24: Weighted average price cap | I24: Calendar | J24: December | K24: 5 | L24: 5 | M24: X | O24: Level 19, HSBC Building | P24: 580 George Street | Q24: SYDNEY | R24: NSW | S24: 2000 | T24: PO Box R41 | V24: ROYAL EXCHANGE | W24: NSW | X24: 1225 | Y24: Alexandra Curran | Z24: 02 9275 0020 | AA24: alexandra.curran@apa.com.au | AB24: NO | AC24: NO | AD24: NO | AE24: NO | AF24: NO | AH24: CBD | AI24: Urban | AJ24: Short rural | AK24: Long rural | AM24: NO | AN24: AusNet (Gas)
B25: AusNet (T) | C25: Ausnet Services (Transmission) Ltd | D25: 48116124362 | E25: Vic | F25: Electricity | G25: Transmission | H25: Revenue cap | I25: Financial | J25: March | K25: 5 | L25: 5 | M25: 2 | N25: transmission determination | O25: Level 32 | P25: 2 Southbank Boulevard | Q25: SOUTHBANK | R25: Vic | S25: 3006 | T25: Locked Bag 14051 | V25: MELBOURNE CITY MAIL CENTRE | W25: Vic | X25: 8001 | Y25: Clare Thompson | Z25: 03 9695 6670 | AA25: clare.e.thompson@ausnetservices.com.au | AB25: NO | AC25: NO | AD25: NO | AE25: NO | AF25: NO | AH25: CBD | AI25: Urban | AJ25: Short rural | AK25: Long rural | AM25: NO | AN25: AusNet (T)
B26: Australian Distribution Co. | C26: Australian Distribution Co. | D26: 11222333444 | E26: - | F26: Electricity | G26: Distribution | H26: Revenue cap | I26: Financial | J26: June | K26: 5 | L26: 5 | M26: 2 | N26: distribution determination | O26: 123 Straight Street | Q26: SYDNEY | R26: NSW | S26: 2000 | T26: PO Box 123 | V26: SYDNEY | W26: NSW | X26: 2000 | Y26: Bob Smith | Z26: 02 1234 5678 | AA26: bob@auselec.net.au | AB26: YES | AC26: YES | AD26: YES | AE26: YES | AF26: NO | AH26: CBD | AI26: Urban | AJ26: Short rural | AK26: Long rural | AM26: YES | AN26: Australian Distribution Co.
B27: Australian Distribution Co. (Gas) | C27: Australian Gas Distribution Co. | D27: 11222333444 | E27: NSW | F27: Gas | G27: Distribution | H27: Weighted average price cap | I27: Financial | J27: June | K27: 5 | L27: 5 | O27: 123 Straight Street | Q27: SYDNEY | R27: NSW | S27: 2000 | T27: PO Box 123 | V27: SYDNEY | W27: NSW | X27: 2000 | Y27: Bob Smith | Z27: 02 1234 5678 | AA27: bob@auselec.net.au | AB27: NO | AC27: NO | AD27: NO | AE27: NO | AF27: NO | AH27: CBD | AI27: Urban | AJ27: Short rural | AK27: Long rural | AM27: NO | AN27: Australian Distribution Co. (Vic)
B28: Australian Distribution Co. (Vic) | C28: Australian Distribution Co. (Victoria) | D28: 11222333444 | E28: Vic | F28: Electricity | G28: Distribution | H28: Revenue cap | I28: Calendar | J28: December | K28: 5 | L28: 5 | M28: 2 | N28: distribution determination | O28: 123 Straight Street | Q28: MELBOURNE | R28: Vic | S28: 3000 | T28: PO Box 123 | V28: MELBOURNE | W28: VIC | X28: 3000 | Y28: Bob Smith | Z28: 02 1234 5678 | AA28: bob@auselec.net.au | AB28: NO | AC28: NO | AD28: NO | AE28: NO | AF28: NO | AH28: CBD | AI28: Urban | AJ28: Short rural | AK28: Long rural | AM28: YES | AN28: Australian Distribution Co. (Vic)
B29: Australian Transmission Co. | C29: Australian Transmission Co. | D29: 11222333444 | E29: - | F29: Electricity | G29: Transmission | H29: Revenue cap | I29: Financial | J29: June | K29: 5 | L29: 5 | M29: 5 | N29: transmission determination | O29: 123 Straight Street | Q29: SYDNEY | R29: NSW | S29: 2000 | T29: PO Box 123 | V29: SYDNEY | W29: NSW | X29: 2000 | Y29: Bob Smith | Z29: 02 1234 5678 | AA29: bob@auselec.net.au | AB29: NO | AC29: NO | AD29: NO | AE29: NO | AF29: NO | AH29: CBD | AI29: Urban | AJ29: Short rural | AK29: Long rural | AM29: NO | AN29: Australian Transmission Co.
B30: Central Ranges Pipeline (D) | C30: Central Ranges Pipeline Pty Ltd | D30: 108218355 | E30: NSW | F30: Gas | G30: Distribution | H30: Weighted average price cap | I30: Financial | J30: June | K30: 15 | L30: 5 | M30: 5 | N30: distribution determination | O30: Level 19 | P30: 580 George Street | Q30: SYDNEY | R30: NSW | S30: 2000 | T30: PO Box R41 | V30: ROYAL EXCHANGE | W30: NSW | X30: 1225 | Y30: Scott Young | Z30: 02 9275 0031 | AA30: scott.young@apa.com.au | AB30: NO | AC30: NO | AD30: NO | AE30: NO | AF30: NO | AH30: CBD | AI30: Urban | AJ30: Short rural | AK30: Long rural | AM30: NO
B31: Central Ranges Pipeline (T) | C31: Central Ranges Pipeline Pty Ltd | D31: 108218355 | E31: NSW | F31: Gas | G31: Distribution | H31: Weighted average price cap | I31: Financial | J31: June | K31: 14 | L31: 5 | M31: 5 | N31: transmission determination | O31: Level 19 | P31: 580 George Street | Q31: SYDNEY | R31: NSW | S31: 2000 | T31: PO Box R41 | V31: ROYAL EXCHANGE | W31: NSW | X31: 1225 | Y31: Scott Young | Z31: 02 9275 0031 | AA31: scott.young@apa.com.au | AB31: NO | AC31: NO | AD31: NO | AE31: NO | AF31: NO | AH31: CBD | AI31: Urban | AJ31: Short rural | AK31: Long rural | AM31: NO
B32: CitiPower | C32: CitiPower | D32: 76064651056 | E32: Vic | F32: Electricity | G32: Distribution | H32: Revenue cap | I32: Calendar | J32: December | K32: 5 | L32: 5 | M32: 2 | N32: 2016-20 Distribution Determination | O32: 40 Market Street | Q32: MELBOURNE | R32: Vic | S32: 3000 | T32: Locked Bag 14090 | V32: MELBOURNE | W32: VIC | X32: 8001 | Y32: Hannah Williams | Z32: 03 9683 4088 | AA32: hwilliams@powercor.com.au | AB32: YES | AC32: YES | AD32: NO | AE32: NO | AF32: NO | AH32: CBD | AI32: Urban | AJ32: Short rural | AK32: Long rural | AM32: YES | AN32: CitiPower
B33: Directlink | C33: Directlink | D33: 16779340889 | E33: Qld | F33: Electricity | G33: Transmission | H33: Revenue cap | I33: Financial | J33: June | K33: 9 | L33: 5 | M33: 5 | N33: transmission determination | O33: Level 19, HSBC Building | P33: 580 George Street | Q33: SYDNEY | R33: NSW | S33: 2000 | T33: PO Box R41 | V33: ROYAL EXCHANGE | W33: NSW | X33: 1225 | Y33: Scott Young | Z33: 02 9275 0031 | AA33: scott.young@apa.com.au | AB33: NO | AC33: NO | AD33: NO | AE33: NO | AF33: NO | AH33: CBD | AI33: Urban | AJ33: Short rural | AK33: Long rural | AM33: NO | AN33: Directlink
B34: ElectraNet | C34: ElectraNet | D34: 41094482416 | E34: SA | F34: Electricity | G34: Transmission | H34: Revenue cap | I34: Financial | J34: June | K34: 5 | L34: 5 | M34: 5 | N34: transmission determination | O34: 52-55 East Terrace | P34: Rymill Park | Q34: ADELAIDE | R34: SA | S34: 5000 | T34: PO Box 7096 | U34: Hutt Street Post Office | V34: ADELAIDE | W34: SA | X34: 5000 | Y34: Bill Jackson | Z34: 08 8404 7969 | AA34: jackson.bill@electranet.com.au | AB34: NO | AC34: NO | AD34: NO | AE34: NO | AF34: NO | AH34: CBD | AI34: Urban | AJ34: Short rural | AK34: Long rural | AM34: NO | AN34: ElectraNet
B35: Endeavour Energy | C35: Endeavour Energy | D35: 11247365823 | E35: NSW | F35: Electricity | G35: Distribution | H35: Revenue cap | I35: Financial | J35: June | K35: 5 | L35: 5 | M35: 5 | N35: 2014-19 Distribution Determination | O35: 51 Huntingwood Drive | Q35: HUNTINGWOOD | R35: NSW | S35: 2148 | T35: PO Box 811 | V35: SEVEN HILLS | W35: NSW | X35: 1730 | Y35: Jon Hocking | Z35: 02 9853 4386 / 0407 348 156 | AA35: Jon.Hocking@Endeavourenergy.com.au | AB35: NO | AC35: YES | AD35: YES | AE35: YES | AF35: NO | AH35: CBD | AI35: Urban | AJ35: Short rural | AK35: Long rural | AM35: YES | AN35: Endeavour Energy
B36: Energex | C36: Energex | D36: 40078849055 | E36: Qld | F36: Electricity | G36: Distribution | H36: Revenue cap | I36: Financial | J36: June | K36: 5 | L36: 5 | M36: 5 | N36: 2015-20 Distribution Determination | O36: 26 Reddacliff Street | Q36: NEWSTEAD | R36: Qld | S36: 4006 | T36: 26 Reddacliff Street | V36: NEWSTEAD | W36: QLD | X36: 4006 | Y36: Jenny Doyle, General Manager Regulation and Pricing | Z36: (07) 3851 6416 | AA36: jenny.doyle@energyq.com.au | AB36: YES | AC36: YES | AD36: YES | AE36: NO | AF36: NO | AH36: CBD | AI36: Urban | AJ36: Short rural | AK36: Long rural | AM36: YES | AN36: Energex
B37: Ergon Energy | C37: Ergon Energy | D37: 50087646062 | E37: Qld | F37: Electricity | G37: Distribution | H37: Revenue cap | I37: Financial | J37: June | K37: 5 | L37: 5 | M37: 5 | N37: 2015-20 Distribution Determination | O37: 22 Walker Street | Q37: TOWNSVILLE | R37: Qld | S37: 4810 | T37: Po Box 264 | V37: FORTITUDE VALLEY | W37: QLD | X37: 4006 | Y37: Jenny Doyle, General Manager Regulation and Pricing | Z37: (07) 3851 6416 | AA37: jenny.doyle@energyq.com.au | AB37: NO | AC37: YES | AD37: YES | AE37: YES | AF37: NO | AH37: CBD | AI37: Urban | AJ37: Short rural | AK37: Long rural | AM37: YES | AN37: Ergon Energy
B38: Essential Energy | C38: Essential Energy | D38: 37428185226 | E38: NSW | F38: Electricity | G38: Distribution | H38: Revenue cap | I38: Financial | J38: June | K38: 5 | L38: 5 | M38: 5 | N38: 2014-19 Distribution Determination | O38: 8 Buller Street | Q38: PORT MACQUARIE | R38: NSW | S38: 2444 | T38: PO Box 5730 | V38: PORT MACQUARIE | W38: NSW | X38: 2444 | Y38: Catherine Waddell | Z38: 02 6338 3553 | AA38: catherine.waddell@essentialenergy.com.au | AB38: NO | AC38: NO | AD38: YES | AE38: YES | AF38: NO | AH38: CBD | AI38: Urban | AJ38: Short rural | AK38: Long rural | AM38: YES | AN38: Essential Energy
B39: Jemena Electricity | C39: Jemena Electricity | D39: 82064651083 | E39: Vic | F39: Electricity | G39: Distribution | H39: Revenue cap | I39: Calendar | J39: December | K39: 5 | L39: 5 | M39: 2 | N39: 2016-20 Distribution Determination | O39: Level 16 | P39: 567 Collins Street | Q39: MELBOURNE | R39: VIC | S39: 3000 | T39: PO Box 16182 | V39: MELBOURNE | W39: VIC | X39: 8001 | Y39: Matthew Serpell | Z39: 03 9173 8231 | AA39: matthew.serpell@jemena.com.au | AB39: NO | AC39: YES | AD39: YES | AE39: NO | AF39: NO | AH39: CBD | AI39: Urban | AJ39: Short rural | AK39: Long rural | AM39: YES | AN39: Jemena Electricity
B40: JGN | C40: Jemena Gas Networks (NSW) Ltd | D40: 003 004 322 | E40: NSW | F40: Gas | G40: Distribution | H40: Weighted average price cap | I40: Financial | J40: June | K40: 5 | L40: 5 | Y40: please provide contact details | AB40: NO | AC40: NO | AD40: NO | AE40: NO | AF40: NO | AH40: CBD | AI40: Urban | AJ40: Short rural | AK40: Long rural | AM40: NO | AN40: JGN
B41: Multinet Gas | C41: Multinet Gas (DB No.1) Pty Ltd (ACN 086 026 986), Multinet Gas (DB No.2) Pty Ltd (ACN 086 230 122) | D41: 086026986 | E41: Vic | F41: Gas | G41: Distribution | H41: Weighted average price cap | I41: Calendar | J41: December | K41: 5 | L41: 5 | M41: x | O41: 43-45 Centreway | Q41: MT WAVERLEY | R41: Vic | S41: 3149 | Y41: Andrew Schille | Z41: 03 8846 9860 | AA41: andrew.schille@ue.com.au | AB41: NO | AC41: NO | AD41: NO | AE41: NO | AF41: NO | AH41: CBD | AI41: Urban | AJ41: Short rural | AK41: Long rural | AM41: NO | AN41: Multinet Gas
B42: Murraylink | C42: Murraylink | D42: 79181207909 | E42: SA | F42: Electricity | G42: Transmission | H42: Revenue cap | I42: Financial | J42: June | K42: 5 | L42: 5 | M42: 5 | N42: transmission determination | O42: Level 19 | P42: 580 George Street | Q42: SYDNEY | R42: NSW | S42: 2000 | T42: PO Box R41 | V42: ROYAL EXCHANGE | W42: NSW | X42: 1225 | Y42: Scott Young | Z42: 02 9275 0031 | AA42: scott.young@apa.com.au | AB42: NO | AC42: NO | AD42: NO | AE42: NO | AF42: NO | AH42: CBD | AI42: Urban | AJ42: Short rural | AK42: Long rural | AM42: NO | AN42: Murraylink
B43: Power and Water | C43: Power and Water Corporation | D43: 15947352360 | E43: NT | F43: Electricity | G43: Distribution | H43: Revenue cap | I43: Financial | J43: June | K43: 5 | L43: 5 | M43: x | N43: distribution determination | O43: GPO Box 1921 | Q43: DARWIN | R43: NT | S43: 801 | T43: GPO Box 1921 | V43: DARWIN | W43: NT | X43: 801 | Y43: Lucy Moon | Z43: 08 8924 5822 | AA43: Lucy.Moon@powerwater.com.au | AB43: YES | AC43: YES | AD43: YES | AE43: YES | AF43: NO | AH43: CBD | AI43: Urban | AJ43: Short rural | AK43: Long rural | AM43: NO | AN43: Power and Water
B44: Powercor Australia | C44: Powercor Australia | D44: 89064651109 | E44: Vic | F44: Electricity | G44: Distribution | H44: Revenue cap | I44: Calendar | J44: December | K44: 5 | L44: 5 | M44: 2 | N44: 2016-20 Distribution Determination | O44: 40 Market Street | Q44: MELBOURNE | R44: Vic | S44: 3000 | T44: Locked bag 14090 | V44: MELBOURNE | W44: VIC | X44: 8001 | Y44: Hannah Williams | Z44: 03 9683 4088 | AA44: hwilliams@powercor.com.au | AB44: NO | AC44: NO | AD44: YES | AE44: YES | AF44: NO | AH44: CBD | AI44: Urban | AJ44: Short rural | AK44: Long rural | AM44: YES | AN44: Powercor Australia
B45: Powerlink | C45: Queensland Electricity Transmission Corporation Limited trading as Powerlink Queensland | D45: 82078849233 | E45: Qld | F45: Electricity | G45: Transmission | H45: Revenue cap | I45: Financial | J45: June | K45: 5 | L45: 5 | M45: 5 | N45: transmission determination | O45: 33 Harold St | Q45: VIRGINIA | R45: Qld | S45: 4014 | T45: PO Box 1193 | V45: VIRGINIA | W45: QLD | X45: 4014 | Y45: Jennifer Harris | Z45: 07 3860 2667 | AA45: jharris@powerlink.com.au | AB45: NO | AC45: NO | AD45: NO | AE45: NO | AF45: NO | AH45: CBD | AI45: Urban | AJ45: Short rural | AK45: Long rural | AM45: NO | AN45: Powerlink
B46: Roma to Brisbane Pipeline | C46: APT Petroleum Pipelines Limited t/a Roma to Brisbane Pipeline | D46: 009 737 393 | E46: Qld | F46: Gas | G46: Transmission | H46: Weighted average price cap | I46: Financial | J46: June | K46: 5 | L46: 5 | M46: x | N46: n/a | O46: 580 George Street | Q46: SYDNEY | R46: NSW | S46: 2000 | T46: PO Box R41 | V46: ROYAL EXCHANGE | W46: NSW | X46: 1225 | Y46: Mark Allen | Z46: 02 9275 0010 | AA46: mark.allen@apa.com.au | AB46: NO | AC46: NO | AD46: NO | AE46: NO | AF46: NO | AH46: CBD | AI46: Urban | AJ46: Short rural | AK46: Long rural | AM46: NO | AN46: Roma to Brisbane Pipeline
B47: SA Power Networks | C47: SA Power Networks | D47: 13332330749 | E47: SA | F47: Electricity | G47: Distribution | H47: Revenue cap | I47: Financial | J47: June | K47: 5 | L47: 5 | M47: 5 | N47: 2015-20 Distribution Determination | O47: 1 Anzac Highway | Q47: KESWICK | R47: SA | S47: 5035 | T47: GPO Box 77 | V47: ADELAIDE | W47: SA | X47: 5000 | Y47: Richard Sibly | Z47: 08 8404 5613 | AA47: richard.sibly@sapowernetworks.com.au | AB47: NO | AC47: NO | AD47: YES | AE47: YES | AF47: NO | AH47: CBD | AI47: Urban | AJ47: Short rural | AK47: Long rural | AM47: NO | AN47: SA Power Networks
B48: TasNetworks (D) | C48: TasNetworks (D) | D48: 24167357299 | E48: Tas | F48: Electricity | G48: Distribution | H48: Revenue cap | I48: Financial | J48: June | K48: 5 | L48: 5 | M48: 5 | N48: distribution determination | O48: 1-7 Maria Street | Q48: LENAH VALLEY | R48: Tas | S48: 7008 | T48: PO Box 606 | V48: MOONAH | W48: Tas | X48: 7009 | Y48: John Sayers | Z48: 03 6271 6469 | AA48: john.sayers@tasnetworks.com.au | AB48: YES | AC48: YES | AD48: YES | AE48: YES | AF48: YES | AH48: Critical Infrastructure | AI48: High density commercial | AJ48: Urban | AK48: High density rural | AL48: Low density rural | AM48: YES | AN48: TasNetworks (D)
B49: TasNetworks (T) | C49: TasNetworks (T) | D49: 24167357299 | E49: Tas | F49: Electricity | G49: Transmission | H49: Revenue cap | I49: Financial | J49: June | K49: 5 | L49: 5 | M49: 5 | N49: transmission determination | O49: 1-7 Maria Street | Q49: LENAH VALLEY | R49: Tas | S49: 7008 | T49: PO Box 606 | V49: MOONAH | W49: Tas | X49: 7009 | Y49: John Sayers | Z49: 03 6271 6469 | AA49: john.sayers@tasnetworks.com.au | AB49: NO | AC49: NO | AD49: NO | AE49: NO | AF49: NO | AH49: CBD | AI49: Urban | AJ49: Short rural | AK49: Long rural | AM49: NO | AN49: TasNetworks (T)
B50: TransGrid | C50: NSW Electricity Networks Operations Pty Ltd trading as TransGrid | D50: 70 250 995 390 | E50: NSW | F50: Electricity | G50: Transmission | H50: Revenue cap | I50: Financial | J50: June | K50: 4 | L50: 5 | M50: 5 | N50: transmission determination | O50: 180 Thomas Street | Q50: SYDNEY | R50: NSW | S50: 2000 | T50: PO Box A1000 | V50: SYDNEY SOUTH | W50: NSW | X50: 1235 | Y50: Garrie Chubb | Z50: 0408 210 221 | AA50: garrie.chubb@transgrid.com.au | AB50: NO | AC50: NO | AD50: NO | AE50: NO | AF50: NO | AH50: CBD | AI50: Urban | AJ50: Short rural | AK50: Long rural | AM50: NO | AN50: TransGrid
B51: United Energy | C51: United Energy | D51: 70064651029 | E51: Vic | F51: Electricity | G51: Distribution | H51: Revenue cap | I51: Calendar | J51: December | K51: 5 | L51: 5 | M51: 2 | N51: 2016-20 Distribution Determination | O51: Level 3 | P51: 6 Nexus Court | Q51: MULGRAVE | R51: Vic | S51: 3149 | T51: PO Box 449 | V51: MOUNT WAVERLEY | W51: VIC | X51: 3170 | Y51: Mathew Abraham | Z51: 03 8846 9758 | AA51: mathew.abraham@ue.com.au | AB51: NO | AC51: NO | AD51: YES | AE51: NO | AF51: NO | AH51: CBD | AI51: Urban | AJ51: Short rural | AK51: Long rural | AM51: YES | AN51: United Energy
Z54: For EB & Reset RINs only | AE54: For AARs only
B55: The Reg Year Ending (dms_RYE) must be set to the last year of the regulatory period. For forecast data is is usually (FRCP_y5) for actual it is a single year (CRY). For historical actual data the RYE will need to be set manually in the business details sheet by setting the dms_Multiyear_flag to 1 and putting the correct value in 'dms_Specified_FinalYear. See cells C67:C68 | N55: Drop down selector box for CA & Reset RINs. | O55: For CA & Reset RINs only | Z55: for DNSP only | AE55: For DNSPs only
B56: dms_Model_List | C56: dms_Worksheet_List | E56: dms_RYE_Formula_Result | N56: dms_0203_ProjectType | O56: dms_020303_01_UOM | P56: dms_020501_01_UOM | Q56: dms_020501_02_UOM | R56: dms_020501_03_UOM | S56: dms_020501_04_UOM | T56: dms_020603_01_UOM | U56: dms_020701_01_UOM | V56: dms_020701_02_UOM | W56: dms_020701_01_Rows | X56: dms_040102_01_UOM | Y56: dms_040102_04_UOM | Z56: dms_030601_01_UOM | AA56: dms_030601_02_UOM | AB56: dms_030701_01_UOM | AC56: dms_030702_01_UOM | AD56: dms_030703_01_UOM | AE56: dms_030605_UOM | AF56: dms_03060703_UOM
B57: ARR | C57: ANNUAL REPORTING STATEMENT | E57: =LEFT(dms_SingleYear_FinalYear_Result,2)&RIGHT(dms_SingleYear_FinalYear_Result,2) -> noIN | F57: =LEFT(dms_SingleYear_FinalYear_Result,2)&RIGHT(dms_SingleYear_FinalYear_Result,2) | H57: Formula errors are OK | N57: New line on new route - single circuit | O57: Circuit line length in km | P57: 0's | Q57: 0's | R57: 0's | S57: 0's | T57: 0's | U57: km | V57: km | W57: Route line length within zone | X57: 0's | Y57: days | Z57: minutes/customer | AA57: minutes/customer | AB57: Customer / km | AC57: % | AD57: km | AE57: number | AF57: number
B58: CA | C58: CATEGORY ANALYSIS | E58: =LEFT(dms_SingleYear_FinalYear_Result,2)&RIGHT(dms_SingleYear_FinalYear_Result,2) -> noIN | F58: =LEFT(dms_SingleYear_FinalYear_Result,2)&RIGHT(dms_SingleYear_FinalYear_Result,2) | H58: Formula errors are OK | N58: New line on new route - dual circuit | O58: Circuit line length in km | P58: 0's | Q58: 0's | R58: 0's | S58: 0's | T58: 0's | U58: 0's | V58: 0's | W58: Number of maintenance spans | X58: 0's | Y58: 0's | Z58: minutes/customer | AA58: minutes/customer | AB58: MWh/customer | AC58: Number of spans | AE58: number | AF58: number
B59: CPI | C59: CPI | N59: New line on new route - other | O59: Circuit line length in km | P59: MVA added | Q59: MVA added | R59: MVA added | S59: MVA added | T59: 0's | U59: km | V59: km | W59: Total length of maintenance spans | X59: 0's | Y59: $0s | Z59: interruptions/customer | AA59: interruptions/customer | AB59: kVA / customer | AC59: Number of spans | AE59: number | AF59: number
B60: EB | C60: ECONOMIC BENCHMARKING | E60: =LEFT(dms_SingleYear_FinalYear_Result,2)&RIGHT(dms_SingleYear_FinalYear_Result,2) -> noIN | F60: =LEFT(dms_SingleYear_FinalYear_Result,2)&RIGHT(dms_SingleYear_FinalYear_Result,2) | H60: Formula errors are OK | N60: Line rebuild over existing route - single circuit | O60: Circuit line length in km | P60: 0's | Q60: 0's | R60: 0's | S60: 0's | T60: 0's | U60: km | V60: km | W60: Length of vegetation corridors | X60: $0s | Y60: 0's | Z60: interruptions/customer | AA60: interruptions/customer | AC60: Number of spans | AE60: number | AF60: number
B61: PTRM | C61: POST TAX REVENUE MODEL | E61: =LEFT(dms_MultiYear_FinalYear_Result,2)&RIGHT(dms_MultiYear_FinalYear_Result,2) -> 2025 | F61: =LEFT(dms_MultiYear_FinalYear_Result,2)&RIGHT(dms_MultiYear_FinalYear_Result,2) | N61: Line rebuild over existing route - dual circuit | O61: Number | P61: total spend $0s | Q61: total spend $0s | R61: total spend $0s | S61: total spend $0s | T61: (per cent) | U61: 0's | V61: 0's | W61: Average number of trees per maintenance span | AC61: Number of spans | AE61: number | AF61: (per cent)
B62: Reset | C62: REGULATORY REPORTING STATEMENT | E62: =LEFT(dms_MultiYear_FinalYear_Result,2)&RIGHT(dms_MultiYear_FinalYear_Result,2) -> 2025 | F62: =LEFT(dms_MultiYear_FinalYear_Result,2)&RIGHT(dms_MultiYear_FinalYear_Result,2) | H62: Formula errors are OK | N62: Reconductor - Single circuit | O62: Number | P62: net circuit km added | Q62: net circuit km added | R62: net circuit km added | S62: net circuit km added | U62: years | V62: years | W62: Average frequency of cutting cycle | AC62: Years | AE62: number
B63: RFM | C63: ROLL FORWARD MODEL | E63: =LEFT(dms_CRCP_FinalYear_Result,2)&RIGHT(dms_CRCP_FinalYear_Result,2) -> 2020 | F63: =LEFT(dms_CRCP_FinalYear_Result,2)&RIGHT(dms_CRCP_FinalYear_Result,2) | N63: Reconductor - Dual circuit | O63: Number | P63: total spend $0s | Q63: total spend $0s | R63: total spend $0s | S63: total spend $0s | AC63: Years | AE63: number
B64: WACC | C64: WEIGHTED AVERAGE COST OF CAPITAL | E64: =LEFT(dms_MultiYear_FinalYear_Result,2)&RIGHT(dms_MultiYear_FinalYear_Result,2) -> 2025 | F64: =LEFT(dms_MultiYear_FinalYear_Result,2)&RIGHT(dms_MultiYear_FinalYear_Result,2) | N64: Other | P64: net circuit km added | Q64: net circuit km added | R64: net circuit km added | S64: net circuit km added | AC64: Trees | AE64: number
P65: total spend $0s | Q65: total spend $0s | R65: total spend $0s | S65: total spend $0s | AC65: Trees | AE65: number
B66: dms_DataQuality_List | P66: 0's | R66: $0s | AC66: Defects | AE66: number
B67: Actual | P67: 0's | AC67: Defects | AE67: number
B68: Estimate | P68: 0's | AC68: Spans | AE68: number
B69: Consolidated | P69: $0s | AC69: km | AE69: (per cent)
B70: Recast | AC70: Spans | AE70: (per cent)
B71: Public
B73: For all files either AER or business needs to be able to specify the type of submission | C73: For PTRM & RFM templates we must provide a choice in case they change their form of control - otherwise it is drawn from the business specific lookup table above. | O73: For PTRM files - this field set the text for the named range "DMS_Xfactor" which in all cases is simply the text "x factors" - this saves putting in each old gas PTRM file | Z73: for TNSP only
B74: dms_SourceList | C74: dms_FormControl_Choices | O74: DMS_Xfactor | Z74: dms_030601_01_UOM | AB74: dms_030701_01_UOM | AC74: dms_030702_01_UOM
B75: After appeal | C75: Revenue cap | O75: x factors | Z75: % | AB75: Number of spans | AC75: km
B76: Draft decision | C76: Revenue yield | Z76: number | AB76: Years | AC76: %
B77: Final decision | C77: Weighted average price cap | Z77: number | AB77: Trees | AC77: km
B78: PTRM update 1 | Z78: % | AB78: Defects | AC78: number
B79: PTRM update 2 | Z79: number | AB79: Number of spans
B80: PTRM update 3 | Z80: number | AB80: km
B81: PTRM update 4 | Z81: % | AB81: km
B82: PTRM update 5 | Z82: number | AB82: Number of spans
B83: PTRM update 6 | Z83: number
B84: PTRM update 7 | Z84: %
B85: Regulatory proposal | Z85: number
B86: Reporting | Z86: %
B87: Revised regulatory proposal | Z87: number
Z88: %
Z89: number
B93: Reason for interruption | C93: dms_Reason_Interruption_Detailed | D93: dms_Reason_Interruption | E93: dms_STPIS_Exclusion_List | F93: dms_020301_ProjectType_List | G93: dms_020302_ProjectType_List
B94: Animal | C94: Animal impact | D94: Animal | E94: Weather | F94: New substation establishment | G94: New line on new route - single circuit
C95: Animal nesting/burrowing, etc and other | D95: Asset failure | E95: Equipment failure | F95: Capacity upgrade | G95: New line on new route - dual circuit
C96: Other | D96: Other | E96: Operational error | F96: Voltage upgrade | G96: New line on new route - other
B97: Asset failure | C97: LV | D97: Overloads | E97: Vegetation | F97: Other | G97: Line rebuild over existing route - single circuit
C98: Distribution substation | D98: Planned | E98: Animals | G98: Line rebuild over existing route - dual circuit
C99: HV | D99: Network business | E99: Third party impacts | G99: Reconductor - Single circuit
C100: Zone substation | D100: Third party | E100: Transmission failure | G100: Reconductor - Dual circuit
C101: Subtransmission | D101: Unknown | E101: Load shedding | G101: Reconductor - Other
B102: Other | C102: insert description of 'other' | D102: Vegetation | E102: Inter-distributor connection failure | G102: Line upgrade - raising/retensoring
B103: Overloads | C103: - | D103: Weather | E103: Other | G103: Line upgrade - voltage upgrade
B104: Planned | C104: - | D104: 2 - STPIS Exclusion (3.3)(a) | G104: Line upgrade - capacity
B105: Network business | C105: Network error | D105: 3 - STPIS Exclusion (3.3)(a) | G105: String spare circuit
C106: Switching and protection error | D106: 4 - STPIS Exclusion (3.3)(a) | G106: Other
B107: Third party | C107: Fire | D107: 5 - STPIS Exclusion (3.3)(a)
C108: Other | D108: 6 - STPIS Exclusion (3.3)(a)
C109: Dig-in | D109: 7 - STPIS Exclusion (3.3)(a)
C110: Unauthorised access
C111: Vehicle impact
B112: Unknown | C112: Unknown
B113: Vegetation | C113: Blow-in/Fall-in - NSP responsibility
C114: Grow-in - NSP responsibility
C115: Blow-in/Fall-in - Other responsible party
C116: Grow-in - Other responsible party
B117: Weather
B118: 2 - STPIS Exclusion (3.3)(a)
B119: 3 - STPIS Exclusion (3.3)(a)
B120: 4 - STPIS Exclusion (3.3)(a)
B121: 5 - STPIS Exclusion (3.3)(a)
B122: 6 - STPIS Exclusion (3.3)(a)
B123: 7 - STPIS Exclusion (3.3)(a)
B131: These are indeces and lookup values for various dates. All step from the value placed in FRCP_y1 on the business and other details worksheet | C131: =IF(dms_FifthFeeder_flag_NSP="NO","This NSP has only 4 feeder categories","This NSP has 5 feeder categories") -> This NSP has only 4 feeder categories | O131: These date tables are currently used in the Recast templates to provide column headings and conditional formatting
B132: dms_FRCPlength_Num_List | C132: dms_FinalYear_List | D132: dms_CRCPlength_Num_List | E132: dms_CFinalYear_List | F132: dms_FRCP_years | H132: dms_CRCP_years | J132: dms_CRCP_index | L132: These are static values for cut / paste purposes only | O132: CRY from input cell on business sheet | P132: CRY - financial | Q132: dms_FinYears | R132: CRY calendar | S132: dms_CalYears
B133: 1 | C133: dms_FRCP_y1 | D133: 1 | E133: CRCP_y1 | F133: =FRCP_y1 -> 2020-21 | G133: dms_FRCP_y1 | H133: =IF(dms_RPT="financial",VALUE(LEFT(dms_FRCP_y1,4)-1)&"-"&TEXT(VALUE(MID(dms_FRCP_y1,3,2)),"00"),VALUE(LEFT(dms_FRCP_y1,4)-1)) -> 2019-20 | I133: dms_CRCP_yZ | J133: 1 | L133: 2005-06 | M133: 2006 | O133: ='Business & other details'!C48 -> 2018-19 | P133: =VALUE(LEFT(CRY,4))&"-"&TEXT(MID(CRY,3,2)+1,"00") -> 2018-19 | Q133: dms_CRYf_y1 | R133: =VALUE(LEFT(CRY,4)+1) -> 2019 | S133: dms_CRYc_y1
B134: 2 | C134: dms_FRCP_y2 | D134: 2 | E134: CRCP_y2 | F134: =IF(dms_RPT="financial",VALUE(LEFT(dms_FRCP_y1,4)+1)&"-"&TEXT(VALUE(RIGHT(dms_FRCP_y1,2)+1),"00"),VALUE(LEFT(dms_FRCP_y1,4)+1)) -> 2021-22 | G134: dms_FRCP_y2 | H134: =IF(dms_RPT="financial",VALUE(LEFT(dms_CRCP_yZ,4)-1)&"-"&TEXT(VALUE(MID(dms_CRCP_yZ,3,2)),"00"),VALUE(LEFT(dms_CRCP_yZ,4)-1)) -> 2018-19 | I134: dms_CRCP_yY | J134: 2 | L134: 2006-07 | M134: 2007 | P134: =VALUE(LEFT(dms_CRYf_y1,4)+1)&"-"&TEXT(MID(dms_CRYf_y1,3,2)+2,"00") -> 2019-20 | Q134: dms_CRYf_y2 | R134: =VALUE(LEFT(dms_CRYc_y1,4)+1) -> 2020 | S134: dms_CRYc_y2
B135: 3 | C135: dms_FRCP_y3 | D135: 3 | E135: CRCP_y3 | F135: =IF(dms_RPT="financial",VALUE(LEFT(dms_FRCP_y2,4)+1)&"-"&TEXT(VALUE(RIGHT(dms_FRCP_y2,2)+1),"00"),VALUE(LEFT(dms_FRCP_y2,4)+1)) -> 2022-23 | G135: dms_FRCP_y3 | H135: =IF(dms_RPT="financial",VALUE(LEFT(dms_CRCP_yY,4)-1)&"-"&TEXT(VALUE(MID(dms_CRCP_yY,3,2)),"00"),VALUE(LEFT(dms_CRCP_yY,4)-1)) -> 2017-18 | I135: dms_CRCP_yX | J135: 3 | L135: 2007-08 | M135: 2008 | P135: =VALUE(LEFT(dms_CRYf_y2,4)+1)&"-"&TEXT(MID(dms_CRYf_y2,3,2)+2,"00") -> 2020-21 | Q135: dms_CRYf_y3 | R135: =VALUE(LEFT(dms_CRYc_y2,4)+1) -> 2021 | S135: dms_CRYc_y3
B136: 4 | C136: dms_FRCP_y4 | D136: 4 | E136: CRCP_y4 | F136: =IF(dms_RPT="financial",VALUE(LEFT(dms_FRCP_y3,4)+1)&"-"&TEXT(VALUE(RIGHT(dms_FRCP_y3,2)+1),"00"),VALUE(LEFT(dms_FRCP_y3,4)+1)) -> 2023-24 | G136: dms_FRCP_y4 | H136: =IF(dms_RPT="financial",VALUE(LEFT(dms_CRCP_yX,4)-1)&"-"&TEXT(VALUE(MID(dms_CRCP_yX,3,2)),"00"),VALUE(LEFT(dms_CRCP_yX,4)-1)) -> 2016-17 | I136: dms_CRCP_yW | J136: 4 | L136: 2008-09 | M136: 2009 | P136: =VALUE(LEFT(dms_CRYf_y3,4)+1)&"-"&TEXT(MID(dms_CRYf_y3,3,2)+2,"00") -> 2021-22 | Q136: dms_CRYf_y4 | R136: =VALUE(LEFT(dms_CRYc_y3,4)+1) -> 2022 | S136: dms_CRYc_y4
B137: 5 | C137: dms_FRCP_y5 | D137: 5 | E137: CRCP_y5 | F137: =IF(dms_RPT="financial",VALUE(LEFT(dms_FRCP_y4,4)+1)&"-"&TEXT(VALUE(RIGHT(dms_FRCP_y4,2)+1),"00"),VALUE(LEFT(dms_FRCP_y4,4)+1)) -> 2024-25 | G137: dms_FRCP_y5 | H137: =IF(dms_RPT="financial",VALUE(LEFT(dms_CRCP_yW,4)-1)&"-"&TEXT(VALUE(MID(dms_CRCP_yW,3,2)),"00"),VALUE(LEFT(dms_CRCP_yW,4)-1)) -> 2015-16 | I137: dms_CRCP_yV | J137: 5 | L137: 2009-10 | M137: 2010 | P137: =VALUE(LEFT(dms_CRYf_y4,4)+1)&"-"&TEXT(MID(dms_CRYf_y4,3,2)+2,"00") -> 2022-23 | Q137: dms_CRYf_y5 | R137: =VALUE(LEFT(dms_CRYc_y4,4)+1) -> 2023 | S137: dms_CRYc_y5
B138: 6 | C138: dms_FRCP_y6 | D138: 6 | E138: CRCP_y6 | F138: =IF(dms_RPT="financial",VALUE(LEFT(dms_FRCP_y5,4)+1)&"-"&TEXT(VALUE(RIGHT(dms_FRCP_y5,2)+1),"00"),VALUE(LEFT(dms_FRCP_y5,4)+1)) -> 2025-26 | G138: dms_FRCP_y6 | H138: =IF(dms_RPT="financial",VALUE(LEFT(dms_CRCP_yV,4)-1)&"-"&TEXT(VALUE(MID(dms_CRCP_yV,3,2)),"00"),VALUE(LEFT(dms_CRCP_yV,4)-1)) -> 2014-15 | I138: dms_CRCP_yU | J138: 6 | L138: 2010-11 | M138: 2011 | P138: =VALUE(LEFT(dms_CRYf_y5,4)+1)&"-"&TEXT(MID(dms_CRYf_y5,3,2)+2,"00") -> 2023-24 | Q138: dms_CRYf_y6 | R138: =VALUE(LEFT(dms_CRYc_y5,4)+1) -> 2024 | S138: dms_CRYc_y6
B139: 7 | C139: dms_FRCP_y7 | D139: 7 | E139: CRCP_y7 | F139: =IF(dms_RPT="financial",VALUE(LEFT(dms_FRCP_y6,4)+1)&"-"&TEXT(VALUE(RIGHT(dms_FRCP_y6,2)+1),"00"),VALUE(LEFT(dms_FRCP_y6,4)+1)) -> 2026-27 | G139: dms_FRCP_y7 | H139: =IF(dms_RPT="financial",VALUE(LEFT(dms_CRCP_yU,4)-1)&"-"&TEXT(VALUE(MID(dms_CRCP_yU,3,2)),"00"),VALUE(LEFT(dms_CRCP_yU,4)-1)) -> 2013-14 | I139: dms_CRCP_yT | J139: 7 | L139: 2011-12 | M139: 2012 | P139: =VALUE(LEFT(dms_CRYf_y6,4)+1)&"-"&TEXT(MID(dms_CRYf_y6,3,2)+2,"00") -> 2024-25 | Q139: dms_CRYf_y7 | R139: =VALUE(LEFT(dms_CRYc_y6,4)+1) -> 2025 | S139: dms_CRYc_y7
B140: 8 | C140: dms_FRCP_y8 | D140: 8 | E140: CRCP_y8 | F140: =IF(dms_RPT="financial",VALUE(LEFT(dms_FRCP_y7,4)+1)&"-"&TEXT(VALUE(RIGHT(dms_FRCP_y7,2)+1),"00"),VALUE(LEFT(dms_FRCP_y7,4)+1)) -> 2027-28 | G140: dms_FRCP_y8 | H140: =IF(dms_RPT="financial",VALUE(LEFT(dms_CRCP_yT,4)-1)&"-"&TEXT(VALUE(MID(dms_CRCP_yT,3,2)),"00"),VALUE(LEFT(dms_CRCP_yT,4)-1)) -> 2012-13 | I140: dms_CRCP_yS | J140: 8 | L140: 2012-13 | M140: 2013 | P140: =VALUE(LEFT(dms_CRYf_y7,4)+1)&"-"&TEXT(MID(dms_CRYf_y7,3,2)+2,"00") -> 2025-26 | Q140: dms_CRYf_y8 | R140: =VALUE(LEFT(dms_CRYc_y7,4)+1) -> 2026 | S140: dms_CRYc_y8
B141: 9 | C141: dms_FRCP_y9 | D141: 9 | E141: CRCP_y9 | F141: =IF(dms_RPT="financial",VALUE(LEFT(dms_FRCP_y8,4)+1)&"-"&TEXT(VALUE(RIGHT(dms_FRCP_y8,2)+1),"00"),VALUE(LEFT(dms_FRCP_y8,4)+1)) -> 2028-29 | G141: dms_FRCP_y9 | H141: =IF(dms_RPT="financial",VALUE(LEFT(dms_CRCP_yS,4)-1)&"-"&TEXT(VALUE(MID(dms_CRCP_yS,3,2)),"00"),VALUE(LEFT(dms_CRCP_yS,4)-1)) -> 2011-12 | I141: dms_CRCP_yR | J141: 9 | L141: 2013-14 | M141: 2014 | P141: =VALUE(LEFT(dms_CRYf_y8,4)+1)&"-"&TEXT(MID(dms_CRYf_y8,3,2)+2,"00") -> 2026-27 | Q141: dms_CRYf_y9 | R141: =VALUE(LEFT(dms_CRYc_y8,4)+1) -> 2027 | S141: dms_CRYc_y9
B142: 10 | C142: dms_FRCP_y10 | D142: 10 | E142: CRCP_y10 | F142: =IF(dms_RPT="financial",VALUE(LEFT(dms_FRCP_y9,4)+1)&"-"&TEXT(VALUE(RIGHT(dms_FRCP_y9,2)+1),"00"),VALUE(LEFT(dms_FRCP_y9,4)+1)) -> 2029-30 | G142: dms_FRCP_y10 | H142: =IF(dms_RPT="financial",VALUE(LEFT(dms_CRCP_yR,4)-1)&"-"&TEXT(VALUE(MID(dms_CRCP_yR,3,2)),"00"),VALUE(LEFT(dms_CRCP_yR,4)-1)) -> 2010-11 | I142: dms_CRCP_yQ | J142: 10 | L142: 2014-15 | M142: 2015 | P142: =VALUE(LEFT(dms_CRYf_y9,4)+1)&"-"&TEXT(MID(dms_CRYf_y9,3,2)+2,"00") -> 2027-28 | Q142: dms_CRYf_y10 | R142: =VALUE(LEFT(dms_CRYc_y9,4)+1) -> 2028 | S142: dms_CRYc_y10
B143: 11 | C143: dms_FRCP_y11 | D143: 11 | E143: CRCP_y11 | F143: =IF(dms_RPT="financial",VALUE(LEFT(dms_FRCP_y10,4)+1)&"-"&TEXT(VALUE(RIGHT(dms_FRCP_y10,2)+1),"00"),VALUE(LEFT(dms_FRCP_y10,4)+1)) -> 2030-31 | G143: dms_FRCP_y11 | H143: =IF(dms_RPT="financial",VALUE(LEFT(dms_CRCP_yQ,4)-1)&"-"&TEXT(VALUE(MID(dms_CRCP_yQ,3,2)),"00"),VALUE(LEFT(dms_CRCP_yQ,4)-1)) -> 2009-10 | I143: dms_CRCP_yP | J143: 11 | L143: 2015-16 | M143: 2016 | P143: =VALUE(LEFT(dms_CRYf_y10,4)+1)&"-"&TEXT(MID(dms_CRYf_y10,3,2)+2,"00") -> 2028-29 | Q143: dms_CRYf_y11 | R143: =VALUE(LEFT(dms_CRYc_y10,4)+1) -> 2029 | S143: dms_CRYc_y11
B144: 12 | C144: dms_FRCP_y12 | D144: 12 | E144: CRCP_y12 | F144: =IF(dms_RPT="financial",VALUE(LEFT(dms_FRCP_y11,4)+1)&"-"&TEXT(VALUE(RIGHT(dms_FRCP_y11,2)+1),"00"),VALUE(LEFT(dms_FRCP_y11,4)+1)) -> 2031-32 | G144: dms_FRCP_y12 | H144: =IF(dms_RPT="financial",VALUE(LEFT(dms_CRCP_yP,4)-1)&"-"&TEXT(VALUE(MID(dms_CRCP_yP,3,2)),"00"),VALUE(LEFT(dms_CRCP_yP,4)-1)) -> 2008-09 | I144: dms_CRCP_yO | J144: 12 | L144: 2016-17 | M144: 2017 | P144: =VALUE(LEFT(dms_CRYf_y11,4)+1)&"-"&TEXT(MID(dms_CRYf_y11,3,2)+2,"00") -> 2029-30 | Q144: dms_CRYf_y12 | R144: =VALUE(LEFT(dms_CRYc_y11,4)+1) -> 2030 | S144: dms_CRYc_y12
B145: 13 | C145: dms_FRCP_y13 | D145: 13 | E145: CRCP_y13 | F145: =IF(dms_RPT="financial",VALUE(LEFT(dms_FRCP_y12,4)+1)&"-"&TEXT(VALUE(RIGHT(dms_FRCP_y12,2)+1),"00"),VALUE(LEFT(dms_FRCP_y12,4)+1)) -> 2032-33 | G145: dms_FRCP_y13 | H145: =IF(dms_RPT="financial",VALUE(LEFT(dms_CRCP_yO,4)-1)&"-"&TEXT(VALUE(MID(dms_CRCP_yO,3,2)),"00"),VALUE(LEFT(dms_CRCP_yO,4)-1)) -> 2007-08 | I145: dms_CRCP_yN | J145: 13 | L145: 2017-18 | M145: 2018 | P145: =VALUE(LEFT(dms_CRYf_y12,4)+1)&"-"&TEXT(MID(dms_CRYf_y12,3,2)+2,"00") -> 2030-31 | Q145: dms_CRYf_y13 | R145: =VALUE(LEFT(dms_CRYc_y12,4)+1) -> 2031 | S145: dms_CRYc_y13
B146: 14 | C146: dms_FRCP_y14 | D146: 14 | E146: CRCP_y14 | F146: =IF(dms_RPT="financial",VALUE(LEFT(dms_FRCP_y13,4)+1)&"-"&TEXT(VALUE(RIGHT(dms_FRCP_y13,2)+1),"00"),VALUE(LEFT(dms_FRCP_y13,4)+1)) -> 2033-34 | G146: dms_FRCP_y14 | H146: =IF(dms_RPT="financial",VALUE(LEFT(dms_CRCP_yN,4)-1)&"-"&TEXT(VALUE(MID(dms_CRCP_yN,3,2)),"00"),VALUE(LEFT(dms_CRCP_yN,4)-1)) -> 2006-07 | I146: dms_CRCP_yM | J146: 14 | L146: 2018-19 | M146: 2019 | P146: =VALUE(LEFT(dms_CRYf_y13,4)+1)&"-"&TEXT(MID(dms_CRYf_y13,3,2)+2,"00") -> 2031-32 | Q146: dms_CRYf_y14 | R146: =VALUE(LEFT(dms_CRYc_y13,4)+1) -> 2032 | S146: dms_CRYc_y14
B147: 15 | C147: dms_FRCP_y15 | D147: 15 | E147: CRCP_y15 | F147: =IF(dms_RPT="financial",VALUE(LEFT(dms_FRCP_y14,4)+1)&"-"&TEXT(VALUE(RIGHT(dms_FRCP_y14,2)+1),"00"),VALUE(LEFT(dms_FRCP_y14,4)+1)) -> 2034-35 | G147: dms_FRCP_y15 | H147: =IF(dms_RPT="financial",VALUE(LEFT(dms_CRCP_yM,4)-1)&"-"&TEXT(VALUE(MID(dms_CRCP_yM,3,2)),"00"),VALUE(LEFT(dms_CRCP_yM,4)-1)) -> 2005-06 | I147: dms_CRCP_yL | J147: 15 | L147: 2019-20 | M147: 2020 | P147: =VALUE(LEFT(dms_CRYf_y14,4)+1)&"-"&TEXT(MID(dms_CRYf_y14,3,2)+2,"00") -> 2032-33 | Q147: dms_CRYf_y15 | R147: =VALUE(LEFT(dms_CRYc_y14,4)+1) -> 2033 | S147: dms_CRYc_y15
L148: 2020-21 | M148: 2021 | P148: =VALUE(LEFT(dms_CRYf_y15,4)+1)&"-"&TEXT(MID(dms_CRYf_y15,3,2)+2,"00") -> 2033-34 | Q148: dms_CRYf_y16 | R148: =VALUE(LEFT(dms_CRYc_y15,4)+1) -> 2034 | S148: dms_CRYc_y16
B149: These are drop down lists for businesses to select the correct FRCP_y1 on the business and other details worksheet. This also populates the column headings in the worksheets | L149: 2021-22 | M149: 2022 | P149: =VALUE(LEFT(dms_CRYf_y16,4)+1)&"-"&TEXT(MID(dms_CRYf_y16,3,2)+2,"00") -> 2034-35 | Q149: dms_CRYf_y17 | R149: =VALUE(LEFT(dms_CRYc_y16,4)+1) -> 2035 | S149: dms_CRYc_y17
B150: dms_RCP_fyear_list | C150: dms_CRY_ListF | D150: dms_CRY_ListC | E150: dms_RCP_cyear_list | F150: dms_FRCP_fyear_list | G150: dms_FRCP_ListF | H150: dms_FRCP_ListC | I150: dms_FRCP_cyear_list | L150: 2022-23 | M150: 2023 | P150: =VALUE(LEFT(dms_CRYf_y17,4)+1)&"-"&TEXT(MID(dms_CRYf_y17,3,2)+2,"00") -> 2035-36 | Q150: dms_CRYf_y18 | R150: =VALUE(LEFT(dms_CRYc_y17,4)+1) -> 2036 | S150: dms_CRYc_y18
B151: dms_fy1 | C151: 2005-06 | D151: 2006 | E151: dms_cy1 | F151: dms_frcp_fy1 | G151: 2010-11 | H151: 2011 | I151: dms_crcp_cy1 | L151: 2023-24 | M151: 2024 | P151: =VALUE(LEFT(dms_CRYf_y18,4)+1)&"-"&TEXT(MID(dms_CRYf_y18,3,2)+2,"00") -> 2036-37 | Q151: dms_CRYf_y19 | R151: =VALUE(LEFT(dms_CRYc_y18,4)+1) -> 2037 | S151: dms_CRYc_y19
B152: dms_fy2 | C152: 2006-07 | D152: 2007 | E152: dms_cy2 | F152: dms_frcp_fy2 | G152: 2011-12 | H152: 2012 | I152: dms_crcp_cy2 | L152: 2024-25 | M152: 2025 | P152: =VALUE(LEFT(dms_CRYf_y19,4)+1)&"-"&TEXT(MID(dms_CRYf_y19,3,2)+2,"00") -> 2037-38 | Q152: dms_CRYf_y20 | R152: =VALUE(LEFT(dms_CRYc_y19,4)+1) -> 2038 | S152: dms_CRYc_y20
B153: dms_fy3 | C153: 2007-08 | D153: 2008 | E153: dms_cy3 | F153: dms_frcp_fy3 | G153: 2012-13 | H153: 2013 | I153: dms_crcp_cy3 | L153: 2025-26 | M153: 2026
B154: dms_fy4 | C154: 2008-09 | D154: 2009 | E154: dms_cy4 | F154: dms_frcp_fy4 | G154: 2013-14 | H154: 2014 | I154: dms_crcp_cy4 | L154: 2026-27 | M154: 2027
B155: dms_fy5 | C155: 2009-10 | D155: 2010 | E155: dms_cy5 | F155: dms_frcp_fy5 | G155: 2014-15 | H155: 2015 | I155: dms_crcp_cy5 | L155: 2027-28 | M155: 2028
B156: dms_fy6 | C156: 2010-11 | D156: 2011 | E156: dms_cy6 | F156: dms_frcp_fy6 | G156: 2015-16 | H156: 2016 | I156: dms_crcp_cy6 | L156: 2028-29 | M156: 2029
B157: dms_fy7 | C157: 2011-12 | D157: 2012 | E157: dms_cy7 | F157: dms_frcp_fy7 | G157: 2016-17 | H157: 2017 | I157: dms_crcp_cy7 | L157: 2029-30 | M157: 2030
B158: dms_fy8 | C158: 2012-13 | D158: 2013 | E158: dms_cy8 | F158: dms_frcp_fy8 | G158: 2017-18 | H158: 2018 | I158: dms_crcp_cy8 | L158: 2030-31 | M158: 2031
B159: dms_fy9 | C159: 2013-14 | D159: 2014 | E159: dms_cy9 | F159: dms_frcp_fy9 | G159: 2018-19 | H159: 2019 | I159: dms_crcp_cy9 | L159: 2031-32 | M159: 2032
B160: dms_fy10 | C160: 2014-15 | D160: 2015 | E160: dms_cy10 | F160: dms_frcp_fy10 | G160: 2019-20 | H160: 2020 | I160: dms_crcp_cy10 | L160: 2032-33 | M160: 2033
B161: dms_fy11 | C161: 2015-16 | D161: 2016 | E161: dms_cy11 | F161: dms_frcp_fy11 | G161: 2020-21 | H161: 2021 | I161: dms_crcp_cy11 | L161: 2033-34 | M161: 2034
B162: dms_fy12 | C162: 2016-17 | D162: 2017 | E162: dms_cy12 | F162: dms_frcp_fy12 | G162: 2021-22 | H162: 2022 | I162: dms_crcp_cy12 | L162: 2034-35 | M162: 2035
B163: dms_fy13 | C163: 2017-18 | D163: 2018 | E163: dms_cy13 | F163: dms_frcp_fy13 | G163: 2022-23 | H163: 2023 | I163: dms_crcp_cy13 | L163: 2035-36 | M163: 2036
B164: dms_fy14 | C164: 2018-19 | D164: 2019 | E164: dms_cy14 | F164: dms_frcp_fy14 | G164: 2023-24 | H164: 2024 | I164: dms_crcp_cy14
B165: dms_fy15 | C165: 2019-20 | D165: 2020 | E165: dms_cy15 | F165: dms_frcp_fy15 | G165: 2024-25 | H165: 2025 | I165: dms_crcp_cy15
B166: dms_fy16 | C166: 2020-21 | D166: 2021 | E166: dms_cy16
B167: dms_fy17 | C167: 2021-22 | D167: 2022 | E167: dms_cy17
B168: dms_fy18 | C168: 2022-23 | D168: 2023 | E168: dms_cy18
B169: dms_fy19 | C169: 2023-24 | D169: 2024 | E169: dms_cy19
B170: dms_fy20 | C170: 2024-25 | D170: 2025 | E170: dms_cy20
B176: These "row descriptions" are the column headings in the various templates but become row descriptions in the ETL process
C177: Table 6.3 sustained interruptions - row descriptions
C178: dms_060301_CustNo_Affected_Row | D178: dms_060301_Avg_Duration_Sustained_Int_Row | E178: dms_060301_Effect_unplanned_SAIDI_Row | F178: dms_060301_Effect_unplanned_SAIFI_Row
C179: Number of customers affected by the interruption | D179: Average duration of sustained customer interruption | E179: Effect on unplanned SAIDI | F179: Effect on unplanned SAIFI
C183: Table 6.1 telephone answering - row descriptions and start date
C184: dms_060101_Rows | D184: dms_060102_Rows | E184: dms_060101_StartDateTxt
C185: Total number of calls (after removing excluded events) | D185: Number of calls answered within 30 seconds (after excluding excluded events) | E185: =dms_060701_StartDateTxt -> 1-Jul-2018
H189: dms_0603_FeederList | I189: =INDEX(dms_FeederName_1,MATCH(dms_TradingName,dms_TradingName_List)) -> CBD | J189: =INDEX(dms_FeederName_2,MATCH(dms_TradingName,dms_TradingName_List)) -> Urban | K189: =INDEX(dms_FeederName_3,MATCH(dms_TradingName,dms_TradingName_List)) -> Short rural | L189: =INDEX(dms_FeederName_4,MATCH(dms_TradingName,dms_TradingName_List)) -> Long rural
C190: Table 6.7.1 - daily performance data - unplanned - MAIFI -- row descriptions and header named range values
C191: These headings (Lists) are determined from the INDEX/MATCH function on the NSP selected on the Business & other details sheet
B192: dms_060701_Feeder_Header_Lvl4 | C192: =INDEX(dms_FeederName_1,MATCH(dms_TradingName,dms_TradingName_List)) -> CBD | D192: =INDEX(dms_FeederName_1,MATCH(dms_TradingName,dms_TradingName_List)) -> CBD | E192: =INDEX(dms_FeederName_2,MATCH(dms_TradingName,dms_TradingName_List)) -> Urban | F192: =INDEX(dms_FeederName_2,MATCH(dms_TradingName,dms_TradingName_List)) -> Urban | G192: =INDEX(dms_FeederName_3,MATCH(dms_TradingName,dms_TradingName_List)) -> Short rural | H192: =INDEX(dms_FeederName_3,MATCH(dms_TradingName,dms_TradingName_List)) -> Short rural | I192: =INDEX(dms_FeederName_4,MATCH(dms_TradingName,dms_TradingName_List)) -> Long rural | J192: =INDEX(dms_FeederName_4,MATCH(dms_TradingName,dms_TradingName_List)) -> Long rural | K192: =IF((INDEX(dms_FeederName_5,MATCH(dms_TradingName,dms_TradingName_List))=0),"Network",(INDEX(dms_FeederName_5,MATCH(dms_TradingName,dms_TradingName_List)))) -> Network | L192: =IF((INDEX(dms_FeederName_5,MATCH(dms_TradingName,dms_TradingName_List))=0),"Network",(INDEX(dms_FeederName_5,MATCH(dms_TradingName,dms_TradingName_List)))) -> Network | M192: Network | N192: Network
B194: dms_060701_Rows | C194: All events | D194: After removing excluded events | E194: All events | F194: After removing excluded events | G194: All events | H194: After removing excluded events | I194: All events | J194: After removing excluded events | K194: All events | L194: After removing excluded events | M194: All events | N194: After removing excluded events
C195: the number of column headings changes from 10 to 12 depending on the number of feeder categories for the NSP
C200: Table 6.8.1 - row descriptions
C201: dms_060801_01_Rows | D201: dms_060801_02_Rows | E201: dms_060801_03_Rows | F201: dms_060801_04_Rows
C202: Number of interruptions | D202: Duration of interruptions | E202: Total unplanned minutes off supply | F202: Effect on unplanned MAIFI
C207: Table 7.9.4 - market impact component - row descriptions
B208: dms_070904_01_Rows | C208: without exclusions | D208: with exclusions
C214: Use this to add to existing files
C215: ARRs 6.7 STPIS daily performance
C216: dms_060101_Values | D216: dms_060102_Values | E216: dms_060701_Values
C218: ARR's 6.8 STPIS exclusions
C219: dms_060801_Event_Date | D219: dms_060801_OutageID | E219: dms_060801_FeederID | F219: dms_060801_FeederClass | G219: dms_060801_CauseID | H219: dms_060801_01_Values | I219: dms_060801_02_Values | J219: dms_060801_03_Values | K219: dms_060801_Excl_Cat | L219: dms_060801_04_Values
C220: dms_060801_StartCell
C222: CA 6.3 sustained interruptions
C223: dms_060301_Event_Date | D223: dms_060301_Event_Time | E223: dms_060301_AssetID | F223: dms_060301_FeederClass | G223: dms_060301_Reason | H223: dms_060301_DetailedReason | I223: dms_060301_CustNo_Affected_Values | J223: dms_060301_Avg_Duration_Sustained_Int_Values | K223: dms_060301_Effect_unplanned_SAIDI_Values | L223: dms_060301_Effect_unplanned_SAIFI_Values | M223: dms_060301_MED

Sheet Instructions
B2: =CONCATENATE(dms_Segment," Network Service Provider") -> Distribution Network Service Provider
B3: =IF(dms_Model="Reset","Regulatory Proposal RIN Template","Annual Reporting RIN") -> Regulatory Proposal RIN Template
C4: =CONCATENATE("This template is to be used by ",dms_TradingName," to fulfil its reporting obligations to the AER.") -> This template is to be used by Energex to fulfil its reporting obligations to the AER.
C5: INSTRUCTIONS
C6: Complete the Business & other details worksheet before entering data or values in any other worksheets. The Business & other details worksheet is linked to other worksheets within the workbook and automatically generates certain column headings and conditional formatting.
C8: Identifying CONFIDENTIAL INFORMATION: Please use the macro at the top of each worksheet to identify confidential information. See Returning completed responses below, for how to deal with confidential and public information.
C9: -Do this by selecting the cell or cells that contain confidential information and then run the Mark selected cells as CONFIDENTIAL macro. This will format the cells a specific colour that is identified by the AER's database which in turn marks that information as confidential. -To reverse this, select the cell or cells and run the Return cells to NON-CONFIDENTIAL macro.
C11: UNITS OF MEASURE All amounts are to be unrounded and reported on a one for one basis: that is 1000 is to be entered as '1000'. Applicable units of measure may be identified in the table column headings or row descriptors.
C13: COLOUR CODING OF INPUT / NON-INPUT CELLS:
D14: Yellow = Input cell (mandatory)
D15: Darker yellow = input cell (mandatory)
D16: Orange = input cell (if data available)
D17: Grey = Not applicable/No inputs required
D18: PLEASE DO NOT ENTER TEXT into cells that are to contain numeric data.
C21: WORKSHEET NAVIGATION Many tables in the worksheets have been "grouped" to allow for easy navigation. To ungroup or group data use the outline symbols in the left margin (for Row groupings) or above the columns (for column groupings).
C23: RETURNING COMPLETED RESPONSES Please return two (2) files to the AER: 1. A confidential version which must contain a complete set of all responses with confidential information marked using the Mark selection CONFIDENTIAL macro and which has been completed using the locked template file provided by the AER. 2. A public version with confidential information either removed completely or aggregated in some form together with writtten consent to disclose the public version of the response. Use the drop down box on the Business and other details worksheet to identify the file as either confidential ('consolidated') or public.
C25: SUBMITTING AMENDED DATA TO THE AER If an NSP wishes to correct data previously submitted to the AER it should resubmit that data using the original completed submission as the starting point. Please make any necessary changes to the data. Data that is not being amended should be left unchanged. NSPs must identify the reason for the amendments in the Amendment Reason box on the Business and other details worksheet. NSPs may provide further details regarding any amendments in the Amendments worksheet. .
C26: NSP may use Amended Data macro to highlight cells that contain amended data. NB: if data is also CONFIDENTIAL, re-apply the Confidentiality macro after applying the Amended macro
C27: Please resubmit two (2) files - a confidential version and a public version of the amended submission to the AER

Sheet Contents
B1: =SheetHeader -> REGULATORY REPORTING STATEMENT
B2: =dms_TradingName -> Energex
B3: =CONCATENATE(FRCP_y1," to ",FRCP_y5) -> 2020-21 to 2024-25
B4: CONTENTS
E7: 1. Business and other details | L7: 2. Expenditure | S7: 3. Economic benchmarking
E27: 4. Alternative control services | L27: 5. Network information | S27: 6. Service & quality
E34: 7. Other templates

Sheet Business & other details
B1: =IF(dms_DataQuality="backcast",INDEX(dms_Worksheet_List,MATCH(dms_Model,dms_Model_List))&" BACKCAST",INDEX(dms_Worksheet_List,MATCH(dms_Model,dms_Model_List))) -> REGULATORY REPORTING STATEMENT
B2: =INDEX(dms_TradingNameFull_List,MATCH(dms_TradingName,dms_TradingName_List)) -> Energex
B3: =IF(SUM(dms_SingleYear_Model)>0,CONCATENATE(CRY),CONCATENATE(FRCP_y1," to ",dms_MultiYear_FinalYear_Result)) -> 2020-21 to 2024-25
B4: BUSINESS & OTHER DETAILS
B7: Instructions
B8: Complete the following business details regulatory template before entering data or values in any other regulatory template. This regulatory template is linked to other cells within the spreadsheet and automatically generates column headings and conditional formatting to distinguish business specific input and non-input cells.
B10: SUBMISSION PARTICULARS INPUT SHEETS
B12: ENTITY DETAILS
B14: Short name | C14: Energex | F14: Select business name from drop down list first
B15: ACN / ABN | C15: =INDEX(dms_ABN_List,MATCH(dms_TradingName,dms_TradingName_List)) -> 40078849055
B18: Business address | C18: Address 1 | E18: =INDEX(dms_Addr1_List,MATCH(dms_TradingName,dms_TradingName_List)) -> 26 Reddacliff Street
D19: Address 2 | E19: =IF(ISBLANK(INDEX(dms_Addr2_List,MATCH(dms_TradingName,dms_TradingName_List))),"",(INDEX(dms_Addr2_List,MATCH(dms_TradingName,dms_TradingName_List)))) -> 
C20: Suburb | E20: =INDEX(dms_Suburb_List,MATCH(dms_TradingName,dms_TradingName_List)) -> NEWSTEAD
D21: State | E21: =INDEX(dms_State_List,MATCH(dms_TradingName,dms_TradingName_List)) -> Qld | F21: p/code | G21: =INDEX(dms_PostCode_List,MATCH(dms_TradingName,dms_TradingName_List)) -> 4006
B23: Postal address | C23: Address 1 | E23: GPO Box 1461
D24: Address 2 | E24: =IF(ISBLANK(INDEX(dms_PAddr2_List,MATCH(dms_TradingName,dms_TradingName_List))),"",(INDEX(dms_PAddr2_List,MATCH(dms_TradingName,dms_TradingName_List)))) -> 
C25: Suburb | E25: BRISBANE
D26: State | E26: =INDEX(dms_PState_List,MATCH(dms_TradingName,dms_TradingName_List)) -> QLD | F26: p/code | G26: 4001
B29: Contact name/s | C29: Karen Stafford | F29: General Manager, Legal, Regulation and Pricing
B30: Contact phone/s | C30: 07 3851 6793
B31: Contact email address/s | C31: karen.stafford@energyq.com.au
B33: REGULATORY CONTROL PERIODS
B35: Forthcoming regulatory control period | C35: 2020-21 | D35: =dms_FRCP_y2 -> 2021-22 | E35: =dms_FRCP_y3 -> 2022-23 | F35: =dms_FRCP_y4 -> 2023-24 | G35: =dms_FRCP_y5 -> 2024-25
C36: =dms_FRCP_y6 -> 2025-26 | D36: =dms_FRCP_y7 -> 2026-27 | E36: 0 | F36: =dms_FRCP_y9 -> 2028-29 | G36: =dms_FRCP_y10 -> 2029-30
B39: Current regulatory control period | C39: =dms_CRCP_FirstYear_Result -> 2015-16 | D39: =IF(dms_RPT="financial",VALUE(LEFT(CRCP_y1,4)+1)&"-"&TEXT(MID(CRCP_y1,3,2)+2,"00"),VALUE(LEFT(CRCP_y1,4)+1)) -> 2016-17 | E39: =IF(dms_RPT="financial",VALUE(LEFT(CRCP_y1,4)+2)&"-"&TEXT(VALUE(MID(CRCP_y1,3,2)+3),"00"),VALUE(LEFT(CRCP_y1,4)+2)) -> 2017-18 | F39: =IF(dms_RPT="financial",VALUE(LEFT(CRCP_y1,4)+3)&"-"&TEXT(MID(CRCP_y1,3,2)+4,"00"),VALUE(LEFT(CRCP_y1,4)+3)) -> 2018-19 | G39: =IF(dms_RPT="financial",VALUE(LEFT(CRCP_y1,4)+4)&"-"&TEXT(MID(CRCP_y1,3,2)+5,"00"),VALUE(LEFT(CRCP_y1,4)+4)) -> 2019-20
C40: =IF(dms_RPT="financial",VALUE(LEFT(CRCP_y1,4)+5)&"-"&TEXT(MID(CRCP_y1,3,2)+6,"00"),VALUE(LEFT(CRCP_y1,4)+5)) -> 2020-21 | D40: =IF(dms_RPT="financial",VALUE(LEFT(CRCP_y1,4)+6)&"-"&TEXT(MID(CRCP_y1,3,2)+7,"00"),VALUE(LEFT(CRCP_y1,4)+6)) -> 2021-22 | E40: =IF(dms_RPT="financial",VALUE(LEFT(CRCP_y1,4)+7)&"-"&TEXT(MID(CRCP_y1,3,2)+8,"00"),VALUE(LEFT(CRCP_y1,4)+7)) -> 2022-23 | F40: =IF(dms_RPT="financial",VALUE(LEFT(CRCP_y1,4)+8)&"-"&TEXT(MID(CRCP_y1,3,2)+9,"00"),VALUE(LEFT(CRCP_y1,4)+8)) -> 2023-24 | G40: =IF(dms_RPT="financial",VALUE(LEFT(CRCP_y1,4)+9)&"-"&TEXT(MID(CRCP_y1,3,2)+10,"00"),VALUE(LEFT(CRCP_y1,4)+9)) -> 2024-25
C41: =IF(dms_RPT="financial",VALUE(LEFT(CRCP_y1,4)+10)&"-"&TEXT(MID(CRCP_y1,3,2)+11,"00"),VALUE(LEFT(CRCP_y1,4)+10)) -> 2025-26 | D41: =IF(dms_RPT="financial",VALUE(LEFT(CRCP_y1,4)+11)&"-"&TEXT(MID(CRCP_y1,3,2)+12,"00"),VALUE(LEFT(CRCP_y1,4)+11)) -> 2026-27 | E41: =IF(dms_RPT="financial",VALUE(LEFT(CRCP_y1,4)+12)&"-"&TEXT(MID(CRCP_y1,3,2)+13,"00"),VALUE(LEFT(CRCP_y1,4)+12)) -> 2027-28 | F41: =IF(dms_RPT="financial",VALUE(LEFT(CRCP_y1,4)+13)&"-"&TEXT(MID(CRCP_y1,3,2)+14,"00"),VALUE(LEFT(CRCP_y1,4)+13)) -> 2028-29 | G41: =IF(dms_RPT="financial",VALUE(LEFT(CRCP_y1,4)+14)&"-"&TEXT(MID(CRCP_y1,3,2)+15,"00"),VALUE(LEFT(CRCP_y1,4)+14)) -> 2029-30
B44: Previous regulatory control period | C44: =IF(dms_RPT="financial",VALUE(LEFT(PRCP_y2,4)-1)&"-"&TEXT(VALUE(MID(PRCP_y2,3,2)),"00"),VALUE(LEFT(PRCP_y2,4)-1)) -> 2010-11 | D44: =IF(dms_RPT="financial",VALUE(LEFT(PRCP_y3,4)-1)&"-"&TEXT(VALUE(MID(PRCP_y3,3,2)),"00"),VALUE(LEFT(PRCP_y3,4)-1)) -> 2011-12 | E44: =IF(dms_RPT="financial",VALUE(LEFT(PRCP_y4,4)-1)&"-"&TEXT(VALUE(MID(PRCP_y4,3,2)),"00"),VALUE(LEFT(PRCP_y4,4)-1)) -> 2012-13 | F44: =IF(dms_RPT="financial",VALUE(LEFT(PRCP_y5,4)-1)&"-"&TEXT(VALUE(RIGHT(PRCP_y5,2)-1),"00"),VALUE(LEFT(PRCP_y5,4)-1)) -> 2013-14 | G44: =IF(dms_RPT="financial",VALUE(LEFT(CRCP_y1,4)-1)&"-"&TEXT(VALUE(RIGHT(CRCP_y1,2)-1),"00"),VALUE(LEFT(CRCP_y1,4)-1)) -> 2014-15
B48: Commencing regulatory year | C48: 2018-19 | D48: CRY
B50: Last completed regulatory year | C50: 2024-25 | D50: dms_FinalYear
C54: IF THIS IS AN ABC RIN - make sure the the named range CRY is applied and the named range dms_dollar_nom_UOM is applied
C55: IF THIS IS A RESET RIN - make sure the named ranges CRY and dms_dollar_nom_UOM are NOT present in the workbook
C56: FOR ABC RINS THAT SPAN MULTIPLE YEARS - make sure MultiYear Flag is set and final year entered as required
B58: Source | C58: Regulatory proposal | E58: Please select the correct submission type from the dropdown list.
B59: Data quality (actual, estimate, public, consolidated) | C59: Public | E59: Use Consolidated for Consolidated Confidential version Use Public for Consolidated Public version
B60: Amended RIN submission - amendment reason | C60: .
B61: Submission Date | C61: 2019-01-31 | D61: dms_SubmissionDate | E61: Please enter date this file submitted to AER (dd/mm/yyyy)
B62: EBSS - First application of scheme in forthcoming period? | C62: No
B63: Sector | C63: =INDEX(dms_Sector_List,MATCH(dms_TradingName,dms_TradingName_List)) -> Electricity | D63: dms_Sector | E63: =INDEX(dms_Sector_List,MATCH(dms_TradingName,dms_TradingName_List))
B64: Segment | C64: =INDEX(dms_Segment_List,MATCH(dms_TradingName,dms_TradingName_List)) -> Distribution | D64: dms_Segment | E64: =INDEX(dms_Segment_List,MATCH(dms_TradingName,dms_TradingName_List))
B65: Regulatory Year Ending | C65: =IF(dms_MultiYear_Flag=1,LEFT(dms_Specified_FinalYear,2)&RIGHT(dms_Specified_FinalYear,2),INDEX(dms_RYE_Formula_Result,MATCH(dms_Model,dms_Model_List))) -> 2025 | D65: dms_RYE | E65: =IF(dms_MultiYear_Flag=1,LEFT(dms_Specified_FinalYear,2)&RIGHT(dms_Specified_FinalYear,2),INDEX(dms_RYE_Formula_Result,MATCH(dms_Model,dms_Model_List)))
B66: Reporting Period Type | C66: =INDEX(dms_RPT_List,MATCH(dms_TradingName,dms_TradingName_List)) -> Financial | D66: dms_RPT | E66: =INDEX(dms_RPT_List,MATCH(dms_TradingName,dms_TradingName_List))
B67: Model or RIN Type | C67: Reset | D67: dms_Model | E67: Drop down selection
B68: EB/CA Unit of Measure for Monetary Values | C68: $0s | D68: dms_dollar_nom_UOM | E68: If the cover sheet is attached to an ABC RIN apply the NAMED RANGE to the cell
B69: Security Classification | C69: Public | D69: dms_Classification | E69: Always Public
B70: Jurisdiction | C70: =INDEX(dms_JurisdictionList,MATCH(dms_TradingName,dms_TradingName_List)) -> Qld | D70: dms_Jurisdiction | E70: =INDEX(dms_JurisdictionList,MATCH(dms_TradingName,dms_TradingName_List))
B71: FORECAST and MultiYear RINS
B72: CRY-1 (last full calendar year before CRY) | C72: =IF(dms_RPT="financial",VALUE(LEFT(dms_SingleYear_FinalYear_Result,4)),VALUE(LEFT(dms_SingleYear_FinalYear_Result,4)-1)) ->  | D72: dms_Cal_Year_B4_CRY | E72: '=IF(dms_RPT="financial",VALUE(LEFT(dms_SingleYear_FinalYear_Result,4)),VALUE(LEFT(dms_SingleYear_FinalYear_Result,4)-1))
B73: Dollar $ real month | C73: =INDEX(dms_RPTMonth_List,MATCH(dms_TradingName,dms_TradingName_List)) -> June | D73: dms_RPTMonth | E73: =INDEX(dms_RPTMonth_List,MATCH(dms_TradingName,dms_TradingName_List))
B74: Dollar $ real (the last month before the FRCP_y1) | C74: =IF(SUM(dms_SingleYear_Model)>0,CONCATENATE(dms_RPTMonth)&" "&VALUE((LEFT(CRY,2))&RIGHT(CRY,2)),CONCATENATE(dms_RPTMonth)&" "&VALUE((LEFT(dms_CRCP_FinalYear_Result,2)&RIGHT(dms_CRCP_FinalYear_Result,2)))) -> June 2020 | D74: dms_DollarReal | E74: =IF(SUM(dms_SingleYear_Model)>0,CONCATENATE(dms_RPTMonth)&" "&VALUE((LEFT(CRY,2))&RIGHT(CRY,2)),CONCATENATE(dms_RPTMonth)&" "&VALUE((LEFT(dms_CRCP_FinalYear_Result,2)&RIGHT(dms_CRCP_FinalYear_Result,2))))
B75: Dollar $ real previous year (PRCP_y5) | C75: =IF(SUM(dms_SingleYear_Model)>0,CONCATENATE(dms_RPTMonth)&" "&VALUE(((LEFT(CRY,2))&RIGHT(CRY,2))-1),CONCATENATE(dms_RPTMonth)&" "&VALUE(((LEFT(dms_CRCP_FirstYear_Result,2)&RIGHT(dms_CRCP_FirstYear_Result,2))))-1) -> June 2015 | D75: dms_DollarReal_Prev | E75: =IF(SUM(dms_SingleYear_Model)>0,CONCATENATE(dms_RPTMonth)&" "&VALUE(((LEFT(CRY,2))&RIGHT(CRY,2))-1),CONCATENATE(dms_RPTMonth)&" "&VALUE(((LEFT(dms_CRCP_FirstYear_Result,2)&RIGHT(dms_CRCP_FirstYear_Result,2))))-1)
B76: This block works out the various RYE's for ALL RIN types and MODELS
B77: Single Year Model T/F | C77: =IF(dms_Model="EB",1,0) -> 0 | D77: dms_EB
C78: =IF(dms_Model="CA",1,0) -> 0 | D78: dms_CA | E78: =dms_SingleYear_Model
C79: =IF(dms_Model="ARR",1,0) -> 0 | D79: dms_ARR
B80: Is this a single Year RIN? | C80: =IF(SUM(dms_SingleYear_Model)=1,"yes","no") -> no | E80: =IF(SUM(dms_SingleYear_Model)=1,"yes","no")
B81: Single Year Final Year Reference | C81: CRY | D81: dms_SingleYear_FinalYear_Ref | E81: This is the reference for EB, CA & ARR RINs
B82: Single Year Final Year Result | C82: =IFERROR(IF(SUM(dms_SingleYear_Model)<>0,(INDIRECT(dms_SingleYear_FinalYear_Ref)),"not a single year RIN"),"CRY not present") -> not a single year RIN | D82: dms_SingleYear_FinalYear_Result | E82: =IFERROR(IF(SUM(dms_SingleYear_Model)<>0,(INDIRECT(dms_SingleYear_FinalYear_Ref)),"not a single year RIN"),"CRY not present")
B83: FRCP length in years | C83: =INDEX(dms_FRCPlength_List,MATCH(dms_TradingName,dms_TradingName_List)) -> 5 | D83: dms_FRCPlength_Num | E83: =INDEX(dms_FRCPlength_List,MATCH(dms_TradingName,dms_TradingName_List))
B84: Multi Year Final Year Reference | C84: =INDEX(dms_FinalYear_List,MATCH(dms_FRCPlength_Num,dms_FRCPlength_Num_List)) -> dms_FRCP_y5 | D84: dms_MultiYear_FinalYear_Ref | E84: =INDEX(dms_FinalYear_List,MATCH(dms_FRCPlength_Num,dms_FRCPlength_Num_List))
B85: Multi Year Final Year Result | C85: =IF(dms_MultiYear_Flag=0,INDIRECT(dms_MultiYear_FinalYear_Ref),dms_Specified_FinalYear) -> 2024-25 | D85: dms_MultiYear_FinalYear_Result | E85: =IF(dms_MultiYear_Flag=0,INDIRECT(dms_MultiYear_FinalYear_Ref),dms_Specified_FinalYear) | I85: Formula errors OK
B86: CRCP length in years | C86: =INDEX(dms_CRCPlength_List,MATCH(dms_TradingName,dms_TradingName_List)) -> 5 | D86: dms_CRCPlength_Num | E86: =INDEX(dms_CRCPlength_List,MATCH(dms_TradingName,dms_TradingName_List))
B87: CRCP Final Year Reference | C87: =INDEX(dms_CFinalYear_List,MATCH(dms_CRCPlength_Num,dms_CRCPlength_Num_List)) -> CRCP_y5 | D87: dms_CRCP_FinalYear_Ref | E87: =INDEX(dms_CFinalYear_List,MATCH(dms_CRCPlength_Num,dms_CRCPlength_Num_List))
B88: CRCP First Year Result | C88: =INDEX(dms_CRCP_years,MATCH(dms_CRCPlength_Num,dms_CRCP_index)) -> 2015-16 | D88: dms_CRCP_FirstYear_Result | E88: =INDEX(dms_CRCP_years,MATCH(dms_CRCPlength_Num,dms_CRCP_index))
B89: CRCP Final Year Result | C89: =IF(dms_MultiYear_Flag=0,(IF(SUM(dms_SingleYear_Model)>0,CRY,dms_CRCP_yZ)),dms_Specified_FinalYear) -> 2019-20 | D89: dms_CRCP_FinalYear_Result | E89: =IF(dms_MultiYear_Flag=0,(IF(SUM(dms_SingleYear_Model)>0,CRY,dms_CRCP_yZ)),dms_Specified_FinalYear)
B90: PTRM/ RFMs
B91: Form of control | C91: =INDEX(dms_FormControl_List,MATCH(dms_TradingName,dms_TradingName_List)) -> Revenue cap | D91: dms_FormControl | E91: =INDEX(dms_FormControl_List,MATCH(dms_TradingName,dms_TradingName_List))
B92: ABC RINS THAT SPAN MULTIPLE YEARS
B93: Is this a multi year ABC RIN? | C93: No
B94: Multiyear EB, CA or ARR? | C94: =IF(dms_MultiYear_ResponseFlag="No",0,1) -> 0 | D94: dms_MultiYear_Flag | E94: This is set from the answer provided above
C95: =IF(dms_MultiYear_Flag=1,FRY,"not a Multiple year submission") -> not a Multiple year submission | D95: dms_Specified_FinalYear | E95: The result here is returned to dms_CRCP_FinalYear_Result if response to Q in C73 is "yes" and dms_MultiYear_Flag is set to 1
B96: Start year for 5.2 in Multi year RINS | C96: =IF(dms_MultiYear_Flag=1,FRY,CRY) -> 2018-19 | D96: dms_0502_Inst_Year | E96: =IF(dms_MultiYear_Flag=1,FRY,CRY) | G96: For single year RINS this is CRY - multi year RINS need to start a the end of the span of years (ie. FRY)
B97: EB RINS
B98: Calendar Year for table 3.6 data | C98: =IF(dms_RPT="financial",VALUE(LEFT(dms_SingleYear_FinalYear_Result,4)),VALUE(LEFT(dms_SingleYear_FinalYear_Result,4)-1)) ->  | D98: dms_0306_Year | E98: =IF(dms_RPT="financial",VALUE(LEFT(dms_SingleYear_FinalYear_Result,4)),VALUE(LEFT(dms_SingleYear_FinalYear_Result,4)-1))
B99: CA RINS
B100: Find how many rows in tables 6.3 sustained interruptions? | E100: dms_060301_MaxRows only returns a valid value when cover sheet is attached to a CA file
C101: =IF(dms_Model<>"CA","not a CA","Is a CA") -> not a CA | E101: =IF(dms_Model<>"CA","not a CA","Is a CA")
B102: dms_060301_Avg_Duration_Sustained_Int_Values present? | C102: =IFERROR(IF(INDEX(dms_060301_Avg_Duration_Sustained_Int_Values,1,1)<>"","yes","no"),"no") -> no | D102: dms_060301_checkvalue | E102: =IFERROR(IF(INDEX(dms_060301_Avg_Duration_Sustained_Int_Values,1,1)<>"","yes","no"),"no")
C103: =IF(AND(dms_Model="CA",(dms_060301_checkvalue="no")),"error - NR not present","no errors") -> no errors | E103: =IF(AND(dms_Model="CA",(dms_060301_checkvalue="no")),"error - NR not present","no errors")
B104: Table 6.3.1 - last row reference | C104: =IFERROR(IF(dms_Model="CA",LOOKUP(2,1/(dms_060301_Avg_Duration_Sustained_Int_Values<>""),(ROW(dms_060301_Avg_Duration_Sustained_Int_Values))),"not a CA"),"6.3 not present") -> not a CA | D104: dms_060301_LastRow | E104: =IFERROR(IF(dms_Model="CA",LOOKUP(2,1/(dms_060301_Avg_Duration_Sustained_Int_Values<>""),(ROW(dms_060301_Avg_Duration_Sustained_Int_Values))),"not a CA"),"6.3 not present")
B105: Table 6.3.1 - max number rows | C105: =IFERROR(IF(dms_Model="CA",(dms_060301_LastRow-15),"not a CA"),"error") -> not a CA | D105: dms_060301_MaxRows | E105: =IFERROR(IF(dms_Model="CA",(dms_060301_LastRow-15),"not a CA"),"error")
B106: Table 6.6.3 - Public lighting repair - no. business days | C106: =INDEX(dms_663_List,MATCH(dms_TradingName,dms_TradingName_List)) -> 5 | D106: dms_663 | E106: =INDEX(dms_663_List,MATCH(dms_TradingName,dms_TradingName_List))
B107: ARR or RESET RINS
B108: How many rows in tables 6.1 or 6.7? (leap year?) | C108: insert dms_LeapYear NR if required | E108: 'dms_LeapYear is used to determine dms_060701_Max_Rows BUT it is only found on worksheet 6.1 or 6.7 and the date value in the cell is used to determine whether it is a leap year
B109: Is dms_LeapYear named range present? | C109: =IFERROR(IF(dms_LeapYear,"yes"),"no") -> no
B110: Table 6.7.1 - includes a leap year? | C110: =IFERROR(IF(MONTH(DATE(YEAR(dms_LeapYear),2,29))=2,"is a leap year","not a leap year"), "dms_LeapYear not present") -> dms_LeapYear not present | D110: dms_LeapYear_Result | E110: =IFERROR(IF(MONTH(DATE(YEAR(dms_LeapYear),2,29))=2,"is a leap year","not a leap year"),"dms_LeapYear not present")
B111: MaxRows if Reset and leap year | C111: =IF(dms_LeapYear_Result="is a leap year",1827,1826) -> 1826 | D111: dms_060701_Reset_MaxRows | E111: =IF(dms_LeapYear_Result="is a leap year",1827,1826) | H111: number of days present in Reset RIN table
B112: MaxRows if ARR and leap year | C112: =IF(dms_LeapYear_Result="is a leap year",366,365) -> 365 | D112: dms_060701_ARR_MaxRows | E112: =IF(dms_LeapYear_Result="is a leap year",366,365) | H112: number of days present in ARR RIN table
B113: Table 6.7.1 - Max Rows (leap year/ non leap year) | C113: =IF(dms_Model="ARR",dms_060701_ARR_MaxRows,IF(dms_Model="Reset",dms_060701_Reset_MaxRows,"not a relevant RIN type")) -> 1826 | D113: dms_060701_MaxRows | E113: =IF(dms_Model="ARR",dms_060701_ARR_MaxRows,IF(dms_Model="Reset",dms_060701_Reset_MaxRows,"not a relevant RIN type"))
B114: How many columns in 6.7? (4 or 5 feeder categories) | C114: =IF(dms_FifthFeeder_flag_NSP="NO","This NSP has only 4 feeder categories","This NSP has 5 feeder categories") -> This NSP has only 4 feeder categories
B115: Table 6.7.1 - Last column (# of feeder categories > 4) | C115: =IF(dms_FifthFeeder_flag_NSP="NO",10,12) -> 10 | D115: dms_060701_MaxCols | E115: =IF(dms_FifthFeeder_flag_NSP="NO",8,10)
B116: Table 6.7.1 - Number of offset rows | C116: =IF(dms_Model="ARR",15,9) -> 9 | D116: dms_060701_OffsetRows | E116: =IF(dms_Model="ARR",15,9)
B117: Start date for telephone answering in 6.1 or 6.7? | E117: Using 060101 as naming standard not 060701 for start dates
B118: Table 6.1.1 and 6.7.1 - Start Date as Text | C118: =IF(SUM(dms_SingleYear_Model)>0,(CONCATENATE(IF(LEN(CRY)=4,"1-Jan-","1-Jul-"),LEFT(CRY,4))),(CONCATENATE(IF(LEN(CRCP_y4)=4,"1-Jan-","1-Jul-"),LEFT(CRCP_y4,4)))) -> 1-Jul-2018 | D118: dms_060101_StartDateTxt | E118: =IF(SUM(dms_SingleYear_Model)>1,(CONCATENATE(IF(LEN(CRY)=4,"1-Jan-","1-Jul-"),LEFT(CRY,4))),(CONCATENATE(IF(LEN(CRCP_y4)=4,"1-Jan-","1-Jul-"),LEFT(CRCP_y4,4))))
B119: Table 6.1.1 and 6.7.1 - Start Date as Date Value | C119: =DATEVALUE(dms_060701_StartDateTxt) -> 43282 | D119: dms_060101_StartDateVal | E119: =DATEVALUE(dms_060701_StartDateTxt)
B120: ARRs
B121: How many rows in table 6.8? | C121: insert dms_060801_StartCell NR if required | E121: dms_060801_StartCell is only found on worksheet 6.8 and is used to determine the starting date for the date range
B122: Is dms_060801_StartCell named range present? | C122: yes | E122: =IFERROR(IF((ROW(dms_060801_StartCell)-1)=1,"yes","yes"),"no")
B123: Table 6.8 - Number of offset rows | C123: 12 | D123: dms_0608_OffsetRows | E123: =IFERROR(IF(dms_Model="ARR",(ROW(dms_060801_StartCell)-1),"not an ARR"),"6.8 error")
B124: Table 6.8 - Last row | C124: 6.8 not present | D124: dms_0608_LastRow | E124: =IFERROR(IF(dms_060801_StartCell<>"",IF(dms_Model="ARR",(LOOKUP(2,1/(dms_060801_01_Values<>""),(ROW(dms_060801_01_Values)))),"not an ARR"),0),"6.8 not present")
B125: Table 6.8 - MaxRows | C125: =IFERROR(IF(dms_Model="ARR",(MAX(0,dms_0608_LastRow-dms_0608_OffsetRows)),"not an ARR"),"6.8 not present") -> not an ARR | D125: dms_060801_MaxRows | E125: =IFERROR(IF(dms_Model="ARR",(MAX(0,dms_0608_LastRow-dms_0608_OffsetRows)),"not an ARR"),"6.8 not present")
B126: TNSP RESET RINS
B127: Table 7.9.4 only appears in TNSPs Reset RIN
B128: Table 7.9.4 - first year | C128: =LEFT(PRCP_y3,4) -> 2012 | D128: dms_070904_Start_Year | E128: =LEFT(PRCP_y3,4)
B129: SUBSET FILES
B130: Is this Submission File a Subset File | C130: NO | D130: dms_Partial
B131: MISC
B132: Distribution Determination Reference | C132: =INDEX(dms_DeterminationRef_List,MATCH(dms_TradingName,dms_TradingName_List)) -> 2015-20 Distribution Determination | D132: dms_DeterminationRef
B133: Public lighting NSP? | C133: =INDEX(dms_Public_Lighting_List,MATCH(dms_TradingName,dms_TradingName_List)) -> YES | D133: dms_Public_Lighting | E133: =INDEX(dms_Public_Lighting_List,MATCH(dms_TradingName,dms_TradingName_List))
B134: CBD Feeder for this business | C134: =INDEX(dms_CBD_flag,MATCH(dms_TradingName,dms_TradingName_List)) -> YES | D134: dms_CBD_flag_NSP
B135: Urban Feeder for this business | C135: =INDEX(dms_Urban_flag,MATCH(dms_TradingName,dms_TradingName_List)) -> YES | D135: dms_Urban_flag_NSP
B136: Short rural Feeder for this business | C136: =INDEX(dms_ShortRural_flag,MATCH(dms_TradingName,dms_TradingName_List)) -> YES | D136: dms_ShortRural_flag_NSP
B137: Long rural Feeder for this business | C137: =INDEX(dms_LongRural_flag,MATCH(dms_TradingName,dms_TradingName_List)) -> NO | D137: dms_LongRural_flag_NSP
B138: Fifth Feeder Category (eg. TasNetworks (D)) | C138: =INDEX(dms_FeederType_5_flag,MATCH(dms_TradingName,dms_TradingName_List)) -> NO | D138: dms_FifthFeeder_flag_NSP | E138: =INDEX(dms_FeederType_5_flag,MATCH(dms_TradingName,dms_TradingName_List))
B140: DISCARD FILES
B141: discard this record? | C141: NO | D141: dms_DISCARD | E141: If record is to be discarded from DB set this flag to YES
B143: USES NAMED RANGES FLAG | C143: yes | D143: dms_Defined_Names_Used
B145: REGULATORY YEARS FOR MULTI RYE SUBMISSIONS
B146: Multiple RYE flag | C146: NO | D146: dms_Multi_RYE_flag
C147: Manually specify RYE | D147: Named ranges to apply
C148: 2013 | D148: dms_RYE_01
C149: 2014 | D149: dms_RYE_02
C150: 2015 | D150: dms_RYE_03
C151: 2016 | D151: dms_RYE_04
C152: 2017 | D152: dms_RYE_05
C153: 2018 | D153: dms_RYE_06
C154: 2019 | D154: dms_RYE_07
C155: 2020 | D155: dms_RYE_08
C156: 2021 | D156: dms_RYE_09

Sheet CPI series
B1: =SheetHeader -> REGULATORY REPORTING STATEMENT
B2: =dms_TradingName -> Energex
B3: =dms_Reg_Year_Span -> 2020-21 to 2024-25
B4: CPI SERIES
B8: NOMINATED CPI SERIES
B10: Name of CPI series | C10: 6401.0 Weighted average of eight capital cities
C12: =CRCP_y1 -> 2015-16 | D12: =CRCP_y2 -> 2016-17 | E12: =CRCP_y3 -> 2017-18 | F12: =CRCP_y4 -> 2018-19 | G12: =CRCP_y5 -> 2019-20 | H12: =FRCP_y1 -> 2020-21 | I12: =FRCP_y2 -> 2021-22 | J12: =FRCP_y3 -> 2022-23 | K12: =FRCP_y4 -> 2023-24 | L12: =FRCP_y5 -> 2024-25
B13: Series data | C13: 0.01023255814 | D13: 0.01933701657 | E13: 0.02077687444 | F13: 0.02 | G13: 0.0225 | H13: 0.0242 | I13: 0.0242 | J13: 0.0242 | K13: 0.0242 | L13: 0.0242

Sheet 2.1 Expenditure summary
B1: =SheetHeader -> REGULATORY REPORTING STATEMENT
B2: =dms_TradingName -> Energex
B3: =dms_Reg_Year_Span -> 2020-21 to 2024-25
B4: 2.1 EXPENDITURE SUMMARY & RECONCILIATION
B8: 2.1.1 - STANDARD CONTROL SERVICES CAPEX
C9: =CONCATENATE("Forecast ($0's, real ", dms_DollarReal, ")") -> Forecast ($0's, real June 2020)
C10: =CRCP_y4 -> 2018-19 | D10: =CRCP_y5 -> 2019-20 | E10: =FRCP_y1 -> 2020-21 | F10: =FRCP_y2 -> 2021-22 | G10: =FRCP_y3 -> 2022-23 | H10: =FRCP_y4 -> 2023-24 | I10: =FRCP_y5 -> 2024-25
B11: Replacement expenditure | C11: 135582877.6 | D11: 137439198.2 | E11: 143996960.7 | F11: 124490474.1 | G11: 124658642.1 | H11: 126577933.5 | I11: 123716065.4
B12: Connections | C12: 96884813.7 | D12: 95624100.81 | E12: 94806915.8 | F12: 94852139.43 | G12: 94991890.6 | H12: 95112775.9 | I12: 95286074.85
B13: Augmentation Expenditure | C13: 95873057.96 | D13: 71411450.24 | E13: 54776743.42 | F13: 61998716.77 | G13: 61121560.71 | H13: 59838472.96 | I13: 63334823.12
B14: Non-network | C14: 177335563.2 | D14: 161018787.5 | E14: 125202195.3 | F14: 126690304.2 | G14: 138188139.7 | H14: 136460723 | I14: 123984937.3
B15: Public lighting | C15: 0 | D15: 0 | E15: 0 | F15: 0 | G15: 0 | H15: 0 | I15: 0
B16: Metering | C16: 0 | D16: 0 | E16: 0 | F16: 0 | G16: 0 | H16: 0 | I16: 0
B17: Capitalised network overheads | C17: 48751042.18 | D17: 48751042.18 | E17: 47826831.7 | F17: 46094769.92 | G17: 43687319.43 | H17: 40754268.97 | I17: 37366943.16
B18: Capitalised corporate overheads | C18: 9285912.797 | D18: 9285912.797 | E18: 9109872.704 | F18: 8779956.175 | G18: 8321394.178 | H18: 7762717.899 | I18: 7117512.983
B19: capcons (included in the above) | C19: 54476146.39 | D19: 54288154.39 | E19: 53457892.21 | F19: 53460215.13 | G19: 53463191.46 | H19: 53463147.1 | I19: 53468015.95
B20: Total | C20: =SUM(C11:C18) -> 563713267.5 | D20: =SUM(D11:D18) -> 523530491.7 | E20: =SUM(E11:E18) -> 475719519.7 | F20: 462906360.6 | G20: 470968946.7 | H20: 466506892.3 | I20: 450806356.9
B23: 2.1.2 - STANDARD CONTROL SERVICES OPEX BY CATEGORY
C24: =CONCATENATE("Forecast ($0's, real ", dms_DollarReal, ")") -> Forecast ($0's, real June 2020)
C25: =CRCP_y4 -> 2018-19 | D25: =CRCP_y5 -> 2019-20
B26: Vegetation management | C26: 41780559.54 | D26: 41748848.26
B27: Maintenance | C27: 102324236.8 | D27: 102246573.1
B28: Emergency response | C28: 11906862.4 | D28: 11897825.14
B29: Non-network | C29: 58729049.69 | D29: 58684474.58
B30: Metering | C30: 0 | D30: 0
B31: Network overheads | C31: 101310219.2 | D31: 101233325.1
B32: Corporate overheads | C32: 68159689.55 | D32: 68107956.62
B33: Total | C33: =SUM(C26:C32) -> 384210617.2 | D33: =SUM(D26:D32) -> 383919002.9
B36: 2.1.3 - ALTERNATIVE CONTROL SERVICES CAPEX
C37: =CONCATENATE("Forecast ($0's, real ", dms_DollarReal, ")") -> Forecast ($0's, real June 2020)
C38: =CRCP_y4 -> 2018-19 | D38: =CRCP_y5 -> 2019-20 | E38: =FRCP_y1 -> 2020-21 | F38: =FRCP_y2 -> 2021-22 | G38: =FRCP_y3 -> 2022-23 | H38: =FRCP_y4 -> 2023-24 | I38: =FRCP_y5 -> 2024-25
B39: Connections | C39: 0 | D39: 0 | E39: 0 | F39: 0 | G39: 0 | H39: 0 | I39: 0
B40: Metering | C40: 2296651.751 | D40: 1890612.047 | E40: 1332707.723 | F40: 1470863.454 | G40: 1790152.211 | H40: 1827014.841 | I40: 1643965.863
B41: Public lighting | C41: 20715839.96 | D41: 29337278.48 | E41: 30729416.6 | F41: 32675232.76 | G41: 34769579.56 | H41: 36705187.2 | I41: 38341348.14
B42: Fee and quoted | C42: 4009102.368 | D42: 3702520.181 | E42: 3486494.647 | F42: 3306546.915 | G42: 3109329.584 | H42: 2884057.206 | I42: 2628968.502
B43: Network overheads | C43: 3421601.39 | D43: 3268362.607 | E43: 3380290.789 | F43: 3259150.701 | G43: 3019170.859 | H43: 2806227.647 | I43: 2458649.57
B44: Corporate overheads | C44: 1488210.214 | D44: 1346880.255 | E44: 1463788.338 | F44: 1400885.62 | G44: 1311346.221 | H44: 1220818.652 | I44: 1098177.432
B45: Total | C45: =SUM(C39:C44) -> 31931405.69 | D45: 39545653.57 | E45: 40392698.1 | F45: 42112679.45 | G45: 43999578.43 | H45: 45443305.55 | I45: 46171109.51
B48: 2.1.4 - ALTERNATIVE CONTROL SERVICES OPEX
C49: =CONCATENATE("Forecast ($0's, real ", dms_DollarReal, ")") -> Forecast ($0's, real June 2020)
C50: =CRCP_y4 -> 2018-19 | D50: =CRCP_y5 -> 2019-20 | E50: =FRCP_y1 -> 2020-21 | F50: =FRCP_y2 -> 2021-22 | G50: =FRCP_y3 -> 2022-23 | H50: =FRCP_y4 -> 2023-24 | I50: =FRCP_y5 -> 2024-25
B51: Connections | C51: 0 | D51: 0 | E51: 0 | F51: 0 | G51: 0 | H51: 0 | I51: 0
B52: Metering | C52: 17563988.99 | D52: 17563988.99 | E52: 17075280.1 | F52: 16632376.31 | G52: 16229757.59 | H52: 15847620.25 | I52: 15482357.99
B53: Public lighting | C53: 12930101.87 | D53: 12930101.87 | E53: 12852533.03 | F53: 12782409.37 | G53: 12455576.49 | H53: 12124696.86 | I53: 11697988.52
B54: Fee and quoted | C54: 20460536.29 | D54: 18895887.8 | E54: 19375116.58 | F54: 18377012.93 | G54: 17282985.2 | H54: 16033401.05 | I54: 14618536.28
B55: Network overheads | C55: 11130458.37 | D55: 10273283.56 | E55: 10920931.07 | F55: 10541304.91 | G55: 10092448.39 | H55: 9598891.539 | I55: 9041721.426
B56: Corporate overheads | C56: 8453419.431 | D56: 6290716.904 | E56: 7225505.592 | F56: 6951816.101 | G56: 6608289.107 | H56: 6223208.53 | I56: 5779461.541
B57: Total | C57: =SUM(C51:C56) -> 70538504.95 | D57: 65953979.12 | E57: 67449366.37 | F57: 65284919.61 | G57: 62669056.78 | H57: 59827818.22 | I57: 56620065.75
B60: 2.1.5 - DUAL FUNCTION ASSETS CAPEX
C61: =CONCATENATE("Forecast ($0's, real ", dms_DollarReal, ")") -> Forecast ($0's, real June 2020)
C62: =CRCP_y4 -> 2018-19 | D62: =CRCP_y5 -> 2019-20 | E62: =FRCP_y1 -> 2020-21 | F62: =FRCP_y2 -> 2021-22 | G62: =FRCP_y3 -> 2022-23 | H62: =FRCP_y4 -> 2023-24 | I62: =FRCP_y5 -> 2024-25
B63: Replacement expenditure
B64: Connections
B65: Augmentation expenditure
B66: Non-network
B67: Capitalised network overheads
B68: Capitalised corporate overheads
B69: capcons (included in the above)
B70: Total | C70: =SUM(C63:C68) -> 0 | D70: =SUM(D63:D68) -> 0 | E70: 0 | F70: 0 | G70: 0 | H70: 0 | I70: 0
B73: 2.1.6 - DUAL FUNCTION ASSETS OPEX BY CATEGORY
C74: =CONCATENATE("Forecast ($0's, real ", dms_DollarReal, ")") -> Forecast ($0's, real June 2020)
C75: =CRCP_y4 -> 2018-19 | D75: =CRCP_y5 -> 2019-20
B76: Vegetation management
B77: Maintenance
B78: Emergency response
B79: Non-network
B80: Metering
B81: Network overheads
B82: Corporate overheads
B97: Total | C97: =SUM(C76:C96) -> 0 | D97: =SUM(D76:D96) -> 0
B100: 2.1.7 - STANDARD CONTROL SERVICES CAPCONS
C101: =CONCATENATE("Forecast ($0's, real ", dms_DollarReal, ")") -> Forecast ($0's, real June 2020)
C102: =CRCP_y4 -> 2018-19 | D102: =CRCP_y5 -> 2019-20 | E102: =FRCP_y1 -> 2020-21 | F102: =FRCP_y2 -> 2021-22 | G102: =FRCP_y3 -> 2022-23 | H102: =FRCP_y4 -> 2023-24 | I102: =FRCP_y5 -> 2024-25
B103: Replacement expenditure | C103: 0 | D103: 0 | E103: 0 | F103: 0 | G103: 0 | H103: 0 | I103: 0
B104: Connections | C104: 54476146.39 | D104: 54288154.39 | E104: 53457892.21 | F104: 53460215.13 | G104: 53463191.46 | H104: 53463147.1 | I104: 53468015.95
B105: Augmentation Expenditure | C105: 0 | D105: 0 | E105: 0 | F105: 0 | G105: 0 | H105: 0 | I105: 0
B106: Non-network | C106: 0 | D106: 0 | E106: 0 | F106: 0 | G106: 0 | H106: 0 | I106: 0
B107: Capitalised network overheads | C107: 0 | D107: 0 | E107: 0 | F107: 0 | G107: 0 | H107: 0 | I107: 0
B108: Capitalised corporate overheads | C108: 0 | D108: 0 | E108: 0 | F108: 0 | G108: 0 | H108: 0 | I108: 0
B109: Total | C109: =SUM(C103:C108) -> 54476146.39 | D109: =SUM(D103:D108) -> 54288154.39 | E109: 53457892.21 | F109: 53460215.13 | G109: 53463191.46 | H109: 53463147.1 | I109: 53468015.95
B112: 2.1.8 - STANDARD CONTROL SERVICES CAPITALISED OVERHEADS
C113: =CONCATENATE("Forecast ($0's, real ", dms_DollarReal, ")") -> Forecast ($0's, real June 2020)
C114: =CRCP_y4 -> 2018-19 | D114: =CRCP_y5 -> 2019-20 | E114: =FRCP_y1 -> 2020-21 | F114: =FRCP_y2 -> 2021-22 | G114: =FRCP_y3 -> 2022-23 | H114: =FRCP_y4 -> 2023-24 | I114: =FRCP_y5 -> 2024-25
B115: Replacement expenditure | C115: 29991422.89 | D115: 32914389.97 | E115: 34676126.66 | F115: 32245572.39 | G115: 31072295.66 | H115: 29119444.55 | I115: 25679051.19
B116: Connections | C116: 7775635.105 | D116: 8609653.613 | E116: 9012250.94 | F116: 9222634.028 | G116: 8961967.511 | H116: 8287002.479 | I116: 7550226.232
B117: Augmentation Expenditure | C117: 20269896.99 | D117: 16512911.39 | E117: 13248326.8 | F117: 13406519.67 | G117: 11974450.44 | H117: 11110539.84 | I117: 11255178.72
B118: Non-network | C118: 0 | D118: 0 | E118: 0 | F118: 0 | G118: 0 | H118: 0 | I118: 0
B119: capcons (included in the above) | C119: 0 | D119: 0 | E119: 0 | F119: 0 | G119: 0 | H119: 0 | I119: 0
B120: Total | C120: =SUM(C115:C118) -> 58036954.98 | D120: =SUM(D115:D118) -> 58036954.98 | E120: 56936704.4 | F120: 54874726.09 | G120: 52008713.61 | H120: 48516986.87 | I120: 44484456.15

Sheet 2.2 Repex
B1: =SheetHeader -> REGULATORY REPORTING STATEMENT
B2: =dms_TradingName -> Energex
B3: =dms_Reg_Year_Span -> 2020-21 to 2024-25
B4: 2.2 REPEX
B6: There is ONE table on this worksheet. The table has been sub-grouped for easy navigation. See the Instructions sheet on how to group or ungroup tables.
B8: 2.2.1 - REPLACEMENT EXPENDITURE, VOLUMES AND ASSET FAILURES BY ASSET CATEGORY
B9: EXPENDITURE
E10: =CONCATENATE("EXPENDITURE ($0's, real ", dms_DollarReal,")") -> EXPENDITURE ($0's, real June 2020)
B11: ASSET GROUP | C11: ASSET CATEGORY | E11: =CRCP_y4 -> 2018-19 | F11: =CRCP_y5 -> 2019-20 | G11: =FRCP_y1 -> 2020-21 | H11: =FRCP_y2 -> 2021-22 | I11: =FRCP_y3 -> 2022-23 | J11: =FRCP_y4 -> 2023-24 | K11: =FRCP_y5 -> 2024-25
B12: POLES BY: HIGHEST OPERATING VOLTAGE ; MATERIAL TYPE | C12: Staking of a wooden pole | E12: 1511379.428 | F12: 1528364.279 | G12: 1515342.907 | H12: 1519529.143 | I12: 1524071.706 | J12: 1529058.687 | K12: 1534291.704
C13: ˂ = 1 kV; Wood | E13: 7194237.413 | F13: 6716673.2 | G13: 7289811.96 | H13: 6479787.434 | I13: 6307009.096 | J13: 6626262.912 | K13: 6489638.712
C14: > 1 kV & < = 11 kV; Wood | E14: 9312109.169 | F14: 8629138.649 | G14: 10468020.09 | H14: 10659681.97 | I14: 11094521.67 | J14: 11141059.71 | K14: 11410270.38
C15: ˃ 11 kV & < = 22 kV; Wood | E15: 0 | F15: 0 | G15: 0 | H15: 0 | I15: 0 | J15: 0 | K15: 0
C16: > 22 kV & < = 66 kV; Wood | E16: 1498969.031 | F16: 1901421.1 | G16: 4079817.567 | H16: 3809637.569 | I16: 4173891.755 | J16: 4986623.178 | K16: 3735006.11
C17: > 66 kV & < = 132 kV; Wood | E17: 706322.8105 | F17: 581411.1661 | G17: 714487.0242 | H17: 716461.874 | I17: 718601.6346 | J17: 720955.0785 | K17: 723422.4591
C18: > 132 kV; Wood | E18: 0 | F18: 0 | G18: 0 | H18: 0 | I18: 0 | J18: 0 | K18: 0
C19: ˂ = 1 kV; Concrete | E19: 0 | F19: 0 | G19: 0 | H19: 0 | I19: 0 | J19: 0 | K19: 0
C20: > 1 kV & < = 11 kV; Concrete | E20: 0 | F20: 0 | G20: 0 | H20: 0 | I20: 0 | J20: 0 | K20: 0
C21: ˃ 11 kV & < = 22 kV; Concrete | E21: 0 | F21: 0 | G21: 0 | H21: 0 | I21: 0 | J21: 0 | K21: 0
C22: > 22 kV & < = 66 kV; Concrete | E22: 0 | F22: 0 | G22: 0 | H22: 0 | I22: 0 | J22: 0 | K22: 0
C23: > 66 kV & < = 132 kV; Concrete | E23: 0 | F23: 0 | G23: 0 | H23: 0 | I23: 0 | J23: 0 | K23: 0
C24: > 132 kV; Concrete | E24: 0 | F24: 0 | G24: 0 | H24: 0 | I24: 0 | J24: 0 | K24: 0
C25: ˂ = 1 kV; Steel | E25: 0 | F25: 0 | G25: 0 | H25: 0 | I25: 0 | J25: 0 | K25: 0
C26: > 1 kV & < = 11 kV; Steel | E26: 0 | F26: 0 | G26: 0 | H26: 0 | I26: 0 | J26: 0 | K26: 0
C27: ˃ 11 kV & < = 22 kV; Steel | E27: 0 | F27: 0 | G27: 0 | H27: 0 | I27: 0 | J27: 0 | K27: 0
C28: > 22 kV & < = 66 kV; Steel | E28: 0 | F28: 0 | G28: 0 | H28: 0 | I28: 0 | J28: 0 | K28: 0
C29: > 66 kV & < = 132 kV; Steel | E29: 0 | F29: 0 | G29: 0 | H29: 0 | I29: 0 | J29: 0 | K29: 0
C30: > 132 kV; Steel | E30: 0 | F30: 0 | G30: 0 | H30: 0 | I30: 0 | J30: 0 | K30: 0
C31: Other | E31: 0 | F31: 0 | G31: 0 | H31: 0 | I31: 0 | J31: 0 | K31: 0
B32: POLE TOP STRUCTURES BY: HIGHEST OPERATING VOLTAGE | C32: ˂ = 1 kV | E32: 6372186.874 | F32: 6216339.571 | G32: 6948237.802 | H32: 6996859.343 | I32: 7038716.79 | J32: 7212107.638 | K32: 7214582.647
C33: > 1 kV & < = 11 kV | E33: 3096134.425 | F33: 3243695.39 | G33: 3888542.396 | H33: 3947338.454 | I33: 4067528.116 | J33: 4082376.229 | K33: 4148452.119
C34: ˃ 11 kV & < = 22 kV | E34: 0 | F34: 0 | G34: 0 | H34: 0 | I34: 0 | J34: 0 | K34: 0
C35: > 22 kV & < = 66 kV | E35: 360661.5479 | F35: 485868.7521 | G35: 984841.0299 | H35: 922202.9529 | I35: 1004801.473 | J35: 1193298.513 | K35: 903763.6779
C36: > 66 kV & < = 132 kV | E36: 0 | F36: 0 | G36: 0 | H36: 0 | I36: 0 | J36: 0 | K36: 0
C37: > 132 kV | E37: 0 | F37: 0 | G37: 0 | H37: 0 | I37: 0 | J37: 0 | K37: 0
C38: Other | E38: 0 | F38: 0 | G38: 0 | H38: 0 | I38: 0 | J38: 0 | K38: 0
B39: STAKING WOODEN POLES BY: HIGHEST OPERATING VOLTAGE | C39: ˂ = 1 Kv | D39: for year wooden pole staked | E39: 0 | F39: 0 | G39: 0 | H39: 0 | I39: 0 | J39: 0 | K39: 0
C40: > 1 kV & < = 11 kV | D40: for year wooden pole staked | E40: 0 | F40: 0 | G40: 0 | H40: 0 | I40: 0 | J40: 0 | K40: 0
C41: ˃ 11 kV & < = 22 kV | D41: for year wooden pole staked | E41: 0 | F41: 0 | G41: 0 | H41: 0 | I41: 0 | J41: 0 | K41: 0
C42: > 22 kV & < = 66 kV | D42: for year wooden pole staked | E42: 0 | F42: 0 | G42: 0 | H42: 0 | I42: 0 | J42: 0 | K42: 0
C43: > 66 kV & < = 132 kV | D43: for year wooden pole staked | E43: 0 | F43: 0 | G43: 0 | H43: 0 | I43: 0 | J43: 0 | K43: 0
C44: > 132 kV | D44: for year wooden pole staked | E44: 0 | F44: 0 | G44: 0 | H44: 0 | I44: 0 | J44: 0 | K44: 0
B45: OVERHEAD CONDUCTORS BY: Highest operating voltage; Number of phases (at HV) | C45: ˂ = 1 kV | D45: per km | E45: 4510238.614 | F45: 5324709.717 | G45: 4369230.775 | H45: 3129500.909 | I45: 3138856.41 | J45: 3149127.198 | K45: 3159904.701
C46: > 1 kV & < = 11 kV | D46: per km | E46: 3033917.68 | F46: 4272349.465 | G46: 4966420.824 | H46: 4980140.893 | I46: 4995028.799 | J46: 5011373.248 | K46: 5028524.06
C47: ˃ 11 kV & < = 22 kV ; SWER | D47: per km | E47: 0 | F47: 0 | G47: 0 | H47: 0 | I47: 0 | J47: 0 | K47: 0
C48: ˃ 11 kV & < = 22 kV ; Single-Phase | D48: per km | E48: 0 | F48: 0 | G48: 0 | H48: 0 | I48: 0 | J48: 0 | K48: 0
C49: ˃ 11 kV & < = 22 kV ; Multiple-Phase | D49: per km | E49: 0 | F49: 0 | G49: 0 | H49: 0 | I49: 0 | J49: 0 | K49: 0
C50: > 22 kV & < = 66 kV | D50: per km | E50: 774013.0695 | F50: 2801100.341 | G50: 6146705.365 | H50: 1840285.967 | I50: 5097740.136 | J50: 5305809.588 | K50: 4699688.85
C51: > 66 kV & < = 132 kV | D51: per km | E51: 0 | F51: 0 | G51: 0 | H51: 0 | I51: 0 | J51: 0 | K51: 0
C52: > 132 kV | D52: per km | E52: 0 | F52: 0 | G52: 0 | H52: 0 | I52: 0 | J52: 0 | K52: 0
C53: Other | D53: per km | E53: 0 | F53: 0 | G53: 0 | H53: 0 | I53: 0 | J53: 0 | K53: 0
B54: UNDERGROUND CABLES BY: Highest operating voltage | C54: ˂ = 1 kV | D54: per km | E54: 422869.4639 | F54: 0 | G54: 2106767.761 | H54: 1056294.44 | I54: 1059452.184 | J54: 1062918.863 | K54: 1066556.573
C55: > 1 kV & < = 11 kV | D55: per km | E55: 0 | F55: 0 | G55: 717904.9319 | H55: 719888.1921 | I55: 722040.2653 | J55: 724402.8844 | K55: 726882.0647
C56: > 11 kV & < = 22 kV | D56: per km | E56: 0 | F56: 0 | G56: 0 | H56: 0 | I56: 0 | J56: 0 | K56: 0
C57: > 22 kV & < = 33 kV | D57: per km | E57: 6479906.395 | F57: 4654609.377 | G57: 8143218.271 | H57: 733108.7811 | I57: 1629850.413 | J57: 0 | K57: 0
C58: > 33 kV & < = 66 kV | D58: per km | E58: 0 | F58: 0 | G58: 0 | H58: 0 | I58: 0 | J58: 0 | K58: 0
C59: > 66 kV & < = 132 kV | D59: per km | E59: 0 | F59: 0 | G59: 0 | H59: 0 | I59: 22705.15616 | J59: 91872.61863 | K59: 1609261.718
C60: > 132 kV | D60: per km | E60: 0 | F60: 0 | G60: 0 | H60: 0 | I60: 0 | J60: 0 | K60: 0
C61: Other | D61: per km | E61: 0 | F61: 0 | G61: 0 | H61: 0 | I61: 0 | J61: 0 | K61: 0
B62: SERVICE LINES BY: Connection voltage; Customer type; Connection complexity | C62: ˂ = 11 kV ; Residential ; Simple Type | D62: per number of spans | E62: 7376411.375 | F62: 7082717.026 | G62: 7310935.89 | H62: 7352469.326 | I62: 7419938.939 | J62: 7536533.489 | K62: 7562759.393
C63: ˂ = 11 kV ; Commercial & Industrial ; Simple Type | D63: per number of spans | E63: 623086.2625 | F63: 563583.7675 | G63: 635772.9617 | H63: 639403.729 | I63: 645262.076 | J63: 655413.3349 | K63: 657691.4327
C64: ˂ = 11 kV ; Residential ; Complex Type | D64: per number of spans | E64: 0 | F64: 0 | G64: 0 | H64: 0 | I64: 0 | J64: 0 | K64: 0
C65: ˂ = 11 kV ; Commercial & Industrial ; Complex Type | D65: per number of spans | E65: 0 | F65: 0 | G65: 0 | H65: 0 | I65: 0 | J65: 0 | K65: 0
C66: ˂ = 11 kV ; Subdivision ; Complex Type | D66: per number of spans | E66: 0 | F66: 0 | G66: 0 | H66: 0 | I66: 0 | J66: 0 | K66: 0
C67: > 11 kV & < = 22 kV ; Commercial & Industrial | D67: per number of spans | E67: 0 | F67: 0 | G67: 0 | H67: 0 | I67: 0 | J67: 0 | K67: 0
C68: > 11 kV & < = 22 kV ; Subdivision | D68: per number of spans | E68: 0 | F68: 0 | G68: 0 | H68: 0 | I68: 0 | J68: 0 | K68: 0
C69: > 22 kV & < = 33 kV ; Commercial & Industrial | D69: per number of spans | E69: 0 | F69: 0 | G69: 0 | H69: 0 | I69: 0 | J69: 0 | K69: 0
C70: > 22 kV & < = 33 kV ; Subdivision | D70: per number of spans | E70: 0 | F70: 0 | G70: 0 | H70: 0 | I70: 0 | J70: 0 | K70: 0
C71: > 33 kV & < = 66 kV ; Commercial & Industrial | D71: per number of spans | E71: 0 | F71: 0 | G71: 0 | H71: 0 | I71: 0 | J71: 0 | K71: 0
C72: > 33 kV & < = 66 kV ; Subdivision | D72: per number of spans | E72: 0 | F72: 0 | G72: 0 | H72: 0 | I72: 0 | J72: 0 | K72: 0
C73: > 66 kV & < = 132 kV ; Commercial & Industrial | D73: per number of spans | E73: 0 | F73: 0 | G73: 0 | H73: 0 | I73: 0 | J73: 0 | K73: 0
C74: > 66 kV & < = 132 kV ; Subdivision | D74: per number of spans | E74: 0 | F74: 0 | G74: 0 | H74: 0 | I74: 0 | J74: 0 | K74: 0
C75: > 132 kV ; Commercial & Industrial | D75: per number of spans | E75: 0 | F75: 0 | G75: 0 | H75: 0 | I75: 0 | J75: 0 | K75: 0
C76: > 132 kV ; Subdivision | D76: per number of spans | E76: 0 | F76: 0 | G76: 0 | H76: 0 | I76: 0 | J76: 0 | K76: 0
C77: Other | D77: per number of spans | E77: 0 | F77: 0 | G77: 0 | H77: 0 | I77: 0 | J77: 0 | K77: 0
B78: TRANSFORMERS BY: Mounting type; Highest operating voltage; Ampere rating; Number of phases (at LV) | C78: Pole Mounted ; < = 22kV ; < = 60 kVA ; Single Phase | E78: 541806.0507 | F78: 548269.5472 | G78: 629843.7111 | H78: 586432.5463 | I78: 581720.7961 | J78: 583632.5759 | K78: 579120.7299
C79: Pole Mounted ; < = 22kV ; > 60 kVA and < = 600 kVA ; Single Phase | E79: 0 | F79: 0 | G79: 0 | H79: 0 | I79: 0 | J79: 0 | K79: 0
C80: Pole Mounted ; < = 22kV ; > 600 kVA ; Single Phase | E80: 0 | F80: 0 | G80: 0 | H80: 0 | I80: 0 | J80: 0 | K80: 0
C81: Pole Mounted ; < = 22kV ; < = 60 kVA ; Multiple Phase | E81: 849559.7356 | F81: 858522.5203 | G81: 908898.1917 | H81: 911347.2483 | I81: 931992.4331 | J81: 917073.181 | K81: 911186.0334
C82: Pole Mounted ; < = 22kV ; > 60 kVA and < = 600 kVA ; Multiple Phase | E82: 8154207.551 | F82: 8173090.951 | G82: 8403859.728 | H82: 8296112.234 | I82: 8358289.043 | J82: 8367002.915 | K82: 8320301.851
C83: Pole Mounted ; < = 22kV ; > 600 kVA ; Multiple Phase | E83: 0 | F83: 0 | G83: 0 | H83: 0 | I83: 0 | J83: 0 | K83: 0
C84: Kiosk Mounted ; < = 22kV ; < = 60 kVA ; Single Phase | E84: 0 | F84: 0 | G84: 0 | H84: 0 | I84: 0 | J84: 0 | K84: 0
C85: Kiosk Mounted ; < = 22kV ; > 60 kVA and < = 600 kVA ; Single Phase | E85: 0 | F85: 0 | G85: 0 | H85: 0 | I85: 0 | J85: 0 | K85: 0
C86: Kiosk Mounted ; < = 22kV ; > 600 kVA ; Single Phase | E86: 0 | F86: 0 | G86: 0 | H86: 0 | I86: 0 | J86: 0 | K86: 0
C87: Kiosk Mounted ; < = 22kV ; < = 60 kVA ; Multiple Phase | E87: 0 | F87: 0 | G87: 0 | H87: 0 | I87: 0 | J87: 0 | K87: 0
C88: Kiosk Mounted ; < = 22kV ; > 60 kVA and < = 600 kVA ; Multiple Phase | E88: 4891379.796 | F88: 4655793.854 | G88: 4991354.907 | H88: 4945931.365 | I88: 4960704.481 | J88: 4977006.179 | K88: 4994018.559
C89: Kiosk Mounted ; < = 22kV ; > 600 kVA ; Multiple Phase | E89: 457657.0937 | F89: 392285.0115 | G89: 651476.0033 | H89: 522576.3768 | I89: 524137.2499 | J89: 525860.089 | K89: 461698.1279
C90: Ground Outdoor / Indoor Chamber Mounted; ˂ 22 kV ; < = 60 kVA ; Single Phase | E90: 0 | F90: 0 | G90: 0 | H90: 0 | I90: 0 | J90: 0 | K90: 0
C91: Ground Outdoor / Indoor Chamber Mounted; ˂ 22 kV ; > 60 kVA and < = 600 kVA ; Single Phase | E91: 0 | F91: 0 | G91: 0 | H91: 0 | I91: 0 | J91: 0 | K91: 0
C92: Ground Outdoor / Indoor Chamber Mounted; ˂ 22 kV ; > 600 kVA ; Single Phase | E92: 0 | F92: 0 | G92: 0 | H92: 0 | I92: 0 | J92: 0 | K92: 0
C93: Ground Outdoor / Indoor Chamber Mounted; ˂ 22 kV ; < = 60 kVA ; Multiple Phase | E93: 0 | F93: 0 | G93: 0 | H93: 0 | I93: 0 | J93: 0 | K93: 0
C94: Ground Outdoor / Indoor Chamber Mounted; ˂ 22 kV ; > 60 kVA and < = 600 kVA ; Multiple Phase | E94: 626431.7825 | F94: 626433.807 | G94: 780231.1776 | H94: 625856.3926 | I94: 627725.7372 | J94: 629789.0589 | K94: 631941.6846
C95: Ground Outdoor / Indoor Chamber Mounted; ˂ 22 kV ; > 600 kVA ; Multiple Phase | E95: 549877.2492 | F95: 305503.084 | G95: 547924.1158 | H95: 488346.0752 | I95: 489804.7012 | J95: 491414.6801 | K95: 493094.3406
C96: Ground Outdoor / Indoor Chamber Mounted; > = 22 kV & < = 33 kV ; < = 15 MVA | E96: 5956941.058 | F96: 10509890.67 | G96: 3337129.139 | H96: 1339275.352 | I96: 150813.3597 | J96: 40037.42832 | K96: 189871.7381
C97: Ground Outdoor / Indoor Chamber Mounted; > = 22 kV & < = 33 kV ; > 15 MVA and < = 40 MVA | E97: 3731311.159 | F97: 6565389.501 | G97: 10328286.91 | H97: 5322356.894 | I97: 2193826.209 | J97: 1171912.409 | K97: 599276.7154
C98: Ground Outdoor / Indoor Chamber Mounted; > = 22 kV & < = 33 kV ; > 40 MVA | E98: 0 | F98: 0 | G98: 0 | H98: 0 | I98: 0 | J98: 0 | K98: 0
C99: Ground Outdoor / Indoor Chamber Mounted; > 33 kV & < = 66 kV ; < = 15 MVA | E99: 0 | F99: 0 | G99: 0 | H99: 0 | I99: 0 | J99: 0 | K99: 0
C100: Ground Outdoor / Indoor Chamber Mounted; > 33 kV & < = 66 kV ; > 15 MVA and < = 40 MVA | E100: 0 | F100: 0 | G100: 0 | H100: 0 | I100: 0 | J100: 0 | K100: 0
C101: Ground Outdoor / Indoor Chamber Mounted; > 33 kV & < = 66 kV ; > 40 MVA | E101: 0 | F101: 0 | G101: 0 | H101: 0 | I101: 0 | J101: 0 | K101: 0
C102: Ground Outdoor / Indoor Chamber Mounted; > 66 kV & < = 132 kV ; < = 100 MVA | E102: 1589004.82 | F102: 257496.324 | G102: 546629.6067 | H102: 2129872.401 | I102: 651956.7234 | J102: 0 | K102: 0
C103: Ground Outdoor / Indoor Chamber Mounted; > 66 kV & < = 132 kV ; > 100 MVA | E103: 0 | F103: 0 | G103: 0 | H103: 0 | I103: 0 | J103: 0 | K103: 0
C104: Ground Outdoor / Indoor Chamber Mounted; > 132 kV ; < = 100 MVA | E104: 0 | F104: 0 | G104: 0 | H104: 0 | I104: 0 | J104: 0 | K104: 0
C105: Ground Outdoor / Indoor Chamber Mounted; > 132 kV ; > 100 MVA | E105: 0 | F105: 0 | G105: 0 | H105: 0 | I105: 0 | J105: 0 | K105: 0
C106: Other | E106: 0 | F106: 0 | G106: 0 | H106: 0 | I106: 0 | J106: 0 | K106: 0
B107: SWITCHGEAR BY: Highest operating voltage; Switch function | C107: ˂ = 11 kV ; FUSE | E107: 0 | F107: 0 | G107: 0 | H107: 0 | I107: 0 | J107: 0 | K107: 0
C108: ˂ = 11 kV ; Switch | E108: 10342185.56 | F108: 9018318.512 | G108: 9780163.271 | H108: 11333288.43 | I108: 10019166.46 | J108: 9634510.525 | K108: 9387976.083
C109: ˂ = 11 kV ; Circuit Breaker | E109: 5544753.334 | F109: 2729666.123 | G109: 4595645.618 | H109: 1698926.548 | I109: 71119.71044 | J109: 0 | K109: 86811.27851
C110: > 11 kV & < = 22 kV ; Switch | E110: 0 | F110: 0 | G110: 0 | H110: 0 | I110: 0 | J110: 0 | K110: 0
C111: > 11 kV & < = 22 kV ; Circuit Breaker | E111: 0 | F111: 0 | G111: 0 | H111: 0 | I111: 0 | J111: 0 | K111: 0
C112: > 22 kV & < = 33 kV ; Switch | E112: 351390.4092 | F112: 403351.2534 | G112: 399960.2846 | H112: 979054.6066 | I112: 1318115.036 | J112: 1501950.726 | K112: 413745.1766
C113: > 22 kV & < = 33 kV ; Circuit Breaker | E113: 7777443.466 | F113: 12193623.9 | G113: 5182418.599 | H113: 1343019.719 | I113: 655743.3308 | J113: 593546.9321 | K113: 1041187.348
C114: > 33 kV & < = 66 kV ; Switch | E114: 0 | F114: 0 | G114: 0 | H114: 0 | I114: 0 | J114: 0 | K114: 0
C115: > 33 kV & < = 66 kV ; Circuit Breaker | E115: 0 | F115: 0 | G115: 0 | H115: 0 | I115: 0 | J115: 0 | K115: 0
C116: > 66 kV & < = 132 kV ; Switch | E116: 0 | F116: 0 | G116: 0 | H116: 0 | I116: 0 | J116: 0 | K116: 0
C117: > 66 kV & < = 132 kV ; Circuit Breaker | E117: 0 | F117: 0 | G117: 0 | H117: 0 | I117: 0 | J117: 0 | K117: 0
C118: > 132 kV ; Switch | E118: 0 | F118: 0 | G118: 0 | H118: 0 | I118: 0 | J118: 0 | K118: 0
C119: > 132 kV ; Circuit Breaker | E119: 0 | F119: 0 | G119: 0 | H119: 0 | I119: 0 | J119: 0 | K119: 0
C120: Other | E120: 0 | F120: 0 | G120: 0 | H120: 0 | I120: 0 | J120: 0 | K120: 0
B121: PUBLIC LIGHTING BY: Asset type ; Lighting obligation | C121: Luminaires ; Major Road | E121: 0 | F121: 0 | G121: 0 | H121: 0 | I121: 0 | J121: 0 | K121: 0
C122: Luminaires ; Minor Road | E122: 0 | F122: 0 | G122: 0 | H122: 0 | I122: 0 | J122: 0 | K122: 0
C123: Brackets ; Major Road | E123: 0 | F123: 0 | G123: 0 | H123: 0 | I123: 0 | J123: 0 | K123: 0
C124: Brackets ; Minor Road | E124: 0 | F124: 0 | G124: 0 | H124: 0 | I124: 0 | J124: 0 | K124: 0
C125: Lamps ; Major Road | E125: 0 | F125: 0 | G125: 0 | H125: 0 | I125: 0 | J125: 0 | K125: 0
C126: Lamps ; Minor Road | E126: 0 | F126: 0 | G126: 0 | H126: 0 | I126: 0 | J126: 0 | K126: 0
C127: Poles / Columns ; Major Road | E127: 0 | F127: 0 | G127: 0 | H127: 0 | I127: 0 | J127: 0 | K127: 0
C128: Poles / Columns ; Minor Road | E128: 0 | F128: 0 | G128: 0 | H128: 0 | I128: 0 | J128: 0 | K128: 0
C129: Other | E129: 0 | F129: 0 | G129: 0 | H129: 0 | I129: 0 | J129: 0 | K129: 0
B130: SCADA, NETWORK CONTROL AND PROTECTION SYSTEMS BY: Function | C130: Field Devices | E130: 16970734.8 | F130: 13231130.17 | G130: 6661290.447 | H130: 6581877.94 | I130: 6130499.791 | J130: 5772431.165 | K130: 4808470.955
C131: Local Network Wiring Assets | E131: 0 | F131: 0 | G131: 0 | H131: 0 | I131: 0 | J131: 0 | K131: 0
C132: Communications Network Assets | E132: 2869278.035 | F132: 3358555.527 | G132: 4108008.682 | H132: 3804195.906 | I132: 3487025.595 | J132: 3437771.079 | K132: 3067065.483
C133: Master Station Assets | E133: 0 | F133: 0 | G133: 0 | H133: 0 | I133: 0 | J133: 0 | K133: 0
C134: Communications Site Infrastructure | E134: 38744.02481 | F134: 168618.1708 | G134: 146499.5457 | H134: 152130.2791 | I134: 136169.8794 | J134: 127049.9463 | K134: 101212.2806
C135: Communications Linear Assets | E135: 3905498.694 | F135: 248436.6717 | G135: 1029831.777 | H135: 835581.0494 | I135: 837939.273 | J135: 840681.1303 | K135: 843558.2586
C136: AFLC | E136: 3988.097332 | F136: 36301.60248 | G136: 77063.0538 | H136: 300267.5291 | I136: 91912.41771 | J136: 0 | K136: 0
C137: Other | E137: 2694366.612 | F137: 3151277.125 | G137: 3295182.019 | H137: 3390160.067 | I137: 1218300.313 | J137: 3847194.847 | K137: 2011032.279
B138: OTHER BY: enter DNSP defined asset group here | C138: 33kV Instrument Transformer | E138: 176396.3745 | F138: 295350.0361 | G138: 156263.2324 | H138: 302055.6219 | I138: 373467.7378 | J138: 204652.703 | K138: 406383.7153
C139: 110kV Instrument Transformer | E139: 248778.9986 | F139: 30218.11771 | G139: 0 | H139: 0 | I139: 0 | J139: 0 | K139: 0
C140: CAPACITOR BANKS | E140: 0 | F140: 0 | G140: 0 | H140: 0 | I140: 0 | J140: 0 | K140: 0
C141: STATIC VAR COMPENSATOR | E141: 0 | F141: 0 | G141: 0 | H141: 0 | I141: 0 | J141: 0 | K141: 0
C142: Replace Ageing Cable Terminations | E142: 626036.3702 | F142: 506010.7251 | G142: 408796.6732 | H142: 136645.6942 | I142: 137044.9282 | J142: 137498.654 | K142: 137968.7366
C143: Substation Batteries | E143: 347714.1724 | F143: 399211.2618 | G143: 550685.7193 | H143: 420503.1018 | I143: 451660.8184 | J143: 368929.5045 | K143: 364057.9167
C144: Substation Battery Charger | E144: 558980.0659 | F144: 984558.9827 | G144: 166729.6906 | H144: 1351.645487 | I144: 79193.80471 | J144: 362064.5215 | K144: 165969.3875
C145: LV Network Safety | E145: 0 | F145: 0 | G145: 0 | H145: 6703687.664 | I145: 13447455.97 | J145: 15177888.62 | K145: 16922037.76
C146: Fire Suppression System / Water Misting | E146: 513399.8929 | F146: 233677.6894 | G146: 0 | H146: 0 | I146: 0 | J146: 0 | K146: 0
C147: Electric Fence | E147: 0 | F147: 4221.572866 | G147: 246426.851 | H147: 40757.78629 | I147: 259239.2769 | J147: 29440.93453 | K147: 254797.619
C148: Asbestos | E148: 0 | F148: 0 | G148: 1664512.573 | H148: 1669110.899 | I148: 1674100.631 | J148: 1656355.74 | K148: 1685326.68
C149: Substation Miscellaneous Work | E149: 144677.473 | F149: 49876.10721 | G149: 0 | H149: 0 | I149: 0 | J149: 0 | K149: 0
C150: Reactive Work | E150: 1847891.405 | F150: 3502137.54 | G150: 4115791.644 | H150: 4127161.793 | I150: 4139499.756 | J150: 4153044.792 | K150: 4167258.08
C151: Other Non AER asset Categories (ONLY FOR HISTORICAL INFO)
B182: ASSET REPLACEMENTS
E183: ASSET REPLACEMENTS (0's)
B184: ASSET GROUP | C184: ASSET CATEGORY | E184: =CRCP_y4 -> 2018-19 | F184: =CRCP_y5 -> 2019-20 | G184: =FRCP_y1 -> 2020-21 | H184: =FRCP_y2 -> 2021-22 | I184: =FRCP_y3 -> 2022-23 | J184: =FRCP_y4 -> 2023-24 | K184: =FRCP_y5 -> 2024-25
B185: POLES BY: HIGHEST OPERATING VOLTAGE ; MATERIAL TYPE | C185: Staking of a wooden pole | E185: 1691.234917 | F185: 1710.202038 | G185: 1701.772206 | H185: 1701.772206 | I185: 1701.772206 | J185: 1701.772206 | K185: 1701.772206
C186: ˂ = 1 kV; Wood | E186: 2016.837154 | F186: 1883.013581 | G186: 2050.556479 | H186: 1817.682388 | I186: 1763.942213 | J186: 1847.186797 | K186: 1802.930183
C187: > 1 kV & < = 11 kV; Wood | E187: 1928.323924 | F187: 1786.07052 | G187: 2174.896492 | H187: 2208.615817 | I187: 2291.860402 | J187: 2293.96786 | K187: 2341.385661
C188: ˃ 11 kV & < = 22 kV; Wood | E188: 0 | F188: 0 | G188: 0 | H188: 0 | I188: 0 | J188: 0 | K188: 0
C189: > 22 kV & < = 66 kV; Wood | E189: 157.0056091 | F189: 199.1547659 | G189: 428.8676706 | H189: 399.3632608 | I189: 436.243773 | J189: 519.4883577 | K189: 387.7722427
C190: > 66 kV & < = 132 kV; Wood | E190: 31.61186761 | F190: 31.61186761 | G190: 38.98797005 | H190: 38.98797005 | I190: 38.98797005 | J190: 38.98797005 | K190: 38.98797005
C191: > 132 kV; Wood | E191: 0 | F191: 0 | G191: 0 | H191: 0 | I191: 0 | J191: 0 | K191: 0
C192: ˂ = 1 kV; Concrete | E192: 0 | F192: 0 | G192: 0 | H192: 0 | I192: 0 | J192: 0 | K192: 0
C193: > 1 kV & < = 11 kV; Concrete | E193: 0 | F193: 0 | G193: 0 | H193: 0 | I193: 0 | J193: 0 | K193: 0
C194: ˃ 11 kV & < = 22 kV; Concrete | E194: 0 | F194: 0 | G194: 0 | H194: 0 | I194: 0 | J194: 0 | K194: 0
C195: > 22 kV & < = 66 kV; Concrete | E195: 0 | F195: 0 | G195: 0 | H195: 0 | I195: 0 | J195: 0 | K195: 0
C196: > 66 kV & < = 132 kV; Concrete | E196: 0 | F196: 0 | G196: 0 | H196: 0 | I196: 0 | J196: 0 | K196: 0
C197: > 132 kV; Concrete | E197: 0 | F197: 0 | G197: 0 | H197: 0 | I197: 0 | J197: 0 | K197: 0
C198: ˂ = 1 kV; Steel | E198: 0 | F198: 0 | G198: 0 | H198: 0 | I198: 0 | J198: 0 | K198: 0
C199: > 1 kV & < = 11 kV; Steel | E199: 0 | F199: 0 | G199: 0 | H199: 0 | I199: 0 | J199: 0 | K199: 0
C200: ˃ 11 kV & < = 22 kV; Steel | E200: 0 | F200: 0 | G200: 0 | H200: 0 | I200: 0 | J200: 0 | K200: 0
C201: > 22 kV & < = 66 kV; Steel | E201: 0 | F201: 0 | G201: 0 | H201: 0 | I201: 0 | J201: 0 | K201: 0
C202: > 66 kV & < = 132 kV; Steel | E202: 0 | F202: 0 | G202: 0 | H202: 0 | I202: 0 | J202: 0 | K202: 0
C203: > 132 kV; Steel | E203: 0 | F203: 0 | G203: 0 | H203: 0 | I203: 0 | J203: 0 | K203: 0
C204: Other | E204: 0 | F204: 0 | G204: 0 | H204: 0 | I204: 0 | J204: 0 | K204: 0
B205: POLE TOP STRUCTURES BY: HIGHEST OPERATING VOLTAGE | C205: ˂ = 1 kV | E205: 4631.138605 | F205: 4517.335882 | G205: 5067.382378 | H205: 5088.456956 | I205: 5104.26289 | J205: 5212.796969 | K205: 5196.991035
C206: > 1 kV & < = 11 kV | E206: 2985.214031 | F206: 3126.413707 | G206: 3761.812246 | H206: 3808.176318 | I206: 3912.495481 | J206: 3914.602939 | K206: 3964.128198
C207: ˃ 11 kV & < = 22 kV | E207: 0 | F207: 0 | G207: 0 | H207: 0 | I207: 0 | J207: 0 | K207: 0
C208: > 22 kV & < = 66 kV | E208: 270.8083325 | F208: 365.6439354 | G208: 742.8788889 | H208: 694.4073585 | I208: 754.469907 | J208: 892.5083955 | K208: 673.3327801
C209: > 66 kV & < = 132 kV | E209: 0 | F209: 0 | G209: 0 | H209: 0 | I209: 0 | J209: 0 | K209: 0
C210: > 132 kV | E210: 0 | F210: 0 | G210: 0 | H210: 0 | I210: 0 | J210: 0 | K210: 0
C211: Other | E211: 0 | F211: 0 | G211: 0 | H211: 0 | I211: 0 | J211: 0 | K211: 0
B212: STAKING WOODEN POLES BY: HIGHEST OPERATING VOLTAGE | C212: ˂ = 1 Kv | D212: for year wooden pole staked | E212: 0 | F212: 0 | G212: 0 | H212: 0 | I212: 0 | J212: 0 | K212: 0
C213: > 1 kV & < = 11 kV | D213: for year wooden pole staked | E213: 0 | F213: 0 | G213: 0 | H213: 0 | I213: 0 | J213: 0 | K213: 0
C214: ˃ 11 kV & < = 22 kV | D214: for year wooden pole staked | E214: 0 | F214: 0 | G214: 0 | H214: 0 | I214: 0 | J214: 0 | K214: 0
C215: > 22 kV & < = 66 kV | D215: for year wooden pole staked | E215: 0 | F215: 0 | G215: 0 | H215: 0 | I215: 0 | J215: 0 | K215: 0
C216: > 66 kV & < = 132 kV | D216: for year wooden pole staked | E216: 0 | F216: 0 | G216: 0 | H216: 0 | I216: 0 | J216: 0 | K216: 0
C217: > 132 kV | D217: for year wooden pole staked | E217: 0 | F217: 0 | G217: 0 | H217: 0 | I217: 0 | J217: 0 | K217: 0
B218: OVERHEAD CONDUCTORS BY: Highest operating voltage; Number of phases (at HV) | C218: ˂ = 1 kV | D218: per km | E218: 75.86848227 | F218: 89.56695823 | G218: 73.76102443 | H218: 52.68644602 | I218: 52.68644602 | J218: 52.68644602 | K218: 52.68644602
C219: > 1 kV & < = 11 kV | D219: per km | E219: 103.2654342 | F219: 145.414591 | G219: 169.6503562 | H219: 169.6503562 | I219: 169.6503562 | J219: 169.6503562 | K219: 169.6503562
C220: ˃ 11 kV & < = 22 kV ; SWER | D220: per km | E220: 0 | F220: 0 | G220: 0 | H220: 0 | I220: 0 | J220: 0 | K220: 0
C221: ˃ 11 kV & < = 22 kV ; Single-Phase | D221: per km | E221: 0 | F221: 0 | G221: 0 | H221: 0 | I221: 0 | J221: 0 | K221: 0
C222: ˃ 11 kV & < = 22 kV ; Multiple-Phase | D222: per km | E222: 0 | F222: 0 | G222: 0 | H222: 0 | I222: 0 | J222: 0 | K222: 0
C223: > 22 kV & < = 66 kV | D223: per km | E223: 0 | F223: 13.04516403 | G223: 38.81937343 | H223: 32.65505924 | I223: 37.12286986 | J223: 51.10585264 | K223: 30.07342339
C224: > 66 kV & < = 132 kV | D224: per km | E224: 0 | F224: 0 | G224: 0 | H224: 0 | I224: 0 | J224: 0 | K224: 0
C225: > 132 kV | D225: per km | E225: 0 | F225: 0 | G225: 0 | H225: 0 | I225: 0 | J225: 0 | K225: 0
C226: Other | D226: per km | E226: 0 | F226: 0 | G226: 0 | H226: 0 | I226: 0 | J226: 0 | K226: 0
B227: UNDERGROUND CABLES BY: Highest operating voltage | C227: ˂ = 1 kV | D227: per km | E227: 2.107457841 | F227: 0 | G227: 10.5372892 | H227: 5.268644602 | I227: 5.268644602 | J227: 5.268644602 | K227: 5.268644602
C228: > 1 kV & < = 11 kV | D228: per km | E228: 0 | F228: 0 | G228: 1.580593381 | H228: 1.580593381 | I228: 1.580593381 | J228: 1.580593381 | K228: 1.580593381
C229: > 11 kV & < = 22 kV | D229: per km | E229: 0 | F229: 0 | G229: 0 | H229: 0 | I229: 0 | J229: 0 | K229: 0
C230: > 22 kV & < = 33 kV | D230: per km | E230: 0.6322373522 | F230: 11.38027234 | G230: 10.63212481 | H230: 0 | I230: 10.5372892 | J230: 0 | K230: 0
C231: > 33 kV & < = 66 kV | D231: per km | E231: 0 | F231: 0 | G231: 0 | H231: 0 | I231: 0 | J231: 0 | K231: 0
C232: > 66 kV & < = 132 kV | D232: per km | E232: 0 | F232: 0 | G232: 0 | H232: 0 | I232: 0 | J232: 0 | K232: 0.6322373522
... 235 more rows

Sheet 2.3 Augex (a)
B1: =SheetHeader -> REGULATORY REPORTING STATEMENT
B2: =dms_TradingName -> Energex
B3: =dms_Reg_Year_Span -> 2020-21 to 2024-25
B4: 2.3 AUGEX PROJECT DATA
B6: There are TWO tables on this worksheet - each has been 'grouped' (and sub-grouped) for easy navigation. Both ROWS and COLUMNS have been grouped. See the Instructions sheet on how to group or ungroup tables.
B9: 2.3.1 - AUGEX ASSET DATA - SUBTRANSMISSION SUBSTATIONS, SWITCHING STATIONS AND ZONE SUBSTATIONS
B10: PROJECT DESCRIPTION AND CHANGES | L10: PLANT AND EQUIPMENT EXPENDITURE AND VOLUME | X10: OTHER EXPENDITURE | Z10: TOTAL DIRECT EXPENDITURE ($0's) | AA10: YEARS INCURRED | AB10: ALL RELATED PARTY CONTRACTS | AD10: ALL NON-RELATED PARTY CONTRACTS | AE10: LAND AND EASEMENTS
B11: SUBSTATION ID | C11: SUBSTATION TYPE | D11: PROJECT ID | E11: PROJECT TYPE (drop down) | F11: PROJECT TRIGGER (drop down) | G11: VOLTAGE (KV) | H11: SUBSTATION RATING NORMAL CYCLIC (MVA) | J11: SUBSTATION RATING N-1 EMERGENCY (MVA) | L11: TRANSFORMERS | O11: SWITCHGEAR | R11: CAPACITORS | U11: OTHER PLANT ITEM | V11: INSTALLATION (LABOUR) | X11: CIVIL WORKS | Y11: OTHER DIRECT | AB11: RELATED PARTY MARGINS | AC11: TOTAL | AE11: LAND PURCHASE | AF11: EASEMENTS
H12: PRE | I12: POST | J12: PRE | K12: POST | L12: UNITS ADDED | M12: MVA ADDED | N12: =CONCATENATE("EXPENDITURE ($0's, real ", dms_DollarReal,")") -> EXPENDITURE ($0's, real June 2020) | O12: UNITS ADDED | Q12: =CONCATENATE("EXPENDITURE ($0's, real ", dms_DollarReal,")") -> EXPENDITURE ($0's, real June 2020) | R12: MVAR ADDED | T12: =CONCATENATE("EXPENDITURE ($0's, real ", dms_DollarReal,")") -> EXPENDITURE ($0's, real June 2020) | U12: =CONCATENATE("EXPENDITURE ($0's, real ", dms_DollarReal,")") -> EXPENDITURE ($0's, real June 2020) | V12: VOLUME | W12: =CONCATENATE("EXPENDITURE ($0's, real ", dms_DollarReal,")") -> EXPENDITURE ($0's, real June 2020) | X12: =CONCATENATE("EXPENDITURE ($0's, real ", dms_DollarReal,")") -> EXPENDITURE ($0's, real June 2020) | AB12: =CONCATENATE("EXPENDITURE ($0's, real ", dms_DollarReal,")") -> EXPENDITURE ($0's, real June 2020) | AE12: =CONCATENATE("EXPENDITURE ($0's, real ", dms_DollarReal,")") -> EXPENDITURE ($0's, real June 2020)
B13: CPR | C13: Subtransmission substation | D13: C0037017 | E13: New substation establishment | F13: Demand growth | G13: 110/33 | H13: 0 | I13: 179.02 | J13: 0 | K13: 108 | L13: 2 | M13: 160 | N13: 3175773.471 | O13: 14 | P13: 0 | Q13: 2984617.381 | R13: 20 | S13: 0 | T13: 64634.2347 | U13: 11564698.62 | V13: 42343.083 | W13: 3424378.302 | X13: 8524068.899 | Y13: 10630943.71 | Z13: =SUM(N13,Q13,T13,U13,W13,X13,Y13) -> 40369114.62 | AA13: 2008, 2009, 2010, 2011, 2012, 2013, 2014, 2015, 2016, 2017, 2018 | AB13: 0 | AC13: 0 | AD13: 15083901.83 | AE13: 0 | AF13: 0
B14: TRG | C14: Zone substation | D14: C0062273 | E14: Capacity upgrade | F14: Demand growth | G14: 33/11 | H14: 18 | I14: 48 | J14: 0 | K14: 21.8 | L14: 1 | M14: 25 | N14: 671285.6847 | O14: 27 | P14: 0 | Q14: 1387384.268 | R14: 0 | S14: 0 | T14: 0 | U14: 2698555.554 | V14: 30244 | W14: 2348933.992 | X14: 4962746.307 | Y14: 6191689.484 | Z14: 18260595.29 | AA14: 2006, 2007,2008, 2009, 2010, 2011, 2012, 2013, 2014, 2015, 2016, 2017, 2018 | AB14: 0 | AC14: 0 | AD14: 7848084.383 | AE14: 0 | AF14: 0
B15: RCN | C15: Zone substation | D15: C0065191 | E15: Capacity upgrade | F15: Demand growth | G15: 33/11 | H15: 28.8 | I15: 60 | J15: 19.2 | K15: 33.75 | L15: 2 | M15: 50 | N15: 1351944.707 | O15: 3 | P15: 0 | Q15: 206169.2068 | R15: 0 | S15: 0 | T15: 0 | U15: 757694.4135 | V15: 6175.9166 | W15: 511621.8228 | X15: 279085.3229 | Y15: 3359158.333 | Z15: 6465673.806 | AA15: 2006, 2007,2008, 2009, 2010, 2011, 2012, 2013, 2014, 2015, 2016, 2017, 2018 | AB15: 0 | AC15: 0 | AD15: 1648516.344 | AE15: 0 | AF15: 0
B16: WSE | C16: Zone substation | D16: C0076665 | E16: New substation establishment | F16: Demand growth | G16: 33/11 | H16: 0 | I16: 16.5 | J16: 0 | K16: 0 | L16: 1 | M16: 15 | N16: 569042.6803 | O16: 11 | P16: 0 | Q16: 561238.544 | R16: 0 | S16: 0 | T16: 0 | U16: 3288022.194 | V16: 21005 | W16: 1689467.358 | X16: 317059.2942 | Y16: 11124042.19 | Z16: 17548872.26 | AA16: 2006, 2007,2008, 2009, 2010, 2011, 2012, 2013, 2014, 2015, 2016 | AB16: 0 | AC16: 0 | AD16: 8298867.095 | AE16: 0 | AF16: 0
B17: BTY | C17: Zone substation | D17: C0077440 | E17: New substation establishment | F17: Demand growth | G17: 132/11 | H17: 0 | I17: 66 | J17: 0 | K17: 37.5 | L17: 2 | M17: 60 | N17: 2312856.732 | O17: 22 | P17: 0 | Q17: 0 | R17: 0 | S17: 0 | T17: 0 | U17: 5600665.581 | V17: 8207 | W17: 533924.8946 | X17: 572829.0421 | Y17: 6463448.206 | Z17: 15483724.46 | AA17: 2006, 2007,2008, 2009, 2010, 2011, 2012, 2013, 2014, 2015 | AB17: 0 | AC17: 0 | AD17: 5733553.902 | AE17: 0 | AF17: 0
B18: SSWMD | C18: Zone substation | D18: C0077634 | E18: Capacity upgrade | F18: Demand growth | G18: 132/11 | H18: 0 | I18: 33 | J18: 0 | K18: 0 | L18: 0 | M18: 0 | N18: 0 | O18: 6 | P18: 0 | Q18: 3530265.121 | R18: 0 | S18: 0 | T18: 0 | U18: 3652761.07 | V18: 16510 | W18: 1501671.954 | X18: 2603128.521 | Y18: 13773380.46 | Z18: 25061207.12 | AA18: 2006, 2007,2008, 2009, 2010, 2011, 2012, 2013, 2014, 2015, 2016, 2017, 2018, 2019 | AB18: 0 | AC18: 0 | AD18: 8340196.275 | AE18: 0 | AF18: 0
B19: BLN | C19: Zone substation | D19: C0107213 | E19: Capacity upgrade | F19: Demand growth | G19: 33/11 | H19: 27.5 | I19: 55 | J19: 0 | K19: 31.25 | L19: 1 | M19: 25 | N19: 637140.2644 | O19: 11 | P19: 0 | Q19: 489017.6021 | R19: 0 | S19: 0 | T19: 0 | U19: 941264.5985 | V19: 3475 | W19: 278221.0261 | X19: 258805.1869 | Y19: 3446892.469 | Z19: 6051341.147 | AA19: 2013, 2014, 2015,2016 | AB19: 0 | AC19: 0 | AD19: 3005018.641 | AE19: 0 | AF19: 0
B20: TWG | C20: Zone substation | D20: C0107382 | E20: Other | F20: Fault level issues | G20: 33/11 | H20: 44 | I20: 44 | J20: 25.15 | K20: 25.15 | L20: 0 | M20: 0 | N20: 0 | O20: 6 | P20: 0 | Q20: 273629.4483 | R20: 0 | S20: 0 | T20: 0 | U20: 1976120.173 | V20: 11844 | W20: 1604831.917 | X20: 881066.1702 | Y20: 1810381.187 | Z20: 6546028.896 | AA20: 2008, 2009, 2010, 2011, 2012, 2013, 2014, 2015, 2016, 2017, 2018 | AB20: 0 | AC20: 0 | AD20: 1654411.402 | AE20: 0 | AF20: 0
B21: WSS | C21: Zone substation | D21: C0112508 | E21: New substation establishment | F21: Demand growth | G21: 33/11 | H21: 0 | I21: 52.5 | J21: 0 | K21: 31.25 | L21: 2 | M21: 50 | N21: 1302296.401 | O21: 17 | P21: 0 | Q21: 842951.9386 | R21: 5.4 | S21: 0 | T21: 124993.4322 | U21: 2859022.17 | V21: 3387 | W21: 301031.3719 | X21: 211006.6637 | Y21: 9616823.888 | Z21: 15258125.87 | AA21: 2008, 2009, 2010, 2011, 2012, 2013, 2014, 2015, 2016, 2017, 2018 | AB21: 0 | AC21: 0 | AD21: 5190554.36 | AE21: 0 | AF21: 0
B22: WRG | C22: Zone substation | D22: C0117468 | E22: Capacity upgrade | F22: Demand growth | G22: 33/11 | H22: 41.25 | I22: 87.16 | J22: 31.25 | K22: 67.5 | L22: 3 | M22: 75 | N22: 2063115.364 | O22: 29 | P22: 0 | Q22: 1500773.942 | R22: 5.4 | S22: 0 | T22: 125388.5444 | U22: 5753767.25 | V22: 14902 | W22: 1330006.847 | X22: 1184587.706 | Y22: 2960238.636 | Z22: 14917878.29 | AA22: 2009, 2010, 2011, 2012, 2013, 2014, 2015 | AB22: 0 | AC22: 0 | AD22: 4084121.257 | AE22: 0 | AF22: 0
B23: VPK | C23: Zone substation | D23: C0121634 | E23: Capacity upgrade | F23: Demand growth | G23: 110/11 | H23: 57.03 | I23: 126 | J23: 50 | K23: 75 | L23: 2 | M23: 120 | N23: 2815113.81 | O23: 62 | P23: 0 | Q23: 7591114.77 | R23: 10.8 | S23: 0 | T23: 514522.3743 | U23: 4907876.298 | V23: 28885 | W23: 2543021.591 | X23: 880242.6147 | Y23: 26089678.97 | Z23: 45341570.43 | AA23: 2009, 2010, 2011, 2012, 2013, 2014, 2015, 2016, 2017, 2018,2019 | AB23: 0 | AC23: 0 | AD23: 22619057.74 | AE23: 0 | AF23: 0
B24: MLB | C24: Subtransmission substation | D24: C0124994 | E24: Other | F24: Reactive power issue | G24: 132/11 | H24: 67.75 | I24: 67.75 | J24: 40.5 | K24: 40.5 | L24: 0 | M24: 0 | N24: 0 | O24: 10 | P24: 0 | Q24: 3377950.816 | R24: 125 | S24: 0 | T24: 778978.1547 | U24: 2496939.588 | V24: 12655 | W24: 933294.7912 | X24: 110527.8709 | Y24: 2478196.203 | Z24: 10175887.42 | AA24: 2009, 2010, 2011, 2012, 2013, 2014, 2015, 2016, 2017, 2018 | AB24: 0 | AC24: 0 | AD24: 2301503.263 | AE24: 0 | AF24: 0
B25: GBG | C25: Zone substation | D25: C0131194 | E25: Capacity upgrade | F25: Demand growth | G25: 33/11 | H25: 52.5 | I25: 78.75 | J25: 31.25 | K25: 62.5 | L25: 1 | M25: 25 | N25: 661289.89 | O25: 11 | P25: 0 | Q25: 398672.4193 | R25: 0 | S25: 0 | T25: 0 | U25: 2735505.46 | V25: 8702 | W25: 733961.5549 | X25: 175640.7001 | Y25: 2540972.999 | Z25: 7246043.024 | AA25: 2010, 2011, 2012, 2013, 2014, 2015, 2016, 2017, 2018 | AB25: 0 | AC25: 0 | AD25: 2297815.532 | AE25: 0 | AF25: 0
B26: AFD | C26: Subtransmission substation | D26: C0230608 | E26: Other | F26: Safety | G26: 110/33 | H26: 176 | I26: 176 | J26: 100 | K26: 100 | L26: 0 | M26: 0 | N26: 0 | O26: 12 | P26: 0 | Q26: 978024.576 | R26: 0 | S26: 0 | T26: 0 | U26: 1502626.483 | V26: 9624 | W26: 1708700.723 | X26: 406911.5915 | Y26: 3035073.713 | Z26: 7631337.087 | AA26: 2012, 2013, 2014, 2015, 2016, 2017, 2018 | AB26: 0 | AC26: 0 | AD26: 3515319.009 | AE26: 0 | AF26: 0
B27: JDL | C27: Zone substation | D27: C0230644 | E27: Other | F27: Safety | G27: 33/11 | H27: 36 | I27: 36 | J27: 20.25 | K27: 20.25 | L27: 0 | M27: 0 | N27: 0 | O27: 16 | P27: 0 | Q27: 1073916.578 | R27: 0 | S27: 0 | T27: 0 | U27: 515734.4769 | V27: 7973 | W27: 832706.5361 | X27: 609201.8098 | Y27: 3468841.726 | Z27: 6500401.127 | AA27: 2012, 2013, 2014, 2015, 2016, 2017, 2018.2019 | AB27: 0 | AC27: 0 | AD27: 3426848.266 | AE27: 0 | AF27: 0
B28: QPT | C28: Zone substation | D28: C0548905 | E28: Capacity upgrade | F28: Demand growth | G28: 33/11 | H28: 52.5 | I28: 52.5 | J28: 31.25 | K28: 31.25 | L28: 0 | M28: 0 | N28: 0 | O28: 1 | P28: 0 | Q28: 522277.0941 | R28: 0 | S28: 0 | T28: 0 | U28: 1506906.858 | V28: 2262 | W28: 3447028.821 | X28: 126446.0333 | Y28: 476646.569 | Z28: 6079305.375 | AA28: 2019, 2020, 2021, 2022 | AB28: 0 | AC28: 0 | AD28: 3404147.123 | AE28: 0 | AF28: 0
B29: 744 | C29: Zone substation | D29: C0562034 | E29: Capacity upgrade | F29: Demand growth | G29: 132/11 | H29: 0 | I29: 66 | J29: 0 | K29: 37.5 | L29: 2 | M29: 60 | N29: 2000475.464 | O29: 23 | P29: 0 | Q29: 2723927.06 | R29: 0 | S29: 0 | T29: 0 | U29: 5608946.58 | V29: 22997 | W29: 15092899.08 | X29: 1543558.667 | Y29: 2322660.386 | Z29: 29292467.23 | AA29: 2022, 2023, 2024, 2025 | AB29: 0 | AC29: 0 | AD29: 9832498 | AE29: 0 | AF29: 0
B30: 539 Petrie | C30: Zone substation | D30: DJ7193621 | E30: Capacity upgrade | F30: Demand growth | G30: 33/11 | H30: 0 | I30: 30 | J30: 0 | K30: 33.75 | L30: 1 | M30: 25 | N30: 592306.1821 | O30: 11 | P30: 0 | Q30: 521531.1045 | R30: 0 | S30: 0 | T30: 0 | U30: 859163.032 | V30: 9305 | W30: 1447408.349 | X30: 870185.3802 | Y30: 1511221.944 | Z30: 5801815.991 | AA30: 2022, 2023, 2024, 2025 | AB30: 0 | AC30: 0 | AD30: 2346019.785 | AE30: 0 | AF30: 0
Z31: 0
Z32: 0
Z33: 0
Z34: 0
Z35: 0
Z36: 0
Z37: 0
Z38: 0
Z39: 0
Z40: 0
Z41: 0
Z42: 0
Z43: 0
Z44: 0
Z45: =SUM(N45,Q45,T45,U45,W45,X45,Y45) -> 0
Z46: 0
Z47: 0
Z48: 0
Z49: 0
Z50: 0
Z51: 0
Z52: 0
Z53: 0
Z54: 0
Z55: 0
Z56: 0
Z57: 0
Z58: 0
Z59: 0
Z60: 0
Z61: 0
Z62: 0
Z63: 0
Z64: 0
D65: Non material projects - [forecast] | Z65: 0 | AA65: 0 | AE65: 0 | AF65: 0
B68: 2.3.2 - AUGEX ASSET DATA - SUBTRANSMISSION LINES
B69: PROJECT DESCRIPTION AND CHANGES | L69: PLANT AND EQUIPMENT EXPENDITURE AND VOLUME | X69: OTHER EXPENDITURE | Z69: TOTAL DIRECT EXPENDITURE ($0's) | AA69: YEARS INCURRED | AB69: ALL RELATED PARTY CONTRACTS | AD69: ALL NON RELATED PARTY CONTRACTS | AE69: LAND AND EASEMENTS
B70: LINE ID | D70: PROJECT ID | E70: PROJECT TYPE | F70: PROJECT TRIGGER | G70: VOLTAGE (KV) | H70: ROUTE LINE LENGTH ADDED | L70: POLES/TOWERS (INCLUDING STRUCTURES, AND CIVIL WORKS) | O70: OVERHEAD LINES | R70: UNDERGROUND CABLES | U70: OTHER PLANT ITEM | V70: INSTALLATION (LABOUR) | X70: CIVIL WORKS | Y70: OTHER DIRECT | AB70: RELATED PARTY MARGINS | AC70: TOTAL | AE70: LAND PURCHASE | AF70: EASEMENTS
H71: KM ADDED | L71: POLES/TOWERS ADDED | M71: POLES/TOWERS UPGRADED | N71: =CONCATENATE("EXPENDITURE ($0's, real ", dms_DollarReal,")") -> EXPENDITURE ($0's, real June 2020) | O71: CIRCUIT KM ADDED | P71: CIRCUIT KM UPGRADED | Q71: =CONCATENATE("EXPENDITURE ($0's, real ", dms_DollarReal,")") -> EXPENDITURE ($0's, real June 2020) | R71: CIRCUIT KM ADDED | S71: CIRCUIT KM UPGRADED | T71: =CONCATENATE("EXPENDITURE ($0's, real ", dms_DollarReal,")") -> EXPENDITURE ($0's, real June 2020) | U71: =CONCATENATE("EXPENDITURE ($0's, real ", dms_DollarReal,")") -> EXPENDITURE ($0's, real June 2020) | V71: VOLUME | W71: =CONCATENATE("EXPENDITURE ($0's, real ", dms_DollarReal,")") -> EXPENDITURE ($0's, real June 2020) | X71: =CONCATENATE("EXPENDITURE ($0's, real ", dms_DollarReal,")") -> EXPENDITURE ($0's, real June 2020) | AB71: =CONCATENATE("EXPENDITURE ($0's, real ", dms_DollarReal,")") -> EXPENDITURE ($0's, real June 2020) | AE71: =CONCATENATE("EXPENDITURE ($0's, real ", dms_DollarReal,")") -> EXPENDITURE ($0's, real June 2020)
B72: ABM-ABY | D72: C0583355 | E72: New line on new route - single circuit | F72: Demand growth | G72: Other | H72: 16 | I72: 0 | J72: 0 | K72: 0 | L72: 230 | M72: 0 | N72: 56502190.5 | O72: 16 | P72: 0 | Q72: 18834063.5 | R72: 0 | S72: 0 | T72: 467927.0435 | U72: 86975939.21 | V72: 15076 | W72: 331877255.6 | X72: 350945.2826 | Y72: 899589.7411 | Z72: =SUM(N72,Q72,T72,U72,W72,X72,Y72) -> 495907910.9 | AA72: 2006, 2007,2008, 2009, 2010, 2011, 2012, 2013, 2014, 2015, 2016, 2017, 2018 | AB72: 0 | AC72: 0 | AD72: 2402805.368 | AE72: 0 | AF72: 0
B73: F334, F335 | D73: C0076665 | E73: New line on new route - dual circuit | F73: Demand growth | G73: Other | H73: 8 | I73: 0 | J73: 0 | K73: 0 | L73: 0 | M73: 0 | N73: 236358.3069 | O73: 15.4 | P73: 0 | Q73: 378218.8072 | R73: 0.6 | S73: 0 | T73: 468766.1529 | U73: 3340231.52 | V73: 21005 | W73: 1702053.001 | X73: 376179.4829 | Y73: 11047032.17 | Z73: 17548839.44 | AA73: 2006, 2007,2008, 2009, 2010, 2011, 2012, 2013, 2014, 2015, 2016 | AB73: 0 | AC73: 0 | AD73: 8298866.323 | AE73: 0 | AF73: 0
B74: F845, F846 | D74: C0077634 | E74: New line on new route - dual circuit | F74: Demand growth | G74: 132 | H74: 17 | I74: 0 | J74: 0 | K74: 0 | L74: 0 | M74: 0 | N74: 7013454.397 | O74: 34 | P74: 0 | Q74: 0 | R74: 0 | S74: 0 | T74: 0 | U74: 8984466.112 | V74: 16510 | W74: 3693567.831 | X74: 6402751.107 | Y74: 36825646.34 | Z74: 62919885.79 | AA74: 2006, 2007,2008, 2009, 2010, 2011, 2012, 2013, 2014, 2015, 2016, 2017, 2018,2019 | AB74: 0 | AC74: 0 | AD74: 20513854.75 | AE74: 0 | AF74: 0
B75: F7354 | D75: C0100550 | E75: New line on new route - single circuit | F75: Demand growth | G75: Other | H75: 23 | I75: 0 | J75: 0 | K75: 0 | L75: 0 | M75: 0 | N75: 0 | O75: 11.1 | P75: 3.1 | Q75: 318287.6866 | R75: 8.8 | S75: 0 | T75: 5270797.42 | U75: 3881350.197 | V75: 24563 | W75: 2282951.314 | X75: 817074.553 | Y75: 27185776.23 | Z75: 39756237.4 | AA75: 2008, 2009, 2010, 2011, 2012, 2013, 2014, 2015, 2016, 2017, 2018 | AB75: 0 | AC75: 0 | AD75: 20808619.78 | AE75: 0 | AF75: 0
B76: DBS-QPT | D76: C0548905 | E76: New line on new route - single circuit | F76: Demand growth | G76: Other | H76: 3.6 | I76: 0 | J76: 0 | K76: 0 | L76: 0 | M76: 0 | N76: 0 | O76: 0 | P76: 0 | Q76: 56852.11151 | R76: 3.6 | S76: 0 | T76: 0 | U76: 1590118.751 | V76: 2262 | W76: 3637374.889 | X76: 13342.8425 | Y76: 502967.1497 | Z76: 5800655.744 | AA76: 2022, 2023, 2024,2025 | AB76: 0 | AC76: 0 | AD76: 3592125.249 | AE76: 0 | AF76: 0
B77: Bells Creek | D77: C0562034 | E77: New line on new route - dual circuit | F77: Demand growth | G77: 132 | H77: 12 | I77: 0 | J77: 0 | K77: 0 | L77: 0 | M77: 0 | N77: 1564061.344 | O77: 24 | P77: 0 | Q77: 348545.5055 | R77: 0 | S77: 0 | T77: 0 | U77: 8417813.301 | V77: 22997 | W77: 15084112.21 | X77: 1543558.667 | Y77: 2322660.386 | Z77: 29280751.42 | AA77: 2021, 2022,2023,2024,2025 | AB77: 0 | AC77: 0 | AD77: 18136082.1 | AE77: 0 | AF77: 0
Z78: 0
Z79: 0
Z80: 0
Z81: 0
Z82: 0
Z83: 0
Z84: 0
Z85: 0
Z86: 0
Z87: 0
Z88: 0
Z89: 0
Z90: 0
Z91: 0
Z92: 0
Z93: 0
Z94: 0
Z95: 0
Z96: 0
Z97: 0
Z98: 0
Z99: 0
Z100: 0
Z101: 0
Z102: 0
Z103: 0
Z104: =SUM(N104,Q104,T104,U104,W104,X104,Y104) -> 0
Z105: 0
Z106: 0
Z107: 0
Z108: 0
Z109: 0
Z110: 0
Z111: 0
Z112: 0
Z113: 0
Z114: 0
Z115: 0
Z116: 0
Z117: 0
Z118: 0
Z119: 0
Z120: 0
Z121: 0
Z122: 0
Z123: 0
Z124: 0
Z125: 0
D126: Non material projects - [forecast] | Z126: 203536589.3 | AA126: 2006, 2007,2008, 2009, 2010, 2011, 2012, 2013, 2014, 2015, 2016, 2017, 2018,2019, 2020, 2021, 2022, 2023, 2024, 2025 | AE126: 0 | AF126: 0

Sheet 2.3 Augex (b)
B1: =SheetHeader -> REGULATORY REPORTING STATEMENT
B2: =dms_TradingName -> Energex
B3: =dms_Reg_Year_Span -> 2020-21 to 2024-25
B4: 2.3 AUGEX PROJECT DATA
B6: There are FOUR tables on this worksheet. These tables have been 'grouped' (and sub-grouped) for easy navigation. See the Instructions sheet on how to group or ungroup tables.
B8: NOTE: DNSP must provide expenditure information on an 'as incurred' basis.
B9: 2.3.3 - AUGEX DATA - HV/LV FEEDERS AND DISTRIBUTION SUBSTATIONS
B10: PROJECT TYPE | C10: Units | D10: VOLUMES (0's)
D11: =CRCP_y4 -> 2018-19 | E11: =CRCP_y5 -> 2019-20 | F11: =FRCP_y1 -> 2020-21 | G11: =FRCP_y2 -> 2021-22 | H11: =FRCP_y3 -> 2022-23 | I11: =FRCP_y4 -> 2023-24 | J11: =FRCP_y5 -> 2024-25
B12: DESCRIPTOR METRICS - UNITS ADDED
B13: HV Feeder Augmentations - Overhead Lines | C13: Circuit Line Length in KM | D13: 8.485 | E13: 8.485 | F13: 17.5 | G13: 20 | H13: 20 | I13: 20 | J13: 20
B14: HV Feeder Augmentations - Underground Cables | C14: Circuit Line Length in KM | D14: 14.595 | E14: 14.595 | F14: 19.8 | G14: 16 | H14: 16 | I14: 16 | J14: 16
B15: LV Feeder Augmentations - Overhead Lines | C15: Circuit Line Length in KM | D15: 0 | E15: 0 | F15: 0 | G15: 0 | H15: 0 | I15: 0 | J15: 0
B16: LV Feeder Augmentations - Underground Cables | C16: Circuit Line Length in KM | D16: 0 | E16: 0 | F16: 0 | G16: 0 | H16: 0 | I16: 0 | J16: 0
B17: Distribution Substation Augmentations - Pole Mounted | C17: Number | D17: 70 | E17: 70 | F17: 70 | G17: 70 | H17: 70 | I17: 70 | J17: 70
B18: Distribution Substation Augmentations - Ground Mounted | C18: Number | D18: 13 | E18: 13 | F18: 13 | G18: 13 | H18: 13 | I18: 13 | J18: 13
B19: Distribution Substation Augmentations - Indoor | C19: Number | D19: 0 | E19: 0 | F19: 0 | G19: 0 | H19: 0 | I19: 0 | J19: 0
B20: DESCRIPTOR METRICS - UNITS UPGRADED
B21: HV Feeder Augmentations - Overhead Lines | C21: Circuit Line Length in KM | D21: 88.95 | E21: 86.95 | F21: 81 | G21: 79 | H21: 79 | I21: 79 | J21: 79
B22: HV Feeder Augmentations - Underground Cables | C22: Circuit Line Length in KM | D22: 0 | E22: 0 | F22: 0 | G22: 0 | H22: 0 | I22: 0 | J22: 0
B23: LV Feeder Augmentations - Overhead Lines | C23: Circuit Line Length in KM | D23: 33 | E23: 19 | F23: 17 | G23: 17 | H23: 17 | I23: 17 | J23: 17
B24: LV Feeder Augmentations - Underground Cables | C24: Circuit Line Length in KM | D24: 0 | E24: 0 | F24: 0 | G24: 0 | H24: 0 | I24: 0 | J24: 0
B25: Distribution Substation Augmentations - Pole Mounted | C25: Number | D25: 135 | E25: 135 | F25: 110 | G25: 110 | H25: 110 | I25: 110 | J25: 110
B26: Distribution Substation Augmentations - Ground Mounted | C26: Number | D26: 12 | E26: 12 | F26: 12 | G26: 12 | H26: 12 | I26: 12 | J26: 12
B27: Distribution Substation Augmentations - Indoor | C27: Number | D27: 0 | E27: 0 | F27: 0 | G27: 0 | H27: 0 | I27: 0 | J27: 0
B29: COST METRICS
B30: PROJECT TYPE | D30: =CONCATENATE("TOTAL DIRECT EXPENDITURE ($0's, real ", dms_DollarReal,")") -> TOTAL DIRECT EXPENDITURE ($0's, real June 2020)
D31: =CRCP_y4 -> 2018-19 | E31: =CRCP_y5 -> 2019-20 | F31: =FRCP_y1 -> 2020-21 | G31: =FRCP_y2 -> 2021-22 | H31: =FRCP_y3 -> 2022-23 | I31: =FRCP_y4 -> 2023-24 | J31: =FRCP_y5 -> 2024-25
B32: HV Feeder Augmentations - Overhead Lines | D32: 12114008.87 | E32: 4509104.861 | F32: 5381145.848 | G32: 6446102.357 | H32: 6225984.14 | I32: 6205076.648 | J32: 6275986.205
B33: HV Feeder Augmentations - Underground Cables | D33: 1753610.089 | E33: 3537073.578 | F33: 1707612.144 | G33: 3446647.91 | H33: 2790516.394 | I33: 2669655.019 | J33: 2716360.077
B34: HV Feeder Non-Material Projects | D34: 11937855.73 | E34: 4628418.203 | F34: 3999484.107 | G34: 5905638 | H34: 5307444.53 | I34: 5208269.291 | J34: 5285588.048
B35: LV Feeder Augmentations - Overhead Lines | D35: 17043092.81 | E35: 6007329.253 | F35: 2453621.514 | G35: 2455295.234 | H35: 2462292.369 | I35: 2470585.526 | J35: 2478538.641
B36: LV Feeder Augmentations - Underground Cables | D36: 0 | E36: 0 | F36: 0 | G36: 0 | H36: 0 | I36: 0 | J36: 0
B37: LV Feeder Non-Material Projects | D37: 7125032.664 | E37: 3875409.959 | F37: 3800634.244 | G37: 3803230.999 | H37: 3814082.105 | I37: 3826918.362 | J37: 3839230.37
B38: Distribution Substation Augmentations - Pole Mounted | D38: 3663269.762 | E38: 3419191.806 | F38: 3448771.012 | G38: 4321154.978 | H38: 4333456.381 | I38: 4348093.201 | J38: 4362068.316
B39: Distribution Substation Augmentations - Ground Mounted | D39: 1032901.457 | E39: 1132178.846 | F39: 1034730.622 | G39: 1035473.891 | H39: 1038436.313 | I39: 1041911.877 | J39: 1045249.26
B40: Distribution Substation Augmentations - Indoor | D40: 0 | E40: 0 | F40: 0 | G40: 0 | H40: 0 | I40: 0 | J40: 0
B45: 2.3.4 - AUGEX - TOTAL EXPENDITURE
D46: =CONCATENATE("TOTAL DIRECT EXPENDITURE ($0's, real ", dms_DollarReal,")") -> TOTAL DIRECT EXPENDITURE ($0's, real June 2020)
D47: =CRCP_y4 -> 2018-19 | E47: =CRCP_y5 -> 2019-20 | F47: =FRCP_y1 -> 2020-21 | G47: =FRCP_y2 -> 2021-22 | H47: =FRCP_y3 -> 2022-23 | I47: =FRCP_y4 -> 2023-24 | J47: =FRCP_y5 -> 2024-25
B48: Subtransmission Substations, Switching Stations, Zone Substations | D48: 1711698.861 | E48: 11832057.44 | F48: 4062129.006 | G48: 4204114.205 | H48: 2480414.54 | I48: 4776286.835 | J48: 11432750.41
B49: Subtransmission Lines | D49: 18382755.22 | E49: 16157209.14 | F49: 5933210.05 | G49: 4660768.754 | H49: 12440953.54 | I49: 7543527.846 | J49: 9313509.599
B50: HV Feeders | D50: 25805474.69 | E50: 12674596.64 | F50: 11088242.1 | G50: 15798388.27 | H50: 14323945.06 | I50: 14083000.96 | J50: 14277934.33
B51: HV Feeders - Land Purchases and Easements | D51: 0 | E51: 0 | F51: 0 | G51: 0 | H51: 0 | I51: 0 | J51: 0
B52: Distribution Substations | D52: 4696171.219 | E52: 4551370.653 | F52: 4483501.635 | G52: 5356628.869 | H52: 5371892.694 | I52: 5390005.078 | J52: 5407317.576
B53: Distribution Substations - Land Purchases and Easements | D53: 0 | E53: 0 | F53: 0 | G53: 0 | H53: 0 | I53: 0 | J53: 0
B54: LV Feeders | D54: 24168125.47 | E54: 9882739.212 | F54: 6254255.758 | G54: 6258526.233 | H54: 6276374.473 | I54: 6297503.889 | J54: 6317769.011
B55: LV Feeders - Land Purchases and Easements | D55: 0 | E55: 0 | F55: 0 | G55: 0 | H55: 0 | I55: 0 | J55: 0
B56: Other Assets | D56: 21108832.5 | E56: 16313477.15 | F56: 22955404.87 | G56: 25720290.45 | H56: 20227980.4 | I56: 21748148.35 | J56: 16585542.19
B60: 2.3.5 - AUGEX - BY DRIVER
D61: =CONCATENATE("TOTAL DIRECT EXPENDITURE ($0's, real ", dms_DollarReal,")") -> TOTAL DIRECT EXPENDITURE ($0's, real June 2020)
D62: =CRCP_y4 -> 2018-19 | E62: =CRCP_y5 -> 2019-20 | F62: =FRCP_y1 -> 2020-21 | G62: =FRCP_y2 -> 2021-22 | H62: =FRCP_y3 -> 2022-23 | I62: =FRCP_y4 -> 2023-24 | J62: =FRCP_y5 -> 2024-25
B63: "Greenfield" driven augex (network expansion capex) | D63: 4550974.706 | E63: 3555946.848 | F63: 7631534.858 | G63: 6545277.43 | H63: 16817934.31 | I63: 14525186.44 | J63: 21181140.74
B64: Reinforcement driven augex (augmentation of the existing network) | D64: 91322083.26 | E64: 67855503.39 | F64: 47145208.57 | G64: 55453439.34 | H64: 44303626.4 | I64: 45313286.51 | J64: 42153682.38
B68: 2.3.6 - AUGEX - GREENFIELDS DRIVEN
D69: =CONCATENATE("TOTAL DIRECT EXPENDITURE ($0's, real ", dms_DollarReal,")") -> TOTAL DIRECT EXPENDITURE ($0's, real June 2020)
D70: =CRCP_y4 -> 2018-19 | E70: =CRCP_y5 -> 2019-20 | F70: =FRCP_y1 -> 2020-21 | G70: =FRCP_y2 -> 2021-22 | H70: =FRCP_y3 -> 2022-23 | I70: =FRCP_y4 -> 2023-24 | J70: =FRCP_y5 -> 2024-25
B71: Subtransmission Substations, Switching Stations, Zone Substations | D71: 153387.3675 | E71: 2286379.726 | F71: 2116225.501 | G71: 242088.0588 | H71: 5566638.812 | I71: 5395641.416 | J71: 9742638.322
B72: Subtransmission Lines | D72: 0 | E72: 0 | F72: 53742.20779 | G72: 238404.4383 | H72: 5549086.466 | I72: 3582594.428 | J72: 5733809.719
B73: HV Feeders | D73: 2580547.469 | E73: 1267459.664 | F73: 2772060.525 | G73: 3949597.067 | H73: 3580986.266 | I73: 3520750.24 | J73: 3569483.583
B74: HV Feeders - Land Purchases and Easements | D74: 0 | E74: 0 | F74: 0 | G74: 0 | H74: 0 | I74: 0 | J74: 0
B75: Distribution Substations | D75: 0 | E75: 0 | F75: 0 | G75: 0 | H75: 0 | I75: 0 | J75: 0
B76: Distribution Substations - Land Purchases and Easements | D76: 0 | E76: 0 | F76: 0 | G76: 0 | H76: 0 | I76: 0 | J76: 0
B77: LV Feeders | D77: 0 | E77: 0 | F77: 0 | G77: 0 | H77: 0 | I77: 0 | J77: 0
B78: LV Feeders - Land Purchases and Easements | D78: 0 | E78: 0 | F78: 0 | G78: 0 | H78: 0 | I78: 0 | J78: 0
B79: Other Assets | D79: 1817039.87 | E79: 2107.457841 | F79: 2689506.624 | G79: 2115187.867 | H79: 2121222.769 | I79: 2026200.361 | J79: 2135209.115

Sheet 2.4 Augex model
B1: =SheetHeader -> REGULATORY REPORTING STATEMENT
B2: =dms_TradingName -> Energex
B3: =dms_Reg_Year_Span -> 2020-21 to 2024-25
B4: 2.4 AUGEX MODEL
B6: There are SIX tables on this worksheet. These tables have been 'grouped' (and sub-grouped) for easy navigation. See the Instructions sheet on how to group or ungroup tables.
B8: 2.4.1 - AUGEX MODEL INPUTS - ASSET STATUS - SUBTRANSMISSION LINES
B9: Line ID | C9: Primary type of area supplied by line | D9: Line voltage | E9: Originating substation | F9: Terminating substation | G9: =CRCP_y4 -> 2018-19 | L9: =PRCP_y5 -> 2014-15 | Q9: =CONCATENATE("Average per annum growth rate in annual line maximum demand (50% PoE) from ", CRCP_y4, " to ", dms_CRCP_FinalYear_Result) -> Average per annum growth rate in annual line maximum demand (50% PoE) from 2018-19 to 2019-20 | R9: Network Segment ID
G10: =CONCATENATE(IF(dms_RPT="Financial","Route line length as at 30 June ","Route line length as at 31 December ")) -> Route line length as at 30 June | H10: Maximum demand (weather corrected at 50% PoE) | J10: Line rating | L10: =CONCATENATE(IF(dms_RPT="Financial","Route line length as at 30 June ","Route line length as at 31 December ")) -> Route line length as at 30 June | M10: Maximum demand (weather corrected at 50% PoE) | O10: Line rating
J11: Thermal | K11: N-1 emergency | O11: Thermal | P11: N-1 emergency
C12: CBD, urban, long rural, or short rural | D12: kV | E12: name | F12: name | G12: km | H12: MVA | I12: MW | J12: MVA | K12: MVA | L12: km | M12: MVA | N12: MW | O12: MVA | P12: MVA | Q12: %
B1275: 2.4.2 - AUGEX MODEL INPUTS - ASSET STATUS - HIGH VOLTAGE FEEDERS
B1276: High voltage feeder ID | C1276: High voltage feeder type | D1276: Voltage level | E1276: Originating substation | G1276: =CRCP_y4 -> 2018-19 | L1276: =PRCP_y5 -> 2014-15 | Q1276: =CONCATENATE("Average per annum growth rate in annual high voltage feeder maximum demand (50% PoE) from ", CRCP_y4, " to ",dms_CRCP_FinalYear_Result) -> Average per annum growth rate in annual high voltage feeder maximum demand (50% PoE) from 2018-19 to 2019-20 | R1276: Network segment ID
G1277: =CONCATENATE(IF(dms_RPT="Financial","Route line length as at 30 June ","Route line length as at 31 December ")) -> Route line length as at 30 June | H1277: Maximum demand (weather corrected at 50% PoE) | J1277: Rating | L1277: =CONCATENATE(IF(dms_RPT="Financial","Route line length as at 30 June ","Route line length as at 31 December ")) -> Route line length as at 30 June | M1277: Maximum demand (weather corrected at 50% PoE) | O1277: Rating
J1278: Thermal | K1278: Operational | O1278: Thermal | P1278: Operational
C1279: CBD, urban, short rural, or long rural | D1279: kV | E1279: name | G1279: km | H1279: MVA | I1279: MW | J1279: MVA | K1279: MVA | L1279: km | M1279: MVA | N1279: MW | O1279: MVA | P1279: MVA | Q1279: %
B6717: 2.4.3 - AUGEX MODEL INPUTS - ASSET STATUS - SUBTRANSMISSION SUBSTATIONS, SUBTRANSMISSION SWITCHING STATIONS AND ZONE SUBSTATIONS
B6718: Substation ID | C6718: Subtransmission substation, subtransmission switching station, or zone substation | D6718: Primary type of area supplied by substation | E6718: Substation voltage | G6718: =CRCP_y4 -> 2018-19 | O6718: =PRCP_y5 -> 2014-15 | W6718: =CONCATENATE("Average per annum growth rate in annual substation maximum demand (50% PoE) from ", CRCP_y4, " to ", dms_CRCP_FinalYear_Result) -> Average per annum growth rate in annual substation maximum demand (50% PoE) from 2018-19 to 2019-20 | X6718: Network segment ID
G6719: =CONCATENATE(IF(dms_RPT="Financial","Number of transformers as at 30 June ","Number of transformers as at 31 December ")) -> Number of transformers as at 30 June | H6719: Maximum demand (weather corrected at 50% PoE) | J6719: =CONCATENATE(IF(dms_RPT="Financial","Substation rating as at 30 June ","Substation rating as at 31 December ")) -> Substation rating as at 30 June | O6719: =CONCATENATE(IF(dms_RPT="Financial","Number of transformers as at 30 June ","Number of transformers as at 31 December ")) -> Number of transformers as at 30 June | P6719: Maximum demand (weather corrected at 50% PoE) | R6719: =CONCATENATE(IF(dms_RPT="Financial","Substation rating as at 30 June ","Substation rating as at 31 December ")) -> Substation rating as at 30 June
E6720: Primary | F6720: Secondary | J6720: tx name plate total (ONAN) | K6720: tx name plate total (in service) | L6720: tx normal cyclic total | M6720: Substation normal cyclic | N6720: N-1 emergency | R6720: tx name plate (ONAN) | S6720: tx name plate (in service) | T6720: tx normal cyclic total | U6720: Substation normal cyclic | V6720: N-1 emergency
C6721: STS, SSW or ZSS | D6721: CBD, Urban, Short rural, Long rural | E6721: kV | F6721: kV | H6721: MVA | I6721: MW | J6721: MVA | K6721: MVA | L6721: MVA | M6721: MVA | N6721: MVA | P6721: MVA | Q6721: MW | R6721: MVA | S6721: MVA | T6721: MVA | U6721: MVA | V6721: MVA | W6721: %
B7664: 2.4.4 - AUGEX MODEL INPUTS - ASSET STATUS - DISTRIBUTION SUBSTATIONS
B7665: Distribution substation category ID | C7665: Description of distribution substation category | D7665: =CRCP_y4 -> 2018-19 | P7665: =PRCP_y5 -> 2014-15 | AB7665: =CONCATENATE("Average per annum growth rate in annual substation maximum demand (50% PoE) from ", CRCP_y4, " to ", dms_CRCP_FinalYear_Result) -> Average per annum growth rate in annual substation maximum demand (50% PoE) from 2018-19 to 2019-20 | AC7665: Network segment ID
D7666: Aggregate of the normal cyclic ratings of all individual distribution substations in the distribution substation category that were within the following utilisation bands: | O7666: Aggregate of the normal cyclic ratings of all individual distribution substations in the distribution substation category | P7666: Aggregate of the normal cyclic ratings of all individual distribution substations in the distribution substation category that were within the following utilisation bands: | AA7666: Aggregate of the normal cyclic ratings of all individual distribution substations in the distribution substation category
D7667: 0-20 % | E7667: 20-40 % | F7667: 40-60 % | G7667: 60-80 % | H7667: 80-100 % | I7667: 100-120 % | J7667: 120-140 % | K7667: 140-160 % | L7667: 160-180 % | M7667: 180-200 % | N7667: >200% | P7667: 0-20 % | Q7667: 20-40 % | R7667: 40-60 % | S7667: 60-80 % | T7667: 80-100 % | U7667: 100-120 % | V7667: 120-140 % | W7667: 140-160 % | X7667: 160-180 % | Y7667: 180-200 % | Z7667: >200%
D7668: % | E7668: % | F7668: % | G7668: % | H7668: % | I7668: % | J7668: % | K7668: % | L7668: % | M7668: % | N7668: % | O7668: MVA | P7668: % | Q7668: % | R7668: % | S7668: % | T7668: % | U7668: % | V7668: % | W7668: % | X7668: % | Y7668: % | Z7668: % | AA7668: MVA | AB7668: %
E7726: ED_AUG245_00001 | F7726: ED_AUG245_00002 | G7726: ED_AUG245_00003 | H7726: ED_AUG245_00004 | I7726: ED_AUG245_00005 | J7726: ED_AUG245_00006 | K7726: ED_AUG245_00007 | L7726: ED_AUG245_00008
B7727: 2.4.5 - AUGEX MODEL INPUTS - NETWORK SEGMENT DATA
E7728: HISTORICAL | I7728: FORECAST
B7729: Network segment ID | C7729: Network segment title | D7729: AER segment group | E7729: Average unit cost of augmentation for the network segment for the period | F7729: Capacity factor for the period | G7729: Mean value of the utilisation threshold for the period | H7729: Standard deviation of the utilisation threshold for the period | I7729: Average unit cost of augmentation for the network segment for the period | J7729: Capacity factor for the period | K7729: Mean value of the utilisation threshold for the period | L7729: Standard deviation of the utilisation threshold for the period
E7730: =CONCATENATE(PRCP_y5," to ",CRCP_y3) -> 2014-15 to 2017-18 | I7730: =CONCATENATE(CRCP_y4," to ",FRCP_y5) -> 2018-19 to 2024-25
D7731: ID | E7731: =CONCATENATE("$0's, real ", dms_DollarReal, " per MVA") -> $0's, real June 2020 per MVA | G7731: % | H7731: % | I7731: =CONCATENATE("$0's, real ", dms_DollarReal, " per MVA") -> $0's, real June 2020 per MVA | K7731: % | L7731: %
B7732: 1
B7733: 2
B7734: 3
B7735: 4
B7736: 5
B7737: 6
B7738: 7
B7739: 8
B7740: 9
B7741: 10
B7742: 11
B7743: 12
B7744: 13
B7745: 14
B7746: 15
B7747: 16
B7748: 17
B7749: 18
B7750: 19
B7751: 20
B7752: 21
B7753: 22
B7754: 23
B7755: 24
B7756: 25
B7757: 26
B7758: 27
B7759: 28
B7760: 29
B7761: 30
B7762: 31
B7763: 32
B7764: 33
B7765: 34
B7766: 35
B7767: 36
B7768: 37
B7769: 38
B7770: 39
B7771: 40
B7772: 41
B7773: 42
B7774: 43
B7775: 44
B7776: 45
B7777: 46
B7778: 47
B7779: 48
B7780: 49
B7781: 50
B7782: 51
B7783: 52
B7784: 53
B7785: 54
B7786: 55
B7787: 56
B7788: 57
B7789: 58
B7790: 59
B7791: 60
B7792: 61
B7793: 62
B7794: 63
B7795: 64
B7796: 65
B7797: 66
B7798: 67
B7799: 68
B7800: 69
B7801: 70
B7802: 71
B7803: 72
B7804: 73
B7805: 74
B7806: 75
B7807: 76
B7808: 77
B7809: 78
B7810: 79
B7811: 80
B7812: 81
B7813: 82
B7814: 83
B7815: 84
B7816: 85
B7817: 86
B7818: 87
B7819: 88
B7820: 89
B7821: 90
B7822: 91
B7823: 92
B7824: 93
B7825: 94
B7826: 95
B7827: 96
B7828: 97
B7829: 98
B7830: 99
B7831: 100
B7836: 2.4.6 - CAPEX AND NET CAPACITY ADDED BY SEGMENT GROUP
B7837: AER DNSP segment group | C7837: =CONCATENATE("CAPEX ($0's, real ", dms_DollarReal, ")") -> CAPEX ($0's, real June 2020) | K7837: =CONCATENATE("CAPEX ($0's, real ", dms_DollarReal, ")") -> CAPEX ($0's, real June 2020) | S7837: =CONCATENATE("CAPEX ($0's, real ", dms_DollarReal, ")") -> CAPEX ($0's, real June 2020) | AA7837: Net capacity added (MVA) | AG7837: Net capacity added (MVA) | AM7837: Net capacity added (MVA) | AS7837: Net capacity added (MVA)
C7838: In total for all purposes | K7838: For customer-initiated & capacity-related augmentation | S7838: For NSP-initiated & capacity-related augmentation | AA7838: In total for all purposes | AG7838: For customer-initiated & capacity-related augmentation | AM7838: For NSP-initiated & capacity-related augmentation | AS7838: Residual
AA7839: =CONCATENATE("over period ", CRCP_y4, " to ", CRCP_y5) -> over period 2018-19 to 2019-20 | AD7839: =CONCATENATE("over period ", FRCP_y1, " to ", dms_MultiYear_FinalYear_Result) -> over period 2020-21 to 2024-25 | AG7839: =CONCATENATE("over period ", CRCP_y4, " to ", CRCP_y5) -> over period 2018-19 to 2019-20 | AJ7839: =CONCATENATE("over period ", FRCP_y1, " to ", dms_MultiYear_FinalYear_Result) -> over period 2020-21 to 2024-25 | AM7839: =CONCATENATE("over period ", CRCP_y4, " to ", CRCP_y5) -> over period 2018-19 to 2019-20 | AP7839: =CONCATENATE("over period ", FRCP_y1, " to ", dms_MultiYear_FinalYear_Result) -> over period 2020-21 to 2024-25 | AS7839: =CONCATENATE("over period ", CRCP_y4, " to ", CRCP_y5) -> over period 2018-19 to 2019-20 | AV7839: =CONCATENATE("over period ", FRCP_y1, " to ", dms_MultiYear_FinalYear_Result) -> over period 2020-21 to 2024-25
C7840: Historical | D7840: Forecast | K7840: Historical | L7840: Forecast | S7840: Historical | T7840: Forecast | AA7840: Forecast | AD7840: Forecast | AG7840: Forecast | AJ7840: Forecast | AM7840: Forecast | AP7840: Forecast | AS7840: Forecast | AV7840: Forecast
C7841: =CONCATENATE(PRCP_y5, " to ", CRCP_y3) -> 2014-15 to 2017-18 | D7841: =CRCP_y4 -> 2018-19 | E7841: =CRCP_y5 -> 2019-20 | F7841: =FRCP_y1 -> 2020-21 | G7841: =FRCP_y2 -> 2021-22 | H7841: =FRCP_y3 -> 2022-23 | I7841: =FRCP_y4 -> 2023-24 | J7841: =FRCP_y5 -> 2024-25 | K7841: =CONCATENATE(PRCP_y5, " to ", CRCP_y3) -> 2014-15 to 2017-18 | L7841: =CRCP_y4 -> 2018-19 | M7841: =CRCP_y5 -> 2019-20 | N7841: =FRCP_y1 -> 2020-21 | O7841: =FRCP_y2 -> 2021-22 | P7841: =FRCP_y3 -> 2022-23 | Q7841: =FRCP_y4 -> 2023-24 | R7841: =FRCP_y5 -> 2024-25 | S7841: =CONCATENATE(PRCP_y5, " to ", CRCP_y3) -> 2014-15 to 2017-18 | T7841: =CRCP_y4 -> 2018-19 | U7841: =CRCP_y5 -> 2019-20 | V7841: =FRCP_y1 -> 2020-21 | W7841: =FRCP_y2 -> 2021-22 | X7841: =FRCP_y3 -> 2022-23 | Y7841: =FRCP_y4 -> 2023-24 | Z7841: =FRCP_y5 -> 2024-25 | AA7841: type 1 | AB7841: type 2 | AC7841: type 3 | AD7841: type 1 | AE7841: type 2 | AF7841: type 3 | AG7841: type 1 | AH7841: type 2 | AI7841: type 3 | AJ7841: type 1 | AK7841: type 2 | AL7841: type 3 | AM7841: type 1 | AN7841: type 2 | AO7841: type 3 | AP7841: type 1 | AQ7841: type 2 | AR7841: type 3 | AS7841: type 1 | AT7841: type 2 | AU7841: type 3 | AV7841: type 1 | AW7841: type 2 | AX7841: type 3
B7842: Subtransmission lines | AS7842: =AA7842-AG7842-AM7842 -> 0 | AT7842: =AB7842-AH7842-AN7842 -> 0 | AV7842: =AD7842-AJ7842-AP7842 -> 0 | AW7842: =AE7842-AK7842-AQ7842 -> 0
B7843: Subtransmission substations and subtransmission switching stations | AS7843: =AA7843-AG7843-AM7843 -> 0 | AT7843: =AB7843-AH7843-AN7843 -> 0 | AU7843: =AC7843-AI7843-AO7843 -> 0 | AV7843: =AD7843-AJ7843-AP7843 -> 0 | AW7843: =AE7843-AK7843-AQ7843 -> 0 | AX7843: =AF7843-AL7843-AR7843 -> 0
B7844: Zone substations | AS7844: 0 | AT7844: =AB7844-AH7844-AN7844 -> 0 | AU7844: =AC7844-AI7844-AO7844 -> 0 | AV7844: 0 | AW7844: =AE7844-AK7844-AQ7844 -> 0 | AX7844: =AF7844-AL7844-AR7844 -> 0
B7845: High voltage feeders - CBD | AS7845: 0 | AV7845: 0
B7846: High voltage feeders - urban | AS7846: 0 | AV7846: 0
B7847: High voltage feeders - short rural | AS7847: 0 | AV7847: 0
B7848: High voltage feeders - long rural | AS7848: 0 | AV7848: 0
B7849: Distribution substations - CBD | AS7849: 0 | AV7849: 0
B7850: Distribution substations - urban | AS7850: 0 | AV7850: 0
B7851: Distribution substations - short rural | AS7851: 0 | AV7851: 0
B7852: Distribution substations - long rural | AS7852: 0 | AV7852: 0
B7854: Unmodelled augmentation
B7857: Unmodelled augmentation - see comments in guidance paper - this should cover capex allocated to the augmentation category that is not considered to be primarily related to peak demand and capacity needs.

Sheet 2.5 Connections
B1: =SheetHeader -> REGULATORY REPORTING STATEMENT
B2: =dms_TradingName -> Energex
B3: =dms_Reg_Year_Span -> 2020-21 to 2024-25
B4: 2.5 CONNECTIONS
B6: There are THREE tables on this worksheet - each has been 'grouped' (and sub-grouped) for easy navigation. See the Instructions sheet on how to group or ungroup tables.
B8: 2.5.1 - DESCRIPTOR METRICS
B9: VOLUMES AND EXPENDITURE - ALL
B10: CONNECTION SUBCATEGORY | C10: DESCRIPTOR METRIC | D10: Unit of Measure | E10: =CONCATENATE("VOLUMES and EXPENDITURE (0's, real ", dms_DollarReal, ")") -> VOLUMES and EXPENDITURE (0's, real June 2020)
E11: =CRCP_y4 -> 2018-19 | F11: =CRCP_y5 -> 2019-20 | G11: =FRCP_y1 -> 2020-21 | H11: =FRCP_y2 -> 2021-22 | I11: =FRCP_y3 -> 2022-23 | J11: =FRCP_y4 -> 2023-24 | K11: =FRCP_y5 -> 2024-25
B12: RESIDENTIAL | C12: Underground connections | D12: 0's | E12: 22153.09996 | F12: 22009.7097 | G12: 22149.89018 | H12: 22185.79175 | I12: 22232.7166 | J12: 22232.02505 | K12: 22307.83405
C13: Overhead connections | D13: 0's | E13: 13704.63264 | F13: 13615.92673 | G13: 13702.64696 | H13: 13724.85685 | I13: 13753.88609 | J13: 13753.45828 | K13: 13800.35621
C14: Distribution substations installed | D14: MVA added | E14: 12.51469434 | F14: 12.43369053 | G14: 12.51288107 | H14: 12.53316253 | I14: 12.55967124 | J14: 12.55928057 | K14: 12.60210648
C15: Distribution substations installed | D15: 0's | E15: 103.7608537 | F15: 103.0892413 | G15: 103.7458197 | H15: 103.9139758 | I15: 104.1337627 | J15: 104.1305236 | K15: 104.4855984
C16: Distribution substations installed | D16: total spend $0's | E16: 2823486.349 | F16: 2798264.725 | G16: 2776523.472 | H16: 2742584.359 | I16: 2887166.421 | J16: 3001304.089 | K16: 2971068.82
C17: Augmentation HV | D17: net circuit KM added | E17: 8.023331668 | F17: 7.971399087 | G17: 8.02216916 | H17: 8.035171865 | I17: 8.052166941 | J17: 8.051916477 | K17: 8.079372716
C18: Augmentation HV | D18: total spend $0's | E18: 604213.1504 | F18: 598815.8382 | G18: 594204.6188 | H18: 586929.8555 | I18: 617807.4924 | J18: 642162.8413 | K18: 635622.0272
C19: Augmentation LV | D19: net circuit KM added | E19: 73.46375809 | F19: 72.98824957 | G19: 73.45311385 | H19: 73.57217008 | I19: 73.72778151 | J19: 73.7254882 | K19: 73.97688482
C20: Augmentation LV | D20: total spend $0's | E20: 10391751.49 | F20: 10298924.11 | G20: 10217806.03 | H20: 10093212.39 | I20: 10627000.17 | J20: 11048933.44 | K20: 10939533.78
C21: Mean days to connect residential customer with LV single phase connection | D21: 0's | E21: 8 | F21: 8 | G21: 8 | H21: 8 | I21: 8 | J21: 8 | K21: 8
C22: Volume of GSL breaches for residential customers | D22: 0's | E22: 41 | F22: 41 | G22: 41 | H22: 41 | I22: 41 | J22: 41 | K22: 41
C23: Volume of customer complaints relating to connection services | D23: 0's | E23: 535 | F23: 535 | G23: 535 | H23: 535 | I23: 535 | J23: 535 | K23: 535
C24: GSL payments | D24: $0's | E24: 9839.720658 | F24: 9839.720658 | G24: 9839.720658 | H24: 9839.720658 | I24: 9839.720658 | J24: 9839.720658 | K24: 9839.720658
B25: COMMERCIAL/INDUSTRIAL | C25: Underground connections | D25: 0's | E25: 4943.515723 | F25: 4776.37475 | G25: 4776.37475 | H25: 4776.37475 | I25: 4776.37475 | J25: 4776.37475 | K25: 4776.37475
C26: Overhead connections | D26: 0's | E26: 3148.997904 | F26: 3042.529834 | G26: 3042.529834 | H26: 3042.529834 | I26: 3042.529834 | J26: 3042.529834 | K26: 3042.529834
C27: Distribution substations installed | D27: MVA added | E27: 220.3745828 | F27: 212.9236866 | G27: 212.9236866 | H27: 212.9236866 | I27: 212.9236866 | J27: 212.9236866 | K27: 212.9236866
C28: Distribution substations installed | D28: 0's | E28: 387.2473795 | F28: 374.1544902 | G28: 374.1544902 | H28: 374.1544902 | I28: 374.1544902 | J28: 374.1544902 | K28: 374.1544902
C29: Distribution substations installed | D29: total spend $0's | E29: 22759085.06 | F29: 22158589.34 | G29: 21811057.04 | H29: 21918758.58 | I29: 21621804.25 | J29: 21380017.41 | K29: 21568169.64
C30: Augmentation HV | D30: net circuit KM added | E30: 54.78150943 | F30: 52.92933876 | G30: 52.92933876 | H30: 52.92933876 | I30: 52.92933876 | J30: 52.92933876 | K30: 52.92933876
C31: Augmentation HV | D31: total spend $0's | E31: 17363907.1 | F31: 16905762.5 | G31: 16648677.98 | H31: 16728506.74 | I31: 16489827.31 | J31: 16291824.28 | K31: 16421757.69
C32: Augmentation LV | D32: net circuit KM added | E32: 49.67062196 | F32: 47.99125113 | G32: 47.99125113 | H32: 47.99125113 | I32: 47.99125113 | J32: 47.99125113 | K32: 47.99125113
C33: Augmentation LV | D33: total spend $0's | E33: 2682252.464 | F33: 2611481.556 | G33: 2569805.724 | H33: 2582707.214 | I33: 2548788.723 | J33: 2521497.749 | K33: 2544884.26
B34: SUBDIVISION | C34: Underground connections | D34: 0's | E34: 19512.75801 | F34: 19386.45788 | G34: 19509.93079 | H34: 19541.5534 | I34: 19582.88545 | J34: 19582.27632 | K34: 19649.04995
C35: Overhead connections | D35: 0's | E35: 211.2656696 | F35: 209.8982113 | G35: 211.2350591 | H35: 211.5774387 | I35: 212.0249431 | J35: 212.018348 | K35: 212.7413096
C36: Distribution substations installed | D36: MVA added | E36: 2.289677198 | F36: 2.274856815 | G36: 2.289345444 | H36: 2.293056122 | I36: 2.297906132 | J36: 2.297834655 | K36: 2.305670044
C37: Distribution substations installed | D37: 0's | E37: 4.099972944 | F37: 4.073435068 | G37: 4.099378894 | H37: 4.106023359 | I37: 4.114707949 | J37: 4.114579961 | K37: 4.128610271
C38: Distribution substations installed | D38: total spend $0's | E38: 1316318.607 | F38: 1316061.774 | G38: 1314043.93 | H38: 1314374.353 | I38: 1314292.148 | J38: 1315098.65 | K38: 1314284.142
C39: Augmentation HV | D39: net circuit KM added | E39: 6.509495504 | F39: 6.467361524 | G39: 6.508552337 | H39: 6.519101702 | I39: 6.53289016 | J39: 6.532686953 | K39: 6.554962769
C40: Augmentation HV | D40: total spend $0's | E40: 38693157.91 | F40: 38685608.3 | G40: 38624627.13 | H40: 38634821.98 | I40: 38634917.65 | J40: 38661432.49 | K40: 38640338.72
C41: Augmentation LV | D41: net circuit KM added | E41: 0.5550732601 | F41: 0.55148044 | G41: 0.5549928349 | H41: 0.5558923932 | I41: 0.5570681531 | J41: 0.5570508254 | K41: 0.5589503137
C42: Augmentation LV | D42: total spend $0's | E42: 250641.564 | F42: 250592.6601 | G42: 250169.8754 | H42: 250243.9462 | I42: 250286.42 | J42: 250504.9535 | K42: 250415.7771
C43: Cost per lot | D43: $0's | E43: 219.9050519 | F43: 218.4816735 | G43: 219.8731896 | H43: 220.2295704 | I43: 220.6953747 | J43: 220.68851 | K43: 221.441036
B44: EMBEDDED GENERATION | C44: Underground connections | D44: 0's | E44: 114.33 | F44: 120.67 | G44: 127 | H44: 133.33 | I44: 139.67 | J44: 146 | K44: 152.33
C45: Overhead connections | D45: 0's | E45: 45.33 | F45: 51.67 | G45: 58 | H45: 64.33 | I45: 70.67 | J45: 77 | K45: 83.33
C46: Distribution substations installed | D46: MVA added | E46: 0 | F46: 0 | G46: 0 | H46: 0 | I46: 0 | J46: 0 | K46: 0
C47: Distribution substations installed | D47: 0's | E47: 0 | F47: 0 | G47: 0 | H47: 0 | I47: 0 | J47: 0 | K47: 0
C48: Distribution substations installed | D48: total spend $0's | E48: 0 | F48: 0 | G48: 0 | H48: 0 | I48: 0 | J48: 0 | K48: 0
C49: Augmentation HV | D49: net circuit KM added | E49: 0 | F49: 0 | G49: 0 | H49: 0 | I49: 0 | J49: 0 | K49: 0
C50: Augmentation HV | D50: total spend $0's | E50: 0 | F50: 0 | G50: 0 | H50: 0 | I50: 0 | J50: 0 | K50: 0
C51: Augmentation LV | D51: net circuit KM added | E51: 0 | F51: 0 | G51: 0 | H51: 0 | I51: 0 | J51: 0 | K51: 0
C52: Augmentation LV | D52: total spend $0's | E52: 0 | F52: 0 | G52: 0 | H52: 0 | I52: 0 | J52: 0 | K52: 0
B54: VOLUMES AND EXPENDITURE - STANDARD CONTROL SERVICES
B55: CONNECTION SUBCATEGORY | C55: DESCRIPTOR METRIC | D55: Unit of Measure | E55: =CONCATENATE("VOLUMES and EXPENDITURE (0's, real ", dms_DollarReal, ")") -> VOLUMES and EXPENDITURE (0's, real June 2020)
E56: =CRCP_y4 -> 2018-19 | F56: =CRCP_y5 -> 2019-20 | G56: =FRCP_y1 -> 2020-21 | H56: =FRCP_y2 -> 2021-22 | I56: =FRCP_y3 -> 2022-23 | J56: =FRCP_y4 -> 2023-24 | K56: =FRCP_y5 -> 2024-25
B57: RESIDENTIAL | C57: Underground connections | D57: 0's | E57: 21522.97 | F57: 21383.65 | G57: 21519.85 | H57: 21554.73 | I57: 21600.32 | J57: 21599.65 | K57: 21673.3
C58: Overhead connections | D58: 0's | E58: 13346.36 | F58: 13259.97 | G58: 13344.42 | H58: 13366.05 | I58: 13394.32 | J58: 13393.91 | K58: 13439.58
C59: Distribution substations installed | D59: MVA added | E59: 9.79 | F59: 9.72 | G59: 9.79 | H59: 9.8 | I59: 9.82 | J59: 9.82 | K59: 9.86
C60: Distribution substations installed | D60: 0's | E60: 103.6 | F60: 102.93 | G60: 103.59 | H60: 103.76 | I60: 103.98 | J60: 103.97 | K60: 104.33
C61: Distribution substations installed | D61: total spend $0's | E61: 2298820.013 | F61: 2284504.429 | G61: 2295270.408 | H61: 2300220.319 | I61: 2311185.46 | J61: 2317865.834 | K61: 2332703.042
C62: Augmentation HV | D62: net circuit KM added | E62: 5.89 | F62: 5.85 | G62: 5.88 | H62: 5.89 | I62: 5.91 | J62: 5.91 | K62: 5.93
C63: Augmentation HV | D63: total spend $0's | E63: 468248.4317 | F63: 465332.4752 | G63: 467525.4049 | H63: 468533.6581 | I63: 470767.1595 | J63: 472127.8906 | K63: 475150.0933
C64: Augmentation LV | D64: net circuit KM added | E64: 77.8 | F64: 77.3 | G64: 77.79 | H64: 77.92 | I64: 78.08 | J64: 78.08 | K64: 78.35
C65: Augmentation LV | D65: total spend $0's | E65: 9091580.236 | F65: 9034963.655 | G65: 9077541.954 | H65: 9097118.281 | I65: 9140484.223 | J65: 9166904.364 | K65: 9225583.882
C66: Mean days to connect residential customer with LV single phase connection | D66: 0's | E66: 8 | F66: 8 | G66: 8 | H66: 8 | I66: 8 | J66: 8 | K66: 8
C67: Volume of GSL breaches for residential customers | D67: 0's | E67: 41 | F67: 41 | G67: 41 | H67: 41 | I67: 41 | J67: 41 | K67: 41
C68: Volume of customer complaints relating to connection services | D68: 0's | E68: 535 | F68: 535 | G68: 535 | H68: 535 | I68: 535 | J68: 535 | K68: 535
C69: GSL payments | D69: $0's | E69: 9839.720658 | F69: 9839.720658 | G69: 9839.720658 | H69: 9839.720658 | I69: 9839.720658 | J69: 9839.720658 | K69: 9839.720658
B70: COMMERCIAL/INDUSTRIAL | C70: Underground connections | D70: 0's | E70: 6120.14 | F70: 5913.22 | G70: 5913.22 | H70: 5913.22 | I70: 5913.22 | J70: 5913.22 | K70: 5913.22
C71: Overhead connections | D71: 0's | E71: 3388.5 | F71: 3273.94 | G71: 3273.94 | H71: 3273.94 | I71: 3273.94 | J71: 3273.94 | K71: 3273.94
C72: Distribution substations installed | D72: MVA added | E72: 197.95 | F72: 191.26 | G72: 191.26 | H72: 191.26 | I72: 191.26 | J72: 191.26 | K72: 191.26
C73: Distribution substations installed | D73: 0's | E73: 362.98 | F73: 350.71 | G73: 350.71 | H73: 350.71 | I73: 350.71 | J73: 350.71 | K73: 350.71
C74: Distribution substations installed | D74: total spend $0's | E74: 18040819.75 | F74: 17435161.24 | G74: 17406464.16 | H74: 17415774.08 | I74: 17461861.7 | J74: 17512879.12 | K74: 17565087.99
C75: Augmentation HV | D75: net circuit KM added | E75: 47.95 | F75: 46.33 | G75: 46.33 | H75: 46.33 | I75: 46.33 | J75: 46.33 | K75: 46.33
C76: Augmentation HV | D76: total spend $0's | E76: 8979232.968 | F76: 8677786.09 | G76: 8663503.047 | H76: 8668136.757 | I76: 8691075.376 | J76: 8716467.644 | K76: 8742452.917
C77: Augmentation LV | D77: net circuit KM added | E77: 50.27 | F77: 48.58 | G77: 48.58 | H77: 48.58 | I77: 48.58 | J77: 48.58 | K77: 48.58
C78: Augmentation LV | D78: total spend $0's | E78: 2552094.686 | F78: 2466416.877 | G78: 2462357.324 | H78: 2463674.325 | I78: 2470193.984 | J78: 2477411.022 | K78: 2484796.606
B79: SUBDIVISION | C79: Underground connections | D79: 0's | E79: 0 | F79: 0 | G79: 0 | H79: 0 | I79: 0 | J79: 0 | K79: 0
C80: Overhead connections | D80: 0's | E80: 0 | F80: 0 | G80: 0 | H80: 0 | I80: 0 | J80: 0 | K80: 0
C81: Distribution substations installed | D81: MVA added | E81: 0 | F81: 0 | G81: 0 | H81: 0 | I81: 0 | J81: 0 | K81: 0
C82: Distribution substations installed | D82: 0's | E82: 0 | F82: 0 | G82: 0 | H82: 0 | I82: 0 | J82: 0 | K82: 0
C83: Distribution substations installed | D83: total spend $0's | E83: 0 | F83: 0 | G83: 0 | H83: 0 | I83: 0 | J83: 0 | K83: 0
C84: Augmentation HV | D84: net circuit KM added | E84: 0 | F84: 0 | G84: 0 | H84: 0 | I84: 0 | J84: 0 | K84: 0
C85: Augmentation HV | D85: total spend $0's | E85: 955756.2799 | F85: 949804.4387 | G85: 954280.5066 | H85: 956338.4733 | I85: 960897.3397 | J85: 963674.7625 | K85: 969843.4719
C86: Augmentation LV | D86: net circuit KM added | E86: 0 | F86: 0 | G86: 0 | H86: 0 | I86: 0 | J86: 0 | K86: 0
C87: Augmentation LV | D87: total spend $0's | E87: 22114.93955 | F87: 21977.21889 | G87: 22080.78717 | H87: 22128.40843 | I87: 22233.89656 | J87: 22298.16461 | K87: 22440.9009
C88: Cost per lot | D88: $0's | E88: 0 | F88: 0 | G88: 0 | H88: 0 | I88: 0 | J88: 0 | K88: 0
B89: EMBEDDED GENERATION | C89: Underground connections | D89: 0's | E89: 0 | F89: 0 | G89: 0 | H89: 0 | I89: 0 | J89: 0 | K89: 0
C90: Overhead connections | D90: 0's | E90: 0 | F90: 0 | G90: 0 | H90: 0 | I90: 0 | J90: 0 | K90: 0
C91: Distribution substations installed | D91: MVA added | E91: 0 | F91: 0 | G91: 0 | H91: 0 | I91: 0 | J91: 0 | K91: 0
C92: Distribution substations installed | D92: 0's | E92: 0 | F92: 0 | G92: 0 | H92: 0 | I92: 0 | J92: 0 | K92: 0
C93: Distribution substations installed | D93: total spend $0's | E93: 0 | F93: 0 | G93: 0 | H93: 0 | I93: 0 | J93: 0 | K93: 0
C94: Augmentation HV | D94: net circuit KM added | E94: 0 | F94: 0 | G94: 0 | H94: 0 | I94: 0 | J94: 0 | K94: 0
C95: Augmentation HV | D95: total spend $0's | E95: 0 | F95: 0 | G95: 0 | H95: 0 | I95: 0 | J95: 0 | K95: 0
C96: Augmentation LV | D96: net circuit KM added | E96: 0 | F96: 0 | G96: 0 | H96: 0 | I96: 0 | J96: 0 | K96: 0
C97: Augmentation LV | D97: total spend $0's | E97: 0 | F97: 0 | G97: 0 | H97: 0 | I97: 0 | J97: 0 | K97: 0
B101: 2.5.2 - COST METRICS BY CONNECTION CLASSIFICATION
B102: EXPENDITURE - ALL
B103: CONNECTION SUBCATEGORY | C103: CONNECTION CLASSICIATION | E103: =CONCATENATE("EXPENDITURE ($'0s, real ", dms_DollarReal,")") -> EXPENDITURE ($'0s, real June 2020)
E104: =CRCP_y4 -> 2018-19 | F104: =CRCP_y5 -> 2019-20 | G104: =FRCP_y1 -> 2020-21 | H104: =FRCP_y2 -> 2021-22 | I104: =FRCP_y3 -> 2022-23 | J104: =FRCP_y4 -> 2023-24 | K104: =FRCP_y5 -> 2024-25
B105: RESIDENTIAL | C105: Simple connection LV | E105: 9356958.001 | F105: 9298688.812 | G105: 9342509.944 | H105: 9362657.701 | I105: 9407289.463 | J105: 9434480.792 | K105: 9494873.136
C106: Complex connection LV | E106: 4166927.497 | F106: 4103590.951 | G106: 3950915.059 | H106: 3764323.368 | I106: 4427529.264 | J106: 4959905.308 | K106: 4751429.561
C107: Complex connection HV | E107: 295565.4945 | F107: 293724.9083 | G107: 295109.1148 | H107: 295745.5397 | I107: 297155.3608 | J107: 298014.2713 | K107: 299921.9282
B108: COMMERCIAL/INDUSTRIAL | C108: Simple connection LV | E108: 851284.7751 | F108: 822705.8155 | G108: 821351.698 | H108: 821791.0012 | I108: 823965.719 | J108: 826373.0573 | K108: 828836.6159
C109: Complex connection HV (customer connected at LV, minor HV works) | E109: 28480346.25 | F109: 27527179.66 | G109: 25890527.64 | H109: 28440754.25 | I109: 27731355.89 | J109: 27045389.21 | K109: 27529580.31
C110: Complex connection HV (customer connected at LV, upstream asset works) | E110: 9765937.427 | F110: 7566567.196 | G110: 9043518.254 | H110: 7909257.267 | I110: 7665328.63 | J110: 5496921.421 | K110: 11351169.36
C111: Complex connection HV (customer connected at HV) | E111: 615040.2339 | F111: 423215.1766 | G111: 456858.6651 | H111: 2193872.207 | I111: 2559548.085 | J111: 1391844.468 | K111: 388965.5595
C112: Complex connection sub-transmission | E112: 3092635.943 | F112: 5336165.549 | G112: 4817284.493 | H112: 1864297.812 | I112: 1880221.971 | J112: 5432811.282 | K112: 436259.7426
B113: SUBDIVISION | C113: Complex connection LV | E113: 3411869.372 | F113: 4137797.493 | G113: 2759608.469 | H113: 749257.1559 | I113: 3988569.642 | J113: 2196023.765 | K113: 4570857.678
C114: Complex connection HV (no upstream asset works) | E114: 33459678.66 | F114: 33125873.23 | G114: 32953809.37 | H114: 37284299.94 | I114: 33711180.81 | J114: 33702563.37 | K114: 32773622.48
C115: Complex connection HV (with upstream asset works) | E115: 3388570.047 | F115: 2988592.021 | G115: 4475423.102 | H115: 2165883.179 | I115: 2499745.773 | J115: 4328448.951 | K115: 2860558.483
B116: EMBEDDED GENERATION | C116: Simple connection LV | E116: 0 | F116: 0 | G116: 0 | H116: 0 | I116: 0 | J116: 0 | K116: 0
C117: Complex connection HV (small capacity) | E117: 0 | F117: 0 | G117: 0 | H117: 0 | I117: 0 | J117: 0 | K117: 0
C118: Complex connection HV (large capacity) | E118: 0 | F118: 0 | G118: 0 | H118: 0 | I118: 0 | J118: 0 | K118: 0
B120: EXPENDITURE - STANDARD CONTROL SERVICES
E121: =CONCATENATE("EXPENDITURE ($'0s, real ", dms_DollarReal,")") -> EXPENDITURE ($'0s, real June 2020)
E122: =CRCP_y4 -> 2018-19 | F122: =CRCP_y5 -> 2019-20 | G122: =FRCP_y1 -> 2020-21 | H122: =FRCP_y2 -> 2021-22 | I122: =FRCP_y3 -> 2022-23 | J122: =FRCP_y4 -> 2023-24 | K122: =FRCP_y5 -> 2024-25
B123: RESIDENTIAL | C123: Simple connection LV | E123: 9356958.001 | F123: 9298688.812 | G123: 9342509.944 | H123: 9362657.701 | I123: 9407289.463 | J123: 9434480.792 | K123: 9494873.136
C124: Complex connection LV | E124: 2206125.185 | F124: 2192386.839 | G124: 2202718.708 | H124: 2207469.017 | I124: 2217992.018 | J124: 2224403.024 | K124: 2238641.953
C125: Complex connection HV | E125: 295565.4945 | F125: 293724.9083 | G125: 295109.1148 | H125: 295745.5397 | I125: 297155.3608 | J125: 298014.2713 | K125: 299921.9282
B126: COMMERCIAL/INDUSTRIAL | C126: Simple connection LV | E126: 851284.7751 | F126: 822705.8155 | G126: 821351.698 | H126: 821791.0012 | I126: 823965.719 | J126: 826373.0573 | K126: 828836.6159
C127: Complex connection HV (customer connected at LV, minor HV works) | E127: 28122336.99 | F127: 27178226.19 | G127: 27133492.69 | H127: 27148005.14 | I127: 27219847.32 | J127: 27299374.14 | K127: 27380758.22
C128: Complex connection HV (customer connected at LV, upstream asset works) | E128: 197613.2809 | F128: 190979.0948 | G128: 190664.7563 | H128: 190766.7341 | I128: 191271.5629 | J128: 191830.3912 | K128: 192402.2702
C129: Complex connection HV (customer connected at HV) | E129: 361390.7504 | F129: 349258.3016 | G129: 348683.4463 | H129: 348869.9411 | I129: 349793.1608 | J129: 350815.1335 | K129: 351860.973
C130: Complex connection sub-transmission | E130: 39521.61688 | F130: 38194.80849 | G130: 38131.94245 | H130: 38152.33747 | I130: 38253.30057 | J130: 38365.06327 | K130: 38479.43605
B131: SUBDIVISION | C131: Complex connection LV | E131: 22114.93955 | F131: 21977.21889 | G131: 22080.78717 | H131: 22128.40843 | I131: 22233.89656 | J131: 22298.16461 | K131: 22440.9009
C132: Complex connection HV (no upstream asset works) | E132: 955756.2799 | F132: 949804.4387 | G132: 954280.5066 | H132: 956338.4733 | I132: 960897.3397 | J132: 963674.7625 | K132: 969843.4719
C133: Complex connection HV (with upstream asset works) | E133: 0 | F133: 0 | G133: 0 | H133: 0 | I133: 0 | J133: 0 | K133: 0
B134: EMBEDDED GENERATION | C134: Simple connection LV | E134: 0 | F134: 0 | G134: 0 | H134: 0 | I134: 0 | J134: 0 | K134: 0
C135: Complex connection HV (small capacity) | E135: 0 | F135: 0 | G135: 0 | H135: 0 | I135: 0 | J135: 0 | K135: 0
C136: Complex connection HV (large capacity) | E136: 0 | F136: 0 | G136: 0 | H136: 0 | I136: 0 | J136: 0 | K136: 0
B138: EXPENDITURE - STANDARD CONTROL SERVICES - CAPITAL CONTRIBUTIONS
E139: =CONCATENATE("EXPENDITURE ($'0s, real ", dms_DollarReal,")") -> EXPENDITURE ($'0s, real June 2020)
E140: =CRCP_y4 -> 2018-19 | F140: =CRCP_y5 -> 2019-20 | G140: =FRCP_y1 -> 2020-21 | H140: =FRCP_y2 -> 2021-22 | I140: =FRCP_y3 -> 2022-23 | J140: =FRCP_y4 -> 2023-24 | K140: =FRCP_y5 -> 2024-25
B141: RESIDENTIAL | C141: Simple connection LV | E141: 0 | F141: 0 | G141: 0 | H141: 0 | I141: 0 | J141: 0 | K141: 0
C142: Complex connection LV | E142: 1960802.313 | F142: 1911204.112 | G142: 1748196.35 | H142: 1556854.35 | I142: 2209537.246 | J142: 2735502.284 | K142: 2512787.608
C143: Complex connection HV | E143: 0 | F143: 0 | G143: 0 | H143: 0 | I143: 0 | J143: 0 | K143: 0
B144: COMMERCIAL/INDUSTRIAL | C144: Simple connection LV | E144: 0 | F144: 0 | G144: 0 | H144: 0 | I144: 0 | J144: 0 | K144: 0
C145: Complex connection HV (customer connected at LV, minor HV works) | E145: 358009.2624 | F145: 348953.4718 | G145: -1242965.05 | H145: 1292749.107 | I145: 511508.5692 | J145: -253984.9298 | K145: 148822.0881
C146: Complex connection HV (customer connected at LV, upstream asset works) | E146: 9568324.146 | F146: 7375588.101 | G146: 8852853.497 | H146: 7718490.533 | I146: 7474057.067 | J146: 5305091.03 | K146: 11158767.09
C147: Complex connection HV (customer connected at HV) | E147: 253649.4835 | F147: 73956.87498 | G147: 108175.2187 | H147: 1845002.266 | I147: 2209754.924 | J147: 1041029.335 | K147: 37104.58641
C148: Complex connection sub-transmission | E148: 3053114.326 | F148: 5297970.741 | G148: 4779152.55 | H148: 1826145.474 | I148: 1841968.671 | J148: 5394446.219 | K148: 397780.3066
B149: SUBDIVISION | C149: Complex connection LV | E149: 3389754.433 | F149: 4115820.274 | G149: 2737527.681 | H149: 727128.7475 | I149: 3966335.745 | J149: 2173725.601 | K149: 4548416.777
C150: Complex connection HV (no upstream asset works) | E150: 32503922.38 | F150: 32176068.79 | G150: 31999528.86 | H150: 36327961.47 | I150: 32750283.47 | J150: 32738888.61 | K150: 31803779.01
C151: Complex connection HV (with upstream asset works) | E151: 3388570.047 | F151: 2988592.021 | G151: 4475423.102 | H151: 2165883.179 | I151: 2499745.773 | J151: 4328448.951 | K151: 2860558.483
B152: EMBEDDED GENERATION | C152: Simple connection LV | E152: 0 | F152: 0 | G152: 0 | H152: 0 | I152: 0 | J152: 0 | K152: 0
C153: Complex connection HV (small capacity) | E153: 0 | F153: 0 | G153: 0 | H153: 0 | I153: 0 | J153: 0 | K153: 0
C154: Complex connection HV (large capacity) | E154: 0 | F154: 0 | G154: 0 | H154: 0 | I154: 0 | J154: 0 | K154: 0
B158: 2.5.3 - VOLUMES BY CONNECTION CLASSIFICATION
B159: NEW CONNECTIONS - ALL
E160: VOLUMES (0's)
E161: =CRCP_y4 -> 2018-19 | F161: =CRCP_y5 -> 2019-20 | G161: =FRCP_y1 -> 2020-21 | H161: =FRCP_y2 -> 2021-22 | I161: =FRCP_y3 -> 2022-23 | J161: =FRCP_y4 -> 2023-24 | K161: =FRCP_y5 -> 2024-25
B162: RESIDENTIAL | C162: Simple connection LV | E162: 34532 | F162: 34308 | G162: 34527 | H162: 34583 | I162: 34656 | J162: 34655 | K162: 34773
C163: Complex connection LV | E163: 60 | F163: 59 | G163: 60 | H163: 60 | I163: 60 | J163: 60 | K163: 60
C164: Complex connection HV | E164: 335 | F164: 333 | G164: 335 | H164: 335 | I164: 336 | J164: 336 | K164: 337
B165: COMMERCIAL/INDUSTRIAL | C165: Simple connection LV | E165: 366 | F165: 364 | G165: 366 | H165: 367 | I165: 367 | J165: 367 | K165: 369
C166: Complex connection HV (customer connected at LV, minor HV works) | E166: 2401 | F166: 2320 | G166: 2320 | H166: 2320 | I166: 2320 | J166: 2320 | K166: 2320
C167: Complex connection HV (customer connected at LV, upstream asset works) | E167: 286 | F167: 276 | G167: 276 | H167: 276 | I167: 276 | J167: 276 | K167: 276
C168: Complex connection HV (customer connected at HV) | E168: 9 | F168: 8 | G168: 8 | H168: 8 | I168: 8 | J168: 8 | K168: 8
C169: Complex connection sub-transmission | E169: 15 | F169: 14 | G169: 14 | H169: 14 | I169: 14 | J169: 14 | K169: 14
B170: SUBDIVISION | C170: Complex connection LV | E170: 3 | F170: 3 | G170: 3 | H170: 3 | I170: 3 | J170: 3 | K170: 3
C171: Complex connection HV (no upstream asset works) | E171: 17247 | F171: 17136 | G171: 17245 | H171: 17273 | I171: 17309 | J171: 17309 | K171: 17368
C172: Complex connection HV (with upstream asset works) | E172: 0 | F172: 0 | G172: 0 | H172: 0 | I172: 0 | J172: 0 | K172: 0
B173: EMBEDDED GENERATION | C173: Simple connection LV | E173: 109 | F173: 115 | G173: 120 | H173: 125 | I173: 131 | J173: 136 | K173: 141
C174: Complex connection HV (small capacity) | E174: 4 | F174: 5 | G174: 6 | H174: 7 | I174: 8 | J174: 9 | K174: 10
C175: Complex connection HV (large capacity) | E175: 1 | F175: 1 | G175: 1 | H175: 1 | I175: 1 | J175: 1 | K175: 1
B177: NEW CONNECTIONS - STANDARD CONTROL SERVICES
E178: VOLUMES (0's)
E179: =CRCP_y4 -> 2018-19 | F179: =CRCP_y5 -> 2019-20 | G179: =FRCP_y1 -> 2020-21 | H179: =FRCP_y2 -> 2021-22 | I179: =FRCP_y3 -> 2022-23 | J179: =FRCP_y4 -> 2023-24 | K179: =FRCP_y5 -> 2024-25
B180: RESIDENTIAL | C180: Simple connection LV | E180: 34531.55 | F180: 34308.04 | G180: 34526.55 | H180: 34582.51 | I180: 34655.65 | J180: 34654.57 | K180: 34772.74
C181: Complex connection LV | E181: 59.61 | F181: 59.22 | G181: 59.6 | H181: 59.7 | I181: 59.82 | J181: 59.82 | K181: 60.02
C182: Complex connection HV | E182: 334.94 | F182: 332.77 | G182: 334.89 | H182: 335.43 | I182: 336.14 | J182: 336.13 | K182: 337.28
B183: COMMERCIAL/INDUSTRIAL | C183: Simple connection LV | E183: 411.34 | F183: 397.43 | G183: 397.43 | H183: 397.43 | I183: 397.43 | J183: 397.43 | K183: 397.43
C184: Complex connection HV (customer connected at LV, minor HV works) | E184: 1440.22 | F184: 1391.53 | G184: 1391.53 | H184: 1391.53 | I184: 1391.53 | J184: 1391.53 | K184: 1391.53
C185: Complex connection HV (customer connected at LV, upstream asset works) | E185: 0 | F185: 0 | G185: 0 | H185: 0 | I185: 0 | J185: 0 | K185: 0
C186: Complex connection HV (customer connected at HV) | E186: 0 | F186: 0 | G186: 0 | H186: 0 | I186: 0 | J186: 0 | K186: 0
C187: Complex connection sub-transmission | E187: 0 | F187: 0 | G187: 0 | H187: 0 | I187: 0 | J187: 0 | K187: 0
B188: SUBDIVISION | C188: Complex connection LV | E188: 0 | F188: 0 | G188: 0 | H188: 0 | I188: 0 | J188: 0 | K188: 0
C189: Complex connection HV (no upstream asset works) | E189: 0 | F189: 0 | G189: 0 | H189: 0 | I189: 0 | J189: 0 | K189: 0
C190: Complex connection HV (with upstream asset works) | E190: 0 | F190: 0 | G190: 0 | H190: 0 | I190: 0 | J190: 0 | K190: 0
B191: EMBEDDED GENERATION | C191: Simple connection LV | E191: 0 | F191: 0 | G191: 0 | H191: 0 | I191: 0 | J191: 0 | K191: 0
C192: Complex connection HV (small capacity) | E192: 0 | F192: 0 | G192: 0 | H192: 0 | I192: 0 | J192: 0 | K192: 0
C193: Complex connection HV (large capacity) | E193: 0 | F193: 0 | G193: 0 | H193: 0 | I193: 0 | J193: 0 | K193: 0
B195: EXISTING CONNECTIONS
E196: VOLUMES (0's)
E197: =CRCP_y4 -> 2018-19 | F197: =CRCP_y5 -> 2019-20 | G197: =FRCP_y1 -> 2020-21 | H197: =FRCP_y2 -> 2021-22 | I197: =FRCP_y3 -> 2022-23 | J197: =FRCP_y4 -> 2023-24 | K197: =FRCP_y5 -> 2024-25
B198: RESIDENTIAL | C198: Simple connection LV | E198: 1380337.733 | F198: 1402347.442
C199: Complex connection LV | E199: 0 | F199: 0
C200: Complex connection HV | E200: 0 | F200: 0
B201: COMMERCIAL/INDUSTRIAL | C201: Simple connection LV | E201: 112936.1591 | F201: 113299.9482
C202: Complex connection HV (customer connected at LV, minor HV works) | E202: 16074.99371 | F202: 18761.98742
C203: Complex connection HV (customer connected at LV, upstream asset works) | E203: 0 | F203: 0
C204: Complex connection HV (customer connected at HV) | E204: 648 | F204: 671.3836478
C205: Complex connection sub-transmission | E205: 0 | F205: 0
B206: SUBDIVISION | C206: Complex connection LV | E206: 0 | F206: 0
C207: Complex connection HV (no upstream asset works) | E207: 0 | F207: 0
C208: Complex connection HV (with upstream asset works) | E208: 0 | F208: 0
B209: EMBEDDED GENERATION | C209: Simple connection LV | E209: 355870 | F209: 355990
C210: Complex connection HV (small capacity)
C211: Complex connection HV (large capacity) | E211: 8 | F211: 9

Sheet 2.6 Non-network
B1: =SheetHeader -> REGULATORY REPORTING STATEMENT
B2: =dms_TradingName -> Energex
B3: =dms_Reg_Year_Span -> 2020-21 to 2024-25
B4: 2.6 NON NETWORK EXPENDITURE
B6: There are THREE tables on this worksheet - each has been 'grouped' (and sub-grouped) for easy navigation. See the Instructions sheet on how to group or ungroup tables.
B8: 2.6.1 - NON-NETWORK EXPENDITURE
E9: =CONCATENATE("EXPENDITURE ($'0s, real ", dms_DollarReal,")") -> EXPENDITURE ($'0s, real June 2020)
B10: SERVICE SUBCATEGORY | C10: ASSET CATEGORY | E10: =CRCP_y4 -> 2018-19 | F10: =CRCP_y5 -> 2019-20 | G10: =FRCP_y1 -> 2020-21 | H10: =FRCP_y2 -> 2021-22 | I10: =FRCP_y3 -> 2022-23 | J10: =FRCP_y4 -> 2023-24 | K10: =FRCP_y5 -> 2024-25
B11: OPEX
B12: IT & COMMUNICATIONS | C12: Total IT and communications | E12: 21941975.65 | F12: 21925321.78 | G12: 20494742.78 | H12: 20367344.31 | I12: 20260852.41 | J12: 20173036.61 | K12: 20057076.57
B13: MOTOR VEHICLES | C13: Car | E13: 2122662.015 | F13: 2121050.923 | G13: 1982657.018 | H13: 1970332.517 | I13: 1960030.514 | J13: 1951535.232 | K13: 1940317.283
C14: Light commercial vehicle | E14: 787035.5336 | F14: 786438.1768 | G14: 735124.8164 | H14: 730555.1676 | I14: 726735.4155 | J14: 723585.5553 | K14: 719426.1908
C15: Elevated work platform (LCV) | E15: 0 | F15: 0 | G15: 0 | H15: 0 | I15: 0 | J15: 0 | K15: 0
C16: Elevated work platform (HCV) | E16: 4334732.097 | F16: 4331442.053 | G16: 4048824.991 | H16: 4023656.873 | I16: 4002618.938 | J16: 3985270.547 | K16: 3962362.14
C17: Heavy commercial vehicle | E17: 2832244.747 | F17: 2830095.084 | G17: 2645437.608 | H17: 2628993.162 | I17: 2615247.311 | J17: 2603912.15 | K17: 2588944.162
B18: BUILDINGS AND PROPERTY | C18: Total buildings and property expenditure | E18: 20759046.94 | F18: 20743290.9 | G18: 19389836.82 | H18: 19269306.61 | I18: 19168555.88 | J18: 19085474.37 | K18: 18975765.93
B19: OTHER | C19: Other expenditure | E19: 0 | F19: 0 | G19: 0 | H19: 0 | I19: 0 | J19: 0 | K19: 0
B20: OTHER - DNSP nominated | C20: Office furniture and equipment | E20: 0 | F20: 0 | G20: 0 | H20: 0 | I20: 0 | J20: 0 | K20: 0
C21: Plant and equipment | E21: 5951352.716 | F21: 5946835.664 | G21: 5558817.723 | H21: 5524263.258 | I21: 5495379.312 | J21: 5471560.91 | K21: 5440108.905
C22: Non-Network Expenditure Fleet | E22: 0 | F22: 0 | G22: 0 | H22: 0 | I22: 0 | J22: 0 | K22: 0
C23: Motor Vehicles Generators | E23: 0 | F23: 0 | G23: 0 | H23: 0 | I23: 0 | J23: 0 | K23: 0
E24: 0 | F24: 0 | G24: 0 | H24: 0 | I24: 0 | J24: 0 | K24: 0
E25: 0 | F25: 0 | G25: 0 | H25: 0 | I25: 0 | J25: 0 | K25: 0
E26: 0 | F26: 0 | G26: 0 | H26: 0 | I26: 0 | J26: 0 | K26: 0
E27: 0 | F27: 0 | G27: 0 | H27: 0 | I27: 0 | J27: 0 | K27: 0
E28: 0 | F28: 0 | G28: 0 | H28: 0 | I28: 0 | J28: 0 | K28: 0
E29: 0 | F29: 0 | G29: 0 | H29: 0 | I29: 0 | J29: 0 | K29: 0
E30: 0 | F30: 0 | G30: 0 | H30: 0 | I30: 0 | J30: 0 | K30: 0
B31: CAPEX
B32: IT & COMMUNICATIONS | C32: Total IT and communications | E32: 74948827.3 | F32: 49867667.84 | G32: 37003762.06 | H32: 36843387.04 | I32: 42490560.7 | J32: 38467963.3 | K32: 38176224.5
B33: MOTOR VEHICLES | C33: Car | E33: 178736.3811 | F33: 185992.2261 | G33: 241815.5384 | H33: 480576.7035 | I33: 480836.7166 | J33: 240572.6115 | K33: 481137.472
C34: Light commercial vehicle | E34: 4656794.246 | F34: 6295217.355 | G34: 4933809.531 | H34: 5216085.921 | I34: 3672866.763 | J34: 4095992.394 | K34: 5568557.859
C35: Elevated work platform (LCV) | E35: 0 | F35: 0 | G35: 0 | H35: 0 | I35: 0 | J35: 0 | K35: 0
C36: Elevated work platform (HCV) | E36: 2833168.931 | F36: 3511609.577 | G36: 1239158.084 | H36: 5545326.678 | I36: 6660954.812 | J36: 13727999.64 | K36: 11312318.93
C37: Heavy commercial vehicle | E37: 11774794.53 | F37: 8007289.945 | G37: 2422140.49 | H37: 4735840.032 | I37: 4070868.369 | J37: 5945149.689 | K37: 5464186.774
B38: BUILDINGS AND PROPERTY | C38: Total buildings and property expenditure | E38: 19233957.52 | F38: 30860998.01 | G38: 13582446.68 | H38: 13684237.98 | I38: 22683104.76 | J38: 20082608.01 | K38: 10557041.96
B39: OTHER | C39: Other expenditure | E39: 0 | F39: 0 | G39: 0 | H39: 0 | I39: 0 | J39: 0 | K39: 0
B40: OTHER - DNSP nominated | C40: Office furniture and equipment | E40: 0 | F40: 0 | G40: 0 | H40: 0 | I40: 0 | J40: 0 | K40: 0
C41: Plant and equipment | E41: 7749086.232 | F41: 7768977.346 | G41: 7348915.152 | H41: 7780000.556 | I41: 7297437.143 | J41: 6919185.894 | K41: 6512010.324
C42: Non-Network Expenditure Fleet | E42: 1458069.242 | F42: 353545.165 | G42: 704668.102 | H42: 1127342.918 | I42: 2218610.822 | J42: 1699010.109 | K42: 1461704.523
C43: Motor Vehicles Generators | E43: 334638.7507 | F43: 0 | G43: 4584883.83 | H43: 61411.66257 | I43: 71733.41457 | J43: 0 | K43: 2933185.723
C45: IT & Communications-Capitalised Operational Exp | E45: 22519773.52 | F45: 22519773.52 | G45: 22092849.09 | H45: 21292750.53 | I45: 20180666.82 | J45: 18825790.51 | K45: 17261068.88
C46: Motor Vehicles-Capitlaised Operational Exp | E46: 10342022.7 | F46: 10342022.7 | G46: 10145961.13 | H46: 9778522.373 | I46: 9267806.983 | J46: 8645591.065 | K46: 7927005.393
C47: Buildings & Property-Capitlaised Operational Exp | E47: 21305693.83 | F47: 21305693.83 | G47: 20901785.63 | H47: 20144821.75 | I47: 19092692.39 | J47: 17810859.79 | K47: 16330494.99
E48: 0 | F48: 0 | G48: 0 | H48: 0 | I48: 0 | J48: 0 | K48: 0
E49: 0 | F49: 0 | G49: 0 | H49: 0 | I49: 0 | J49: 0 | K49: 0
E50: 0 | F50: 0 | G50: 0 | H50: 0 | I50: 0 | J50: 0 | K50: 0
B54: 2.6.2 - ANNUAL DESCRIPTOR METRICS
B55: IT & COMMUNICATIONS
E56: VOLUMES (0's)
E57: =CRCP_y4 -> 2018-19 | F57: =CRCP_y5 -> 2019-20 | G57: =FRCP_y1 -> 2020-21 | H57: =FRCP_y2 -> 2021-22 | I57: =FRCP_y3 -> 2022-23 | J57: =FRCP_y4 -> 2023-24 | K57: =FRCP_y5 -> 2024-25
B58: Employee numbers | E58: 2305.114333 | F58: 2305.114333 | G58: 2305.114333 | H58: 2305.114333 | I58: 2305.114333 | J58: 2305.114333 | K58: 2305.114333
B59: User numbers | E59: 3977.92 | F59: 3977.92 | G59: 3977.92 | H59: 3977.92 | I59: 3977.92 | J59: 3977.92 | K59: 3977.92
B60: Number of devices | E60: 4372.666667 | F60: 4372.666667 | G60: 4372.666667 | H60: 4372.666667 | I60: 4372.666667 | J60: 4372.666667 | K60: 4372.666667
B62: MOTOR VEHICLES
E63: VOLUMES (0's or %)
B64: ASSET CATEGORY | C64: DESCRIPTOR METRIC | D64: Units | E64: =CRCP_y4 -> 2018-19 | F64: =CRCP_y5 -> 2019-20 | G64: =FRCP_y1 -> 2020-21 | H64: =FRCP_y2 -> 2021-22 | I64: =FRCP_y3 -> 2022-23 | J64: =FRCP_y4 -> 2023-24 | K64: =FRCP_y5 -> 2024-25
B65: CAR | C65: Average kilometres travelled | D65: 0's | E65: 24365.10451 | F65: 24365.10451 | G65: 24365.10451 | H65: 24365.10451 | I65: 24365.10451 | J65: 24365.10451 | K65: 24365.10451
C66: Number purchased | D66: 0's | E66: 3.348206738 | F66: 4.166657274 | G66: 5.098076503 | H66: 10.18553827 | I66: 10.16080555 | J66: 5.05429618 | K66: 10.2019278
C67: Number leased | D67: 0's | E67: 0 | F67: 0 | G67: 0 | H67: 0 | I67: 0 | J67: 0 | K67: 0
C68: Number in fleet | D68: 0's | E68: 38.75 | F68: 38.75 | G68: 38.75 | H68: 38.75 | I68: 38.75 | J68: 38.75 | K68: 38.75
C69: Proportion of total fleet expenditure allocated as regulatory expenditure | D69: % | E69: 0.825 | F69: 0.835 | G69: 0.85 | H69: 0.849 | I69: 0.847 | J69: 0.842 | K69: 0.85
B70: LIGHT COMMERCIAL VEHICLE | C70: Average kilometres travelled | D70: 0's | E70: 24887.54414 | F70: 24887.54414 | G70: 24887.54414 | H70: 24887.54414 | I70: 24887.54414 | J70: 24887.54414 | K70: 24887.54414
C71: Number purchased | D71: 0's | E71: 78.34803767 | F71: 160.9097062 | G71: 96.86345356 | H71: 111.1921261 | I71: 69.43217126 | J71: 76.65682539 | K71: 111.3710451
C72: Number leased | D72: 0's | E72: 0 | F72: 0 | G72: 0 | H72: 0 | I72: 0 | J72: 0 | K72: 0
C73: Number in fleet | D73: 0's | E73: 784.8333333 | F73: 784.8333333 | G73: 784.8333333 | H73: 784.8333333 | I73: 784.8333333 | J73: 784.8333333 | K73: 784.8333333
C74: Proportion of total fleet expenditure allocated as regulatory expenditure | D74: % | E74: 0.825 | F74: 0.835 | G74: 0.85 | H74: 0.849 | I74: 0.847 | J74: 0.842 | K74: 0.85
B75: ELEVATED WORK PLATFORM (LCV) | C75: Average kilometres travelled | D75: 0's | E75: 0 | F75: 0 | G75: 0 | H75: 0 | I75: 0 | J75: 0 | K75: 0
C76: Number purchased | D76: 0's | E76: 0 | F76: 0 | G76: 0 | H76: 0 | I76: 0 | J76: 0 | K76: 0
C77: Number leased | D77: 0's | E77: 0 | F77: 0 | G77: 0 | H77: 0 | I77: 0 | J77: 0 | K77: 0
C78: Number in fleet | D78: 0's | E78: 0 | F78: 0 | G78: 0 | H78: 0 | I78: 0 | J78: 0 | K78: 0
C79: Proportion of total fleet expenditure allocated as regulatory expenditure | D79: % | E79: 0 | F79: 0 | G79: 0 | H79: 0 | I79: 0 | J79: 0 | K79: 0
B80: ELEVATED WORK PLATFORM (HCV) | C80: Average kilometres travelled | D80: 0's | E80: 22493.72329 | F80: 22493.72329 | G80: 22493.72329 | H80: 22493.72329 | I80: 22493.72329 | J80: 22493.72329 | K80: 22493.72329
C81: Number purchased | D81: 0's | E81: 8.035696171 | F81: 14.22406243 | G81: 8.496794172 | H81: 15.2783074 | I81: 11.85427314 | J81: 37.06483865 | K81: 31.45594404
C82: Number leased | D82: 0's | E82: 0 | F82: 0 | G82: 0 | H82: 0 | I82: 0 | J82: 0 | K82: 0
C83: Number in fleet | D83: 0's | E83: 235.1666667 | F83: 235.1666667 | G83: 235.1666667 | H83: 235.1666667 | I83: 235.1666667 | J83: 235.1666667 | K83: 235.1666667
C84: Proportion of total fleet expenditure allocated as regulatory expenditure | D84: % | E84: 0.825 | F84: 0.835 | G84: 0.85 | H84: 0.849 | I84: 0.847 | J84: 0.842 | K84: 0.85
B85: HEAVY COMMERCIAL VEHICLE | C85: Average kilometres travelled | D85: 0's | E85: 24804.44262 | F85: 24804.44262 | G85: 24804.44262 | H85: 24804.44262 | I85: 24804.44262 | J85: 24804.44262 | K85: 24804.44262
C86: Number purchased | D86: 0's | E86: 52.90166646 | F86: 59.56326142 | G86: 11.04583242 | H86: 28.85902509 | I86: 19.47487731 | J86: 30.32577708 | K86: 29.75562274
C87: Number leased | D87: 0's | E87: 0 | F87: 0 | G87: 0 | H87: 0 | I87: 0 | J87: 0 | K87: 0
C88: Number in fleet | D88: 0's | E88: 269.4166667 | F88: 269.4166667 | G88: 269.4166667 | H88: 269.4166667 | I88: 269.4166667 | J88: 269.4166667 | K88: 269.4166667
C89: Proportion of total fleet expenditure allocated as regulatory expenditure | D89: % | E89: 0.825 | F89: 0.835 | G89: 0.85 | H89: 0.849 | I89: 0.847 | J89: 0.842 | K89: 0.85
B93: 2.6.4 - INFORMATION & COMMUNICATIONS TECHNOLOGY - CAPEX BY PURPOSE
E94: =CONCATENATE("EXPENDITURE ($'0s, real ", dms_DollarReal,")") -> EXPENDITURE ($'0s, real June 2020)
E95: =CRCP_y4 -> 2018-19 | F95: =CRCP_y5 -> 2019-20 | G95: =FRCP_y1 -> 2020-21 | H95: =FRCP_y2 -> 2021-22 | I95: =FRCP_y3 -> 2022-23 | J95: =FRCP_y4 -> 2023-24 | K95: =FRCP_y5 -> 2024-25
B96: ICT CAPABILITY GROWTH
B97: Distribution operations, asset and works management | E97: 1370634.837 | F97: 0 | G97: 1760286.636 | H97: 1213482.883 | I97: 1695885.679 | J97: 1860743.358 | K97: 1258365.196
B98: Customer and market systems | E98: 6048314.12 | F98: 2710735.772 | G98: 662903.2649 | H98: 1208730.109 | I98: 1092817.989 | J98: 593110.9453 | K98: 778707.2898
B99: Corporate systems | E99: 0 | F99: 0 | G99: 385173.5724 | H99: 65054.17438 | I99: 336978.5968 | J99: 172111.4893 | K99: 530887.495
B100: ICT Management systems, productivity and cybersecurity | E100: 2651131.279 | F100: 2204356.961 | G100: 106903.8938 | H100: 359844.7366 | I100: 289851.8302 | J100: 342290.7404 | K100: 390979.5837
B101: Infrastructure program | E101: 33679.38913 | F101: 0 | G101: 613446.1743 | H101: 608558.2394 | I101: 604491.7209 | J101: 608024.1232 | K101: 609650.1832
B102: Minor applications change | E102: 0 | F102: 0 | G102: 303737.025 | H102: 302154.4374 | I102: 303255.5606 | J102: 304475.625 | K102: 305806.3184
B103: ICT ASSET EXTENSIONS
B104: Distribution operations, asset and works management | E104: 573984.7939 | F104: 440871.4343 | G104: 572408.4929 | H104: 29460.0245 | I104: 414508.0537 | J104: 25577.78429 | K104: 191296.7889
B105: Customer and market systems | E105: 1643701.416 | F105: 330653.6021 | G105: 347503.024 | H105: 0 | I105: 0 | J105: 53188.04229 | K105: 150408.1403
B106: Corporate systems | E106: 22092.79666 | F106: 440871.4343 | G106: 107022.594 | H106: 0 | I106: 0 | J106: 309233.1096 | K106: 621169.0975
B107: ICT Management systems, productivity and cybersecurity | E107: 6601833.391 | F107: 2247897.461 | G107: 347437.6284 | H107: 1169495.42 | I107: 264431.5592 | J107: 1056366.825 | K107: 507063.56
B108: Infrastructure program | E108: 0 | F108: 2645228.395 | G108: 0 | H108: 0 | I108: 0 | J108: 0 | K108: 0
B109: Minor applications change | E109: 2303837.822 | F109: 1966287.354 | G109: 987145.3576 | H109: 982002.0793 | I109: 985580.7568 | J109: 989545.8871 | K109: 993870.5559
B110: ICT ASSET REMEDIATION
B111: Distribution operations, asset and works management | E111: 55679.03615 | F111: 0 | G111: 132094.308 | H111: 6798.499564 | I111: 95655.71281 | J111: 5902.565605 | K111: 44145.4079
B112: Customer and market systems | E112: 0 | F112: 0 | G112: 80192.98127 | H112: 0 | I112: 0 | J112: 12274.20436 | K112: 34709.57576
B113: Corporate systems | E113: 1190156.468 | F113: 0 | G113: 24697.52977 | H113: 0 | I113: 0 | J113: 71361.52758 | K113: 143346.7197
B114: ICT Management systems, productivity and cybersecurity | E114: 0 | F114: 0 | G114: 80177.94661 | H114: 269883.5261 | I114: 61022.6269 | J114: 243777.0085 | K114: 117014.6734
B115: Infrastructure program | E115: 0 | F115: 0 | G115: 0 | H115: 0 | I115: 0 | J115: 0 | K115: 0
B116: Minor applications change | E116: 44185.48795 | F116: 220435.6645 | G116: 227802.7425 | H116: 226615.8806 | I116: 227441.6969 | J116: 228356.7187 | K116: 229354.7388
B117: ICT ASSET REPLACEMENT
B118: Distribution operations, asset and works management | E118: 8286017.607 | F118: 17200230.34 | G118: 15138078.82 | H118: 10885088.28 | I118: 14752808.58 | J118: 16715210.63 | K118: 11089844.52
B119: Customer and market systems | E119: 1332082.268 | F119: 374742.4631 | G119: 5538433.621 | H119: 10878571.3 | I119: 9835361.588 | J119: 5272535.731 | K119: 6823249.317
B120: Corporate systems | E120: 34413235.56 | F120: 9626813.255 | G120: 3334842.238 | H120: 585487.1486 | I120: 3032806.844 | J120: 1168408.766 | K120: 4013471.617
B121: ICT Management systems, productivity and cybersecurity | E121: 1147500.995 | F121: 2345435.879 | G121: 534519.3637 | H121: 1799223.788 | I121: 2283211.758 | J121: 1780472.831 | K121: 2894738.02
B122: Infrastructure program | E122: 7129744.836 | F122: 5570057.016 | G122: 4200269.726 | H122: 4742164.121 | I122: 4698172.131 | J122: 5132617.155 | K122: 4919114.086
B123: Minor applications change | E123: 101015.1961 | F123: 1543050.81 | G123: 1518685.125 | H123: 1510772.397 | I123: 1516278.014 | J123: 1522378.231 | K123: 1529031.624

Sheet 2.10 Overheads
B1: =SheetHeader -> REGULATORY REPORTING STATEMENT
B2: =dms_TradingName -> Energex
B3: =dms_Reg_Year_Span -> 2020-21 to 2024-25
B4: 2.10 OVERHEADS
B6: There are TWO tables on this worksheet. Each table has been 'grouped' (and sub-grouped) for easy navigation. See the Instructions sheet on how to group or ungroup data.
B8: 2.10.1 - NETWORK OVERHEADS EXPENDITURE
D9: =CONCATENATE("EXPENDITURE ($0's, real ", dms_DollarReal,")") -> EXPENDITURE ($0's, real June 2020)
D10: =CRCP_y4 -> 2018-19 | E10: =CRCP_y5 -> 2019-20 | F10: =FRCP_y1 -> 2020-21 | G10: =FRCP_y2 -> 2021-22 | H10: =FRCP_y3 -> 2022-23 | I10: =FRCP_y4 -> 2023-24 | J10: =FRCP_y5 -> 2024-25
B11: OPEX
B12: Standard Control Services | C12: Total | D12: 101310219.2 | E12: 101233325.1 | F12: 94628073.42 | G12: 94039850.78 | H12: 93548157.71 | I12: 93142695.68 | J12: 92607286.4
B13: Alternative Control Services | C13: Total | D13: 11130458.37 | E13: 10273283.56 | F13: 10920931.07 | G13: 10541304.91 | H13: 10092448.39 | I13: 9598891.539 | J13: 9041721.426
B14: CAPEX
B15: Standard Control Services | C15: Total | D15: 48751042.18 | E15: 48751042.18 | F15: 47826831.7 | G15: 46094769.92 | H15: 43687319.43 | I15: 40754268.97 | J15: 37366943.16
B16: Alternative Control Services | C16: Total | D16: 3421601.39 | E16: 3268362.607 | F16: 3380290.789 | G16: 3259150.701 | H16: 3019170.859 | I16: 2806227.647 | J16: 2458649.57
B17: OTHER DISTRIBUTION SERVICES
B18: Negotiated Services | C18: Total | D18: 0 | E18: 0 | F18: 0 | G18: 0 | H18: 0 | I18: 0 | J18: 0
B19: Unregulated Distribution Services | C19: Total | D19: 1309421.85 | E19: 1266439.931 | F19: 1169289.519 | G19: 1205465.149 | H19: 1145823.131 | I19: 1147144.873 | J19: 1143583.142
B23: 2.10.2 - CORPORATE OVERHEADS EXPENDITURE
D24: =CONCATENATE("EXPENDITURE ($0's, real ", dms_DollarReal,")") -> EXPENDITURE ($0's, real June 2020)
D25: =CRCP_y4 -> 2018-19 | E25: =CRCP_y5 -> 2019-20 | F25: =FRCP_y1 -> 2020-21 | G25: =FRCP_y2 -> 2021-22 | H25: =FRCP_y3 -> 2022-23 | I25: =FRCP_y4 -> 2023-24 | J25: =FRCP_y5 -> 2024-25
B26: OPEX
B27: Standard Control Services | C27: Total | D27: 68159689.55 | E27: 68107956.62 | F27: 69900122.64 | G27: 69493772.7 | H27: 69151587.65 | I27: 68863935.88 | J27: 68478174.8
B28: Alternative Control Services | C28: Total | D28: 8453419.431 | E28: 6290716.904 | F28: 7225505.592 | G28: 6951816.101 | H28: 6608289.107 | I28: 6223208.53 | J28: 5779461.541
B29: CAPEX
B30: Standard Control Services | C30: Total | D30: 9285912.797 | E30: 9285912.797 | F30: 9109872.704 | G30: 8779956.175 | H30: 8321394.178 | I30: 7762717.899 | J30: 7117512.983
B31: Alternative Control Services | C31: Total | D31: 1488210.214 | E31: 1346880.255 | F31: 1463788.338 | G31: 1400885.62 | H31: 1311346.221 | I31: 1220818.652 | J31: 1098177.432
B32: OTHER DISTRIBUTION SERVICES
B33: Negotiated Services | C33: Total | D33: 0 | E33: 0 | F33: 0 | G33: 0 | H33: 0 | I33: 0 | J33: 0
B34: Unregulated Distribution Services | C34: Total | D34: 565377.1176 | E34: 572412.8172 | F34: 514834.2868 | G34: 580928.7114 | H34: 547231.8712 | I34: 547970.2311 | J34: 546556.055

Sheet 2.11 Labour
B1: =SheetHeader -> REGULATORY REPORTING STATEMENT
B2: =dms_TradingName -> Energex
B3: =dms_Reg_Year_Span -> 2020-21 to 2024-25
B4: 2.11 LABOUR
B6: Table numbering on this worksheet starts at 2.11.3.
B8: 2.11.3 - LABOUR / NON-LABOUR EXPENDITURE SPLIT - STANDARD CONTROL SERVICES
C9: EXPENDITURE
C10: =CONCATENATE("($0's, real ", dms_DollarReal,")") -> ($0's, real June 2020)
C11: =CRCP_y4 -> 2018-19 | D11: =CRCP_y5 -> 2019-20 | E11: =FRCP_y1 -> 2020-21 | F11: =FRCP_y2 -> 2021-22 | G11: =FRCP_y3 -> 2022-23 | H11: =FRCP_y4 -> 2023-24 | I11: =FRCP_y5 -> 2024-25
B12: OPEX
B13: In-house labour expenditure | C13: 258919683.8 | D13: 258723164.8 | E13: 246044531.1 | F13: 244534057.5 | G13: 243269761.1 | H13: 242223500.1 | I13: 240837932.1
B14: Labour expenditure outsourced to related parties | C14: 0 | D14: 0 | E14: 0 | F14: 0 | G14: 0 | H14: 0 | I14: 0
B15: Labour expenditure outsourced to unrelated parties | C15: 81064047.15 | D15: 81002519.86 | E15: 77033021.12 | F15: 76560113.45 | G15: 76164280.32 | H15: 75836710.99 | I15: 75402909.49
B16: Controllable non-labour expenditure | C16: 31655004.13 | D16: 31630978.11 | E16: 30080913.64 | F16: 29896246.15 | G16: 29741675.79 | H16: 29613762.01 | I16: 29444365.23
B17: Uncontrollable non-labour expenditure | C17: 12571882.05 | D17: 12562340.04 | E17: 11946727.18 | F17: 11873385.92 | G17: 11811997.83 | H17: 11761196.48 | I17: 11693920.03
B18: Total | C18: =SUM(C13:C17) -> 384210617.2 | D18: =SUM(D13:D17) -> 383919002.9 | E18: 365105193.1 | F18: 362863803.1 | G18: 360987715 | H18: 359435169.6 | I18: 357379126.9
B19: CAPEX
B20: In-house labour expenditure | C20: 234284995.6 | D20: 226738685.1 | E20: 213206401 | F20: 202260958.7 | G20: 196112575.1 | H20: 194401797.2 | I20: 191196807.5
B21: Labour expenditure outsourced to related parties | C21: 0 | D21: 0 | E21: 0 | F21: 0 | G21: 0 | H21: 0 | I21: 0
B22: Labour expenditure outsourced to unrelated parties | C22: 146832100.7 | D22: 122380357.6 | E22: 91166749.83 | F22: 83981674.27 | G22: 103568091.3 | H22: 96904652.06 | I22: 85340155.72
B23: Controllable non-labour expenditure | C23: 128120024.8 | D23: 120123294.7 | E23: 117888476.7 | F23: 123203512.4 | G23: 117825088.9 | H23: 121737295.9 | I23: 120801377.7
B24: Uncontrollable non-labour expenditure | C24: 0 | D24: 0 | E24: 0 | F24: 0 | G24: 0 | H24: 0 | I24: 0
B25: Total | C25: =SUM(C20:C24) -> 509237121.1 | D25: =SUM(D20:D24) -> 469242337.3 | E25: =SUM(E20:E24) -> 422261627.5 | F25: =SUM(F20:F24) -> 409446145.5 | G25: =SUM(G20:G24) -> 417505755.2 | H25: =SUM(H20:H24) -> 413043745.2 | I25: =SUM(I20:I24) -> 397338340.9

Sheet 2.14 Forecast price changes
B1: =SheetHeader -> REGULATORY REPORTING STATEMENT
B2: =dms_TradingName -> Energex
B3: =dms_Reg_Year_Span -> 2020-21 to 2024-25
B4: 2.14 FORECAST PRICE CHANGES
B6: There is ONE table on this worksheet. It has been grouped for easy navigation. See the Instructions sheet on how to group or ungroup data.
B8: Instructions
B9: =CONCATENATE(dms_TradingName, " must provide all forecast price changes used to forecast opex and capex, including forecast changes in CPI. Forecast price changes must be expressed in real terms, except for CPI. "&"If the same escalators are not used for capex and opex, report capex and opex escalators separately. Add additional rows as required. If price changes for a given year were not used to forecast either opex or capex enter '0' for that year.") -> Energex must provide all forecast price changes used to forecast opex and capex, including forecast changes in CPI. Forecast price changes must be expressed in real terms, except for CPI. If the same escalators are not used for capex and opex, report capex and opex escalators separately. Add additional rows as required. If price changes for a given year were not used to forecast either opex or capex enter '0' for that year.
B11: 2.14.2 - FORECAST CAPEX AND OPEX PRICE CHANGES
C12: Price changes (% YoY real) Current regulatory period | E12: Price changes (%YoY real) Forthcoming regulatory period
C13: Forecast
C14: =CRCP_y4 -> 2018-19 | D14: =CRCP_y5 -> 2019-20 | E14: =FRCP_y1 -> 2020-21 | F14: =FRCP_y2 -> 2021-22 | G14: =FRCP_y3 -> 2022-23 | H14: =FRCP_y4 -> 2023-24 | I14: =FRCP_y5 -> 2024-25
B15: OPEX
B16: Labour - internal | C16: 0 | D16: 0 | E16: -0.003137554306 | F16: 0.000913873751 | G16: 0.004725136985 | H16: 0.005249602806 | I16: 0.005249602806
B17: Contractors | C17: 0 | D17: 0 | E17: -0.003137554306 | F17: 0.000913873751 | G17: 0.004725136985 | H17: 0.005249602806 | I17: 0.005249602806
B18: CPI | C18: 0.02 | D18: 0.0225 | E18: 0.0242 | F18: 0.0242 | G18: 0.0242 | H18: 0.0242 | I18: 0.0242
B19: CAPEX
B20: Labour - Internal | C20: 0 | D20: 0 | E20: -0.003137554306 | F20: 0.000913873751 | G20: 0.004725136985 | H20: 0.005249602806 | I20: 0.005249602806
B21: Contractors | C21: 0 | D21: 0 | E21: -0.003137554306 | F21: 0.000913873751 | G21: 0.004725136985 | H21: 0.005249602806 | I21: 0.005249602806
B22: Materials | C22: 0 | D22: 0 | E22: 0 | F22: 0 | G22: 0 | H22: 0 | I22: 0
B23: Other | C23: 0 | D23: 0 | E23: 0 | F23: 0 | G23: 0 | H23: 0 | I23: 0
B24: CPI | C24: 0.02 | D24: 0.0225 | E24: 0.0242 | F24: 0.0242 | G24: 0.0242 | H24: 0.0242 | I24: 0.0242

Sheet 2.16 Opex Summary
B1: =SheetHeader -> REGULATORY REPORTING STATEMENT
B2: =dms_TradingName -> Energex
B3: =dms_Reg_Year_Span -> 2020-21 to 2024-25
B4: 2.16 OPEX SUMMARY
B6: There are FOUR tables on this worksheet. Each table has been 'grouped' (and 'sub-grouped') for easy navigation. See the Instructions sheet on how to group or ungroup data.
B8: Instructions | J8: IMPORTANT!
B9: =CONCATENATE("Complete the tables below in accordance with the regulatory information notice. ",dms_TradingName,"'s total forecast opex must reconcile to Table 2.16.1 (and if ",dms_TradingName," owns any dual function assets Table 2.16.3). If ",dms_TradingName," did not forecast its total opex using a Base Year approach, total forecast opex must reconcile to Table 2.16.2 (and if ",dms_TradingName," owns any dual function assets Table 2.16.4).") -> Complete the tables below in accordance with the regulatory information notice. Energex's total forecast opex must reconcile to Table 2.16.1 (and if Energex owns any dual function assets Table 2.16.3). If Energex did not forecast its total opex using a Base Year approach, total forecast opex must reconcile to Table 2.16.2 (and if Energex owns any dual function assets Table 2.16.4). | J9: =CONCATENATE("Has ",dms_TradingName," used a base-step-trend model to derive its opex forecast? ") -> Has Energex used a base-step-trend model to derive its opex forecast? | L9: Yes
B10: =CONCATENATE("If ",dms_TradingName," does not own any dual function assets,Table 2.16.3 and 2.16.4 may be left blank.") -> If Energex does not own any dual function assets,Table 2.16.3 and 2.16.4 may be left blank. | J10: Yes / No
B11: The total step changes in Table 2.16.1 and Table 2.16.3 must "&"reconcile (in each year) to the total step changes for each year in Table 2.17.1 and Table 2.17.3 of worksheet '2.17 Step Changes', respectively.") | J11: Please nominate the base year. | L11: 2018-19
B14: 2.16.1 - STANDARD CONTROL SERVICES - OPEX BY DRIVER
C15: EXPENDITURE
C16: =CONCATENATE("Forecast ($0's, real ", dms_DollarReal,")") -> Forecast ($0's, real June 2020)
C17: =CRCP_y1 -> 2015-16 | D17: =CRCP_y2 -> 2016-17 | E17: =CRCP_y3 -> 2017-18 | F17: =CRCP_y4 -> 2018-19 | G17: =CRCP_y5 -> 2019-20 | H17: =FRCP_y1 -> 2020-21 | I17: =FRCP_y2 -> 2021-22 | J17: =FRCP_y3 -> 2022-23 | K17: =FRCP_y4 -> 2023-24 | L17: =FRCP_y5 -> 2024-25
B18: Base year total opex, excluding category specific | F18: 361616964.8 | G18: 361616964.8 | H18: 361616964.8 | I18: 361616964.8 | J18: 361616964.8 | K18: 361616964.8 | L18: 361616964.8
B19: Increment from base year to final year | G19: 0
B20: Price growth | H20: -694741.9961 | I20: -508073.5513 | J20: 589851.6489 | K20: 1918506.301 | L20: 3337067.373
B21: Output growth | H21: 4330486.516 | I21: 8579989.468 | J21: 12676086.66 | K21: 17515291.57 | L21: 21933324.37
B22: Productivity growth | H22: -6383576.599 | I22: -13050533.65 | J22: -20109261.29 | K22: -27814802.03 | L22: -35681891.27
B23: Step changes | H23: 0 | I23: 0 | J23: 0 | K23: 0 | L23: 0
B24: Category specific | F24: 0 | G24: 0 | H24: 6236060.31 | I24: 6225455.96 | J24: 6214073.151 | K24: 6199208.928 | L24: 6173661.561
B25: Total opex | C25: =SUM(C18:C24) -> 0 | D25: =SUM(D18:D24) -> 0 | E25: =SUM(E18:E24) -> 0 | F25: 361616964.8 | G25: 361616964.8 | H25: 365105193.1 | I25: 362863803.1 | J25: 360987715 | K25: 359435169.6 | L25: 357379126.9
B28: 2.16.2 - STANDARD CONTROL SERVICES - OPEX BY CATEGORY
C29: EXPENDITURE
C30: =CONCATENATE("Forecast ($0's, real ", dms_DollarReal,")") -> Forecast ($0's, real June 2020)
C31: =CRCP_y1 -> 2015-16 | D31: =CRCP_y2 -> 2016-17 | E31: =CRCP_y3 -> 2017-18 | F31: =CRCP_y4 -> 2018-19 | G31: =CRCP_y5 -> 2019-20 | H31: =FRCP_y1 -> 2020-21 | I31: =FRCP_y2 -> 2021-22 | J31: =FRCP_y3 -> 2022-23 | K31: =FRCP_y4 -> 2023-24 | L31: =FRCP_y5 -> 2024-25
B32: Vegetation management
B33: Maintenance
B34: Emergency response
B35: Non-network
B36: Metering
B37: Network overheads
B38: Corporate overheads
B39: Total opex | C39: =SUM(C32:C38) -> 0 | D39: =SUM(D32:D38) -> 0 | E39: 0 | F39: 0 | G39: 0 | H39: =SUM(H32:H38) -> 0 | I39: 0 | J39: 0 | K39: 0 | L39: 0
B42: 2.16.3 - DUAL FUNCTION ASSETS - OPEX BY DRIVER
C43: EXPENDITURE
C44: =CONCATENATE("Forecast ($0's, real ", dms_DollarReal,")") -> Forecast ($0's, real June 2020)
C45: =CRCP_y1 -> 2015-16 | D45: =CRCP_y2 -> 2016-17 | E45: =CRCP_y3 -> 2017-18 | F45: =CRCP_y4 -> 2018-19 | G45: =CRCP_y5 -> 2019-20 | H45: =FRCP_y1 -> 2020-21 | I45: =FRCP_y2 -> 2021-22 | J45: =FRCP_y3 -> 2022-23 | K45: =FRCP_y4 -> 2023-24 | L45: =FRCP_y5 -> 2024-25
B46: Base year total opex, excluding category specific
B47: Increment from base year to final year
B48: Price growth
B49: Output growth
B50: Productivity growth
B51: Step changes
B52: Category specific
B53: Total opex | C53: =SUM(C46:C52) -> 0 | D53: =SUM(D46:D52) -> 0 | E53: 0 | F53: 0 | G53: 0 | H53: =SUM(H46:H52) -> 0 | I53: 0 | J53: 0 | K53: 0 | L53: 0
B56: 2.16.4 - DUAL FUNCTION ASSETS - OPEX BY CATEGORY
C57: EXPENDITURE
C58: =CONCATENATE("Forecast ($0's, real ", dms_DollarReal,")") -> Forecast ($0's, real June 2020)
C59: =CRCP_y1 -> 2015-16 | D59: =CRCP_y2 -> 2016-17 | E59: =CRCP_y3 -> 2017-18 | F59: =CRCP_y4 -> 2018-19 | G59: =CRCP_y5 -> 2019-20 | H59: =FRCP_y1 -> 2020-21 | I59: =FRCP_y2 -> 2021-22 | J59: =FRCP_y3 -> 2022-23 | K59: =FRCP_y4 -> 2023-24 | L59: =FRCP_y5 -> 2024-25
B60: Vegetation management
B61: Maintenance
B62: Emergency response
B63: Non-network
B64: Metering
B65: Network overheads
B66: Corporate overheads
B67: Total opex | C67: =SUM(C60:C66) -> 0 | D67: =SUM(D60:D66) -> 0 | E67: 0 | F67: 0 | G67: 0 | H67: =SUM(H60:H66) -> 0 | I67: 0 | J67: 0 | K67: 0 | L67: 0

Sheet 2.17 Step Changes
B1: =SheetHeader -> REGULATORY REPORTING STATEMENT
B2: =dms_TradingName -> Energex
B3: =dms_Reg_Year_Span -> 2020-21 to 2024-25
B4: 2.17 STEP CHANGES
B6: There are FIVE tables on this worksheet. Each table has been 'grouped' (and 'sub-grouped') for easy navigation. See the Instructions sheet on how to group or ungroup data.
B8: Instructions
B9: =CONCATENATE("Complete the Tables below in accordance with the regulatory information notice. If ",dms_TradingName," does not own any dual function assets,Table 2.17.3 and 2.17.4 may be left blank."&" The total step changes in Table 2.17.1 and Table 2.17.3 must reconcile (in each year) to the total step changes for each year in Table 2.16.1 and Table 2.16.3 of worksheet '2.16 Opex Summary', respectively.") -> Complete the Tables below in accordance with the regulatory information notice. If Energex does not own any dual function assets,Table 2.17.3 and 2.17.4 may be left blank. The total step changes in Table 2.17.1 and Table 2.17.3 must reconcile (in each year) to the total step changes for each year in Table 2.16.1 and Table 2.16.3 of worksheet '2.16 Opex Summary', respectively.
B10: The total category specific forecast in Table 2.17.5 must reconcile (in each year) to the total category specific forecasts for each year in Table 2.16.1 and Table 2.16.3 of worksheet '2.16 Opex Summary'.
B12: 2.17.1 - STEP CHANGES FOR STANDARD CONTROL SERVICES - FORECAST OPEX
E13: EXPENDITURE
E14: =CONCATENATE("Forecast ($0's, real ", dms_DollarReal, ")") -> Forecast ($0's, real June 2020)
B15: Step change | C15: Description | E15: =CRCP_y4 -> 2018-19 | F15: =CRCP_y5 -> 2019-20 | G15: =FRCP_y1 -> 2020-21 | H15: =FRCP_y2 -> 2021-22 | I15: =FRCP_y3 -> 2022-23 | J15: =FRCP_y4 -> 2023-24 | K15: =FRCP_y5 -> 2024-25
B16: N/A
B17: N/A
B18: N/A
B19: N/A
B20: N/A
B21: N/A
B22: N/A
B23: N/A
B24: N/A
B25: N/A
B26: Total | E26: =SUM(E16:E25) -> 0 | F26: 0 | G26: 0 | H26: 0 | I26: 0 | J26: 0 | K26: 0
B27: Check | G27: =IF(G$26-'2.16 Opex Summary'!H$23=0,"OK","Error") -> OK | H27: =IF(H$26-'2.16 Opex Summary'!I$23=0,"OK","Error") -> OK | I27: =IF(I$26-'2.16 Opex Summary'!J$23=0,"OK","Error") -> OK | J27: =IF(J$26-'2.16 Opex Summary'!K$23=0,"OK","Error") -> OK | K27: =IF(K$26-'2.16 Opex Summary'!L$23=0,"OK","Error") -> OK
B29: 2.17.2 - STEP CHANGES FOR STANDARD CONTROL SERVICES - FORECAST CAPEX
E30: EXPENDITURE
E31: =CONCATENATE("Forecast ($0's, real ", dms_DollarReal, ")") -> Forecast ($0's, real June 2020)
B32: Step change | C32: Description | E32: =CRCP_y4 -> 2018-19 | F32: =CRCP_y5 -> 2019-20 | G32: =FRCP_y1 -> 2020-21 | H32: =FRCP_y2 -> 2021-22 | I32: =FRCP_y3 -> 2022-23 | J32: =FRCP_y4 -> 2023-24 | K32: =FRCP_y5 -> 2024-25
B33: N/A
B34: N/A
B35: N/A
B36: N/A
B37: N/A
B38: N/A
B39: N/A
B40: N/A
B41: N/A
B42: N/A
B43: Total | E43: =SUM(E33:E42) -> 0 | F43: 0 | G43: 0 | H43: 0 | I43: 0 | J43: 0 | K43: 0
B45: 2.17.3 - STEP CHANGES FOR DUAL FUNCTION ASSETS - FORECAST OPEX
E46: EXPENDITURE
E47: =CONCATENATE("Forecast ($0's, real ", dms_DollarReal, ")") -> Forecast ($0's, real June 2020)
B48: Step change | C48: Description | E48: =CRCP_y4 -> 2018-19 | F48: =CRCP_y5 -> 2019-20 | G48: =FRCP_y1 -> 2020-21 | H48: =FRCP_y2 -> 2021-22 | I48: =FRCP_y3 -> 2022-23 | J48: =FRCP_y4 -> 2023-24 | K48: =FRCP_y5 -> 2024-25
B59: Total | E59: =SUM(E49:E58) -> 0 | F59: 0 | G59: 0 | H59: 0 | I59: 0 | J59: 0 | K59: 0
B60: Check | G60: =IF(G$26-'2.16 Opex Summary'!H$51=0,"OK","Error") -> OK | H60: =IF(H$26-'2.16 Opex Summary'!I$51=0,"OK","Error") -> OK | I60: =IF(I$26-'2.16 Opex Summary'!J$51=0,"OK","Error") -> OK | J60: =IF(J$26-'2.16 Opex Summary'!K$51=0,"OK","Error") -> OK | K60: =IF(K$26-'2.16 Opex Summary'!L$51=0,"OK","Error") -> OK
B62: 2.17.4 - STEP CHANGES FOR DUAL FUNCTION ASSETS - FORECAST CAPEX
E63: EXPENDITURE
E64: =CONCATENATE("Forecast ($0's, real ", dms_DollarReal, ")") -> Forecast ($0's, real June 2020)
B65: Step change | C65: Description | E65: =CRCP_y4 -> 2018-19 | F65: =CRCP_y5 -> 2019-20 | G65: =FRCP_y1 -> 2020-21 | H65: =FRCP_y2 -> 2021-22 | I65: =FRCP_y3 -> 2022-23 | J65: =FRCP_y4 -> 2023-24 | K65: =FRCP_y5 -> 2024-25
B76: Total | E76: =SUM(E66:E75) -> 0 | F76: 0 | G76: 0 | H76: 0 | I76: 0 | J76: 0 | K76: 0
B79: 2.17.5 - FORECAST CATEGORY SPECIFIC OPEX
D80: EXPENDITURE
D81: =CONCATENATE("Forecast ($0's, real ", dms_DollarReal, ")") -> Forecast ($0's, real June 2020)
B82: Category | C82: Description | D82: =CRCP_y3 -> 2017-18 | E82: =CRCP_y4 -> 2018-19 | F82: =CRCP_y5 -> 2019-20 | G82: =FRCP_y1 -> 2020-21 | H82: =FRCP_y2 -> 2021-22 | I82: =FRCP_y3 -> 2022-23 | J82: =FRCP_y4 -> 2023-24 | K82: =FRCP_y5 -> 2024-25
B83: Debt Raising Costs | G83: 6236060.31 | H83: 6225455.96 | I83: 6214073.151 | J83: 6199208.928 | K83: 6173661.561
B93: Total | D93: =SUM(D90:D92) -> 0 | E93: 0 | F93: 0 | G93: 0 | H93: 0 | I93: 0 | J93: 0 | K93: 0

Sheet 3.1 Revenue
B1: =SheetHeader -> REGULATORY REPORTING STATEMENT
B2: =dms_TradingName -> Energex
B3: =dms_Reg_Year_Span -> 2020-21 to 2024-25
B4: 3.1 REVENUE
B6: There are THREE tables on this worksheet. Each table has been 'grouped' (and 'sub-grouped') for easy navigation. See the Instructions sheet on how to group or ungroup data.
B8: 3.1.1 - REVENUE GROUPING BY CHARGEABLE QUANTITY
C9: Standard control services | K9: Alternative control services
C10: REVENUE | K10: REVENUE
C11: =CONCATENATE("Forecast ($0's, real ", dms_DollarReal,")") -> Forecast ($0's, real June 2020) | K11: =CONCATENATE("Forecast ($0's, real ", dms_DollarReal,")") -> Forecast ($0's, real June 2020)
C12: =CRCP_y4 -> 2018-19 | D12: =CRCP_y5 -> 2019-20 | E12: =FRCP_y1 -> 2020-21 | F12: =FRCP_y2 -> 2021-22 | G12: =FRCP_y3 -> 2022-23 | H12: =FRCP_y4 -> 2023-24 | I12: =FRCP_y5 -> 2024-25 | K12: =CRCP_y4 -> 2018-19 | L12: =CRCP_y5 -> 2019-20 | M12: =FRCP_y1 -> 2020-21 | N12: =FRCP_y2 -> 2021-22 | O12: =FRCP_y3 -> 2022-23 | P12: =FRCP_y4 -> 2023-24 | Q12: =FRCP_y5 -> 2024-25
A13: DREV0101 | B13: Revenue from Fixed Customer Charges | C13: 286486703.5 | D13: 283376325.7 | E13: 418774978.9 | F13: 417756354.5 | G13: 416615912.2 | H13: 415564894.2 | I13: 414563251.1 | K13: 0 | L13: 0 | M13: 0 | N13: 0 | O13: 0 | P13: 0 | Q13: 0
A14: DREV0102 | B14: Revenue from Energy Delivery charges where time of use is not a determinant | C14: 572830632.1 | D14: 607240887.6 | E14: 505135996.4 | F14: 507554308.4 | G14: 510816877.2 | H14: 513914158.8 | I14: 516782512 | K14: 0 | L14: 0 | M14: 0 | N14: 0 | O14: 0 | P14: 0 | Q14: 0
A15: DREV0103 | B15: Revenue from On–Peak Energy Delivery charges | C15: 28190740.56 | D15: 29008357.13 | E15: 53493866.99 | F15: 53691947.56 | G15: 53364630.06 | H15: 53014329.06 | I15: 52706586.72 | K15: 0 | L15: 0 | M15: 0 | N15: 0 | O15: 0 | P15: 0 | Q15: 0
A16: DREV0104 | B16: Revenue from Shoulder period Energy Delivery Charges | C16: 154415.7341 | D16: 186712.7107 | E16: 170437.3908 | F16: 172484.237 | G16: 174555.6646 | H16: 176651.9687 | I16: 178773.4481 | K16: 0 | L16: 0 | M16: 0 | N16: 0 | O16: 0 | P16: 0 | Q16: 0
A17: DREV0105 | B17: Revenue from Off–Peak Energy Delivery charges | C17: 18569374.14 | D17: 19639163.29 | E17: 14038746.36 | F17: 14167474.43 | G17: 13889878.03 | H17: 13594270.04 | I17: 13331287.9 | K17: 0 | L17: 0 | M17: 0 | N17: 0 | O17: 0 | P17: 0 | Q17: 0
A18: DREV0106 | B18: Revenue from controlled load customer charges | C18: 78165735.8 | D18: 71058307.66 | E18: 56926028 | F18: 56940484.71 | G18: 57039335.91 | H18: 57141761.49 | I18: 57234684.29 | K18: 0 | L18: 0 | M18: 0 | N18: 0 | O18: 0 | P18: 0 | Q18: 0
A19: DREV0107 | B19: Revenue from unmetered supplies | C19: 5846499.149 | D19: 5405067.634 | E19: 4503903.785 | F19: 4505047.579 | G19: 4512868.541 | H19: 4520972.302 | I19: 4528324.218 | K19: 0 | L19: 0 | M19: 0 | N19: 0 | O19: 0 | P19: 0 | Q19: 0
A20: DREV0108 | B20: Revenue from Contracted Maximum Demand charges | C20: 8084932.034 | D20: 7734013.902 | E20: 12389248.19 | F20: 12404287.85 | G20: 12401934.21 | H20: 12395181.85 | I20: 12392551.15 | K20: 0 | L20: 0 | M20: 0 | N20: 0 | O20: 0 | P20: 0 | Q20: 0
A21: DREV0109 | B21: Revenue from Measured Maximum Demand charges | C21: 404195424.9 | D21: 337971038.5 | E21: 143588821.7 | F21: 141827617.9 | G21: 140190200.5 | H21: 138669658.2 | I21: 137260920.8 | K21: 0 | L21: 0 | M21: 0 | N21: 0 | O21: 0 | P21: 0 | Q21: 0
A22: DREV0110 | B22: Revenue from metering charges | C22: 0 | D22: 0 | E22: 0 | F22: 0 | G22: 0 | H22: 0 | I22: 0 | K22: 75612252.87 | L22: 68602150.99 | M22: 66635351.49 | N22: 65265415.84 | O22: 63985493.91 | P22: 62871226.15 | Q22: 61016084.54
A23: DREV0111 | B23: Revenue from connection charges | C23: 0 | D23: 0 | E23: 0 | F23: 0 | G23: 0 | H23: 0 | I23: 0 | K23: 78256460.03 | L23: 79112416.86 | M23: 80898927.94 | N23: 79184937.17 | O23: 77273298.38 | P23: 75067719.47 | Q23: 72552251.13
A24: DREV0112 | B24: Revenue from public lighting charges | C24: 10327223.84 | D24: 9547481.651 | E24: 7955670.8 | F24: 7957691.192 | G24: 7971506.095 | H24: 7985820.535 | I24: 7998806.917 | K24: 51059042.93 | L24: 52983457.28 | M24: 54124042.18 | N24: 54335546.48 | O24: 54350183.48 | P24: 54307805.19 | Q24: 54202797.02
A25: DREV0113 | B25: Revenue from other Sources | C25: 0 | D25: 0 | E25: 0 | F25: 0 | G25: 0 | H25: 0 | I25: 0 | K25: 23205423.23 | L25: 22701736 | M25: 22012923.26 | N25: 22013658.83 | O25: 22017506.95 | P25: 22021783.38 | Q25: 22026081.94
A26: DREV01 | B26: Total revenue by chargeable quantity | C26: =SUM(C13:C25) -> 1412851682 | D26: =SUM(D13:D25) -> 1371167356 | E26: 1216977698 | F26: 1216977698 | G26: 1216977698 | H26: 1216977698 | I26: 1216977698 | K26: =SUM(K13:K25) -> 228133179.1 | L26: =SUM(L13:L25) -> 223399761.1 | M26: 223671244.9 | N26: 220799558.3 | O26: 217626482.7 | P26: 214268534.2 | Q26: 209797214.6
B29: 3.1.2 - REVENUE GROUPING BY CUSTOMER TYPE OR CLASS
C30: Standard control services | K30: Alternative control services
C31: REVENUE | K31: REVENUE
C32: =CONCATENATE("Forecast ($0's, real ", dms_DollarReal,")") -> Forecast ($0's, real June 2020) | K32: =CONCATENATE("Forecast ($0's, real ", dms_DollarReal,")") -> Forecast ($0's, real June 2020)
C33: =CRCP_y4 -> 2018-19 | D33: =CRCP_y5 -> 2019-20 | E33: =FRCP_y1 -> 2020-21 | F33: =FRCP_y2 -> 2021-22 | G33: =FRCP_y3 -> 2022-23 | H33: =FRCP_y4 -> 2023-24 | I33: =FRCP_y5 -> 2024-25 | K33: =CRCP_y4 -> 2018-19 | L33: =CRCP_y5 -> 2019-20 | M33: =FRCP_y1 -> 2020-21 | N33: =FRCP_y2 -> 2021-22 | O33: =FRCP_y3 -> 2022-23 | P33: =FRCP_y4 -> 2023-24 | Q33: =FRCP_y5 -> 2024-25
A34: DREV0201 | B34: Revenue from residential Customers | C34: 735028798.2 | D34: 726001643.3 | E34: 652314280.2 | F34: 652107670.8 | G34: 653037225.9 | H34: 653988492 | I34: 654789701.5 | K34: 0 | L34: 0 | M34: 0 | N34: 0 | O34: 0 | P34: 0 | Q34: 0
A35: DREV0202 | B35: Revenue from Non residential customers not on demand tariffs | C35: 168857592.4 | D35: 157526088 | E35: 127400910.3 | F35: 127670876.2 | G35: 128179888.5 | H35: 128691156.3 | I35: 129168765.2 | K35: 0 | L35: 0 | M35: 0 | N35: 0 | O35: 0 | P35: 0 | Q35: 0
A36: DREV0203 | B36: Revenue from Non-residential low voltage demand tariff customers | C36: 335464245.2 | D36: 317274983.9 | E36: 286267575 | F36: 286474931.4 | G36: 286887427.2 | H36: 287342889.5 | I36: 287804120.4 | K36: 0 | L36: 0 | M36: 0 | N36: 0 | O36: 0 | P36: 0 | Q36: 0
A37: DREV0204 | B37: Revenue from Non-residential high voltage demand tariff customers | C37: 157327323.1 | D37: 155412091.3 | E37: 138535358.3 | F37: 138261481.2 | G37: 136388782.2 | H37: 134448367.8 | I37: 132687980.1 | K37: 0 | L37: 0 | M37: 0 | N37: 0 | O37: 0 | P37: 0 | Q37: 0
A38: DREV0205 | B38: Revenue from unmetered supplies | C38: 16173723.01 | D38: 14952549.33 | E38: 12459574.59 | F38: 12462738.77 | G38: 12484374.62 | H38: 12506792.88 | I38: 12527131.15 | K38: 0 | L38: 0 | M38: 0 | N38: 0 | O38: 0 | P38: 0 | Q38: 0
A39: DREV0206 | B39: Revenue from Other Customers | C39: 0 | D39: 0 | E39: 0 | F39: 0 | G39: 0 | H39: 0 | I39: 0 | K39: 228133179.1 | L39: 223399761.1 | M39: 223671244.9 | N39: 220799558.3 | O39: 217626482.7 | P39: 214268534.2 | Q39: 209797214.6
A40: DREV02 | B40: Total revenue by customer class | C40: =SUM(C34:C39) -> 1412851682 | D40: =SUM(D34:D39) -> 1371167356 | E40: 1216977698 | F40: 1216977698 | G40: 1216977698 | H40: 1216977698 | I40: 1216977698 | K40: =SUM(K34:K39) -> 228133179.1 | L40: =SUM(L34:L39) -> 223399761.1 | M40: 223671244.9 | N40: 220799558.3 | O40: 217626482.7 | P40: 214268534.2 | Q40: 209797214.6
B43: 3.1.3 - REVENUE (penalties) ALLOWED (deducted) THROUGH INCENTIVE SCHEMES
C44: Standard control services | K44: Alternative control services
C45: REVENUE | K45: REVENUE
C46: =CONCATENATE("Forecast ($0's, real ", dms_DollarReal,")") -> Forecast ($0's, real June 2020) | K46: =CONCATENATE("Forecast ($0's, real ", dms_DollarReal,")") -> Forecast ($0's, real June 2020)
C47: =CRCP_y4 -> 2018-19 | D47: =CRCP_y5 -> 2019-20 | E47: =FRCP_y1 -> 2020-21 | F47: =FRCP_y2 -> 2021-22 | G47: =FRCP_y3 -> 2022-23 | H47: =FRCP_y4 -> 2023-24 | I47: =FRCP_y5 -> 2024-25 | K47: =CRCP_y4 -> 2018-19 | L47: =CRCP_y5 -> 2019-20 | M47: =FRCP_y1 -> 2020-21 | N47: =FRCP_y2 -> 2021-22 | O47: =FRCP_y3 -> 2022-23 | P47: =FRCP_y4 -> 2023-24 | Q47: =FRCP_y5 -> 2024-25
A48: DREV0301 | B48: EBSS | C48: 0 | D48: 0 | E48: 0 | F48: 0 | G48: 0 | H48: 0 | I48: 0 | K48: 0 | L48: 0 | M48: 0 | N48: 0 | O48: 0 | P48: 0 | Q48: 0
A49: DREV0302 | B49: STPIS | C49: 0 | D49: 0 | E49: 0 | F49: 0 | G49: 0 | H49: 0 | I49: 0 | K49: 0 | L49: 0 | M49: 0 | N49: 0 | O49: 0 | P49: 0 | Q49: 0
A50: DREV0303 | B50: F-Factor | C50: 0 | D50: 0 | E50: 0 | F50: 0 | G50: 0 | H50: 0 | I50: 0 | K50: 0 | L50: 0 | M50: 0 | N50: 0 | O50: 0 | P50: 0 | Q50: 0
A51: DREV0304 | B51: S-Factor True up | C51: 0 | D51: 0 | E51: 0 | F51: 0 | G51: 0 | H51: 0 | I51: 0 | K51: 0 | L51: 0 | M51: 0 | N51: 0 | O51: 0 | P51: 0 | Q51: 0
A52: DREV0305 | B52: Other | C52: 0 | D52: 0 | E52: 1107220.975 | F52: 1106086.293 | G52: 1114335.874 | H52: 1123453.493 | I52: 1131612.659 | K52: 0 | L52: 0 | M52: 0 | N52: 0 | O52: 0 | P52: 0 | Q52: 0
A53: DREV03 | B53: Total revenue of incentive schemes | C53: =SUM(C48:C52) -> 0 | D53: =SUM(D48:D52) -> 0 | E53: 1107220.975 | F53: 1106086.293 | G53: 1114335.874 | H53: 1123453.493 | I53: 1131612.659 | K53: =SUM(K48:K52) -> 0 | L53: =SUM(L48:L52) -> 0 | M53: 0 | N53: 0 | O53: 0 | P53: 0 | Q53: 0

Sheet 3.2 Operating expenditure
B1: =SheetHeader -> REGULATORY REPORTING STATEMENT
B2: =dms_TradingName -> Energex
B3: =dms_Reg_Year_Span -> 2020-21 to 2024-25
B4: 3.2 OPERATING EXPENDITURE
B6: There are THREE tables on this worksheet. Both ROWS and COLUMNS have been grouped for ease of navigation. see the Instructions sheet on how to group or ungroup tables.
B8: Instructions
B9: =CONCATENATE("Forecasts for opex in table 3.2.1 are to be for the opex categories that ",dms_TradingName," has reported in its response to its annual reporting RIN.") -> Forecasts for opex in table 3.2.1 are to be for the opex categories that Energex has reported in its response to its annual reporting RIN.
B11: 3.2.1 - OPEX CATEGORIES
B12: CURRENT OPEX CATEGORIES AND COST ALLOCATIONS
C13: Standard control services | K13: Alternative control services
C14: EXPENDITURE | K14: EXPENDITURE
C15: =CONCATENATE("Forecast ($0's, real ",dms_DollarReal,")") -> Forecast ($0's, real June 2020) | K15: =CONCATENATE("Forecast ($0's, real ",dms_DollarReal,")") -> Forecast ($0's, real June 2020)
C16: =CRCP_y4 -> 2018-19 | D16: =CRCP_y5 -> 2019-20 | E16: =FRCP_y1 -> 2020-21 | F16: =FRCP_y2 -> 2021-22 | G16: =FRCP_y3 -> 2022-23 | H16: =FRCP_y4 -> 2023-24 | I16: =FRCP_y5 -> 2024-25 | K16: =CRCP_y4 -> 2018-19 | L16: =CRCP_y5 -> 2019-20 | M16: =FRCP_y1 -> 2020-21 | N16: =FRCP_y2 -> 2021-22 | O16: =FRCP_y3 -> 2022-23 | P16: =FRCP_y4 -> 2023-24 | Q16: =FRCP_y5 -> 2024-25
A17: DOPEX0101 | B17: Inspection | C17: 29481792.17 | D17: 29459415.61 | E17: 27537253.57 | F17: 27366077.77 | G17: 27222992.57 | H17: 27105001.04 | I17: 26949194.2 | K17: 0 | L17: 0 | M17: 0 | N17: 0 | O17: 0 | P17: 0 | Q17: 0
A18: DOPEX0102 | B18: Planned maintenance | C18: 76538337.85 | D18: 76480245.56 | E18: 71490077.84 | F18: 71045684.53 | G18: 70674217.86 | H18: 70367897.42 | I18: 69963403.81 | K18: 0 | L18: 0 | M18: 0 | N18: 0 | O18: 0 | P18: 0 | Q18: 0
A19: DOPEX0103 | B19: Corrective repair | C19: 56401459.67 | D19: 56358651.19 | E19: 52681373.22 | F19: 52353897.71 | G19: 52080162.18 | H19: 51854433.22 | I19: 51556359.98 | K19: 0 | L19: 0 | M19: 0 | N19: 0 | O19: 0 | P19: 0 | Q19: 0
A20: DOPEX0104 | B20: Vegetation | C20: 51351048.02 | D20: 51312072.78 | E20: 47964072.95 | F20: 47665920.9 | G20: 47416696.74 | H20: 47211180.45 | I20: 46939797.88 | K20: 0 | L20: 0 | M20: 0 | N20: 0 | O20: 0 | P20: 0 | Q20: 0
A21: DOPEX0105 | B21: Emergency response/storms | C21: 17663748.9 | D21: 17650342.19 | E21: 16498696.2 | F21: 16396137.77 | G21: 16310409.57 | H21: 16239716.01 | I21: 16146365.75 | K21: 0 | L21: 0 | M21: 0 | N21: 0 | O21: 0 | P21: 0 | Q21: 0
A22: DOPEX0106 | B22: Other network maintenance costs | C22: 0 | D22: 0 | E22: 0 | F22: 0 | G22: 0 | H22: 0 | I22: 0 | K22: 14311137.77 | L22: 13381010.59 | M22: 13684400.82 | N22: 13245269.09 | O22: 12714552.23 | P22: 12138110.24 | Q22: 11487308.42
A23: DOPEX0107 | B23: Network operating costs | C23: 44898316.22 | D23: 44864238.58 | E23: 41936945.74 | F23: 41676259.24 | G23: 41458352.39 | H23: 41278661.11 | I23: 41041380.26 | K23: 0 | L23: 0 | M23: 0 | N23: 0 | O23: 0 | P23: 0 | Q23: 0
A24: DOPEX0108 | B24: Network billing and other energy market services (including meter reading) | C24: 3826680.146 | D24: 3823775.711 | E24: 3574282.76 | F24: 3552064.47 | G24: 3533492.285 | H24: 3518177.211 | I24: 3497953.781 | K24: 13104128.65 | L24: 12252448.9 | M24: 12530251.03 | N24: 12128155.9 | O24: 11642200 | P24: 11114375.44 | Q24: 10518462.59
A25: DOPEX0109 | B25: Customer services (inc call centre) | C25: 12680998.62 | D25: 12671373.8 | E25: 11844594.54 | F25: 11770966.72 | G25: 11709421.51 | H25: 11658669.83 | I25: 11591652.66 | K25: 760996.1101 | L25: 711536.5089 | M25: 727669.3131 | N25: 704318.4415 | O25: 676097.5224 | P25: 645445.1647 | Q25: 610838.716
A26: DOPEX0110 | B26: DSM initiatives | C26: 12688587.8 | D26: 12678957.22 | E26: 11851683.16 | F26: 11778011.28 | G26: 11716429.23 | H26: 11665647.18 | I26: 11598589.9 | K26: 0 | L26: 0 | M26: 0 | N26: 0 | O26: 0 | P26: 0 | Q26: 0
A27: DOPEX0111 | B27: Levies | C27: 11168032.07 | D27: 11159555.58 | E27: 10431419.13 | F27: 10366575.83 | G27: 10312373.56 | H27: 10267677.05 | I27: 10208655.68 | K27: 0 | L27: 0 | M27: 0 | N27: 0 | O27: 0 | P27: 0 | Q27: 0
A28: DOPEX0112 | B28: Debt raising costs | C28: 0 | D28: 0 | E28: 6236060.31 | F28: 6225455.96 | G28: 6214073.151 | H28: 6199208.928 | I28: 6173661.561 | K28: 50842.85814 | L28: 47538.41617 | M28: 48616.26382 | N28: 47056.17037 | O28: 45170.70451 | P28: 43122.79197 | Q28: 40810.70293
A29: DOPEX0113 | B29: Other operating costs (inc self insurance) | C29: 67511615.71 | D29: 67460374.66 | E29: 63058733.67 | F29: 62666750.89 | G29: 62339093.98 | H29: 62068900.14 | I29: 61712111.4 | K29: 42311399.56 | L29: 39561444.71 | M29: 40458428.95 | N29: 39160120.01 | O29: 37591036.32 | P29: 35886764.59 | Q29: 33962645.32
A30: DOPEX0114
A31: DOPEX0115
A32: DOPEX0116
A33: DOPEX0117
A34: DOPEX0118
A35: DOPEX0119
A36: DOPEX0120
A37: DOPEX0121
A38: DOPEX0122
A39: DOPEX0123
A40: DOPEX0124
A41: DOPEX0125
A42: DOPEX0126
A43: DOPEX0127
A44: DOPEX0128
A45: DOPEX0129
A46: DOPEX0130
A47: DOPEX0131
A48: DOPEX0132
A49: DOPEX0133
A50: DOPEX0134
A51: DOPEX0135
A52: DOPEX0136
A53: DOPEX0137
A54: DOPEX0138
A55: DOPEX0139
A56: DOPEX0140
A57: DOPEX0141
A58: DOPEX0142
A59: DOPEX0143
A60: DOPEX0144
A61: DOPEX0145
A62: DOPEX0146
A63: DOPEX0147
A64: DOPEX0148
A65: DOPEX0149
A66: DOPEX01 | B66: Total opex | C66: =SUM(C17:C65) -> 384210617.2 | D66: =SUM(D17:D65) -> 383919002.9 | E66: 365105193.1 | F66: 362863803.1 | G66: 360987715 | H66: 359435169.6 | I66: 357379126.9 | K66: =SUM(K17:K65) -> 70538504.95 | L66: =SUM(L17:L65) -> 65953979.12 | M66: 67449366.37 | N66: 65284919.61 | O66: 62669056.78 | P66: 59827818.22 | Q66: 56620065.75
B69: 3.2.2 - OPEX CONSISTENCY
B70: OPEX CONSISTENCY - CURRENT COST ALLOCATION APPROACH
C71: Standard control services | K71: Alternative control services
C72: EXPENDITURE | K72: EXPENDITURE
C73: =CONCATENATE("Forecast ($0's, real ",dms_DollarReal,")") -> Forecast ($0's, real June 2020) | K73: =CONCATENATE("Forecast ($0's, real ",dms_DollarReal,")") -> Forecast ($0's, real June 2020)
C74: =CRCP_y4 -> 2018-19 | D74: =CRCP_y5 -> 2019-20 | E74: =FRCP_y1 -> 2020-21 | F74: =FRCP_y2 -> 2021-22 | G74: =FRCP_y3 -> 2022-23 | H74: =FRCP_y4 -> 2023-24 | I74: =FRCP_y5 -> 2024-25 | K74: =CRCP_y4 -> 2018-19 | L74: =CRCP_y5 -> 2019-20 | M74: =FRCP_y1 -> 2020-21 | N74: =FRCP_y2 -> 2021-22 | O74: =FRCP_y3 -> 2022-23 | P74: =FRCP_y4 -> 2023-24 | Q74: =FRCP_y5 -> 2024-25
A75: DOPEX0201 | B75: Opex for network services | C75: 381626096.8 | D75: 381336444.1 | E75: 362649191.7 | F75: 360422879.1 | G75: 358559411.2 | H75: 357017309.5 | I75: 354975097.4 | K75: 0 | L75: 0 | M75: 0 | N75: 0 | O75: 0 | P75: 0 | Q75: 0
A76: DOPEX0202 | B76: Opex for metering | C76: 396089.9426 | D76: 395789.3119 | E76: 376393.802 | F76: 374083.1109 | G76: 372149.0165 | H76: 370548.4683 | I76: 368428.8552 | K76: 15557164.54 | L76: 14546054.05 | M76: 14875859.53 | N76: 14398493.95 | O76: 13821569.21 | P76: 13194938.18 | Q76: 12487473.05
A77: DOPEX0203 | B77: Opex for connection services | C77: 2188430.444 | D77: 2186769.434 | E77: 2079607.601 | F77: 2066840.837 | G77: 2056154.802 | H77: 2047311.637 | I77: 2035600.596 | K77: 30265076.25 | L77: 28298050.95 | M77: 28939658.1 | N77: 28010985.93 | O77: 26888630.3 | P77: 25669575.52 | Q77: 24293265.19
A78: DOPEX0204 | B78: Opex for public lighting | C78: 0 | D78: 0 | E78: 0 | F78: 0 | G78: 0 | H78: 0 | I78: 0 | K78: 16368483.1 | L78: 15304642.39 | M78: 15651647.49 | N78: 15149386.91 | O78: 14542375.08 | P78: 13883064.75 | Q78: 13138704.74
A79: DOPEX0205 | B79: Opex for amounts payable for easement levy or similar direct charges on DNSP | C79: 0 | D79: 0 | E79: 0 | F79: 0 | G79: 0 | H79: 0 | I79: 0 | K79: 0 | L79: 0 | M79: 0 | N79: 0 | O79: 0 | P79: 0 | Q79: 0
A80: DOPEX0207 | B80: Opex for transmission connection point planning | C80: 0 | D80: 0 | E80: 0 | F80: 0 | G80: 0 | H80: 0 | I80: 0 | K80: 0 | L80: 0 | M80: 0 | N80: 0 | O80: 0 | P80: 0 | Q80: 0
B83: 3.2.4 - OPEX FOR HIGH VOLTAGE CUSTOMERS
C84: End user costs (not standard control services)
C85: EXPENDITURE
C86: =CONCATENATE("Forecast ($0's, real ",dms_DollarReal,")") -> Forecast ($0's, real June 2020)
C87: =CRCP_y4 -> 2018-19 | D87: =CRCP_y5 -> 2019-20 | E87: =FRCP_y1 -> 2020-21 | F87: =FRCP_y2 -> 2021-22 | G87: =FRCP_y3 -> 2022-23 | H87: =FRCP_y4 -> 2023-24 | I87: =FRCP_y5 -> 2024-25
A88: DOPEX0401 | B88: Opex for high voltage customers | C88: 2006078.414 | D88: 2025751.196 | E88: 1800604.878 | F88: 1770756.454 | G88: 1743856.764 | H88: 1718267.667 | I88: 1691100.505

Sheet 3.3 Assets (RAB)
B1: =SheetHeader -> REGULATORY REPORTING STATEMENT
B2: =dms_TradingName -> Energex
B3: =dms_Reg_Year_Span -> 2020-21 to 2024-25
B4: 3.3 ASSETS
B6: There are FOUR tables on this worksheet. Both ROWS and COLUMNS in each have been grouped (and sub-grouped) for ease of navigation. see the Instructions sheet on how to group or ungroup tables.
B8: 3.3.1 - REGULATORY ASSET BASE VALUES
C9: Network services | K9: Standard control services | S9: Alternative control services
C10: =CONCATENATE("Forecast ($0's, real ", dms_DollarReal,")") -> Forecast ($0's, real June 2020) | K10: =CONCATENATE("Forecast ($0's, real ", dms_DollarReal,")") -> Forecast ($0's, real June 2020) | S10: =CONCATENATE("Forecast ($0's, real ", dms_DollarReal,")") -> Forecast ($0's, real June 2020)
C11: =CRCP_y4 -> 2018-19 | D11: =CRCP_y5 -> 2019-20 | E11: =FRCP_y1 -> 2020-21 | F11: =FRCP_y2 -> 2021-22 | G11: =FRCP_y3 -> 2022-23 | H11: =FRCP_y4 -> 2023-24 | I11: =FRCP_y5 -> 2024-25 | K11: =CRCP_y4 -> 2018-19 | L11: =CRCP_y5 -> 2019-20 | M11: =FRCP_y1 -> 2020-21 | N11: =FRCP_y2 -> 2021-22 | O11: =FRCP_y3 -> 2022-23 | P11: =FRCP_y4 -> 2023-24 | Q11: =FRCP_y5 -> 2024-25 | S11: =CRCP_y4 -> 2018-19 | T11: =CRCP_y5 -> 2019-20 | U11: =FRCP_y1 -> 2020-21 | V11: =FRCP_y2 -> 2021-22 | W11: =FRCP_y3 -> 2022-23 | X11: =FRCP_y4 -> 2023-24 | Y11: =FRCP_y5 -> 2024-25
B12: For total asset base:
A13: DRAB0101 | B13: Opening value | C13: 1.024289514e+10 | D13: 1.049799484e+10 | E13: 1.078066181e+10 | F13: 1.103232447e+10 | G13: 1.128145367e+10 | H13: 1.152492253e+10 | I13: 1.174944515e+10 | K13: 1.257473542e+10 | L13: 1.285928967e+10 | M13: 1.332871351e+10 | N13: 1.361194594e+10 | O13: 1.389304698e+10 | P13: 1.416637994e+10 | Q13: 1.441685763e+10 | S13: 513045421.8 | T13: 497342184.8 | U13: 510470676.3 | V13: 495100421.9 | W13: 476546325.2 | X13: 457104266.5 | Y13: 436194601.8
A14: DRAB0102 | B14: Inflation addition | C14: 179269795 | D14: 230801151 | E14: 248628286.2 | F14: 248205496.6 | G14: 247751670.3 | H14: 247159041.9 | I14: 246140482.5 | K14: 220057869.9 | L14: 283313815.7 | M14: 305197041.5 | N14: 304678057.4 | O14: 304120974.9 | P14: 303393509.7 | Q14: 302143204.2 | S14: 10260908.44 | T14: 10957363.56 | U14: 11686252.53 | V14: 11046997.91 | W14: 10347534.5 | X14: 9643660.288 | Y14: 8921740.989
A15: DRAB0103 | B15: Straight line depreciation | C15: -344357613.2 | D15: -355265946.8 | E15: -361747251.3 | F15: -351909069.9 | G15: -365668484.4 | H15: -380031177.8 | I15: -394332198.3 | K15: -420686281.3 | L15: -434012504.1 | M15: -441930423.7 | N15: -429911557.9 | O15: -446720818.7 | P15: -464267078.3 | Q15: -481737994.8 | S15: -45150526.79 | T15: -46294615.29 | U15: -45742880.32 | V15: -46899378.57 | W15: -48065166.82 | X15: -49307775.05 | Y15: -49290552.69
A16: DRAB0105 | B16: Actual additions (recognised in RAB) | C16: 439662454.1 | D16: 424631015.6 | E16: 373295910.5 | F16: 361915035 | G16: 368986528.5 | H16: 364991106.3 | I16: 351062852.2 | K16: 504657589.1 | L16: 637621776.3 | M16: 428480104.4 | N16: 415416798.3 | O16: 423533668.1 | P16: 418947604.1 | Q16: 402960341.4 | S16: 20345399.83 | T16: 49367229.88 | U16: 18875089.06 | V16: 17530633.85 | W16: 18429899.87 | X16: 18909823.34 | Y16: 18608947.52
A17: DRAB0106 | B17: Disposals | C17: -19474930.23 | D17: -17499250.25 | E17: -8514289.722 | F17: -9082257.417 | G17: -7600860.839 | H17: -7596349.396 | I17: -7600740.286 | K17: -19474930.23 | L17: -17499250.25 | M17: -8514289.722 | N17: -9082257.417 | O17: -7600860.839 | P17: -7596349.396 | Q17: -7600740.286 | S17: -1159018.417 | T17: -901486.6971 | U17: -188715.6063 | V17: -232349.9675 | W17: -154326.1707 | X17: -155373.3454 | Y17: -153701.709
A18: DRAB0107 | B18: Closing value | C18: =SUM(C13+C14+C15+C16+C17) -> 1.049799484e+10 | D18: 1.078066181e+10 | E18: 1.103232447e+10 | F18: 1.128145367e+10 | G18: 1.152492253e+10 | H18: 1.174944515e+10 | I18: 1.194471554e+10 | K18: =SUM(K13+K14+K15+K16+K17) -> 1.285928967e+10 | L18: 1.332871351e+10 | M18: 1.361194594e+10 | N18: 1.389304698e+10 | O18: 1.416637994e+10 | P18: 1.441685763e+10 | Q18: 1.463262244e+10 | S18: =SUM(S13+S14+S15+S16+S17) -> 497342184.8 | T18: 510470676.3 | U18: 495100421.9 | V18: 476546325.2 | W18: 457104266.5 | X18: 436194601.8 | Y18: 414281035.9
B21: 3.3.2 - ASSET VALUE ROLL FORWARD
C22: Network services | K22: Standard control services | S22: Alternative control services
C23: =CONCATENATE("Forecast ($0's, real ", dms_DollarReal,")") -> Forecast ($0's, real June 2020) | K23: =CONCATENATE("Forecast ($0's, real ", dms_DollarReal,")") -> Forecast ($0's, real June 2020) | S23: =CONCATENATE("Forecast ($0's, real ", dms_DollarReal,")") -> Forecast ($0's, real June 2020)
C24: =CRCP_y4 -> 2018-19 | D24: =CRCP_y5 -> 2019-20 | E24: =FRCP_y1 -> 2020-21 | F24: =FRCP_y2 -> 2021-22 | G24: =FRCP_y3 -> 2022-23 | H24: =FRCP_y4 -> 2023-24 | I24: =FRCP_y5 -> 2024-25 | K24: =CRCP_y4 -> 2018-19 | L24: =CRCP_y5 -> 2019-20 | M24: =FRCP_y1 -> 2020-21 | N24: =FRCP_y2 -> 2021-22 | O24: =FRCP_y3 -> 2022-23 | P24: =FRCP_y4 -> 2023-24 | Q24: =FRCP_y5 -> 2024-25 | S24: =CRCP_y4 -> 2018-19 | T24: =CRCP_y5 -> 2019-20 | U24: =FRCP_y1 -> 2020-21 | V24: =FRCP_y2 -> 2021-22 | W24: =FRCP_y3 -> 2022-23 | X24: =FRCP_y4 -> 2023-24 | Y24: =FRCP_y5 -> 2024-25
B25: For overhead network assets less than 33kV:
A26: DRAB0201 | B26: Opening value | C26: 1731892149 | D26: 1869549910 | E26: 2008471995 | F26: 2130062194 | G26: 2248958984 | H26: 2368125682 | I26: 2483283997 | K26: 2435290676 | L26: 2579985233 | M26: 2728054406 | N26: 2857325038 | O26: 2984074905 | P26: 3110397082 | Q26: 3231480080 | S26: 0 | T26: 0 | U26: 0 | V26: 0 | W26: 0 | X26: 0 | Y26: 0
A27: DRAB0202 | B27: Inflation addition | C27: 30387808.76 | D27: 39122827.35 | E27: 42144683.74 | F27: 42073017.18 | G27: 41996089.62 | H27: 41895633.89 | I27: 41722979.1 | K27: 42687589.19 | L27: 54958197.06 | M27: 59203181.13 | N27: 59102506.79 | O27: 58994442.01 | P27: 58853325.78 | Q27: 58610787.18 | S27: 0 | T27: 0 | U27: 0 | V27: 0 | W27: 0 | X27: 0 | Y27: 0
A28: DRAB0203 | B28: Straight line depreciation | C28: -57742849.23 | D28: -59571989.16 | E28: -60658792.46 | F28: -59009098.64 | G28: -61316315.81 | H28: -63724692.48 | I28: -66122727.65 | K28: -82114060.08 | L28: -84715215.17 | M28: -86260719.63 | N28: -83914748.51 | O28: -87195760.3 | P28: -90620627.43 | Q28: -94030788.29 | S28: 0 | T28: 0 | U28: 0 | V28: 0 | W28: 0 | X28: 0 | Y28: 0
A29: DRAB0205 | B29: Actual additions (recognised in RAB) | C29: 165012801.4 | D29: 159371246.7 | E29: 140104308.1 | F29: 135832871.9 | G29: 138486923.7 | H29: 136987373.8 | I29: 131759863 | K29: 184121028.8 | L29: 177826190.8 | M29: 156328170.5 | N29: 151562108.5 | O29: 154523495.5 | P29: 152850300 | Q29: 147017451.5 | S29: 0 | T29: 0 | U29: 0 | V29: 0 | W29: 0 | X29: 0 | Y29: 0
A30: DRAB0206 | B30: Disposals | C30: 0 | D30: 0 | E30: 0 | F30: 0 | G30: 0 | H30: 0 | I30: 0 | K30: 0 | L30: 0 | M30: 0 | N30: 0 | O30: 0 | P30: 0 | Q30: 0 | S30: 0 | T30: 0 | U30: 0 | V30: 0 | W30: 0 | X30: 0 | Y30: 0
A31: DRAB0207 | B31: Closing value | C31: =SUM(C26+C27+C28+C29+C30) -> 1869549910 | D31: 2008471995 | E31: 2130062194 | F31: 2248958984 | G31: 2368125682 | H31: 2483283997 | I31: 2590644112 | K31: =SUM(K26+K27+K28+K29+K30) -> 2579985233 | L31: 2728054406 | M31: 2857325038 | N31: 2984074905 | O31: 3110397082 | P31: 3231480080 | Q31: 3343077531 | S31: =SUM(S26+S27+S28+S29+S30) -> 0 | T31: 0 | U31: 0 | V31: 0 | W31: 0 | X31: 0 | Y31: 0
B32: For underground network assets less than 33kV:
A33: DRAB0301 | B33: Opening value | C33: 2021409362 | D33: 2029172339 | E33: 2044940886 | F33: 2061077576 | G33: 2077969782 | H33: 2093208966 | I33: 2106194944 | K33: 2581231347 | L33: 2598485374 | M33: 2625713447 | N33: 2652554226 | O33: 2680170221 | P33: 2705792758 | Q33: 2728471244 | S33: 0 | T33: 0 | U33: 0 | V33: 0 | W33: 0 | X33: 0 | Y33: 0
A34: DRAB0302 | B34: Inflation addition | C34: 35333590.81 | D34: 45490281.44 | E34: 49003961.48 | F34: 48920630.8 | G34: 48831182.86 | H34: 48714377.41 | I34: 48513622.11 | K34: 45128249.44 | L34: 58100428.55 | M34: 62588119.33 | N34: 62481688.94 | O34: 62367445.56 | P34: 62218261.02 | Q34: 61961855.28 | S34: 0 | T34: 0 | U34: 0 | V34: 0 | W34: 0 | X34: 0 | Y34: 0
A35: DRAB0303 | B35: Straight line depreciation | C35: -46987722.74 | D35: -48476168.86 | E35: -49360545.24 | F35: -48018121.78 | G35: -49895598.94 | H35: -51855393.73 | I35: -53806773.22 | K35: -60004945.23 | L35: -61905742.34 | M35: -63035121.53 | N35: -61320800.39 | O35: -63718403.59 | P35: -66221129.24 | Q35: -68713108.27 | S35: 0 | T35: 0 | U35: 0 | V35: 0 | W35: 0 | X35: 0 | Y35: 0
A36: DRAB0305 | B36: Actual additions (recognised in RAB) | C36: 19434482.55 | D36: 18770045.04 | E36: 16500869.68 | F36: 15997798.69 | G36: 16310381.26 | H36: 16133770.85 | I36: 15518097.61 | K36: 32148095.57 | L36: 31048997.57 | M36: 27295377.38 | N36: 26463208.36 | O36: 26980275.6 | P36: 26688130.53 | Q36: 25669697.32 | S36: 0 | T36: 0 | U36: 0 | V36: 0 | W36: 0 | X36: 0 | Y36: 0
A37: DRAB0306 | B37: Disposals | C37: -17373.35632 | D37: -15610.87543 | E37: -7595.49777 | F37: -8102.175073 | G37: -6780.638602 | H37: -6776.613996 | I37: -6780.531057 | K37: -17373.35632 | L37: -15610.87543 | M37: -7595.49777 | N37: -8102.175073 | O37: -6780.638602 | P37: -6776.613996 | Q37: -6780.531057 | S37: 0 | T37: 0 | U37: 0 | V37: 0 | W37: 0 | X37: 0 | Y37: 0
A38: DRAB0307 | B38: Closing value | C38: =SUM(C33+C34+C35+C36+C37) -> 2029172339 | D38: 2044940886 | E38: 2061077576 | F38: 2077969782 | G38: 2093208966 | H38: 2106194944 | I38: 2116413110 | K38: =SUM(K33+K34+K35+K36+K37) -> 2598485374 | L38: 2625713447 | M38: 2652554226 | N38: 2680170221 | O38: 2705792758 | P38: 2728471244 | Q38: 2747382908 | S38: =SUM(S33+S34+S35+S36+S37) -> 0 | T38: 0 | U38: 0 | V38: 0 | W38: 0 | X38: 0 | Y38: 0
B39: For distribution substations and transformers:
A40: DRAB0401 | B40: Opening value | C40: 1267529272 | D40: 1312656449 | E40: 1360267254 | F40: 1400995977 | G40: 1441205994 | H40: 1480599073 | I40: 1517307383 | K40: 1817433770 | L40: 1883151741 | M40: 1952420549 | N40: 2011754730 | O40: 2070317853 | P40: 2127735133 | Q40: 2181313175 | S40: 0 | T40: 0 | U40: 0 | V40: 0 | W40: 0 | X40: 0 | Y40: 0
A41: DRAB0402 | B41: Inflation addition | C41: 22206360.35 | D41: 28589610.03 | E41: 30797878.24 | F41: 30745506.79 | G41: 30689290.8 | H41: 30615881.22 | I41: 30489711.07 | K41: 31837375.36 | L41: 40989073.92 | M41: 44155079.63 | N41: 44079994.42 | O41: 43999397.24 | P41: 43894149.55 | Q41: 43713258.74 | S41: 0 | T41: 0 | U41: 0 | V41: 0 | W41: 0 | X41: 0 | Y41: 0
A42: DRAB0403 | B42: Straight line depreciation | C42: -47308087.44 | D42: -48806681.86 | E42: -49697087.96 | F42: -48345511.78 | G42: -50235789.68 | H42: -52208946.45 | I42: -54173630.55 | K42: -67448085.8 | L42: -69584661.82 | M42: -70854131.59 | N42: -68927162.43 | O42: -71622169.41 | P42: -74435338.46 | Q42: -77236427.84 | S42: 0 | T42: 0 | U42: 0 | V42: 0 | W42: 0 | X42: 0 | Y42: 0
A43: DRAB0405 | B43: Actual additions (recognised in RAB) | C43: 70228904.38 | D43: 67827877.3 | E43: 59627931.75 | F43: 57810022.55 | G43: 58939578.28 | H43: 58301374.76 | I43: 56076563.39 | K43: 101328680.9 | L43: 97864396.39 | M43: 86033232.66 | N43: 83410290.69 | O43: 85040052.58 | P43: 84119230.57 | Q43: 80909196.13 | S43: 0 | T43: 0 | U43: 0 | V43: 0 | W43: 0 | X43: 0 | Y43: 0
A44: DRAB0406 | B44: Disposals | C44: 0 | D44: 0 | E44: 0 | F44: 0 | G44: 0 | H44: 0 | I44: 0 | K44: 0 | L44: 0 | M44: 0 | N44: 0 | O44: 0 | P44: 0 | Q44: 0 | S44: 0 | T44: 0 | U44: 0 | V44: 0 | W44: 0 | X44: 0 | Y44: 0
A45: DRAB0407 | B45: Closing value | C45: =SUM(C40+C41+C42+C43+C44) -> 1312656449 | D45: 1360267254 | E45: 1400995977 | F45: 1441205994 | G45: 1480599073 | H45: 1517307383 | I45: 1549700027 | K45: =SUM(K40+K41+K42+K43+K44) -> 1883151741 | L45: 1952420549 | M45: 2011754730 | N45: 2070317853 | O45: 2127735133 | P45: 2181313175 | Q45: 2228699202 | S45: =SUM(S40+S41+S42+S43+S44) -> 0 | T45: 0 | U45: 0 | V45: 0 | W45: 0 | X45: 0 | Y45: 0
B46: For overhead network assets 33kV and above:
A47: DRAB0501 | B47: Opening value | C47: 471918598 | D47: 485498012.4 | E47: 500383986.4 | F47: 513645786.7 | G47: 526786583.7 | H47: 539670671.3 | I47: 551795424.4 | K47: 617775659.4 | L47: 630462760.1 | M47: 645032619.5 | N47: 658069590.2 | O47: 671079769.8 | P47: 683672174.4 | Q47: 695316845.2 | S47: 0 | T47: 0 | U47: 0 | V47: 0 | W47: 0 | X47: 0 | Y47: 0
A48: DRAB0502 | B48: Inflation addition | C48: 8261891.401 | D48: 10636783.76 | E48: 11458371.45 | F48: 11438886.61 | G48: 11417971.41 | H48: 11390659.33 | I48: 11343717.64 | K48: 10810090.03 | L48: 13917465.69 | M48: 14992454.01 | N48: 14966959.51 | O48: 14939593.48 | P48: 14903857.59 | Q48: 14842437.76 | S48: 0 | T48: 0 | U48: 0 | V48: 0 | W48: 0 | X48: 0 | Y48: 0
A49: DRAB0503 | B49: Straight line depreciation | C49: -13459677.62 | D49: -13886044.42 | E49: -14139374.87 | F49: -13754836.4 | G49: -14292641.51 | H49: -14854026.58 | I49: -15413001.08 | K49: -17618282.87 | L49: -18176383.23 | M49: -18507984.6 | N49: -18004636.17 | O49: -18708605.67 | P49: -19443440.58 | Q49: -20175120.13 | S49: 0 | T49: 0 | U49: 0 | V49: 0 | W49: 0 | X49: 0 | Y49: 0
A50: DRAB0505 | B50: Actual additions (recognised in RAB) | C50: 18777200.64 | D50: 18135234.66 | E50: 15942803.72 | F50: 15456746.79 | G50: 15758757.69 | H50: 15588120.32 | I50: 14993269.38 | K50: 19495293.52 | L50: 18828776.96 | M50: 16552501.3 | N50: 16047856.19 | O50: 16361416.83 | P50: 16184253.81 | Q50: 15566654.11 | S50: 0 | T50: 0 | U50: 0 | V50: 0 | W50: 0 | X50: 0 | Y50: 0
A51: DRAB0506 | B51: Disposals | C51: 0 | D51: 0 | E51: 0 | F51: 0 | G51: 0 | H51: 0 | I51: 0 | K51: 0 | L51: 0 | M51: 0 | N51: 0 | O51: 0 | P51: 0 | Q51: 0 | S51: 0 | T51: 0 | U51: 0 | V51: 0 | W51: 0 | X51: 0 | Y51: 0
A52: DRAB0507 | B52: Closing value | C52: =SUM(C47+C48+C49+C50+C51) -> 485498012.4 | D52: 500383986.4 | E52: 513645786.7 | F52: 526786583.7 | G52: 539670671.3 | H52: 551795424.4 | I52: 562719410.4 | K52: =SUM(K47+K48+K49+K50+K51) -> 630462760.1 | L52: 645032619.5 | M52: 658069590.2 | N52: 671079769.8 | O52: 683672174.4 | P52: 695316845.2 | Q52: 705550817 | S52: =SUM(S47+S48+S49+S50+S51) -> 0 | T52: 0 | U52: 0 | V52: 0 | W52: 0 | X52: 0 | Y52: 0
B53: For underground network assets 33kV and above:
A54: DRAB0601 | B54: Opening value | C54: 697556949.8 | D54: 696640596.9 | E54: 698121990 | F54: 699146005.8 | G54: 700543904.7 | H54: 701136678.8 | I54: 700609361.2 | K54: 950731093.7 | L54: 945091247 | M54: 942869002 | N54: 940536332.2 | O54: 938826817.2 | P54: 935949555 | Q54: 931585897.6 | S54: 0 | T54: 0 | U54: 0 | V54: 0 | W54: 0 | X54: 0 | Y54: 0
A55: DRAB0602 | B55: Inflation addition | C55: 12190645.68 | D55: 15694864.02 | E55: 16907139.01 | F55: 16878388.61 | G55: 16847527.66 | H55: 16807227.94 | I55: 16737964.2 | K55: 16612200.83 | L55: 21387401.45 | M55: 23039369.37 | N55: 23000191.18 | O55: 22958136.95 | P55: 22903220.49 | Q55: 22808834.74 | S55: 0 | T55: 0 | U55: 0 | V55: 0 | W55: 0 | X55: 0 | Y55: 0
A56: DRAB0603 | B56: Straight line depreciation | C56: -23602219.04 | D56: -24349874.59 | E56: -24794102.22 | F56: -24119794.75 | G56: -25062862.95 | H56: -26047279.8 | I56: -27027469.59 | K56: -32161771.51 | L56: -33180570.91 | M56: -33785901.61 | N56: -32867050.6 | O56: -34152130.78 | P56: -35493555.06 | Q56: -36829219.31 | S56: 0 | T56: 0 | U56: 0 | V56: 0 | W56: 0 | X56: 0 | Y56: 0
A57: DRAB0605 | B57: Actual additions (recognised in RAB) | C57: 10495220.47 | D57: 10136403.7 | E57: 8910978.969 | F57: 8639305.105 | G57: 8808109.339 | H57: 8712734.269 | I57: 8380251.71 | K57: 9909723.918 | L57: 9570924.448 | M57: 8413862.449 | N57: 8157344.447 | O57: 8316731.604 | P57: 8226677.22 | Q57: 7912742.856 | S57: 0 | T57: 0 | U57: 0 | V57: 0 | W57: 0 | X57: 0 | Y57: 0
A58: DRAB0606 | B58: Disposals | C58: 0 | D58: 0 | E58: 0 | F58: 0 | G58: 0 | H58: 0 | I58: 0 | K58: 0 | L58: 0 | M58: 0 | N58: 0 | O58: 0 | P58: 0 | Q58: 0 | S58: 0 | T58: 0 | U58: 0 | V58: 0 | W58: 0 | X58: 0 | Y58: 0
A59: DRAB0607 | B59: Closing value | C59: =SUM(C54+C55+C56+C57+C58) -> 696640596.9 | D59: 698121990 | E59: 699146005.8 | F59: 700543904.7 | G59: 701136678.8 | H59: 700609361.2 | I59: 698700107.5 | K59: =SUM(K54+K55+K56+K57+K58) -> 945091247 | L59: 942869002 | M59: 940536332.2 | N59: 938826817.2 | O59: 935949555 | P59: 931585897.6 | Q59: 925478255.9 | S59: =SUM(S54+S55+S56+S57+S58) -> 0 | T59: 0 | U59: 0 | V59: 0 | W59: 0 | X59: 0 | Y59: 0
B60: Zone substations and transformers
A61: DRAB0701 | B61: Opening value | C61: 3031433724 | D61: 3077868331 | E61: 3134698676 | F61: 3187889643 | G61: 3241141153 | H61: 3292563306 | I61: 3339738627 | K61: 3102487743 | L61: 3149298094 | M61: 3206762063 | N61: 3260545702 | O61: 3314414672 | P61: 3366390369 | Q61: 3414023393 | S61: 0 | T61: 0 | U61: 0 | V61: 0 | W61: 0 | X61: 0 | Y61: 0
A62: DRAB0702 | B62: Inflation addition | C62: 53016551.48 | D62: 68256234.16 | E62: 73528361.75 | F62: 73403327.6 | G62: 73269114.77 | H62: 73093853.16 | I62: 72792628.36 | K62: 54259841.78 | L62: 69856910.02 | M62: 75252674.19 | N62: 75124707.87 | O62: 74987347.62 | P62: 74807975.95 | Q62: 74499687.13 | S62: 0 | T62: 0 | U62: 0 | V62: 0 | W62: 0 | X62: 0 | Y62: 0
A63: DRAB0703 | B63: Straight line depreciation | C63: -80694835.1 | D63: -83251032.91 | E63: -84769825.51 | F63: -82464401.17 | G63: -85688705.34 | H63: -89054378.5 | I63: -92405599.57 | K63: -82655889.28 | L63: -85274208.08 | M63: -86829910.54 | N63: -84468459.54 | O63: -87771121.07 | P63: -91218587.17 | Q63: -94651249.96 | S63: 0 | T63: 0 | U63: 0 | V63: 0 | W63: 0 | X63: 0 | Y63: 0
A64: DRAB0705 | B64: Actual additions (recognised in RAB) | C64: 77771416.75 | D64: 75112521.81 | E64: 66031910.51 | F64: 64018759.73 | G64: 65269628.59 | H64: 64562882.66 | I64: 62099128.83 | K64: 78864925.29 | L64: 76168644.84 | M64: 66960355.2 | N64: 64918898.42 | O64: 66187355.17 | P64: 65470672.01 | Q64: 62972276.46 | S64: 0 | T64: 0 | U64: 0 | V64: 0 | W64: 0 | X64: 0 | Y64: 0
A65: DRAB0706 | B65: Disposals | C65: -3658526.09 | D65: -3287378.328 | E65: -1599479.47 | F65: -1706176.881 | G65: -1427884.329 | H65: -1427036.818 | I65: -1427861.682 | K65: -3658526.09 | L65: -3287378.328 | M65: -1599479.47 | N65: -1706176.881 | O65: -1427884.329 | P65: -1427036.818 | Q65: -1427861.682 | S65: 0 | T65: 0 | U65: 0 | V65: 0 | W65: 0 | X65: 0 | Y65: 0
A66: DRAB0707 | B66: Closing value | C66: =SUM(C61+C62+C63+C64+C65) -> 3077868331 | D66: 3134698676 | E66: 3187889643 | F66: 3241141153 | G66: 3292563306 | H66: 3339738627 | I66: 3380796923 | K66: =SUM(K61+K62+K63+K64+K65) -> 3149298094 | L66: 3206762063 | M66: 3260545702 | N66: 3314414672 | O66: 3366390369 | P66: 3414023393 | Q66: 3455416245 | S66: =SUM(S61+S62+S63+S64+S65) -> 0 | T66: 0 | U66: 0 | V66: 0 | W66: 0 | X66: 0 | Y66: 0
B67: For easements:
A68: DRAB0801 | B68: Opening value | C68: 172039548 | D68: 176283051.6 | E68: 181349759.6 | F68: 186571866 | G68: 191754954.6 | H68: 196950254.3 | I68: 202124396.8 | K68: 172039548 | L68: 176283121.7 | M68: 181349897.3 | N68: 186572063.3 | O68: 191755209.5 | P68: 196950568.1 | Q68: 202124768.8 | S68: 0 | T68: 0 | U68: 0 | V68: 0 | W68: 0 | X68: 0 | Y68: 0
A69: DRAB0802 | B69: Inflation addition | C69: 3010458.152 | D69: 3875818.604 | E69: 4175187.745 | F69: 4168087.885 | G69: 4160466.83 | H69: 4150514.886 | I69: 4133410.328 | K69: 3010458.152 | L69: 3875818.604 | M69: 4175187.745 | N69: 4168087.885 | O69: 4160466.83 | P69: 4150514.886 | Q69: 4133410.328 | S69: 0 | T69: 0 | U69: 0 | V69: 0 | W69: 0 | X69: 0 | Y69: 0
A70: DRAB0803 | B70: Actual additions (recognised in RAB) | C70: 1233045.472 | D70: 1190889.388 | E70: 1046918.671 | F70: 1015000.692 | G70: 1034832.891 | H70: 1023627.619 | I70: 984565.4463 | K70: 1233115.553 | L70: 1190957.073 | M70: 1046978.173 | N70: 1015058.38 | O70: 1034891.706 | P70: 1023685.797 | Q70: 984621.4045 | S70: 0 | T70: 0 | U70: 0 | V70: 0 | W70: 0 | X70: 0 | Y70: 0
A71: DRAB0804 | B71: Disposals | C71: 0 | D71: 0 | E71: 0 | F71: 0 | G71: 0 | H71: 0 | I71: 0 | K71: 0 | L71: 0 | M71: 0 | N71: 0 | O71: 0 | P71: 0 | Q71: 0 | S71: 0 | T71: 0 | U71: 0 | V71: 0 | W71: 0 | X71: 0 | Y71: 0
A72: DRAB0805 | B72: Closing value | C72: =SUM(C68+C69+C70+C71) -> 176283051.6 | D72: =SUM(D68+D69+D70+D71) -> 181349759.6 | E72: =SUM(E68+E69+E70+E71) -> 186571866 | F72: 191754954.6 | G72: 196950254.3 | H72: 202124396.8 | I72: 207242372.6 | K72: =SUM(K68+K69+K70+K71) -> 176283121.7 | L72: =SUM(L68+L69+L70+L71) -> 181349897.3 | M72: =SUM(M68+M69+M70+M71) -> 186572063.3 | N72: 191755209.5 | O72: 196950568.1 | P72: 202124768.8 | Q72: 207242800.5 | S72: =SUM(S68+S69+S70+S71) -> 0 | T72: =SUM(T68+T69+T70+T71) -> 0 | U72: =SUM(U68+U69+U70+U71) -> 0 | V72: 0 | W72: 0 | X72: 0 | Y72: 0
B73: For meters:
A74: DRAB0901 | B74: Opening value | C74: 5061283.767 | D74: 12987073.51 | E74: 20644122 | F74: 27338679.29 | G74: 33831406.11 | H74: 40439785.97 | I74: 46955221.67 | K74: 53575859.45 | L74: 58914176.58 | M74: 64073582.81 | N74: 68197635.5 | O74: 72217820.59 | P74: 76197988.73 | Q74: 79904506.29 | S74: 367444561.9 | T74: 347773914.6 | U74: 333228230.8 | V74: 314164320.3 | W74: 293594869.6 | X74: 271939890.5 | Y74: 249032201.5
A75: DRAB0902 | B75: Inflation addition | C75: 93444.82994 | D75: 120305.6784 | E75: 129598.1173 | F75: 129377.7372 | G75: 129141.1791 | H75: 128832.2701 | I75: 128301.3434 | K75: 940749.021 | L75: 1211168.657 | M75: 1304719.609 | N75: 1302500.948 | O75: 1300119.417 | P75: 1297009.498 | Q75: 1291664.432 | S75: 7339909.755 | T75: 7838103.247 | U75: 8359497.552 | V75: 7902221.156 | W75: 7401875.756 | X75: 6898375.194 | Y75: 6381966.483
A76: DRAB0903 | B76: Straight line depreciation | C76: -422453.45 | D76: -435835.652 | E76: -443786.8323 | F76: -431717.479 | G76: -448597.3502 | H76: -466217.316 | I76: -483761.6223 | K76: -4539279.837 | L76: -4683072.153 | M76: -4768507.914 | N76: -4638822.213 | O76: -4820197.128 | P76: -5009524.392 | Q76: -5198038.69 | S76: -30413145.71 | T76: -31183797.42 | U76: -30812151.79 | V76: -31591162.62 | W76: -32376431.16 | X76: -33213445.21 | Y76: -33201844.32
A77: DRAB0905 | B77: Actual additions (recognised in RAB) | C77: 8254798.363 | D77: 7972578.462 | E77: 7008746.01 | F77: 6795066.557 | G77: 6927836.032 | H77: 6852820.746 | I77: 6591313.473 | K77: 8936847.943 | L77: 8631309.73 | M77: 7587840.988 | N77: 7356506.352 | O77: 7500245.854 | P77: 7419032.458 | Q77: 7135918.246 | S77: 3742648.201 | T77: 9081373.464 | U77: 3472176.448 | V77: 3224856.519 | W77: 3390281.448 | X77: 3478566.01 | Y77: 3423218.249
A78: DRAB0906 | B78: Disposals | C78: 0 | D78: 0 | E78: 0 | F78: 0 | G78: 0 | H78: 0 | I78: 0 | K78: 0 | L78: 0 | M78: 0 | N78: 0 | O78: 0 | P78: 0 | Q78: 0 | S78: -340059.5023 | T78: -281363.15 | U78: -83432.67751 | V78: -105365.7723 | W78: -70705.12625 | X78: -71184.99577 | Y78: -70419.22945
A79: DRAB0907 | B79: Closing value | C79: =SUM(C74+C75+C76+C77+C78) -> 12987073.51 | D79: 20644122 | E79: 27338679.29 | F79: 33831406.11 | G79: 40439785.97 | H79: 46955221.67 | I79: 53191074.86 | K79: =SUM(K74+K75+K76+K77+K78) -> 58914176.58 | L79: 64073582.81 | M79: 68197635.5 | N79: 72217820.59 | O79: 76197988.73 | P79: 79904506.29 | Q79: 83134050.28 | S79: =SUM(S74+S75+S76+S77+S78) -> 347773914.6 | T79: 333228230.8 | U79: 314164320.3 | V79: 293594869.6 | W79: 271939890.5 | X79: 249032201.5 | Y79: 225565122.7
B80: For “other” asset items with long lives:
A81: DRAB1001 | B81: Opening value | C81: 704375598.6 | D81: 711702503.8 | E81: 720563943 | F81: 727841534.7 | G81: 735030823.3 | H81: 741677932.2 | I81: 746326438.8 | K81: 704491072.1 | L81: 711976595.7 | M81: 720991684.9 | N81: 728404328.4 | O81: 735724627.6 | P81: 742505155.7 | Q81: 747285440.2 | S81: 137923017.5 | T81: 142159753.7 | U81: 167847438.2 | V81: 171932090.4 | W81: 174506515.5 | X81: 177270326.6 | Y81: 179847775.3
A82: DRAB1002 | B82: Inflation addition | C82: 12327173.23 | D82: 15870636.61 | E82: 17096488.31 | F82: 17067415.93 | G82: 17036209.36 | H82: 16995458.3 | I82: 16925418.85 | K82: 12329445.78 | L82: 15873562.4 | M82: 17099640.1 | N82: 17070562.36 | O82: 17039350.03 | P82: 16998591.47 | Q82: 16928539.1 | S82: 2767136.436 | T82: 2954954.735 | U82: 3151519.71 | V82: 2979127.103 | W82: 2790497.538 | X82: 2600678.481 | Y82: 2405993.068
A83: DRAB1003 | B83: Straight line depreciation | C83: -38512976.59 | D83: -39732965.28 | E83: -40457834.77 | F83: -39357531.96 | G83: -40896385.73 | H83: -42502710.24 | I83: -44102137.25 | K83: -38517174.67 | L83: -39737296.35 | M83: -40462244.85 | N83: -39361822.1 | O83: -40900843.61 | P83: -42507343.22 | Q83: -44106944.57 | S83: -12703980.3 | T83: -13025891.88 | U83: -12870650.5 | V83: -13196053.81 | W83: -13524071.05 | X83: -13873703.08 | Y83: -13868857.24
A84: DRAB1005 | B84: Actual additions (recognised in RAB) | C84: 38817765.52 | D84: 37490640.92 | E84: 32958268.3 | F84: 31953451.64 | G84: 32577793.28 | H84: 32225037.75 | I84: 30995313.23 | K84: 38978309.53 | L84: 37645696.16 | M84: 33094578.38 | N84: 32085605.96 | O84: 32712529.78 | P84: 32358315.31 | Q84: 31123504.84 | S84: 14992538.94 | T84: 36378745.19 | U84: 13909065.93 | V84: 12918335.98 | W84: 13581005.71 | X84: 13934661.65 | Y84: 13712946.05
A85: DRAB1006 | B85: Disposals | C85: -5305056.998 | D85: -4766873.046 | E85: -2319330.12 | F85: -2474047.029 | G85: -2070508.059 | H85: -2069279.122 | I85: -2070475.22 | K85: -5305056.998 | L85: -4766873.046 | M85: -2319330.12 | N85: -2474047.029 | O85: -2070508.059 | P85: -2069279.122 | Q85: -2070475.22 | S85: -818958.9149 | T85: -620123.5471 | U85: -105282.9288 | V85: -126984.1952 | W85: -83621.04448 | X85: -84188.34964 | Y85: -83282.47956
A86: DRAB1007 | B86: Closing value | C86: =SUM(C81+C82+C83+C84+C85) -> 711702503.8 | D86: 720563943 | E86: 727841534.7 | F86: 735030823.3 | G86: 741677932.2 | H86: 746326438.8 | I86: 748074558.4 | K86: =SUM(K81+K82+K83+K84+K85) -> 711976595.7 | L86: 720991684.9 | M86: 728404328.4 | N86: 735724627.6 | O86: 742505155.7 | P86: 747285440.2 | Q86: 749160064.3 | S86: =SUM(S81+S82+S83+S84+S85) -> 142159753.7 | T86: 167847438.2 | U86: 171932090.4 | V86: 174506515.5 | W86: 177270326.6 | X86: 179847775.3 | Y86: 182014574.7
B87: For “other” asset items with short lives:
A88: DRAB1101 | B88: Opening value | C88: 139678652.4 | D88: 125636575.5 | E88: 111219200.3 | F88: 97755205.39 | G88: 84230086.94 | H88: 70550175.25 | I88: 55109352.69 | K88: 139678652.4 | L88: 125641325 | M88: 261446254.7 | N88: 247986292.3 | O88: 234465083.6 | P88: 220789157.9 | Q88: 205352278.2 | S88: 7677842.351 | T88: 7408516.509 | U88: 9395007.329 | V88: 9004011.243 | W88: 8444940.118 | X88: 7894049.412 | Y88: 7314624.944
A89: DRAB1102 | B89: Inflation addition | C89: 2441870.28 | D89: 3143789.344 | E89: 3386616.373 | F89: 3380857.47 | G89: 3374675.809 | H89: 3366603.498 | I89: 3352729.493 | K89: 2441870.28 | L89: 3143789.344 | M89: 3386616.373 | N89: 3380857.47 | O89: 3374675.809 | P89: 3366603.498 | Q89: 3352729.493 | S89: 153862.2438 | T89: 164305.5832 | U89: 175235.2677 | V89: 165649.6495 | W89: 155161.2009 | X89: 144606.6126 | Y89: 133781.4382
A90: DRAB1103 | B90: Straight line depreciation | C90: -35626792.03 | D90: -36755354.07 | E90: -37425901.42 | F90: -36408055.94 | G90: -37831587.12 | H90: -39317532.75 | I90: -40797097.78 | K90: -35626792.03 | L90: -36755354.07 | M90: -37425901.42 | N90: -36408055.94 | O90: -37831587.12 | P90: -39317532.75 | Q90: -40797097.78 | S90: -2033400.776 | T90: -2084925.988 | U90: -2060078.032 | V90: -2112162.129 | W90: -2164664.612 | X90: -2220626.761 | Y90: -2219851.134
A91: DRAB1105 | B91: Actual additions (recognised in RAB) | C91: 29636818.56 | D91: 28623577.57 | E91: 25163174.76 | F91: 24396011.36 | G91: 24872687.43 | H91: 24603363.54 | I91: 23664486.14 | K91: 29641568.09 | L91: 178845882.4 | M91: 25167207.36 | N91: 24399921.02 | O91: 24876673.48 | P91: 24607306.42 | Q91: 23668278.56 | S91: 1610212.691 | T91: 3907111.226 | U91: 1493846.678 | V91: 1387441.355 | W91: 1458612.704 | X91: 1496595.681 | Y91: 1472783.22
A92: DRAB1106 | B92: Disposals | C92: -10493973.79 | D92: -9429387.996 | E92: -4587884.634 | F92: -4893931.332 | G92: -4095687.812 | H92: -4093256.843 | I92: -4095622.853 | K92: -10493973.79 | L92: -9429387.996 | M92: -4587884.634 | N92: -4893931.332 | O92: -4095687.812 | P92: -4093256.843 | Q92: -4095622.853 | S92: 0 | T92: 0 | U92: 0 | V92: 0 | W92: 0 | X92: 0 | Y92: 0
A93: DRAB1107 | B93: Closing value | C93: =SUM(C88+C89+C90+C91+C92) -> 125636575.5 | D93: 111219200.3 | E93: 97755205.39 | F93: 84230086.94 | G93: 70550175.25 | H93: 55109352.69 | I93: 37233847.69 | K93: =SUM(K88+K89+K90+K91+K92) -> 125641325 | L93: 261446254.7 | M93: 247986292.3 | N93: 234465083.6 | O93: 220789157.9 | P93: 205352278.2 | Q93: 187480565.7 | S93: =SUM(S88+S89+S90+S91+S92) -> 7408516.509 | T93: 9395007.329 | U93: 9004011.243 | V93: 8444940.118 | W93: 7894049.412 | X93: 7314624.944 | Y93: 6701338.468
B97: 3.3.3 - TOTAL DISAGGREGATED RAB ASSET VALUES
C98: Network services | K98: Standard control services | S98: Alternative control services
C99: =CONCATENATE("Forecast ($0's, real ", dms_DollarReal,")") -> Forecast ($0's, real June 2020) | K99: =CONCATENATE("Forecast ($0's, real ", dms_DollarReal,")") -> Forecast ($0's, real June 2020) | S99: =CONCATENATE("Forecast ($0's, real ", dms_DollarReal,")") -> Forecast ($0's, real June 2020)
C100: =CRCP_y4 -> 2018-19 | D100: =CRCP_y5 -> 2019-20 | E100: =FRCP_y1 -> 2020-21 | F100: =FRCP_y2 -> 2021-22 | G100: =FRCP_y3 -> 2022-23 | H100: =FRCP_y4 -> 2023-24 | I100: =FRCP_y5 -> 2024-25 | K100: =CRCP_y4 -> 2018-19 | L100: =CRCP_y5 -> 2019-20 | M100: =FRCP_y1 -> 2020-21 | N100: =FRCP_y2 -> 2021-22 | O100: =FRCP_y3 -> 2022-23 | P100: =FRCP_y4 -> 2023-24 | Q100: =FRCP_y5 -> 2024-25 | S100: =CRCP_y4 -> 2018-19 | T100: =CRCP_y5 -> 2019-20 | U100: =FRCP_y1 -> 2020-21 | V100: =FRCP_y2 -> 2021-22 | W100: =FRCP_y3 -> 2022-23 | X100: =FRCP_y4 -> 2023-24 | Y100: =FRCP_y5 -> 2024-25
A101: DRAB1201 | B101: Overhead network assets less than 33kV (wires and poles) | C101: 1800721029 | D101: 1939010952 | E101: 2069267094 | F101: 2189510589 | G101: 2308542333 | H101: 2425704840 | I101: 2536964054 | K101: 2507637954 | L101: 2654019820 | M101: 2792689722 | N101: 2920699971 | O101: 3047235993 | P101: 3170938581 | Q101: 3287278806 | S101: 0 | T101: 0 | U101: 0 | V101: 0 | W101: 0 | X101: 0 | Y101: 0
A102: DRAB1202 | B102: Underground network assets less than 33kV (cables) | C102: 2025290850 | D102: 2037056612 | E102: 2053009231 | F102: 2069523679 | G102: 2085589374 | H102: 2099701955 | I102: 2111304027 | K102: 2589858361 | L102: 2612099410 | M102: 2639133837 | N102: 2666362224 | O102: 2692981490 | P102: 2717132001 | Q102: 2737927076 | S102: 0 | T102: 0 | U102: 0 | V102: 0 | W102: 0 | X102: 0 | Y102: 0
A103: DRAB1203 | B103: Distribution substations including transformers | C103: 1290092860 | D103: 1336461852 | E103: 1380631616 | F103: 1421100985 | G103: 1460902534 | H103: 1498953228 | I103: 1533503705 | K103: 1850292756 | L103: 1917786145 | M103: 1982087640 | N103: 2041036291 | O103: 2099026493 | P103: 2154524154 | Q103: 2205006188 | S103: 0 | T103: 0 | U103: 0 | V103: 0 | W103: 0 | X103: 0 | Y103: 0
A104: DRAB1204 | B104: Overhead network assets 33kV and above (wires and towers / poles etc) | C104: 478708305.2 | D104: 492940999.4 | E104: 507014886.6 | F104: 520216185.2 | G104: 533228627.5 | H104: 545733047.9 | I104: 557257417.4 | K104: 624119209.8 | L104: 637747689.8 | M104: 651551104.9 | N104: 664574680 | O104: 677375972.1 | P104: 689494509.8 | Q104: 700433831.1 | S104: 0 | T104: 0 | U104: 0 | V104: 0 | W104: 0 | X104: 0 | Y104: 0
A105: DRAB1205 | B105: Underground network assets 33kV and above(cables, ducts etc) | C105: 697098773.3 | D105: 697381293.4 | E105: 698633997.9 | F105: 699844955.2 | G105: 700840291.7 | H105: 700873020 | I105: 699654734.3 | K105: 947911170.3 | L105: 943980124.5 | M105: 941702667.1 | N105: 939681574.7 | O105: 937388186.1 | P105: 933767726.3 | Q105: 928532076.8 | S105: 0 | T105: 0 | U105: 0 | V105: 0 | W105: 0 | X105: 0 | Y105: 0
A106: DRAB1206 | B106: Zone substations and transformers | C106: 3054651028 | D106: 3106283504 | E106: 3161294160 | F106: 3214515398 | G106: 3266852229 | H106: 3316150967 | I106: 3360267775 | K106: 3125892919 | L106: 3178030079 | M106: 3233653883 | N106: 3287480187 | O106: 3340402521 | P106: 3390206881 | Q106: 3434719819 | S106: 0 | T106: 0 | U106: 0 | V106: 0 | W106: 0 | X106: 0 | Y106: 0
A107: DRAB1207 | B107: Easements | C107: 174161299.8 | D107: 178816405.6 | E107: 183960812.8 | F107: 189163410.3 | G107: 194352604.4 | H107: 199537325.6 | I107: 204683384.7 | K107: 174161334.8 | L107: 178816509.5 | M107: 183960980.3 | N107: 189163636.4 | O107: 194352888.8 | P107: 199537668.4 | Q107: 204683784.6 | S107: 0 | T107: 0 | U107: 0 | V107: 0 | W107: 0 | X107: 0 | Y107: 0
A108: DRAB1208 | B108: Meters | C108: 9024178.639 | D108: 16815597.75 | E108: 23991400.65 | F108: 30585042.7 | G108: 37135596.04 | H108: 43697503.82 | I108: 50073148.27 | K108: 56245018.02 | L108: 61493879.7 | M108: 66135609.16 | N108: 70207728.04 | O108: 74207904.66 | P108: 78051247.51 | Q108: 81519278.29 | S108: 357609238.3 | T108: 340501072.7 | U108: 323696275.5 | V108: 303879594.9 | W108: 282767380 | X108: 260486046 | Y108: 237298662.1
A109: DRAB1209 | B109: “Other” assets with long lives | C109: 708039051.2 | D109: 716133223.4 | E109: 724202738.9 | F109: 731436179 | G109: 738354377.7 | H109: 744002185.5 | I109: 747200498.6 | K109: 708233833.9 | L109: 716484140.3 | M109: 724698006.6 | N109: 732064478 | O109: 739114891.7 | P109: 744895297.9 | Q109: 748222752.2 | S109: 140041385.6 | T109: 155003595.9 | U109: 169889764.3 | V109: 173219302.9 | W109: 175888421 | X109: 178559051 | Y109: 180931175
A110: DRAB1210 | B110: “Other” assets with short lives | C110: 132657614 | D110: 118427887.9 | E110: 104487202.8 | F110: 90992646.16 | G110: 77390131.1 | H110: 62829763.97 | I110: 46171600.19 | K110: 132659988.7 | L110: 193543789.8 | M110: 254716273.5 | N110: 241225687.9 | O110: 227627120.7 | P110: 213070718.1 | Q110: 196416421.9 | S110: 7543179.43 | T110: 8401761.919 | U110: 9199509.286 | V110: 8724475.681 | W110: 8169494.765 | X110: 7604337.178 | Y110: 7007981.706
A111: DRAB13 | B111: Value of Capital Contributions or Contributed Assets (included in the above) | C111: 0 | D111: 0 | E111: 0 | F111: 0 | G111: 0 | H111: 0 | I111: 0 | K111: 0 | L111: 0 | M111: 0 | N111: 0 | O111: 0 | P111: 0 | Q111: 0 | S111: 0 | T111: 0 | U111: 0 | V111: 0 | W111: 0 | X111: 0 | Y111: 0
B114: 3.3.4 - ASSET LIVES
C115: Network services | K115: Standard control services | S115: Alternative control services
C116: Forecast ( years ) | K116: Forecast ( years ) | S116: Forecast ( years )
C117: =CRCP_y4 -> 2018-19 | D117: =CRCP_y5 -> 2019-20 | E117: =FRCP_y1 -> 2020-21 | F117: =FRCP_y2 -> 2021-22 | G117: =FRCP_y3 -> 2022-23 | H117: =FRCP_y4 -> 2023-24 | I117: =FRCP_y5 -> 2024-25 | K117: =CRCP_y4 -> 2018-19 | L117: =CRCP_y5 -> 2019-20 | M117: =FRCP_y1 -> 2020-21 | N117: =FRCP_y2 -> 2021-22 | O117: =FRCP_y3 -> 2022-23 | P117: =FRCP_y4 -> 2023-24 | Q117: =FRCP_y5 -> 2024-25 | S117: =CRCP_y4 -> 2018-19 | T117: =CRCP_y5 -> 2019-20 | U117: =FRCP_y1 -> 2020-21 | V117: =FRCP_y2 -> 2021-22 | W117: =FRCP_y3 -> 2022-23 | X117: =FRCP_y4 -> 2023-24 | Y117: =FRCP_y5 -> 2024-25
B118: Estimated service life of new assets
A119: DRAB1401 | B119: Overhead network assets less than 33kV (wires and poles) | C119: 45 | D119: 45 | E119: 45 | F119: 45 | G119: 45 | H119: 45 | I119: 45 | K119: 44 | L119: 44 | M119: 44 | N119: 44 | O119: 44 | P119: 44 | Q119: 44 | S119: 0 | T119: 0 | U119: 0 | V119: 0 | W119: 0 | X119: 0 | Y119: 0
A120: DRAB1402 | B120: Underground network assets less than 33kV (cables) | C120: 60 | D120: 60 | E120: 60 | F120: 60 | G120: 60 | H120: 60 | I120: 60 | K120: 60 | L120: 60 | M120: 60 | N120: 60 | O120: 60 | P120: 60 | Q120: 60 | S120: 0 | T120: 0 | U120: 0 | V120: 0 | W120: 0 | X120: 0 | Y120: 0
A121: DRAB1403 | B121: Distribution substations including transformers | C121: 39 | D121: 39 | E121: 39 | F121: 39 | G121: 39 | H121: 39 | I121: 39 | K121: 39 | L121: 39 | M121: 39 | N121: 39 | O121: 39 | P121: 39 | Q121: 39 | S121: 0 | T121: 0 | U121: 0 | V121: 0 | W121: 0 | X121: 0 | Y121: 0
A122: DRAB1404 | B122: Overhead network assets 33kV and above (wires and towers / poles etc) | C122: 51 | D122: 51 | E122: 51 | F122: 51 | G122: 51 | H122: 51 | I122: 51 | K122: 51 | L122: 51 | M122: 51 | N122: 51 | O122: 51 | P122: 51 | Q122: 51 | S122: 0 | T122: 0 | U122: 0 | V122: 0 | W122: 0 | X122: 0 | Y122: 0
A123: DRAB1405 | B123: Underground network assets 33kV and above(cables, ducts etc) | C123: 45 | D123: 45 | E123: 45 | F123: 45 | G123: 45 | H123: 45 | I123: 45 | K123: 45 | L123: 45 | M123: 45 | N123: 45 | O123: 45 | P123: 45 | Q123: 45 | S123: 0 | T123: 0 | U123: 0 | V123: 0 | W123: 0 | X123: 0 | Y123: 0
A124: DRAB1406 | B124: Zone substations and transformers | C124: 50 | D124: 50 | E124: 50 | F124: 50 | G124: 50 | H124: 50 | I124: 50 | K124: 50 | L124: 50 | M124: 50 | N124: 50 | O124: 50 | P124: 50 | Q124: 50 | S124: 0 | T124: 0 | U124: 0 | V124: 0 | W124: 0 | X124: 0 | Y124: 0
A125: DRAB1407 | B125: Meters | C125: 15 | D125: 15 | E125: 15 | F125: 15 | G125: 15 | H125: 15 | I125: 15 | K125: 15 | L125: 15 | M125: 15 | N125: 15 | O125: 15 | P125: 15 | Q125: 15 | S125: 15 | T125: 15 | U125: 15 | V125: 15 | W125: 15 | X125: 15 | Y125: 15
A126: DRAB1408 | B126: “Other” assets with long lives | C126: 34 | D126: 34 | E126: 34 | F126: 34 | G126: 34 | H126: 34 | I126: 34 | K126: 34 | L126: 34 | M126: 34 | N126: 34 | O126: 34 | P126: 34 | Q126: 34 | S126: 22 | T126: 22 | U126: 22 | V126: 22 | W126: 22 | X126: 22 | Y126: 22
A127: DRAB1409 | B127: “Other” assets with short lives | C127: 8 | D127: 8 | E127: 8 | F127: 8 | G127: 8 | H127: 8 | I127: 8 | K127: 8 | L127: 8 | M127: 8 | N127: 8 | O127: 8 | P127: 8 | Q127: 8 | S127: 8 | T127: 8 | U127: 8 | V127: 8 | W127: 8 | X127: 8 | Y127: 8
B128: Estimated residual service life
A129: DRAB1501 | B129: Overhead network assets less than 33kV (wires and poles) | C129: 33 | D129: 33 | E129: 33 | F129: 33 | G129: 33 | H129: 33 | I129: 33 | K129: 32 | L129: 32 | M129: 32 | N129: 32 | O129: 32 | P129: 32 | Q129: 32 | S129: 0 | T129: 0 | U129: 0 | V129: 0 | W129: 0 | X129: 0 | Y129: 0
A130: DRAB1502 | B130: Underground network assets less than 33kV (cables) | C130: 45 | D130: 45 | E130: 45 | F130: 45 | G130: 45 | H130: 45 | I130: 45 | K130: 45 | L130: 45 | M130: 45 | N130: 45 | O130: 45 | P130: 45 | Q130: 45 | S130: 0 | T130: 0 | U130: 0 | V130: 0 | W130: 0 | X130: 0 | Y130: 0
A131: DRAB1503 | B131: Distribution substations including transformers | C131: 28 | D131: 28 | E131: 28 | F131: 28 | G131: 28 | H131: 28 | I131: 28 | K131: 28 | L131: 28 | M131: 28 | N131: 28 | O131: 28 | P131: 28 | Q131: 28 | S131: 0 | T131: 0 | U131: 0 | V131: 0 | W131: 0 | X131: 0 | Y131: 0
A132: DRAB1504 | B132: Overhead network assets 33kV and above (wires and towers / poles etc) | C132: 37 | D132: 37 | E132: 37 | F132: 37 | G132: 37 | H132: 37 | I132: 37 | K132: 37 | L132: 37 | M132: 37 | N132: 37 | O132: 37 | P132: 37 | Q132: 37 | S132: 0 | T132: 0 | U132: 0 | V132: 0 | W132: 0 | X132: 0 | Y132: 0
A133: DRAB1505 | B133: Underground network assets 33kV and above (cables, ducts etc) | C133: 31 | D133: 31 | E133: 31 | F133: 31 | G133: 31 | H133: 31 | I133: 31 | K133: 31 | L133: 31 | M133: 31 | N133: 31 | O133: 31 | P133: 31 | Q133: 31 | S133: 0 | T133: 0 | U133: 0 | V133: 0 | W133: 0 | X133: 0 | Y133: 0
A134: DRAB1506 | B134: Zone substations and transformers | C134: 37 | D134: 37 | E134: 37 | F134: 37 | G134: 37 | H134: 37 | I134: 37 | K134: 37 | L134: 37 | M134: 37 | N134: 37 | O134: 37 | P134: 37 | Q134: 37 | S134: 0 | T134: 0 | U134: 0 | V134: 0 | W134: 0 | X134: 0 | Y134: 0
A135: DRAB1507 | B135: Meters | C135: 15 | D135: 15 | E135: 15 | F135: 15 | G135: 15 | H135: 15 | I135: 15 | K135: 11 | L135: 11 | M135: 11 | N135: 11 | O135: 11 | P135: 11 | Q135: 11 | S135: 13 | T135: 13 | U135: 13 | V135: 13 | W135: 13 | X135: 13 | Y135: 13
A136: DRAB1508 | B136: “Other” assets with long lives | C136: 26 | D136: 26 | E136: 26 | F136: 26 | G136: 26 | H136: 26 | I136: 26 | K136: 26 | L136: 26 | M136: 26 | N136: 26 | O136: 26 | P136: 26 | Q136: 26 | S136: 14 | T136: 14 | U136: 14 | V136: 14 | W136: 14 | X136: 14 | Y136: 14
A137: DRAB1509 | B137: “Other” assets with short lives | C137: 5 | D137: 5 | E137: 5 | F137: 5 | G137: 5 | H137: 5 | I137: 5 | K137: 5 | L137: 5 | M137: 5 | N137: 5 | O137: 5 | P137: 5 | Q137: 5 | S137: 5 | T137: 5 | U137: 5 | V137: 5 | W137: 5 | X137: 5 | Y137: 5

Sheet 3.4 Operational data
B1: =SheetHeader -> REGULATORY REPORTING STATEMENT
B2: =dms_TradingName -> Energex
B3: =dms_Reg_Year_Span -> 2020-21 to 2024-25
B4: 3.4 OPERATIONAL DATA
B6: There are TWO tables on this worksheet. Each table has been grouped for ease of navigation. See the Instructions sheet on how to group or ungroup tables.
B9: 3.4.1 - ENERGY DELIVERY
D10: Standard control services
D11: Forecast
C12: Units | D12: =CRCP_y4 -> 2018-19 | E12: =CRCP_y5 -> 2019-20 | F12: =FRCP_y1 -> 2020-21 | G12: =FRCP_y2 -> 2021-22 | H12: =FRCP_y3 -> 2022-23 | I12: =FRCP_y4 -> 2023-24 | J12: =FRCP_y5 -> 2024-25
A13: DOPED01 | B13: Total energy delivered | C13: GWh | D13: 21156.26793 | E13: 21163.37724 | F13: 21222.55454 | G13: 21307.91466 | H13: 21287.74569 | I13: 21435.13725 | J13: 21554.72041
B14: 3.4.1.1 - Energy grouping - delivery by chargeable quantity
A15: DOPED0201 | B15: Energy Delivery where time of use is not a determinant | C15: GWh | D15: 7622.206497 | E15: 7582.415473 | F15: 7612.528686 | G15: 7681.153852 | H15: 7718.851774 | I15: 7860.873302 | J15: 7980.297818
A16: DOPED0202 | B16: Energy Delivery at On-peak times | C16: GWh | D16: 6719.509059 | E16: 6749.208277 | F16: 6773.314187 | G16: 6787.991467 | H16: 6759.193131 | I16: 6765.887072 | J16: 6771.762595
A17: DOPED0203 | B17: Energy Delivery at Shoulder times | C17: GWh | D17: 0 | E17: 0 | F17: 0 | G17: 0 | H17: 0 | I17: 0 | J17: 0
A18: DOPED0204 | B18: Energy Delivery at Off-peak times | C18: GWh | D18: 5283.816189 | E18: 5318.466642 | F18: 5348.403072 | G18: 5372.051656 | H18: 5364.487945 | I18: 5381.75119 | J18: 5400.001679
A19: DOPED0205 | B19: Controlled load energy deliveries | C19: GWh | D19: 1347.495103 | E19: 1327.751819 | F19: 1301.418288 | G19: 1278.002765 | H19: 1254.673305 | I19: 1233.772212 | J19: 1208.46955
A20: DOPED0206 | B20: Energy Delivery to unmetered supplies | C20: GWh | D20: 183.2410859 | E20: 185.5350272 | F20: 186.8903118 | G20: 188.7149248 | H20: 190.5395377 | I20: 192.8534748 | J20: 194.1887636
B21: 3.4.1.2 - Energy - received from TNSP and other DNSPs by time of receipt
A22: DOPED0301 | B22: Energy into DNSP network at On-peak times | C22: GWh | D22: 9564.674451 | E22: 9470.05883 | F22: 9388.206643 | G22: 9320.175814 | H22: 9202.900624 | I22: 9167.398737 | J22: 9125.385831
A23: DOPED0302 | B23: Energy into DNSP network at Shoulder times | C23: GWh | D23: 0 | E23: 0 | F23: 0 | G23: 0 | H23: 0 | I23: 0 | J23: 0
A24: DOPED0303 | B24: Energy into DNSP network at Off-peak times | C24: GWh | D24: 11167.38949 | E24: 11168.75951 | F24: 11184.31315 | G24: 11215.76881 | H24: 11186.95831 | I24: 11256.93244 | J24: 11319.2164
A25: DOPED0304 | B25: Energy received from TNSP and other DNSPs not included in the above categories | C25: GWh | D25: 0.5 | E25: 0.5 | F25: 0.5 | G25: 0.5 | H25: 0.5 | I25: 0.5 | J25: 0.5
B26: 3.4.1.3 - Energy - received into DNSP system from embedded generation by time of receipt
A27: DOPED0401 | B27: Energy into DNSP network at On-peak times from non-residential embedded generation | C27: GWh | D27: 103.6715958 | E27: 103.7170126 | F27: 103.2000985 | G27: 102.9633833 | H27: 102.7210089 | I27: 102.7530729 | J27: 102.219931
A28: DOPED0402 | B28: Energy into DNSP network at Shoulder times from non-residential embedded generation | C28: GWh | D28: 0 | E28: 0 | F28: 0 | G28: 0 | H28: 0 | I28: 0 | J28: 0
A29: DOPED0403 | B29: Energy into DNSP network at Off-peak times from non-residential embedded generation | C29: GWh | D29: 129.0114597 | E29: 128.5705965 | F29: 127.4354331 | G29: 126.6525399 | H29: 125.8683789 | I29: 125.4249781 | J29: 124.2968594
A30: DOPED0404 | B30: Energy received from embedded generation not included in above categories from non-residential embedded generation | C30: GWh | D30: 0 | E30: 0 | F30: 0 | G30: 0 | H30: 0 | I30: 0 | J30: 0
A31: DOPED0405 | B31: Energy into DNSP network at On-peak times from residential embedded generation | C31: GWh | D31: 1143.914828 | E31: 1244.596654 | F31: 1374.018104 | G31: 1500.459681 | H31: 1626.156731 | I31: 1746.115925 | J31: 1852.467221
A32: DOPED0406 | B32: Energy into DNSP network at Shoulder times from residential embedded generation | C32: GWh | D32: 0 | E32: 0 | F32: 0 | G32: 0 | H32: 0 | I32: 0 | J32: 0
A33: DOPED0407 | B33: Energy into DNSP network at Off-peak times from residential embedded generation | C33: GWh | D33: 0 | E33: 0 | F33: 0 | G33: 0 | H33: 0 | I33: 0 | J33: 0
A34: DOPED0408 | B34: Energy received from embedded generation not included in above categories from residential embedded generation | C34: GWh | D34: 0 | E34: 0 | F34: 0 | G34: 0 | H34: 0 | I34: 0 | J34: 0
B35: 3.4.1.4 - Energy grouping - customer type or class
A36: DOPED0501 | B36: Residential customers energy deliveries | C36: GWh | D36: 7556.259583 | E36: 7477.777767 | F36: 7466.091596 | G36: 7488.054022 | H36: 7481.041369 | I36: 7574.162928 | J36: 7642.2693
A37: DOPED0502 | B37: Non residential customers not on demand tariffs energy deliveries | C37: GWh | D37: 1824.894461 | E37: 1840.723292 | F37: 1852.725682 | G37: 1875.034709 | H37: 1897.162943 | I37: 1931.226421 | J37: 1967.024617
A38: DOPED0503 | B38: Non-residential low voltage demand tariff customers energy deliveries | C38: GWh | D38: 5825.438663 | E38: 5857.169332 | F38: 5868.356671 | G38: 5900.66993 | H38: 5918.784739 | I38: 5959.471697 | J38: 5989.501615
A39: DOPED0504 | B39: Non-residential high voltage demand tariff customers energy deliveries | C39: GWh | D39: 5766.434141 | E39: 5802.171819 | F39: 5848.490285 | G39: 5855.441078 | H39: 5800.217105 | I39: 5777.42273 | J39: 5761.736109
A40: DOPED0505 | B40: Other Customer Class Energy Deliveries | C40: GWh | D40: 183.2410859 | E40: 185.5350272 | F40: 186.8903118 | G40: 188.7149248 | H40: 190.5395377 | I40: 192.8534748 | J40: 194.1887636
B44: 3.4.3 - SYSTEM DEMAND
D45: Standard control services
D46: Forecast
C47: Units | D47: =CRCP_y4 -> 2018-19 | E47: =CRCP_y5 -> 2019-20 | F47: =FRCP_y1 -> 2020-21 | G47: =FRCP_y2 -> 2021-22 | H47: =FRCP_y3 -> 2022-23 | I47: =FRCP_y4 -> 2023-24 | J47: =FRCP_y5 -> 2024-25
B48: 3.4.3.1 - Annual system maximum demand characteristics at the zone substation level – MW measure
A49: DOPSD0102 | B49: Non–coincident Summated Weather Adjusted System Annual Maximum Demand 10% POE | C49: MW | D49: 5552.431102 | E49: 5558.420755 | F49: 5592.658027 | G49: 5619.21572 | H49: 5607.49215 | I49: 5617.612895 | J49: 5644.967276
A50: DOPSD0103 | B50: Non–coincident Summated Weather Adjusted System Annual Maximum Demand 50% POE | C50: MW | D50: 5098.535035 | E50: 5112.708964 | F50: 5132.271747 | G50: 5164.145531 | H50: 5153.212333 | I50: 5151.456597 | J50: 5175.056813
A51: DOPSD0105 | B51: Coincident Weather Adjusted System Annual Maximum Demand 10% POE | C51: MW | D51: 5243.047958 | E51: 5247.030318 | F51: 5278.196039 | G51: 5303.364937 | H51: 5291.263796 | I51: 5302.40719 | J51: 5328.494395
A52: DOPSD0106 | B52: Coincident Weather Adjusted System Annual Maximum Demand 50% POE | C52: MW | D52: 4808.460097 | E52: 4819.731794 | F52: 4836.974972 | G52: 4866.759128 | H52: 4855.861423 | I52: 4855.41 | J52: 4878.02618
B53: 3.4.3.2 - Annual system maximum demand characteristics at the transmission connection point – MW measure
A54: DOPSD0108 | B54: Non–coincident Summated Weather Adjusted System Annual Maximum Demand 10% POE | C54: MW | D54: 5626.980227 | E54: 5642.064716 | F54: 5704.784398 | G54: 5727.460772 | H54: 5694.593794 | I54: 5710.315243 | J54: 5740.998175
A55: DOPSD0109 | B55: Non–coincident Summated Weather Adjusted System Annual Maximum Demand 50% POE | C55: MW | D55: 5191.520136 | E55: 5214.306129 | F55: 5263.347043 | G55: 5290.357638 | H55: 5257.893279 | I55: 5262.35539 | J55: 5289.398374
A56: DOPSD0111 | B56: Coincident Weather Adjusted System Annual Maximum Demand 10% POE | C56: MW | D56: 5382.122289 | E56: 5398.612813 | F56: 5461.052323 | G56: 5486.065957 | H56: 5451.976874 | I56: 5468.757687 | J56: 5500.566899
A57: DOPSD0112 | B57: Coincident Weather Adjusted System Annual Maximum Demand 50% POE | C57: MW | D57: 4951.51932 | E57: 4975.324002 | F57: 5024.037138 | G57: 5053.301931 | H57: 5020.258442 | I57: 5026.167982 | J57: 5054.397228
B58: 3.4.3.3 - Annual system maximum demand characteristics at the zone substation level – MVA measure
A59: DOPSD0202 | B59: Non–coincident Summated Weather Adjusted System Annual Maximum Demand 10% POE | C59: MVA | D59: 5985.289475 | E59: 5991.491513 | F59: 6027.186475 | G59: 6052.955566 | H59: 6042.890763 | I59: 6052.893237 | J59: 6081.711665
A60: DOPSD0203 | B60: Non–coincident Summated Weather Adjusted System Annual Maximum Demand 50% POE | C60: MVA | D60: 5500.350727 | E60: 5511.647275 | F60: 5536.856476 | G60: 5570.812518 | H60: 5558.835209 | I60: 5555.724276 | J60: 5580.5726
A61: DOPSD0205 | B61: Coincident Weather Adjusted System Annual Maximum Demand 10% POE | C61: MVA | D61: 5390.812345 | E61: 5395.267569 | F61: 5428.063339 | G61: 5454.853928 | H61: 5443.201722 | I61: 5456.320932 | J61: 5482.10109
A62: DOPSD0206 | B62: Coincident Weather Adjusted System Annual Maximum Demand 50% POE | C62: MVA | D62: 4946.550128 | E62: 4958.39214 | F62: 4976.469733 | G62: 5008.560441 | H62: 4997.498585 | I62: 4998.25134 | J62: 5021.406971
B63: 3.4.3.4 - Annual system maximum demand characteristics at the transmission connection point – MVA measure
A64: DOPSD0208 | B64: Non–coincident Summated Weather Adjusted System Annual Maximum Demand 10% POE | C64: MVA | D64: 5858.157539 | E64: 5873.74262 | F64: 5938.284669 | G64: 5963.158959 | H64: 5929.771884 | I64: 5946.449862 | J64: 5978.421597
A65: DOPSD0209 | B65: Non–coincident Summated Weather Adjusted System Annual Maximum Demand 50% POE | C65: MVA | D65: 5405.458613 | E65: 5429.088084 | F65: 5479.338933 | G65: 5508.807883 | H65: 5475.851912 | I65: 5480.783463 | J65: 5508.960492
A66: DOPSD0211 | B66: Coincident Weather Adjusted System Annual Maximum Demand 10% POE | C66: MVA | D66: 5471.566011 | E66: 5489.997934 | F66: 5554.525235 | G66: 5581.468847 | H66: 5547.357532 | I66: 5564.610687 | J66: 5597.059162
A67: DOPSD0212 | B67: Coincident Weather Adjusted System Annual Maximum Demand 50% POE | C67: MVA | D67: 5033.643989 | E67: 5058.980186 | F67: 5110.118952 | G67: 5140.260732 | H67: 5108.570508 | I67: 5115.618676 | J67: 5144.453271
B68: 3.4.3.5 - Power factor conversion between MVA and MW
A69: DOPSD0301 | B69: Average overall network power factor conversion between MVA and MW | C69: Factor | D69: 0.9916889068 | E69: 0.9916889068 | F69: 0.9916889068 | G69: 0.9916889068 | H69: 0.9916889068 | I69: 0.9916889068 | J69: 0.9916889068
A70: DOPSD0302 | B70: Average power factor conversion for low voltage distribution lines | C70: Factor | D70: 0.9698273135 | E70: 0.9607819242 | F70: 0.9410262311 | G70: 0.9408914741 | H70: 0.9408914662 | I70: 0.9408920371 | J70: 0.9408921434
A71: DOPSD0303 | B71: Average power factor conversion for 3.3 kV lines | C71: Factor | D71: 0 | E71: 0 | F71: 0 | G71: 0 | H71: 0 | I71: 0 | J71: 0
A72: DOPSD0304 | B72: Average power factor conversion for 6.6 kV lines | C72: Factor | D72: 0 | E72: 0 | F72: 0 | G72: 0 | H72: 0 | I72: 0 | J72: 0
A73: DOPSD0305 | B73: Average power factor conversion for 7.6 kV lines | C73: Factor | D73: 0 | E73: 0 | F73: 0 | G73: 0 | H73: 0 | I73: 0 | J73: 0
A74: DOPSD0306 | B74: Average power factor conversion for 11 kV lines | C74: Factor | D74: 0.981947811 | E74: 0.9751631263 | F74: 0.9559920991 | G74: 0.9558596764 | H74: 0.9558596624 | I74: 0.9558603598 | J74: 0.9558604984
A75: DOPSD0307 | B75: Average power factor conversion for SWER lines | C75: Factor | D75: 0.9256128397 | E75: 0.9256128147 | F75: 0.9256127785 | G75: 0.9256128394 | H75: 0.9256127827 | I75: 0.9256128255 | J75: 0.9256128106
A76: DOPSD0308 | B76: Average power factor conversion for 22 kV lines | C76: Factor | D76: 0 | E76: 0 | F76: 0 | G76: 0 | H76: 0 | I76: 0 | J76: 0
A77: DOPSD0309 | B77: Average power factor conversion for 33 kV lines | C77: Factor | D77: 0.9753585047 | E77: 0.9790876876 | F77: 0.96364913 | G77: 0.9636491274 | H77: 0.9636491256 | I77: 0.9636491239 | J77: 0.9636491266
A78: DOPSD0310 | B78: Average power factor conversion for 44 kV lines | C78: Factor | D78: 0 | E78: 0 | F78: 0 | G78: 0 | H78: 0 | I78: 0 | J78: 0
A79: DOPSD0311 | B79: Average power factor conversion for 66 kV lines | C79: Factor | D79: 0 | E79: 0 | F79: 0 | G79: 0 | H79: 0 | I79: 0 | J79: 0
A80: DOPSD0312 | B80: Average power factor conversion for 110 kV lines | C80: Factor | D80: 0.9330465913 | E80: 0.9698754235 | F80: 0.9719492225 | G80: 0.9719491943 | H80: 0.9719487337 | I80: 0.971948438 | J80: 0.9719485385
A81: DOPSD0313 | B81: Average power factor conversion for 132 kV lines | C81: Factor | D81: 0.9641286425 | E81: 0.9647643418 | F81: 0.9640727625 | G81: 0.9640727768 | H81: 0.9640727745 | I81: 0.9640727674 | J81: 0.9640727686
A82: DOPSD0314 | B82: Average power factor conversion for 220 kV lines | C82: Factor | D82: 0 | E82: 0 | F82: 0 | G82: 0 | H82: 0 | I82: 0 | J82: 0
B83: 3.4.3.6 - Demand supplied (for customers charged on this basis) – MW measure
A84: DOPSD0401 | B84: Summated Chargeable Contracted Maximum Demand | C84: MW | D84: 0 | E84: 0 | F84: 0 | G84: 0 | H84: 0 | I84: 0 | J84: 0
A85: DOPSD0402 | B85: Summated Chargeable Measured Maximum Demand | C85: MW | D85: 3.42 | E85: 3.42 | F85: 3.42 | G85: 3.42 | H85: 3.42 | I85: 3.42 | J85: 3.42
B86: 3.4.3.7 - Demand supplied (for customers charged on this basis) – MVA measure
A87: DOPSD0403 | B87: Summated Chargeable Contracted Maximum Demand | C87: MVA | D87: 200.881 | E87: 200.881 | F87: 200.881 | G87: 200.881 | H87: 200.881 | I87: 200.881 | J87: 200.881
A88: DOPSD0404 | B88: Summated Chargeable Measured Maximum Demand | C88: MVA | D88: 3379.67 | E88: 3379.67 | F88: 3379.67 | G88: 3379.67 | H88: 3379.67 | I88: 3379.67 | J88: 3379.67

Sheet 3.5 Physical assets
B1: =SheetHeader -> REGULATORY REPORTING STATEMENT
B2: =dms_TradingName -> Energex
B3: =dms_Reg_Year_Span -> 2020-21 to 2024-25
B4: 3.5 PHYSICAL ASSETS DATA
B6: There are THREE tables on this worksheet. Each table has been grouped (and sub-grouped) for ease of navigation. See the Instructions sheet on how to group or ungroup tables.
B10: 3.5.1 - NETWORK CAPACITIES VARIABLES
D11: VOLUMES
C12: Units | D12: =CRCP_y4 -> 2018-19 | E12: =CRCP_y5 -> 2019-20 | F12: =FRCP_y1 -> 2020-21 | G12: =FRCP_y2 -> 2021-22 | H12: =FRCP_y3 -> 2022-23 | I12: =FRCP_y4 -> 2023-24 | J12: =FRCP_y5 -> 2024-25
B13: Circuit length
B14: 3.5.1.1 - Overhead network length of circuit at each voltage
A15: DPA0101 | B15: Overhead low voltage distribution | C15: km | D15: 14182 | E15: 14182 | F15: 14182 | G15: 14182 | H15: 14182 | I15: 14182 | J15: 14182
A16: DPA0102 | B16: Overhead 2.2 kV | C16: km | D16: 0 | E16: 0 | F16: 0 | G16: 0 | H16: 0 | I16: 0 | J16: 0
A17: DPA0103 | B17: Overhead 7.6 kV | C17: km | D17: 0 | E17: 0 | F17: 0 | G17: 0 | H17: 0 | I17: 0 | J17: 0
A18: DPA0104 | B18: Overhead 11 kV | C18: km | D18: 17534.485 | E18: 17542.97 | F18: 17560.47 | G18: 17580.47 | H18: 17600.47 | I18: 17620.47 | J18: 17640.47
A19: DPA0105 | B19: Overhead SWER | C19: km | D19: 40 | E19: 40 | F19: 40 | G19: 40 | H19: 40 | I19: 40 | J19: 40
A20: DPA0106 | B20: Overhead 22 kV | C20: km | D20: 0 | E20: 0 | F20: 0 | G20: 0 | H20: 0 | I20: 0 | J20: 0
A21: DPA0107 | B21: Overhead 33 kV | C21: km | D21: 2188 | E21: 2188 | F21: 2188 | G21: 2204 | H21: 2204 | I21: 2204 | J21: 2204
A22: DPA0108 | B22: Overhead 44 kV | C22: km | D22: 0 | E22: 0 | F22: 0 | G22: 0 | H22: 0 | I22: 0 | J22: 0
A23: DPA0109 | B23: Overhead 66 kV | C23: km | D23: 0 | E23: 0 | F23: 0 | G23: 0 | H23: 0 | I23: 0 | J23: 0
A24: DPA0110 | B24: Overhead 132 kV | C24: km | D24: 332 | E24: 332 | F24: 332 | G24: 366 | H24: 366 | I24: 366 | J24: 390
A25: DPA0111 | B25: Overhead 6.6kv | C25: km | D25: 0 | E25: 0 | F25: 0 | G25: 0 | H25: 0 | I25: 0 | J25: 0
A26: DPA0112 | B26: Overhead 110kV | C26: km | D26: 822 | E26: 822 | F26: 822 | G26: 822 | H26: 822 | I26: 822 | J26: 822
A27: DPA0113 | B27: Overhead 220kV | C27: km | D27: 0 | E27: 0 | F27: 0 | G27: 0 | H27: 0 | I27: 0 | J27: 0
A28: DPA0114 | B28: Other | C28: km | D28: 0 | E28: 0 | F28: 0 | G28: 0 | H28: 0 | I28: 0 | J28: 0
A29: DPA01 | B29: Total overhead circuit km | D29: =SUM(D15:D28) -> 35098.485 | E29: =SUM(E15:E28) -> 35106.97 | F29: 35124.47 | G29: 35194.47 | H29: 35214.47 | I29: 35234.47 | J29: 35278.47
B30: 3.5.1.2 - Underground network circuit length at each voltage
A31: DPA0201 | B31: Underground low voltage distribution | C31: km | D31: 12101 | E31: 12343.02 | F31: 12589.8804 | G31: 12841.67801 | H31: 13098.51157 | I31: 13360.4818 | J31: 13627.69144
A32: DPA0202 | B32: Underground 5 kV | C32: km | D32: 0 | E32: 0 | F32: 0 | G32: 0 | H32: 0 | I32: 0 | J32: 0
A33: DPA0203 | B33: Underground 6.6 Kv | C33: km | D33: 0 | E33: 0 | F33: 0 | G33: 0 | H33: 0 | I33: 0 | J33: 0
A34: DPA0204 | B34: Underground 7.6 kV | C34: km | D34: 0 | E34: 0 | F34: 0 | G34: 0 | H34: 0 | I34: 0 | J34: 0
A35: DPA0205 | B35: Underground 11 kV | C35: km | D35: 6078.595 | E35: 6242.717065 | F35: 6411.270426 | G35: 6584.374727 | H35: 6762.152845 | I35: 6944.730972 | J35: 7132.238708
A36: DPA0206 | B36: Underground SWER | C36: km | D36: 0 | E36: 0 | F36: 0 | G36: 0 | H36: 0 | I36: 0 | J36: 0
A37: DPA0207 | B37: Underground 22 kV | C37: km | D37: 0 | E37: 0 | F37: 0 | G37: 0 | H37: 0 | I37: 0 | J37: 0
A38: DPA0208 | B38: Underground 33 kV | C38: km | D38: 846 | E38: 846 | F38: 846 | G38: 846 | H38: 846 | I38: 846 | J38: 846
A39: DPA0209 | B39: Underground 66 kV | C39: km | D39: 0 | E39: 0 | F39: 0 | G39: 0 | H39: 0 | I39: 0 | J39: 0
A40: DPA0210 | B40: Underground 110 kV | C40: km | D40: 152 | E40: 152 | F40: 152 | G40: 152 | H40: 152 | I40: 152 | J40: 152
A41: DPA0211 | B41: Underground 132 kV | C41: km | D41: 13 | E41: 13 | F41: 13 | G41: 13 | H41: 13 | I41: 13 | J41: 13
A42: DPA0212 | B42: Other | C42: km | D42: 0 | E42: 0 | F42: 0 | G42: 0 | H42: 0 | I42: 0 | J42: 0
A43: DPA02 | B43: Total underground circuit km | D43: =SUM(D31:D42) -> 19190.595 | E43: =SUM(E31:E42) -> 19596.73707 | F43: 20012.15083 | G43: 20437.05274 | H43: 20871.66441 | I43: 21316.21277 | J43: 21770.93014
B45: Circuit Capacity MVA
B46: 3.5.1.3 - Estimated overhead network weighted average MVA capacity by voltage class
A47: DPA0301 | B47: Overhead low voltage distribution | C47: MVA | D47: 0.135 | E47: 0.135 | F47: 0.135 | G47: 0.135 | H47: 0.135 | I47: 0.135 | J47: 0.135
A48: DPA0302 | B48: Overhead 6.6 kV | C48: MVA | D48: 0 | E48: 0 | F48: 0 | G48: 0 | H48: 0 | I48: 0 | J48: 0
A49: DPA0303 | B49: Overhead 7.6 kV | C49: MVA | D49: 0 | E49: 0 | F49: 0 | G49: 0 | H49: 0 | I49: 0 | J49: 0
A50: DPA0304 | B50: Overhead 11 kV | C50: MVA | D50: 0.97 | E50: 0.97 | F50: 0.97 | G50: 0.98 | H50: 0.98 | I50: 0.98 | J50: 0.98
A51: DPA0305 | B51: Overhead SWER | C51: MVA | D51: 0.09 | E51: 0.09 | F51: 0.09 | G51: 0.09 | H51: 0.09 | I51: 0.09 | J51: 0.09
A52: DPA0306 | B52: Overhead 22 kV | C52: MVA | D52: 0 | E52: 0 | F52: 0 | G52: 0 | H52: 0 | I52: 0 | J52: 0
A53: DPA0307 | B53: Overhead 33 kV | C53: MVA | D53: 26.36998533 | E53: 26.36763703 | F53: 26.34663518 | G53: 26.66743491 | H53: 26.96521319 | I53: 27.82318509 | J53: 28.37116483
A54: DPA0308 | B54: Overhead 44 kV | C54: MVA | D54: 0 | E54: 0 | F54: 0 | G54: 0 | H54: 0 | I54: 0 | J54: 0
A55: DPA0309 | B55: Overhead 66 kV | C55: MVA | D55: 0 | E55: 0 | F55: 0 | G55: 0 | H55: 0 | I55: 0 | J55: 0
A56: DPA0310 | B56: Overhead 110 kV | C56: MVA | D56: 150.4510792 | E56: 150.4510792 | F56: 150.4510792 | G56: 150.4510792 | H56: 150.4510792 | I56: 150.4510792 | J56: 150.4510792
A57: DPA0311 | B57: Overhead 132 kV | C57: MVA | D57: 163.9351749 | E57: 163.9351749 | F57: 178.0268488 | G57: 178.0268488 | H57: 178.0268488 | I57: 178.0268488 | J57: 176.696668
A58: DPA0312 | B58: Overhead 220 kV | C58: MVA | D58: 0 | E58: 0 | F58: 0 | G58: 0 | H58: 0 | I58: 0 | J58: 0
A59: DPA0313 | B59: Other | C59: MVA | D59: 0 | E59: 0 | F59: 0 | G59: 0 | H59: 0 | I59: 0 | J59: 0
B60: 3.5.1.4 - Estimated underground network weighted average MVA capacity by voltage class
A61: DPA0401 | B61: Underground low voltage distribution | C61: MVA | D61: 0.149 | E61: 0.149 | F61: 0.149 | G61: 0.149 | H61: 0.149 | I61: 0.149 | J61: 0.149
A62: DPA0402 | B62: Underground 5 kV | C62: MVA | D62: 0 | E62: 0 | F62: 0 | G62: 0 | H62: 0 | I62: 0 | J62: 0
A63: DPA0403 | B63: Underground 6.6 kV | C63: MVA | D63: 0 | E63: 0 | F63: 0 | G63: 0 | H63: 0 | I63: 0 | J63: 0
A64: DPA0404 | B64: Underground 7.6 kV | C64: MVA | D64: 0 | E64: 0 | F64: 0 | G64: 0 | H64: 0 | I64: 0 | J64: 0
A65: DPA0405 | B65: Underground 11 kV | C65: MVA | D65: 2.97 | E65: 2.97 | F65: 3 | G65: 3 | H65: 3 | I65: 3 | J65: 3
A66: DPA0406 | B66: Underground SWER | C66: MVA | D66: 0.09 | E66: 0.09 | F66: 0.09 | G66: 0.09 | H66: 0.09 | I66: 0.09 | J66: 0.09
A67: DPA0407 | B67: Underground 12.7 kV | C67: MVA | D67: 0 | E67: 0 | F67: 0 | G67: 0 | H67: 0 | I67: 0 | J67: 0
A68: DPA0408 | B68: Underground 22 kV | C68: MVA | D68: 0 | E68: 0 | F68: 0 | G68: 0 | H68: 0 | I68: 0 | J68: 0
